Workbook

Sheet Data Input Instructions (hidden)
A3: Worksheet ID | B3: Worksheet | C3: Input Data Notes
A4: 1 | B4: Data Current Rates | C4: R2 Service Charge should already be net of RRRP credit
A5: 1 | B5: Data Current Rates | C5: Demand billed RTSR should already be loss adjusted
A6: 2 | B6: Data Proposed Rates | C6: Mapped from Draft Rates file prepared for Claude
A7: 2 | B7: Data Proposed Rates | C7: Row 5 with header name TEXT is precedent to templates; changes to TEXT need to reflected in templates
A8: 2 | B8: Data Proposed Rates | C8: Templates are set up with 2-dimension vlookups so it will accommodate inserted/deleted rows and/or columns
A9: 3 | B9: Data Billing Quantities | C9: Row 4 with header name TEXT is precedent to templates; changes to TEXT need to reflected in templates
A10: 3 | B10: Data Billing Quantities | C10: Templates are set up with 2-dimension vlookups so it will accommodate inserted/deleted rows and/or columns
A11: 4 | B11: Data Pass Through | C11: Changes to Pass Through rates can be manually input on this sheet, which is precedent to the templates
A12: 4 | B12: Data Pass Through | C12: Links to templates from Column A TEXT; any changes in the TEXT of the charge names must be reflected in the templates
A13: 5 | B13: Data BI List | C13: Instruction Sheet for macro to create individual bill impact worksheets
A14: 5 | B14: Data BI List | C14: Need to MANUALLY update Test Year to appear as header on all bill impact worksheets
A15: 6 | B15: Data BI Summary | C15: This replaces the need for cell references in summary sheet, and displays value for totals so rows can be added to templates and worksheets without having to update the summary sheet
B16: Bill Impact Summary | C16: This file has 2 hidden columns needed to link to worksheets; see Col E and F

Sheet Data Current Rates (hidden)
A1: Current Jan 1, 2025 Rates
A3: 1 | B3: 2 | C3: 3 | D3: 4 | E3: 5 | F3: 6 | G3: 7 | H3: 8 | I3: 9 | J3: 10 | K3: 11 | L3: 12 | M3: 13 | N3: 14 | O3: 15 | P3: 16 | Q3: 17 | R3: 18 | S3: 19 | T3: 20 | U3: 21 | V3: 22 | W3: 23 | X3: 24 | Y3: 25 | Z3: 26 | AA3: 27 | AB3: 28 | AC3: 29 | AD3: 30 | AE3: 31 | AF3: 32 | AG3: 31
A4: Rate Class | B4: Proposed Fixed Charge ($/month) | C4: Proposed Volumetric Charge ($/kWh or $/kW) | D4: Proposed Group 1 DVA Rider - Volumetric ($/kWh or $/kW) (2023) | E4: Porposed Group 1 DVA Rider - Volumetric Applicable to Non-WMP Only ($/kWh or $/kW) (2023) | F4: Proposed Rate Rider for Disposition of Global Adjustment (Non WMP, Non-RPP, Non-LDC, and Class B) ($/kWh) (2023) | G4: Proposed Group 1 DVA Rider - Volumetric ($/kWh or $/kW) (2024) | H4: Porposed Group 1 DVA Rider - Volumetric Applicable to Non-WMP Only ($/kWh or $/kW) (2024) | I4: Proposed Rate Rider for Disposition of Global Adjustment (Non WMP, Non-RPP, Non-LDC, and Class B) ($/kWh) (2024) | J4: Vol CBR-B Rider ($/kWh or $/kW) - Non-WMP, Class B Only (2024) | K4: Vol Group 1 VA Rider - Chapleau (2024) | L4: Vol GA Rider ($/kWh) - Non-RPP, Non-LDC, Class B - Chapleau (2024) | M4: Current Group 1 DVA Rider - Volumetric ($/kWh or $/kW) (2025) | N4: Current Group 1 DVA Rider - Volumetric Applicable to Non-WMP Only ($/kWh or $/kW) (2025) | O4: Current Rate Rider for Disposition of Global Adjustment (Non WMP, Non-RPP, Non-LDC, and Class B) ($/kWh) (2025) | P4: Vol CBR-B Rider ($/kWh or $/kW) - Non-WMP, Class B Only (2025) | Q4: Fixed 1592 VA Rider for Acq ($/month) | R4: Vol 1592 VA Rider for Acq ($/kWh or $/kW) | S4: Current Group 2 Rate Rider - Fixed ($/month) | T4: Current Group 2 Rate Rider - Volumetric ($/kWh or $/kW) | U4: Current RTSR-NW ($/kWh or $/kW) | V4: Current RTSR-CONN ($/kWh or $/kW) | W4: Total DX Rev Related Fixed Rate Riders | X4: Total DX Rev Related Vol Rate Riders | Y4: Total DVA Rate Riders | Z4: Total CBR-B Rate Riders | AA4: Total GA Rate Rider | AB4: Addional Fixed Rate Rider | AC4: Additional Vol Rate Rider
A5: Rate as shown on Bill Impact Sheet | B5: Service Charge | C5: Distribution Volumetric Charge | D5: Group 1 Volumetric DVA Rider (General) (2023) | E5: Group 1 Volumetric Deferral/Variance Account Rider (Sub-Account RSVA Wholesale Market Service Charge & RSVA Power) (2023) | F5: Group 1 Volumetric Deferral/Variance Account Rider (Sub-Account Global Adjustment) (2023) | G5: Group 1 Volumetric DVA Rider (General) (2024) | H5: Group 1 Volumetric Deferral/Variance Account Rider (Sub-Account RSVA Wholesale Market Service Charge & RSVA Power) (2024) | I5: Group 1 Volumetric Deferral/Variance Account Rider (Sub-Account Global Adjustment) (2024) | J5: Group 1 Volumetric Deferral/Variance Account Rider (Sub-Account CBR) (2024) | K5: Group 1 Vol VA Rider ($/kWh or $/kW) (2024) - Chapleau | L5: GA Rider ($/kWh) for Non WMP, Non-RPP, Non-LDC, and Class B customers (2024) - Chapleau | M5: Group 1 Volumetric DVA Rider (General) (2025) | N5: Group 1 Volumetric Deferral/Variance Account Rider (Sub-Account RSVA Wholesale Market Service Charge & RSVA Power) (2025) | O5: Group 1 Volumetric Deferral/Variance Account Rider (Sub-Account Global Adjustment) (2025) | P5: Group 1 Volumetric Deferral/Variance Account Rider (Sub-Account CBR) (2025) | Q5: Fixed Rider for Account 1592 | R5: Volumetric Rider for Account 1592 | S5: Group 2 Fixed DVA Rider | T5: Group 2 Volumetric DVA Rider | U5: Retail Transmission Rate – Network Service Rate | V5: Retail Transmission Rate – Line and Transformation Connection Service Rate | W5: Group 2 Fixed Rate Rider | X5: Group 2 Volumetric Rate Rider | Y5: Total Deferral/Variance Account Rate Rider | Z5: CBR Class B Rate Rider | AA5: GA Rate Rider | AB5: Additional Fixed Rate Rider | AC5: Additional Volumetric Rate Rider
A6: Rounding Factor | B6: 2 | C6: 4 | D6: 4 | E6: 4 | F6: 4 | G6: 4 | H6: 4 | I6: 4 | J6: 4 | K6: 4 | L6: 4 | M6: 4 | N6: 4 | O6: 4 | P6: 4 | Q6: 2 | R6: 4 | S6: 2 | T6: 4 | U6: 4 | V6: 4
A7: UR | B7: 41.61 | C7: 0 | D7: -0.0007 | E7: 0 | F7: -0.0009 | M7: -0.0031 | N7: 0 | O7: 0 | P7: 0.0001 | S7: -0.11 | U7: 0.0137 | V7: 0.0098 | W7: =Q7+S7 -> -0.11 | X7: =R7+T7 -> 0 | Y7: =D7+E7+G7+H7+M7+N7+K7 -> -0.0038 | Z7: =J7+P7 -> 0.0001 | AB7: 0 | AC7: 0
A8: Seas-UR | B8: 41.61 | C8: 0 | D8: -0.0007 | E8: 0 | F8: -0.0009 | M8: -0.0031 | N8: 0 | O8: 0 | P8: 0.0001 | S8: -0.11 | U8: 0.0137 | V8: 0.0098 | W8: =Q8+S8 -> -0.11 | X8: 0 | Y8: =D8+E8+G8+H8+M8+N8+K8 -> -0.0038 | Z8: =J8+P8 -> 0.0001 | AB8: 0 | AC8: 0
A9: R1 | B9: 71.05 | C9: 0 | D9: -0.0007 | E9: 0 | F9: -0.0009 | M9: -0.003 | N9: 0 | O9: 0 | P9: 0.0001 | S9: -0.21 | U9: 0.0128 | V9: 0.0092 | W9: -0.21 | X9: 0 | Y9: -0.0037 | Z9: 0.0001 | AB9: 0 | AC9: 0
A10: Seas-R1 | B10: 71.05 | C10: 0 | D10: -0.0007 | E10: 0 | F10: -0.0009 | M10: -0.003 | N10: 0 | O10: 0 | P10: 0.0001 | S10: -0.21 | U10: 0.0128 | V10: 0.0092 | W10: -0.21 | X10: 0 | Y10: -0.0037 | Z10: 0.0001 | AB10: 0 | AC10: 0
A11: R2 | B11: 143.96 | C11: 0.0121 | D11: -0.0007 | E11: 0 | F11: -0.0009 | M11: -0.003 | N11: 0 | O11: 0 | P11: 0.0001 | S11: -0.44 | U11: 0.0118 | V11: 0.0086 | W11: -0.44 | X11: 0 | Y11: -0.0037 | Z11: 0.0001 | AB11: 0 | AC11: 0
A12: Seas-R2 | B12: 82.64 | C12: 0.0121 | D12: -0.0007 | E12: 0 | F12: -0.0009 | M12: -0.003 | N12: 0 | O12: 0 | P12: 0.0001 | S12: -0.44 | U12: 0.0118 | V12: 0.0086 | W12: -0.44 | X12: 0 | Y12: -0.0037 | Z12: 0.0001 | AB12: 0 | AC12: 0
A13: GSe | B13: 32.78 | C13: 0.0768 | D13: -0.0007 | E13: 0 | F13: -0.0009 | M13: -0.0029 | N13: 0 | O13: 0 | P13: 0.0001 | T13: -0.0003 | U13: 0.0101 | V13: 0.0078 | W13: 0 | X13: -0.0003 | Y13: -0.0036 | Z13: 0.0001 | AB13: 0 | AC13: 0
A14: UGe | B14: 25.51 | C14: 0.037 | D14: -0.0007 | E14: 0 | F14: -0.0009 | M14: -0.0029 | N14: 0 | O14: 0 | P14: 0.0001 | T14: -0.0001 | U14: 0.0108 | V14: 0.0083 | W14: 0 | X14: -0.0001 | Y14: -0.0036 | Z14: 0.0001 | AB14: 0 | AC14: 0
A15: St Lgt | B15: 3.31 | C15: 0.1235 | D15: -0.0007 | E15: 0 | F15: -0.0009 | M15: -0.0029 | N15: 0 | O15: 0 | P15: 0.0001 | T15: -0.0004 | U15: 0.0074 | V15: 0.0057 | W15: 0 | X15: -0.0004 | Y15: -0.0036 | Z15: 0.0001 | AB15: 0 | AC15: 0
A16: Sen Lgt | B16: 3.37 | C16: 0.1901 | D16: -0.0007 | E16: 0 | F16: -0.0009 | M16: -0.0029 | N16: 0 | O16: 0 | P16: 0.0001 | T16: -0.0005 | U16: 0.0074 | V16: 0.0057 | W16: 0 | X16: -0.0005 | Y16: -0.0036 | Z16: 0.0001 | AB16: 0 | AC16: 0
A17: USL | B17: 38.29 | C17: 0.0337 | D17: -0.0007 | E17: 0 | F17: -0.0009 | M17: -0.0029 | N17: 0 | O17: 0 | P17: 0.0001 | T17: -0.0003 | U17: 0.0085 | V17: 0.0062 | W17: 0 | X17: -0.0003 | Y17: -0.0036 | Z17: 0.0001 | AB17: 0 | AC17: 0
A18: GSd | B18: 105.55 | C18: 21.3987 | D18: -0.0855 | E18: -0.1195 | F18: -0.0009 | M18: -0.3279 | N18: -0.5624 | O18: 0 | P18: 0.0172 | T18: -0.071 | U18: 3.2717 | V18: 2.492 | W18: 0 | X18: -0.071 | Y18: -1.0953 | Z18: 0.0172 | AA18: =F18+I18+O18+L18 -> -0.0009 | AB18: 0 | AC18: 0
A19: UGd | B19: 96.47 | C19: 12.4416 | D19: -0.1053 | E19: -0.1473 | F19: -0.0009 | M19: -0.4048 | N19: -0.6949 | O19: 0 | P19: 0.0212 | T19: -0.0421 | U19: 4.1819 | V19: 3.1306 | W19: 0 | X19: -0.0421 | Y19: -1.3523 | Z19: 0.0212 | AA19: =F19+I19+O19+L19 -> -0.0009 | AB19: 0 | AC19: 0
A20: Dgen | B20: 199.26 | C20: 14.1138 | D20: -0.0394 | E20: -0.0565 | F20: -0.0009 | M20: -0.1512 | N20: -0.2668 | O20: 0 | P20: 0.0082 | T20: -0.093 | U20: 1.7955 | V20: 1.0693 | W20: 0 | X20: -0.093 | Y20: -0.5139 | Z20: 0.0082 | AA20: -0.0009 | AB20: 0 | AC20: 0
A21: ST | B21: 1241.87 | C21: 1.7096 | D21: -0.134 | E21: -0.188 | F21: -0.0009 | M21: -0.5141 | N21: -0.8857 | O21: 0 | P21: 0.0122 | T21: -0.0072 | U21: 5.5092 | V21: 4.3196 | W21: 0 | X21: -0.0072 | Y21: -1.7218 | Z21: 0.0122 | AA21: -0.0009 | AB21: 0 | AC21: 0
A22: AUR | B22: 34.36 | C22: 0 | D22: -0.0007 | E22: 0 | F22: -0.0009 | M22: -0.0031 | N22: 0 | O22: 0 | P22: 0.0001 | U22: 0.0141 | V22: 0.0101 | W22: 0 | X22: 0 | Y22: -0.0038 | Z22: 0.0001 | AB22: 0 | AC22: 0
A23: AUGe | B23: 26.36 | C23: 0.0176 | D23: -0.0007 | E23: 0 | F23: -0.0009 | M23: -0.0029 | N23: 0 | O23: 0 | P23: 0.0001 | U23: 0.0109 | V23: 0.0082 | W23: 0 | X23: 0 | Y23: -0.0036 | Z23: 0.0001 | AB23: 0 | AC23: 0
A24: AUGd | B24: 146.47 | C24: 3.1817 | D24: -0.0972 | E24: -0.1351 | F24: -0.0009 | M24: -0.3728 | N24: -0.6353 | O24: 0 | P24: 0.0197 | U24: 3.7906 | V24: 2.8288 | W24: 0 | X24: 0 | Y24: -1.2404 | Z24: 0.0197 | AA24: =F24+I24+O24+L24 -> -0.0009 | AB24: 0 | AC24: 0
A25: AR | B25: 41.71 | C25: 0 | D25: -0.0007 | E25: 0 | F25: -0.0009 | M25: -0.0031 | N25: 0 | O25: 0 | P25: 0.0001 | U25: 0.0135 | V25: 0.0098 | W25: 0 | X25: 0 | Y25: -0.0038 | Z25: 0.0001 | AB25: 0 | AC25: 0
A26: AGSe | B26: 39.96 | C26: 0.0216 | D26: -0.0007 | E26: 0 | F26: -0.0009 | M26: -0.0029 | N26: 0 | O26: 0 | P26: 0.0001 | U26: 0.0107 | V26: 0.0081 | W26: 0 | X26: 0 | Y26: -0.0036 | Z26: 0.0001 | AB26: 0 | AC26: 0
A27: AGSd | B27: 170.26 | C27: 5.135 | D27: -0.098 | E27: -0.1364 | F27: -0.0009 | M27: -0.3761 | N27: -0.6393 | O27: 0 | P27: 0.0194 | U27: 3.3278 | V27: 2.5457 | W27: 0 | X27: 0 | Y27: -1.2498 | Z27: 0.0194 | AA27: =F27+I27+O27+L27 -> -0.0009 | AB27: 0 | AC27: 0
A28: AUR-WHSI | B28: 34.36 | C28: 0 | D28: -0.0009 | E28: 0 | F28: -0.0009 | M28: -0.0031 | N28: 0 | O28: 0 | P28: 0.0001 | Q28: -0.4 | U28: 0.0141 | V28: 0.0101 | W28: -0.4 | X28: 0 | Y28: -0.004 | Z28: 0.0001 | AB28: 0 | AC28: 0
A29: AUGe-WHSI | B29: 26.36 | C29: 0.0176 | D29: -0.0009 | E29: 0 | F29: -0.0009 | M29: -0.0029 | N29: 0 | O29: 0 | P29: 0.0001 | R29: -0.0003 | U29: 0.0109 | V29: 0.0082 | W29: 0 | X29: -0.0003 | Y29: -0.0038 | Z29: 0.0001 | AB29: 0 | AC29: 0
A30: AUGd-WHSI | B30: 146.47 | C30: 3.1817 | D30: -0.0645 | E30: -0.1351 | F30: -0.0009 | M30: -0.3728 | N30: -0.6353 | O30: 0 | P30: 0.0197 | R30: -0.0392 | U30: 3.7906 | V30: 2.8288 | W30: 0 | X30: -0.0392 | Y30: -1.2077 | Z30: 0.0197 | AA30: =F30+I30+O30+L30 -> -0.0009 | AB30: 0 | AC30: 0
A31: ST-WHSI | B31: 1241.87 | C31: 1.7096 | D31: -0.1063 | E31: -0.188 | F31: -0.0009 | M31: -0.5141 | N31: -0.8857 | O31: 0 | P31: 0.0122 | R31: -0.0438 | U31: 5.5092 | V31: 4.3196 | W31: 0 | X31: -0.0438 | Y31: -1.6941 | Z31: 0.0122 | AA31: =F31+I31+O31+L31 -> -0.0009 | AB31: 0 | AC31: 0
A32: St Lgt-WHSI | B32: 3.31 | C32: 0.1235 | D32: -0.0006 | E32: 0 | F32: -0.0009 | M32: -0.0029 | N32: 0 | O32: 0 | P32: 0.0001 | R32: -0.0013 | U32: 0.0074 | V32: 0.0057 | W32: 0 | X32: -0.0013 | Y32: -0.0035 | Z32: 0.0001 | AB32: 0 | AC32: 0
A33: USL-WHSI | B33: 38.29 | C33: 0.0337 | D33: -0.0009 | E33: 0 | F33: -0.0009 | M33: -0.0029 | N33: 0 | O33: 0 | P33: 0.0001 | R33: -0.0003 | U33: 0.0085 | V33: 0.0062 | W33: 0 | X33: -0.0003 | Y33: -0.0038 | Z33: 0.0001 | AB33: 0 | AC33: 0
A34: AR-NPDI | B34: 41.71 | C34: 0 | D34: -0.0008 | E34: 0 | F34: -0.0009 | M34: -0.0031 | N34: 0 | O34: 0 | P34: 0.0001 | Q34: -0.43 | U34: 0.0135 | V34: 0.0098 | W34: -0.43 | X34: 0 | Y34: -0.0039 | Z34: 0.0001 | AB34: 0 | AC34: 0
A35: AGSe-NPDI | B35: 39.96 | C35: 0.0216 | D35: -0.0008 | E35: 0 | F35: -0.0009 | M35: -0.0029 | N35: 0 | O35: 0 | P35: 0.0001 | R35: -0.0004 | U35: 0.0107 | V35: 0.0081 | W35: 0 | X35: -0.0004 | Y35: -0.0037 | Z35: 0.0001 | AB35: 0 | AC35: 0
A36: AGSd-NPDI | B36: 170.26 | C36: 5.135 | D36: -0.0653 | E36: -0.1364 | F36: -0.0009 | M36: -0.3761 | N36: -0.6393 | O36: 0 | P36: 0.0194 | R36: -0.0618 | U36: 3.3278 | V36: 2.5457 | W36: 0 | X36: -0.0618 | Y36: -1.2171 | Z36: 0.0194 | AA36: =F36+I36+O36+L36 -> -0.0009 | AB36: 0 | AC36: 0
A37: St Lgt-NPDI | B37: 3.31 | C37: 0.1235 | D37: -0.0011 | E37: 0 | F37: -0.0009 | M37: -0.0029 | N37: 0 | O37: 0 | P37: 0.0001 | R37: -0.0011 | U37: 0.0074 | V37: 0.0057 | W37: 0 | X37: -0.0011 | Y37: -0.004 | Z37: 0.0001 | AB37: 0 | AC37: 0
A38: Sen Lgt-NPDI | B38: 3.37 | C38: 0.1901 | D38: -0.0012 | E38: 0 | F38: -0.0009 | M38: -0.0029 | N38: 0 | O38: 0 | P38: 0.0001 | R38: -0.0018 | U38: 0.0074 | V38: 0.0057 | W38: 0 | X38: -0.0018 | Y38: -0.0041 | Z38: 0.0001 | AB38: 0 | AC38: 0
A39: USL-NPDI | B39: 38.29 | C39: 0.0337 | D39: -0.0014 | E39: 0 | F39: -0.0009 | M39: -0.0029 | N39: 0 | O39: 0 | P39: 0.0001 | R39: -0.0008 | U39: 0.0085 | V39: 0.0062 | W39: 0 | X39: -0.0008 | Y39: -0.0043 | Z39: 0.0001 | AB39: 0 | AC39: 0
A40: AR-HCHI | B40: 41.71 | C40: 0 | D40: -0.0007 | E40: 0 | F40: -0.0009 | M40: -0.0031 | N40: 0 | O40: 0 | P40: 0.0001 | Q40: -0.46 | U40: 0.0135 | V40: 0.0098 | W40: -0.46 | X40: 0 | Y40: -0.0038 | Z40: 0.0001 | AB40: 0 | AC40: 0
A41: AGSe-HCHI | B41: 39.96 | C41: 0.0216 | D41: -0.0007 | E41: 0 | F41: -0.0009 | M41: -0.0029 | N41: 0 | O41: 0 | P41: 0.0001 | R41: -0.0004 | U41: 0.0107 | V41: 0.0081 | W41: 0 | X41: -0.0004 | Y41: -0.0036 | Z41: 0.0001 | AB41: 0 | AC41: 0
A42: AGSd-HCHI | B42: 170.26 | C42: 5.135 | D42: -0.098 | E42: -0.1364 | F42: -0.0009 | M42: -0.3761 | N42: -0.6393 | O42: 0 | P42: 0.0194 | R42: -0.0603 | U42: 3.3278 | V42: 2.5457 | W42: 0 | X42: -0.0603 | Y42: -1.2498 | Z42: 0.0194 | AA42: =F42+I42+O42+L42 -> -0.0009 | AB42: 0 | AC42: 0
A43: St Lgt-HCHI | B43: 3.31 | C43: 0.1235 | D43: -0.0007 | E43: 0 | F43: -0.0009 | M43: -0.0029 | N43: 0 | O43: 0 | P43: 0.0001 | R43: -0.0028 | U43: 0.0074 | V43: 0.0057 | W43: 0 | X43: -0.0028 | Y43: -0.0036 | Z43: 0.0001 | AB43: 0 | AC43: 0
A44: Sen Lgt-HCHI | B44: 3.37 | C44: 0.1901 | D44: -0.0007 | E44: 0 | F44: -0.0009 | M44: -0.0029 | N44: 0 | O44: 0 | P44: 0.0001 | R44: -0.0055 | U44: 0.0074 | V44: 0.0057 | W44: 0 | X44: -0.0055 | Y44: -0.0036 | Z44: 0.0001 | AB44: 0 | AC44: 0
A45: USL-HCHI | B45: 38.29 | C45: 0.0337 | D45: -0.0007 | E45: 0 | F45: -0.0009 | M45: -0.0029 | N45: 0 | O45: 0 | P45: 0.0001 | R45: -0.0007 | U45: 0.0085 | V45: 0.0062 | W45: 0 | X45: -0.0007 | Y45: -0.0036 | Z45: 0.0001 | AB45: 0 | AC45: 0
A46: R1-CPUC | B46: 71.05 | C46: 0 | U46: 0.0128 | V46: 0.0092 | W46: =Q46+S46 -> 0 | X46: 0 | Y46: 0 | Z46: 0 | AB46: 0 | AC46: 0
A47: GSe-CPUC | B47: 32.78 | C47: 0.0768 | U47: 0.0101 | V47: 0.0078 | W47: 0 | X47: 0 | Y47: 0 | Z47: 0 | AB47: 0 | AC47: 0
A48: GSd-CPUC | B48: 105.55 | C48: 21.3987 | U48: 3.2717 | V48: 2.492 | W48: 0 | X48: 0 | Y48: 0 | Z48: 0 | AA48: =F48+I48+O48+L48 -> 0 | AB48: 0 | AC48: 0
A49: USL-CPUC | B49: 38.29 | C49: 0.0337 | U49: 0.0085 | V49: 0.0062 | W49: 0 | X49: 0 | Y49: 0 | Z49: 0 | AB49: 0 | AC49: 0
A50: Sen Lgt-CPUC | B50: 3.37 | C50: 0.1901 | U50: 0.0074 | V50: 0.0057 | W50: 0 | X50: 0 | Y50: 0 | Z50: 0 | AB50: 0 | AC50: 0
A51: St Lgt-CPUC | B51: 3.31 | C51: 0.1235 | U51: 0.0074 | V51: 0.0057 | W51: 0 | X51: 0 | Y51: 0 | Z51: 0 | AB51: 0 | AC51: 0
A52: Sen Lgt-HONI | B52: =B50 -> 3.37 | C52: =C50 -> 0.1901 | U52: =U50 -> 0.0074 | V52: =V50 -> 0.0057 | W52: 0 | X52: 0 | Y52: 0 | Z52: 0 | AB52: 0 | AC52: 0
A53: St Lgt-HONI | B53: =B51 -> 3.31 | C53: =C51 -> 0.1235 | U53: =U51 -> 0.0074 | V53: =V51 -> 0.0057 | W53: 0 | X53: 0 | Y53: 0 | Z53: 0 | AB53: 0 | AC53: 0

Sheet Data Proposed Rates (hidden)
A1: Porposed Jan 1, 2026 Rates
A3: 1 | B3: 2 | C3: 3 | D3: 4 | E3: 5 | F3: 6 | G3: 7 | H3: 8 | I3: 9 | J3: 10 | K3: 11 | L3: 12 | N3: 13 | O3: 14 | P3: 15 | Q3: 16 | R3: 17 | S3: 18 | T3: 19 | U3: 20 | V3: 21 | W3: 22 | X3: 23 | Y3: 24 | Z3: 25 | AA3: 26 | AB3: 27 | AC3: 28 | AD3: 29 | AE3: 30 | AG3: 31 | AH3: 32 | AI3: 33 | AJ3: 34 | AK3: 35 | AL3: 36 | AM3: 37 | AN3: 38
A4: Rate Class | B4: Proposed Fixed Charge ($/month) | C4: Proposed Volumetric Charge ($/kWh or $/kW) | D4: Proposed Group 1 DVA Rider - Volumetric ($/kWh or $/kW) (2023) | E4: Porposed Group 1 DVA Rider - Volumetric Applicable to Non-WMP Only ($/kWh or $/kW) (2023) | F4: Proposed Rate Rider for Disposition of Global Adjustment (Non WMP, Non-RPP, Non-LDC, and Class B) ($/kWh) (2023) | G4: Vol Group 1 VA Rider ($/kWh or $/kW)-Excl Account 1588 - HONI-DX | H4: Rate Rider for Account 1588-Non-WMP Only ($/kWh or $/kW) - HONI-DX | I4: Vol Group 1 VA Rider - Non-WMP Only ($/kW) - HONI-DX | J4: Proposed Rate Rider for Disposition of Global Adjustment (Non WMP, Non-RPP, Non-LDC, and Class B) ($/kWh) (2026) | K4: Vol CBR-B Rider ($/kWh or $/kW) - Non-WMP, Class B Only (2026) | L4: Vol Group 1 VA Rider ($/kWh or $/kW)-Excl Account 1588 - Chapleau | M4: Rate Rider for Account 1588 ($/kWh or $/kW) - Chapleau | N4: Vol Group 1 VA Rider - Non-WMP Only ($/kW) - Chapleau (2026) | O4: Vol GA Rider ($/kWh) - Non-RPP, Non-LDC, Class B - Chapleau (2026) | P4: Proposed Group 1 DVA Rider - Volumetric ($/kWh or $/kW) (2025) | Q4: Porposed Group 1 DVA Rider - Volumetric Applicable to Non-WMP Only ($/kWh or $/kW) (2025) | R4: Proposed Rate Rider for Disposition of Global Adjustment (Non WMP, Non-RPP, Non-LDC, and Class B) ($/kWh) (2025) | S4: Vol CBR-B Rider ($/kWh or $/kW) - Non-WMP, Class B Only (2025) | T4: Fixed 1592 VA Rider for Acq ($/month) (2023) | U4: Vol 1592 VA Rider for Acq ($/kWh or $/kW) (2023) | V4: Proposed Group 2 Rate Rider - Fixed ($/month) (2023) | W4: Proposed Group 2 Rate Rider - Volumetric ($/kWh or $/kW) (2023) | X4: Fixed Rate Rider for Z-Factor Costs | Y4: ESM Rate Rider - Fixed ($/month) (2026) | Z4: ESM Rate Rider - Volumetric ($/kWh or $/kW) (2026) | AA4: Proposed RTSR-NW ($/kWh or $/kW) | AB4: Proposed RTSR-CONN ($/kWh or $/kW) | AC4: Total DX Rev Related Fixed Rate Riders | AD4: Total DX Rev Related Vol Rate Riders | AE4: Total DVA Rate Riders | AG4: Total CBR-B Rate Riders | AH4: Total GA Rate Rider | AI4: Addional Fixed Rate Rider | AJ4: Additional Vol Rate Rider
A5: Rate as shown on Bill Impact Sheet | B5: Service Charge | C5: Distribution Volumetric Charge | D5: Group 1 Volumetric DVA Rider (General) (2023) | E5: Group 1 Volumetric Deferral/Variance Account Rider (Sub-Account RSVA Wholesale Market Service Charge & RSVA Power) (2023) | F5: Group 1 Volumetric Deferral/Variance Account Rider (Sub-Account Global Adjustment) (2023) | G5: Group 1 Volumetric DVA Rider (General) - Excl Account 1588 (2026) | H5: Account 1588 Rate Rider (2026) | I5: Group 1 Volumetric Deferral/Variance Account Rider (Sub-Account RSVA Wholesale Market Service Charge) (2026) | J5: Group 1 Volumetric Deferral/Variance Account Rider (Sub-Account Global Adjustment) (2026) | K5: Group 1 Volumetric Deferral/Variance Account Rider (Sub-Account CBR) (2026) | L5: Group 1 Volumetric DVA Rider (General)-Excl Account 1588 (2026) - Chapleau | M5: Account 1588 Rate Rider (2026) - Chapleau | N5: Group 1 Volumetric Deferral/Variance Account Rider (Sub-Account RSVA Wholesale Market Service Charge) (2026) | O5: Group 1 Volumetric Deferral/Variance Account Rider (Sub-Account Global Adjustment) (2026) - Chapleau | P5: Group 1 Volumetric DVA Rider (General) (2025) | Q5: Group 1 Volumetric Deferral/Variance Account Rider (Sub-Account RSVA Wholesale Market Service Charge & RSVA Power) (2025) | R5: Group 1 Volumetric Deferral/Variance Account Rider (Sub-Account Global Adjustment) (2025) | S5: Group 1 Volumetric Deferral/Variance Account Rider (Sub-Account CBR) (2025) | T5: Fixed Rider for Account 1592 | U5: Volumetric Rider for Account 1592 | V5: Group 2 Fixed DVA Rider | W5: Group 2 Volumetric DVA Rider | X5: Z-Factor Fixed Rate Rider | Y5: ESM Fixed Rate Rider | Z5: ESM Volumetric Rate Rider | AA5: Retail Transmission Rate – Network Service Rate | AB5: Retail Transmission Rate – Line and Transformation Connection Service Rate | AC5: Group 2 Fixed Rate Rider | AD5: Group 2 Volumetric Rate Rider | AE5: Total Deferral/Variance Account Rate Rider | AF5: Rate Rider for Account 1588 | AG5: CBR Class B Rate Rider | AH5: GA Rate Rider | AI5: Additional Fixed Rate Rider | AJ5: Additional Volumetric Rate Rider
A6: Rounding Factor | B6: 2 | C6: 4 | D6: 4 | E6: 4 | F6: 4 | G6: 4 | H6: 4 | I6: 4 | J6: 4 | K6: 4 | L6: 4 | M6: 4 | N6: 4 | O6: 4 | P6: 4 | Q6: 4 | R6: 4 | S6: 4 | T6: 2 | U6: 4 | V6: 2 | W6: 4 | X6: 2 | Y6: 2 | Z6: 4 | AA6: 4 | AB6: 4
A7: UR | B7: 43.7 | C7: 0 | G7: -0.0017 | H7: -0.0032 | I7: 0 | J7: 0.0121 | K7: -0.0006 | X7: 0 | Y7: -1.5 | Z7: 0 | AA7: 0.0141 | AB7: 0.01 | AC7: =Y7 -> -1.5 | AD7: =Z7 -> 0 | AE7: =G7+I7+L7+N7 -> -0.0017 | AF7: =H7 -> -0.0032 | AG7: =K7 -> -0.0006 | AI7: 0 | AJ7: 0
A8: Seas-UR | B8: 43.7 | C8: 0 | G8: -0.0017 | H8: -0.0032 | I8: 0 | J8: 0.0121 | K8: -0.0006 | X8: 0 | Y8: -1.5 | Z8: 0 | AA8: 0.0141 | AB8: 0.01 | AC8: =Y8 -> -1.5 | AD8: =Z8 -> 0 | AE8: -0.0017 | AF8: =H8 -> -0.0032 | AG8: =K8 -> -0.0006 | AI8: 0 | AJ8: 0
A9: R1 | B9: 74.62 | C9: 0 | G9: -0.0017 | H9: -0.0032 | I9: 0 | J9: 0.0121 | K9: -0.0006 | X9: 0 | Y9: -2.56 | Z9: 0 | AA9: 0.0131 | AB9: 0.0094 | AC9: -2.56 | AD9: 0 | AE9: -0.0017 | AF9: -0.0032 | AG9: -0.0006 | AI9: 0 | AJ9: 0
A10: Seas-R1 | B10: 74.62 | C10: 0 | G10: -0.0017 | H10: -0.0032 | I10: 0 | J10: 0.0121 | K10: -0.0006 | X10: 0 | Y10: -2.56 | Z10: 0 | AA10: 0.0131 | AB10: 0.0094 | AC10: -2.56 | AD10: 0 | AE10: -0.0017 | AF10: -0.0032 | AG10: -0.0006 | AI10: 0 | AJ10: 0
A11: R2 | B11: 151.14 | C11: 0.0117 | G11: -0.0017 | H11: -0.0032 | I11: 0 | J11: 0.0121 | K11: -0.0006 | X11: 0 | Y11: -5.18 | Z11: 0 | AA11: 0.0121 | AB11: 0.0088 | AC11: -5.18 | AD11: 0 | AE11: -0.0017 | AF11: -0.0032 | AG11: -0.0006 | AI11: 0 | AJ11: 0
A12: Seas-R2 | B12: 92.43 | C12: 0.0117 | G12: -0.0017 | H12: -0.0032 | I12: 0 | J12: 0.0121 | K12: -0.0006 | X12: 0 | Y12: -5.18 | Z12: 0 | AA12: 0.0121 | AB12: 0.0088 | AC12: -5.18 | AD12: 0 | AE12: -0.0017 | AF12: -0.0032 | AG12: -0.0006 | AI12: 0 | AJ12: 0
A13: GSe | B13: 32.78 | C13: 0.0816 | G13: -0.0017 | H13: -0.0032 | I13: 0 | J13: 0.0121 | K13: -0.0006 | X13: 0 | Y13: -1.12 | Z13: -0.0028 | AA13: 0.0104 | AB13: 0.008 | AC13: -1.12 | AD13: -0.0028 | AE13: -0.0017 | AF13: -0.0032 | AG13: -0.0006 | AI13: 0 | AJ13: 0
A14: UGe | B14: 25.51 | C14: 0.0394 | G14: -0.0016 | H14: -0.0032 | I14: 0 | J14: 0.0121 | K14: -0.0006 | X14: 0 | Y14: -0.87 | Z14: -0.0014 | AA14: 0.0111 | AB14: 0.0085 | AC14: -0.87 | AD14: -0.0014 | AE14: -0.0016 | AF14: -0.0032 | AG14: -0.0006 | AI14: 0 | AJ14: 0
A15: St Lgt | B15: 3.42 | C15: 0.1297 | G15: -0.0018 | H15: -0.0032 | I15: 0 | J15: 0.0121 | K15: -0.0006 | X15: 0 | Y15: -0.12 | Z15: -0.0044 | AA15: 0.0076 | AB15: 0.0058 | AC15: -0.12 | AD15: -0.0044 | AE15: -0.0018 | AF15: -0.0032 | AG15: -0.0006 | AI15: 0 | AJ15: 0
A16: Sen Lgt | B16: 3.51 | C16: 0.2002 | G16: -0.0018 | H16: -0.0032 | I16: 0 | J16: 0.0121 | K16: -0.0006 | X16: 0 | Y16: -0.12 | Z16: -0.0069 | AA16: 0.0076 | AB16: 0.0058 | AC16: -0.12 | AD16: -0.0069 | AE16: -0.0018 | AF16: -0.0032 | AG16: -0.0006 | AI16: 0 | AJ16: 0
A17: USL | B17: 38.29 | C17: 0.0395 | G17: -0.0015 | H17: -0.0032 | I17: 0 | J17: 0.0121 | K17: -0.0006 | X17: 0 | Y17: -1.31 | Z17: -0.0014 | AA17: 0.0087 | AB17: 0.0064 | AC17: -1.31 | AD17: -0.0014 | AE17: -0.0015 | AF17: -0.0032 | AG17: -0.0006 | AI17: 0 | AJ17: 0
A18: GSd | B18: 105.55 | C18: 22.5201 | G18: -0.4747 | H18: -0.9912 | I18: -0.0733 | J18: 0.0121 | K18: -0.1893 | X18: 0 | Y18: -3.62 | Z18: -0.7683 | AA18: 3.3593 | AB18: 2.5541 | AC18: -3.62 | AD18: -0.7683 | AE18: -0.548 | AF18: -0.9912 | AG18: -0.1893 | AH18: =J18+O18 -> 0.0121 | AI18: 0 | AJ18: 0
A19: UGd | B19: 96.47 | C19: 13.1059 | G19: -0.5696 | H19: -1.2268 | I19: -0.0907 | J19: 0.0121 | K19: -0.2353 | X19: 0 | Y19: -3.31 | Z19: -0.4449 | AA19: 4.294 | AB19: 3.2087 | AC19: -3.31 | AD19: -0.4449 | AE19: -0.6603 | AF19: -1.2268 | AG19: -0.2353 | AH19: 0.0121 | AI19: 0 | AJ19: 0
A20: Dgen | B20: 199.26 | C20: 15.7314 | G20: -0.2301 | H20: -0.4674 | I20: -0.0346 | J20: 0.0121 | K20: -0.0896 | X20: 0 | Y20: -6.83 | Z20: -0.5226 | AA20: 1.8436 | AB20: 1.0959 | AC20: -6.83 | AD20: -0.5226 | AE20: -0.2647 | AF20: -0.4674 | AG20: -0.0896 | AH20: 0.0121 | AI20: 0 | AJ20: 0
A21: ST | B21: 1241.87 | C21: 1.8196 | G21: -0.5838 | H21: -1.3452 | I21: -0.0995 | J21: 0.0121 | K21: -0.2148 | X21: 0 | Y21: -37.83 | Z21: -0.0686 | AA21: 5.6568 | AB21: 4.4274 | AC21: -37.83 | AD21: -0.0686 | AE21: -0.6833 | AF21: -1.3452 | AG21: -0.2148 | AH21: 0.0121 | AI21: 0 | AJ21: 0
A22: AUR | B22: 36.09 | C22: 0 | G22: -0.0018 | H22: -0.0032 | I22: 0 | J22: 0.0121 | K22: -0.0006 | X22: 0 | Y22: -1.24 | Z22: 0 | AA22: 0.0145 | AB22: 0.0104 | AC22: -1.24 | AD22: 0 | AE22: -0.0018 | AF22: -0.0032 | AG22: -0.0006 | AI22: 0 | AJ22: 0
A23: AUGe | B23: 26.36 | C23: 0.019 | G23: -0.0018 | H23: -0.0032 | I23: 0 | J23: 0.0121 | K23: -0.0006 | X23: 0 | Y23: -0.9 | Z23: -0.0007 | AA23: 0.0112 | AB23: 0.0084 | AC23: -0.9 | AD23: -0.0007 | AE23: -0.0018 | AF23: -0.0032 | AG23: -0.0006 | AI23: 0 | AJ23: 0
A24: AUGd | B24: 146.47 | C24: 3.3806 | G24: -0.6907 | H24: -1.1192 | I24: -0.0828 | J24: 0.0121 | K24: -0.2164 | X24: 0 | Y24: -5.02 | Z24: -0.1051 | AA24: 3.8921 | AB24: 2.8993 | AC24: -5.02 | AD24: -0.1051 | AE24: -0.7735 | AF24: -1.1192 | AG24: -0.2164 | AH24: 0.0121 | AI24: 0 | AJ24: 0
A25: AR | B25: 43.81 | C25: 0 | G25: -0.0017 | H25: -0.0032 | I25: 0 | J25: 0.0121 | K25: -0.0006 | X25: 0 | Y25: -1.5 | Z25: 0 | AA25: 0.0139 | AB25: 0.01 | AC25: -1.5 | AD25: 0 | AE25: -0.0017 | AF25: -0.0032 | AG25: -0.0006 | AI25: 0 | AJ25: 0
A26: AGSe | B26: 39.96 | C26: 0.0236 | G26: -0.0017 | H26: -0.0032 | I26: 0 | J26: 0.0121 | K26: -0.0006 | X26: 0 | Y26: -1.37 | Z26: -0.0008 | AA26: 0.011 | AB26: 0.0083 | AC26: -1.37 | AD26: -0.0008 | AE26: -0.0017 | AF26: -0.0032 | AG26: -0.0006 | AI26: 0 | AJ26: 0
A27: AGSd | B27: 170.26 | C27: 5.431 | G27: -0.5644 | H27: -1.1339 | I27: -0.0838 | J27: 0.0121 | K27: -0.2167 | X27: 0 | Y27: -5.84 | Z27: -0.1775 | AA27: 3.417 | AB27: 2.6092 | AC27: -5.84 | AD27: -0.1775 | AE27: -0.6482 | AF27: -1.1339 | AG27: -0.2167 | AH27: 0.0121 | AI27: 0 | AJ27: 0
A28: AUR-WHSI | B28: 36.09 | C28: 0 | G28: -0.0018 | H28: -0.0032 | I28: 0 | J28: 0.0121 | K28: -0.0006 | X28: 0 | Y28: -1.24 | Z28: 0 | AA28: 0.0145 | AB28: 0.0104 | AC28: -1.24 | AD28: 0 | AE28: -0.0018 | AF28: -0.0032 | AG28: -0.0006 | AI28: 0 | AJ28: 0
A29: AUGe-WHSI | B29: 26.36 | C29: 0.019 | G29: -0.0018 | H29: -0.0032 | I29: 0 | J29: 0.0121 | K29: -0.0006 | X29: 0 | Y29: -0.9 | Z29: -0.0007 | AA29: 0.0112 | AB29: 0.0084 | AC29: -0.9 | AD29: -0.0007 | AE29: -0.0018 | AF29: -0.0032 | AG29: -0.0006 | AI29: 0 | AJ29: 0
A30: AUGd-WHSI | B30: 146.47 | C30: 3.3806 | G30: -0.6907 | H30: -1.1192 | I30: -0.0828 | J30: 0.0121 | K30: -0.2164 | X30: 0 | Y30: -5.02 | Z30: -0.1051 | AA30: 3.8921 | AB30: 2.8993 | AC30: -5.02 | AD30: -0.1051 | AE30: -0.7735 | AF30: -1.1192 | AG30: -0.2164 | AH30: 0.0121 | AI30: 0 | AJ30: 0
A31: ST-WHSI | B31: 1241.87 | C31: 1.8196 | G31: -0.5838 | H31: -1.3452 | I31: -0.0995 | J31: 0.0121 | K31: -0.2148 | X31: 0 | Y31: -37.83 | Z31: -0.0686 | AA31: 5.6568 | AB31: 4.4274 | AC31: -37.83 | AD31: -0.0686 | AE31: -0.6833 | AF31: -1.3452 | AG31: -0.2148 | AH31: 0.0121 | AI31: 0 | AJ31: 0
A32: St Lgt-WHSI | B32: 3.42 | C32: 0.1297 | G32: -0.0018 | H32: -0.0032 | I32: 0 | J32: 0.0121 | K32: -0.0006 | X32: 0 | Y32: -0.12 | Z32: -0.0044 | AA32: 0.0076 | AB32: 0.0058 | AC32: -0.12 | AD32: -0.0044 | AE32: -0.0018 | AF32: -0.0032 | AG32: -0.0006 | AI32: 0 | AJ32: 0
A33: USL-WHSI | B33: 38.29 | C33: 0.0395 | G33: -0.0015 | H33: -0.0032 | I33: 0 | J33: 0.0121 | K33: -0.0006 | X33: 0 | Y33: -1.31 | Z33: -0.0014 | AA33: 0.0087 | AB33: 0.0064 | AC33: -1.31 | AD33: -0.0014 | AE33: -0.0015 | AF33: -0.0032 | AG33: -0.0006 | AI33: 0 | AJ33: 0
A34: AR-NPDI | B34: 43.81 | C34: 0 | G34: -0.0017 | H34: -0.0032 | I34: 0 | J34: 0.0121 | K34: -0.0006 | X34: 0 | Y34: -1.5 | Z34: 0 | AA34: 0.0139 | AB34: 0.01 | AC34: -1.5 | AD34: 0 | AE34: -0.0017 | AF34: -0.0032 | AG34: -0.0006 | AI34: 0 | AJ34: 0
A35: AGSe-NPDI | B35: 39.96 | C35: 0.0236 | G35: -0.0017 | H35: -0.0032 | I35: 0 | J35: 0.0121 | K35: -0.0006 | X35: 0 | Y35: -1.37 | Z35: -0.0008 | AA35: 0.011 | AB35: 0.0083 | AC35: -1.37 | AD35: -0.0008 | AE35: -0.0017 | AF35: -0.0032 | AG35: -0.0006 | AI35: 0 | AJ35: 0
A36: AGSd-NPDI | B36: 170.26 | C36: 5.431 | G36: -0.5644 | H36: -1.1339 | I36: -0.0838 | J36: 0.0121 | K36: -0.2167 | X36: 0 | Y36: -5.84 | Z36: -0.1775 | AA36: 3.417 | AB36: 2.6092 | AC36: -5.84 | AD36: -0.1775 | AE36: -0.6482 | AF36: -1.1339 | AG36: -0.2167 | AH36: 0.0121 | AI36: 0 | AJ36: 0
A37: St Lgt-NPDI | B37: 3.42 | C37: 0.1297 | G37: -0.0018 | H37: -0.0032 | I37: 0 | J37: 0.0121 | K37: -0.0006 | X37: 0 | Y37: -0.12 | Z37: -0.0044 | AA37: 0.0076 | AB37: 0.0058 | AC37: -0.12 | AD37: -0.0044 | AE37: -0.0018 | AF37: -0.0032 | AG37: -0.0006 | AI37: 0 | AJ37: 0
A38: Sen Lgt-NPDI | B38: 3.51 | C38: 0.2002 | G38: -0.0018 | H38: -0.0032 | I38: 0 | J38: 0.0121 | K38: -0.0006 | X38: 0 | Y38: -0.12 | Z38: -0.0069 | AA38: 0.0076 | AB38: 0.0058 | AC38: -0.12 | AD38: -0.0069 | AE38: -0.0018 | AF38: -0.0032 | AG38: -0.0006 | AI38: 0 | AJ38: 0
A39: USL-NPDI | B39: 38.29 | C39: 0.0395 | G39: -0.0015 | H39: -0.0032 | I39: 0 | J39: 0.0121 | K39: -0.0006 | X39: 0 | Y39: -1.31 | Z39: -0.0014 | AA39: 0.0087 | AB39: 0.0064 | AC39: -1.31 | AD39: -0.0014 | AE39: -0.0015 | AF39: -0.0032 | AG39: -0.0006 | AI39: 0 | AJ39: 0
A40: AR-HCHI | B40: 43.81 | C40: 0 | G40: -0.0017 | H40: -0.0032 | I40: 0 | J40: 0.0121 | K40: -0.0006 | X40: 0 | Y40: -1.5 | Z40: 0 | AA40: 0.0139 | AB40: 0.01 | AC40: -1.5 | AD40: 0 | AE40: -0.0017 | AF40: -0.0032 | AG40: -0.0006 | AI40: 0 | AJ40: 0
A41: AGSe-HCHI | B41: 39.96 | C41: 0.0236 | G41: -0.0017 | H41: -0.0032 | I41: 0 | J41: 0.0121 | K41: -0.0006 | X41: 0 | Y41: -1.37 | Z41: -0.0008 | AA41: 0.011 | AB41: 0.0083 | AC41: -1.37 | AD41: -0.0008 | AE41: -0.0017 | AF41: -0.0032 | AG41: -0.0006 | AI41: 0 | AJ41: 0
A42: AGSd-HCHI | B42: 170.26 | C42: 5.431 | G42: -0.5644 | H42: -1.1339 | I42: -0.0838 | J42: 0.0121 | K42: -0.2167 | X42: 0 | Y42: -5.84 | Z42: -0.1775 | AA42: 3.417 | AB42: 2.6092 | AC42: -5.84 | AD42: -0.1775 | AE42: -0.6482 | AF42: -1.1339 | AG42: -0.2167 | AH42: 0.0121 | AI42: 0 | AJ42: 0
A43: St Lgt-HCHI | B43: 3.42 | C43: 0.1297 | G43: -0.0018 | H43: -0.0032 | I43: 0 | J43: 0.0121 | K43: -0.0006 | X43: 0 | Y43: -0.12 | Z43: -0.0044 | AA43: 0.0076 | AB43: 0.0058 | AC43: -0.12 | AD43: -0.0044 | AE43: -0.0018 | AF43: -0.0032 | AG43: -0.0006 | AI43: 0 | AJ43: 0
A44: Sen Lgt-HCHI | B44: 3.51 | C44: 0.2002 | G44: -0.0018 | H44: -0.0032 | I44: 0 | J44: 0.0121 | K44: -0.0006 | X44: 0 | Y44: -0.12 | Z44: -0.0069 | AA44: 0.0076 | AB44: 0.0058 | AC44: -0.12 | AD44: -0.0069 | AE44: -0.0018 | AF44: -0.0032 | AG44: -0.0006 | AI44: 0 | AJ44: 0
A45: USL-HCHI | B45: 38.29 | C45: 0.0395 | G45: -0.0015 | H45: -0.0032 | I45: 0 | J45: 0.0121 | K45: -0.0006 | X45: 0 | Y45: -1.31 | Z45: -0.0014 | AA45: 0.0087 | AB45: 0.0064 | AC45: -1.31 | AD45: -0.0014 | AE45: -0.0015 | AF45: -0.0032 | AG45: -0.0006 | AI45: 0 | AJ45: 0
A46: R1-CPUC | B46: 74.62 | C46: 0 | L46: 0.0012 | M46: -0.001 | O46: 0.0112 | X46: 0 | Y46: 0 | Z46: 0 | AA46: 0.0131 | AB46: 0.0094 | AE46: 0.0012 | AF46: =M46 -> -0.001 | AI46: 0 | AJ46: 0
A47: GSe-CPUC | B47: 32.78 | C47: 0.0816 | L47: 0.0015 | M47: -0.001 | O47: 0.0112 | X47: 0 | Y47: 0 | Z47: 0 | AA47: 0.0104 | AB47: 0.008 | AE47: 0.0015 | AF47: =M47 -> -0.001 | AI47: 0 | AJ47: 0
A48: GSd-CPUC | B48: 105.55 | C48: 22.5201 | L48: 0.8534 | M48: -0.3115 | O48: 0.0112 | X48: 0 | Y48: 0 | Z48: 0 | AA48: 3.3593 | AB48: 2.5541 | AE48: 0.8534 | AF48: -0.3115 | AH48: 0.0112 | AI48: 0 | AJ48: 0
A49: USL-CPUC | B49: 38.29 | C49: 0.0395 | L49: 0.0014 | M49: -0.001 | O49: 0 | X49: 0 | Y49: 0 | Z49: 0 | AA49: 0.0087 | AB49: 0.0064 | AE49: 0.0014 | AF49: -0.001 | AI49: 0 | AJ49: 0
A50: Sen Lgt-CPUC | B50: 3.51 | C50: 0.2002 | L50: 0.0014 | M50: -0.001 | O50: 0.0112 | X50: 0 | Y50: 0 | Z50: 0 | AA50: 0.0076 | AB50: 0.0058 | AE50: 0.0014 | AF50: -0.001 | AI50: 0 | AJ50: 0
A51: St Lgt-CPUC | B51: 3.42 | C51: 0.1297 | L51: 0.0018 | M51: -0.001 | O51: 0 | X51: 0 | Y51: 0 | Z51: 0 | AA51: 0.0076 | AB51: 0.0058 | AE51: 0.0018 | AF51: -0.001 | AI51: 0 | AJ51: 0

Sheet Data Billing Quantities (hidden)
A1: Rate Class-Specific Billing Quantities (Applied to Current and Proposed Bill)
E3: Consumption (kWh) | I3: Peak (kW) | M3: TOU Split
A4: Rate Class | B4: Loss Factor | C4: Charge Determinant | D4: Commodity Threshold | E4: Low kWh | F4: Typical kWh | G4: Average kWh | H4: High kWh | I4: Low kW | J4: Typical kW | K4: Average kW | L4: High kW | M4: TOU-Off Peak | N4: TOU-Mid Peak | O4: TOU-On Peak | P4: Acquired Street Light Service Charge
A5: UR | B5: 1.057 | C5: kWh | D5: 600 | E5: 340 | F5: 750 | G5: 690 | H5: 1260 | M5: 0.64 | N5: 0.18 | O5: 0.18
A6: R1 | B6: 1.076 | C6: kWh | D6: 600 | E6: 370 | F6: 750 | G6: 784 | H6: 1650 | M6: =M$5 -> 0.64 | N6: =N$5 -> 0.18 | O6: =O$5 -> 0.18
A7: R2 | B7: 1.105 | C7: kWh | D7: 600 | E7: 440 | F7: 750 | G7: 978 | H7: 2110 | M7: =M$5 -> 0.64 | N7: 0.18 | O7: 0.18
A8: Seasonal | B8: 1.104 | C8: kWh | D8: 600 | E8: 40 | G8: 369 | H8: 1040 | M8: 0.64 | N8: 0.18 | O8: 0.18
A9: Seas-UR | B9: =B5 -> 1.057 | C9: =C5 -> kWh | D9: 600 | E9: =E8 -> 40 | G9: =G8 -> 369 | H9: =H8 -> 1040 | M9: 0.64 | N9: 0.18 | O9: 0.18
A10: Seas-R1 | B10: =B6 -> 1.076 | C10: =C6 -> kWh | D10: 600 | E10: =E8 -> 40 | G10: =G8 -> 369 | H10: =H8 -> 1040 | M10: 0.64 | N10: 0.18 | O10: 0.18
A11: Seas-R2 | B11: =B7 -> 1.105 | C11: =C7 -> kWh | D11: 600 | E11: =E8 -> 40 | G11: =G8 -> 369 | H11: =H8 -> 1040 | M11: 0.64 | N11: 0.18 | O11: 0.18
A12: GSe | B12: 1.096 | C12: kWh | D12: 750 | E12: 60 | F12: 2000 | G12: 1887 | H12: 5570 | M12: 0.64 | N12: 0.18 | O12: 0.18
A13: UGe | B13: 1.067 | C13: kWh | D13: 750 | E13: 180 | F13: 2000 | G13: 2494 | H13: 6930 | M13: 0.64 | N13: 0.18 | O13: 0.18
A14: St Lgt | B14: 1.092 | C14: kWh | D14: 750 | E14: 30 | G14: 1274 | H14: 2310 | M14: 0.64 | N14: 0.18 | O14: 0.18
A15: Sen Lgt | B15: 1.092 | C15: kWh | D15: 750 | E15: 20 | G15: 49 | H15: 80 | M15: 0.64 | N15: 0.18 | O15: 0.18
A16: USL | B16: 1.092 | C16: kWh | D16: 750 | E16: 100 | G16: 477 | H16: 550 | M16: 0.64 | N16: 0.18 | O16: 0.18
A17: GSd | B17: 1.061 | C17: kW | D17: 0 | E17: 9310 | G17: 34334 | H17: 75790 | I17: 55 | K17: 110 | L17: 250
A18: UGd | B18: 1.05 | C18: kW | D18: 0 | E18: 13900 | G18: 42592 | H18: 97610 | I18: 55 | K18: 111 | L18: 280
A19: Dgen | B19: 1.061 | C19: kW | D19: 0 | E19: 10 | G19: 1709 | H19: 8490 | I19: 0.02941666667 | K19: 12 | L19: 45
A20: ST | B20: 1.034 | C20: kW | D20: 0 | E20: 88780 | G20: 1373443 | H20: 2641420 | I20: 500 | K20: 2808 | L20: 13730
A21: WHSI_RES | B21: 1.0431 | C21: kWh | D21: 600 | E21: 310 | F21: 750 | G21: 636 | H21: 1160 | M21: =M$5 -> 0.64 | N21: 0.18 | O21: 0.18
A22: WHSI_GS<50 | B22: 1.0431 | C22: kWh | D22: 750 | E22: 190 | F22: 2000 | G22: 2471 | H22: 7240 | M22: 0.64 | N22: 0.18 | O22: 0.18
A23: WHSI_GS 50-999 | B23: 1.0431 | C23: kW | E23: 9370 | G23: 47636 | H23: 137890 | I23: 50 | K23: 134 | L23: 340
A24: WHSI_GS >1,000kW | B24: 1.0326 | C24: kW | G24: 895853 | K24: 3301 | M24: =M$5 -> 0.64 | N24: 0.18 | O24: 0.18
A25: WHSI_St Lgt | B25: 1.0431 | C25: kW | D25: 750 | G25: 37079 | K25: 104 | M25: 0.64 | N25: 0.18 | O25: 0.18 | P25: 1
A26: WHSI_USL | B26: 1.0431 | C26: kWh | D26: 750 | G26: 1349 | M26: =M$5 -> 0.64 | N26: 0.18 | O26: 0.18
A27: NPDI_RES | B27: 1.0564 | C27: kWh | D27: 600 | E27: 290 | F27: 750 | G27: 692 | H27: 1230 | M27: 0.64 | N27: 0.18 | O27: 0.18
A28: NPDI_GS<50 | B28: 1.0564 | C28: kWh | D28: 750 | E28: 110 | F28: 2000 | G28: 2377 | H28: 6410 | M28: 0.64 | N28: 0.18 | O28: 0.18
A29: NPDI_GS >50 | B29: 1.0464 | C29: kW | E29: 13020 | G29: 70294 | H29: 129420 | I29: 55 | K29: 181 | L29: 300
A30: NPDI_St Lgt | B30: 1.0564 | C30: kW | D30: 750 | G30: 11389 | K30: 39 | M30: =M$5 -> 0.64 | N30: 0.18 | O30: 0.18 | P30: 1
A31: NPDI_Sen Lgt | B31: 1.0564 | C31: kW | D31: 750 | G31: 108 | K31: 0.3368027211 | M31: 0.64 | N31: 0.18 | O31: 0.18
A32: NPDI_USL | B32: 1.0564 | C32: kWh | D32: 750 | G32: 904 | M32: =M$5 -> 0.64 | N32: 0.18 | O32: 0.18
A33: HCHI_RES | B33: 1.0655 | C33: kWh | D33: 600 | E33: 250 | F33: 750 | G33: 742 | H33: 1410 | M33: 0.64 | N33: 0.18 | O33: 0.18
A34: HCHI_GS<50 | B34: 1.0655 | C34: kWh | D34: 750 | E34: 90 | F34: 2000 | G34: 2261 | H34: 5430 | M34: 0.64 | N34: 0.18 | O34: 0.18
A35: HCHI_GS >50 | B35: 1.0548 | C35: kW | E35: 10880 | G35: 57529 | H35: 135160 | I35: 55 | K35: 175 | L35: 375
A36: HCHI_St Lgt | B36: 1.0655 | C36: kW | D36: 750 | G36: 31001 | K36: 85 | M36: 0.64 | N36: 0.18 | O36: 0.18 | P36: 1
A37: HCHI_Sen Lgt | B37: 1.0655 | C37: kW | D37: 750 | G37: 61 | K37: 0.1956473214 | M37: 0.64 | N37: 0.18 | O37: 0.18
A38: HCHI_USL | B38: 1.0655 | C38: kWh | D38: 750 | G38: 471 | M38: =M$5 -> 0.64 | N38: 0.18 | O38: 0.18
A39: AUR | B39: 1.043 | C39: kWh | D39: 600 | E39: 310 | F39: 750 | G39: 636 | H39: 1160 | M39: 0.64 | N39: 0.18 | O39: 0.18
A40: AUGe | B40: =B39 -> 1.043 | C40: kWh | D40: 750 | E40: 190 | F40: 2000 | G40: 2471 | H40: 7240 | M40: 0.64 | N40: 0.18 | O40: 0.18
A41: AUGd | B41: 1.033 | C41: kW | E41: 9370 | G41: 47636 | H41: 137890 | I41: 50 | K41: 134 | L41: 340
A42: AR | B42: 1.064 | C42: kWh | D42: 600 | F42: 750 | M42: =M$5 -> 0.64 | N42: 0.18 | O42: 0.18
A43: AGSe | B43: =B42 -> 1.064 | C43: kWh | D43: 750 | F43: 2000 | M43: 0.64 | N43: 0.18 | O43: 0.18
A44: AGSd | B44: 1.053 | C44: kW | E44: 12000 | G44: 64000 | H44: 132000 | I44: 55 | K44: 178 | L44: 340
A45: AUR-WHSI | B45: =B39 -> 1.043 | C45: kWh | D45: =D39 -> 600 | E45: 310 | F45: 750 | G45: 636 | H45: 1160 | M45: =M$5 -> 0.64 | N45: 0.18 | O45: 0.18
A46: AUGe-WHSI | B46: =B40 -> 1.043 | C46: kWh | D46: =D40 -> 750 | E46: 190 | F46: 2000 | G46: 2471 | H46: 7240 | M46: 0.64 | N46: 0.18 | O46: 0.18
A47: AUGd-WHSI | B47: =B41 -> 1.033 | C47: kW | E47: 9370 | G47: 47636 | H47: 137890 | I47: 50 | K47: 134 | L47: 340
A48: ST-WHSI | B48: =B20 -> 1.034 | C48: kW | G48: 895853 | K48: 3301
A49: St Lgt-WHSI | B49: =B14 -> 1.092 | C49: kWh | D49: =D14 -> 750 | G49: =G25 -> 37079 | K49: =K25 -> 104 | M49: =M$5 -> 0.64 | N49: 0.18 | O49: 0.18 | P49: =P25 -> 1
A50: USL-WHSI | B50: =B16 -> 1.092 | C50: kWh | D50: =D16 -> 750 | G50: =G26 -> 1349 | M50: =M$5 -> 0.64 | N50: 0.18 | O50: 0.18
A51: AR-NPDI | B51: =B42 -> 1.064 | C51: kWh | D51: =D42 -> 600 | E51: 290 | F51: 750 | G51: 692 | H51: 1230 | M51: 0.64 | N51: 0.18 | O51: 0.18
A52: AGSe-NPDI | B52: =B43 -> 1.064 | C52: kWh | D52: =D43 -> 750 | E52: 110 | F52: 2000 | G52: 2377 | H52: 6410 | M52: 0.64 | N52: 0.18 | O52: 0.18
A53: AGSd-NPDI | B53: =B44 -> 1.053 | C53: kW | D53: =D44 -> 0 | E53: 13020 | G53: 70294 | H53: 129420 | I53: 55 | K53: 181 | L53: 300
A54: St Lgt-NPDI | B54: =B14 -> 1.092 | C54: kWh | D54: =D14 -> 750 | G54: =G30 -> 11389 | K54: =K30 -> 39 | M54: =M$5 -> 0.64 | N54: 0.18 | O54: 0.18 | P54: =P30 -> 1
A55: Sen Lgt-NPDI | B55: =B15 -> 1.092 | C55: kWh | D55: =D15 -> 750 | G55: =G31 -> 108 | K55: =K31 -> 0.3368027211 | M55: =M$5 -> 0.64 | N55: 0.18 | O55: 0.18
A56: USL-NPDI | B56: =B16 -> 1.092 | C56: kWh | D56: =D16 -> 750 | G56: =G32 -> 904 | M56: =M$5 -> 0.64 | N56: 0.18 | O56: 0.18
A57: AR-HCHI | B57: =B51 -> 1.064 | C57: kWh | D57: 600 | E57: 250 | F57: 750 | G57: 742 | H57: 1410 | M57: 0.64 | N57: 0.18 | O57: 0.18
A58: AGSe-HCHI | B58: 1.064 | C58: kWh | D58: 750 | E58: 90 | F58: 2000 | G58: 2261 | H58: 5430 | M58: 0.64 | N58: 0.18 | O58: 0.18
A59: AGSd-HCHI | B59: 1.053 | C59: kW | D59: 0 | E59: 10880 | G59: 57529 | H59: 135160 | I59: 55 | K59: 175 | L59: 375
A60: St Lgt-HCHI | B60: 1.092 | C60: kWh | D60: 750 | G60: =G36 -> 31001 | K60: =K36 -> 85 | M60: 0.64 | N60: 0.18 | O60: 0.18 | P60: =P36 -> 1
A61: Sen Lgt-HCHI | B61: 1.092 | C61: kWh | D61: 750 | G61: =G37 -> 61 | K61: =K37 -> 0.1956473214 | M61: 0.64 | N61: 0.18 | O61: 0.18
A62: USL-HCHI | B62: 1.092 | C62: kWh | D62: 750 | G62: =G38 -> 471 | M62: 0.64 | N62: 0.18 | O62: 0.18
A63: R1-CPUC | B63: =B6 -> 1.076 | C63: kWh | D63: =D57 -> 600 | E63: 370 | F63: =F6 -> 750 | H63: 2100 | M63: 0.64 | N63: 0.18 | O63: 0.18
A64: GSe-CPUC | B64: =B12 -> 1.096 | C64: kWh | D64: =D58 -> 750 | E64: 100 | F64: =F12 -> 2000 | H64: 6600 | M64: 0.64 | N64: 0.18 | O64: 0.18
A65: GSd-CPUC | B65: =B17 -> 1.061 | C65: kW | D65: =D59 -> 0 | E65: 12900 | G65: 29000 | H65: 72900 | I65: 50 | K65: 90 | L65: 240
A66: USL-CPUC | B66: =B16 -> 1.092 | C66: kWh | D66: =D60 -> 750 | G66: 60
A67: Sen Lgt-CPUC | B67: =B15 -> 1.092 | C67: kWh | D67: =D61 -> 750 | G67: 220 | K67: 0.6 | P67: 1
A68: St Lgt-CPUC | B68: =B14 -> 1.092 | C68: kWh | D68: =D62 -> 750 | G68: 8300 | K68: 21 | P68: 1
A69: Sen Lgt-HONI | B69: =B15 -> 1.092 | C69: kWh | D69: 750 | G69: 220
A70: St Lgt-HONI | B70: =B16 -> 1.092 | C70: kWh | D70: 750 | G70: 8300

Sheet Data Pass Through (hidden)
A1: 3. Pass Through Charges
B2: Current Bill | C2: Proposed Bill
A3: Effective Date | B3: 2025-07-01 | C3: 2026-01-01 | D3: TOU % | E3: Notes
A4: RRRP Adjustment | B4: 60.5 | C4: 60.5
A5: RPP Tier 1 | B5: 0.12 | C5: =B5 -> 0.12 | E5: Effective Nov 1 2025
A6: RPP Tier 2 | B6: 0.142 | C6: 0.142 | E6: Effective Nov 1 2025
A7: Average IESO Wholesale Market Price | B7: 0.1596 | C7: 0.1596 | E7: Consistent with 2026 IRM Rate Generator
A8: TOU-Off Peak | B8: 0.098 | C8: 0.098 | D8: 0.64 | E8: Effective Nov 1 2025
A9: TOU-Mid Peak | B9: 0.157 | C9: 0.157 | D9: 0.18 | E9: Effective Nov 1 2025
A10: TOU-On Peak | B10: 0.203 | C10: 0.203 | D10: 0.18 | E10: Effective Nov 1 2025
A11: Wholesale Market Service Rate (WMS) – not including CBR | B11: 0.0041 | C11: 0.0041 | E11: Effective Jan 1 2025, 0.0045 WMSC broken up between WMSC and CBR
A12: Capacity Based Recovery (CBR) – Applicable for Class B Customers | B12: 0.0006 | C12: 0.0006 | E12: Effective Jan 1 2025, 0.0045 WMSC broken up between WMSC and CBR
A13: Rural Rate Protection Charge | B13: 0.0006 | C13: 0.0006 | E13: Effective Jan 1 2025
A14: Ontario Electricity Support Program Charge | B14: 0 | C14: =B14 -> 0 | E14: OESP charge removed for all rate classes effective May 1, 2017. ROW HIDDEN IN BILL IMPACT FILE
A15: Standard Supply Service – Administration Charge (if applicable) | B15: 0.25 | C15: 0.25
A16: DRP limit (applied when selected from Bill Impact Summary) | B16: 42.88 | C16: 42.88 | E16: DRP cap as of Jul 1, 2025
A17: Smart Meter Entity Charge (if applicable) | B17: 0.42 | C17: 0.42 | E17: Effective Jan 1 2023; only for metered energy-billed (UR, R1, R2, GSE, UGE, AUR, AUGE, AR, AGSE)
A18: Debt Retirement Charge (DRC) | B18: 0 | C18: 0 | E18: DRC removed from all rate classes Apr 1 2018 ROW HIDDEN IN BILL IMPACT FILE
A19: Ontario Electricity Rebate (OER) | B19: -0.235 | C19: =B19 -> -0.235 | E19: Effective Nov 1 2025
A21: Customer Attributes - Assumptions
A22: ST customers are assumed to be Non-WMP, Class A

Sheet Data BI Summary (hidden)
A1: Summary Column | B1: Sub-Total | E1: Total
B2: A | C2: B | D2: C | E2: Total Bill
A3: BI Template_Energy | B3: Sub-Total A (excluding pass through) | C3: Sub-Total B - Distribution (includes Sub-Total A) | D3: Sub-Total C - Delivery (including Sub-Total B) | E3: Total Bill on TOU
A4: BI Template_Demand | B4: Sub-Total A (excluding pass through) | C4: Sub-Total B - Distribution (includes Sub-Total A) | D4: Sub-Total C - Delivery (including Sub-Total B) | E4: Total Bill on Average IESO Wholesale Market Price
A5: BI Template_Unmtr | B5: Sub-Total A (excluding pass through) | C5: Sub-Total B - Distribution (includes Sub-Total A) | D5: Sub-Total C - Delivery (including Sub-Total B) | E5: Total Bill on Two-Tier RPP

Sheet Data BI List (hidden)
A1: Template Name | B1: Bill Impact Worksheet Name | C1: Bill Impact Header
A2: BI Template_Energy | B2: BI_UR_Typical | C2: Bill Impacts (Typical Consumption Level) - UR
A3: BI Template_Energy | B3: BI_R1_Typical (with DRP) | C3: Bill Impacts (Typical Consumption Level) - R1
A4: BI Template_Energy | B4: BI_R1_Typical (without DRP) | C4: Bill Impacts (Typical Consumption Level) - R1
A5: BI Template_Energy | B5: BI_R2_Typical (with DRP) | C5: Bill Impacts (Typical Consumption Level) - R2
A6: BI Template_Energy | B6: BI_R2_Typical (without DRP) | C6: Bill Impacts (Typical Consumption Level) - R2
A7: BI Template_Energy | B7: BI_Seas_UR_Avg | C7: Bill Impacts (Average Consumption Level) - Seas-UR
A8: BI Template_Energy | B8: BI_Seas_R1_Avg | C8: Bill Impacts (Average Consumption Level) - Seas-R1
A9: BI Template_Energy | B9: BI_Seas_R2_Avg | C9: Bill Impacts (Average Consumption Level) - Seas-R2
A10: BI Template_Energy | B10: BI_GSe_Typical | C10: Bill Impacts (Typical Consumption Level) - GSe
A11: BI Template_Energy | B11: BI_UGe_Typical | C11: Bill Impacts (Typical Consumption Level) - UGe
A12: BI Template_Demand | B12: BI_GSd_Avg | C12: Bill Impacts (Average Consumption Level) - GSd
A13: BI Template_Demand | B13: BI_UGd_Avg | C13: Bill Impacts (Average Consumption Level) - UGd
A14: BI Template_Unmtr | B14: BI_StLgt_Avg | C14: Bill Impacts (Average Consumption Level) - St Lgt
A15: BI Template_Unmtr | B15: BI_SenLgt_Avg | C15: Bill Impacts (Average Consumption Level) - Sen Lgt
A16: BI Template_Unmtr | B16: BI_USL_Avg | C16: Bill Impacts (Average Consumption Level) - USL
A17: BI Template_Demand | B17: BI_Dgen_Avg | C17: Bill Impacts (Average Consumption Level) - Dgen
A18: BI Template_Demand | B18: BI_ST_Avg | C18: Bill Impacts (Average Consumption Level) - ST
A19: BI Template_Energy | B19: BI_AUR_Typical | C19: Bill Impacts (Typical Consumption Level) - AUR
A20: BI Template_Energy | B20: BI_AUGe_Typical | C20: Bill Impacts (Typical Consumption Level) - AUGe
A21: BI Template_Demand | B21: BI_AUGd_Average | C21: Bill Impacts (Average Consumption Level) - AUGd
A22: BI Template_Energy | B22: BI_AR_Typical | C22: Bill Impacts (Typical Consumption Level) - AR
A23: BI Template_Energy | B23: BI_AGSe_Typical | C23: Bill Impacts (Typical Consumption Level) - AGSe
A24: BI Template_Demand | B24: BI_AGSd_Average | C24: Bill Impacts (Average Consumption Level) - AGSd
A25: BI Template_Energy | B25: BI_WHSI_AUR_Typical | C25: Bill Impacts (Typical Consumption Level) - AUR-WHSI
A26: BI Template_Energy | B26: BI_WHSI_AUGe_Typical | C26: Bill Impacts (Typical Consumption Level) - AUGe-WHSI
A27: BI Template_Demand | B27: BI_WHSI_AUGd_Avg | C27: Bill Impacts (Average Consumption Level) - AUGd-WHSI
A28: BI Template_Demand | B28: BI_WHSI_ST_Avg | C28: Bill Impacts (Average Consumption Level) - ST-WHSI
A29: BI Template_Energy | B29: BI_NPDI_AR_Typical | C29: Bill Impacts (Typical Consumption Level) - AR-NPDI
A30: BI Template_Energy | B30: BI_HCHI_AR_Typical | C30: Bill Impacts (Typical Consumption Level) - AR-HCHI
A31: BI Template_Energy | B31: BI_NPDI_AGSe_Typical | C31: Bill Impacts (Typical Consumption Level) - AGSe-NPDI
A32: BI Template_Energy | B32: BI_HCHI_AGSe_Typical | C32: Bill Impacts (Typical Consumption Level) - AGSe-HCHI
A33: BI Template_Demand | B33: BI_NPDI_AGSd_Avg | C33: Bill Impacts (Average Consumption Level) - AGSd-NPDI
A34: BI Template_Demand | B34: BI_HCHI_AGSd_Avg | C34: Bill Impacts (Average Consumption Level) - AGSd-HCHI
A35: BI Template_Unmtr | B35: BI_WHSI_USL_Avg | C35: Bill Impacts (Average Consumption Level) - USL-WHSI
A36: BI Template_Unmtr | B36: BI_NPDI_USL_Avg | C36: Bill Impacts (Average Consumption Level) - USL-NPDI
A37: BI Template_Unmtr | B37: BI_HCHI_USL_Avg | C37: Bill Impacts (Average Consumption Level) - USL-HCHI
A38: BI Template_Unmtr | B38: BI_WHSI_StLgt_Avg | C38: Bill Impacts (Average Consumption Level) - St Lgt-WHSI
A39: BI Template_Unmtr | B39: BI_NPDI_StLgt_Avg | C39: Bill Impacts (Average Consumption Level) - St Lgt-NPDI
A40: BI Template_Unmtr | B40: BI_HCHI_StLgt_Avg | C40: Bill Impacts (Average Consumption Level) - St Lgt-HCHI
A41: BI Template_Unmtr | B41: BI_NPDI_SenLgt_Avg | C41: Bill Impacts (Average Consumption Level) - Sen Lgt-NPDI
A42: BI Template_Unmtr | B42: BI_HCHI_SenLgt_Avg | C42: Bill Impacts (Average Consumption Level) - Sen Lgt-HCHI
A43: BI Template_Energy | B43: BI_CPUC_R1_Typical | C43: Bill Impacts (Typical Consumption Level) - R1-CPUC
A44: BI Template_Energy | B44: BI_CPUC_GSe_Typical | C44: Bill Impacts (Typical Consumption Level) - GSe-CPUC
A45: BI Template_Demand | B45: BI_CPUC_GSd_Avg | C45: Bill Impacts (Average Consumption Level) - GSd-CPUC
A46: BI Template_Unmtr | B46: BI_CPUC_USL_Avg | C46: Bill Impacts (Average Consumption Level) - USL-CPUC
A47: BI Template_Unmtr | B47: BI_CPUC_SenLgt_Avg | C47: Bill Impacts (Average Consumption Level) - Sen Lgt-CPUC
A48: BI Template_Unmtr | B48: BI_CPUC_StLgt_Avg | C48: Bill Impacts (Average Consumption Level) - St Lgt-CPUC

Sheet BI Template_Energy (hidden)
A1: Bill Impacts (Typical Consumption Level) - R1
A3: Rate Class | B3: =RIGHT(A1,LEN(A1)-FIND("- ",A1,1)-1) -> R1
A4: Monthly Consumption (kWh) | B4: =IF(COUNTIF(A1,"*Low*")>0,VLOOKUP(B3,'Data Billing Quantities'!$A:$Z,MATCH("Low kWh",'Data Billing Quantities'!4:4,0),FALSE),IF(COUNTIF(A1,"*Typical*")>0,VLOOKUP(B3,'Data Billing Quantities'!$A:$Z,MATCH("Typical kWh",'Data Billing Quantities'!4:4,0),FALSE),IF(COUNTIF(A1,"*Average*")>0,VLOOKUP(B3,'Data Billing Quantities'!$A:$Z,MATCH("Average kWh",'Data Billing Quantities'!4:4,0),FALSE),IF(COUNTIF(A1,"*High*")>0,VLOOKUP(B3,'Data Billing Quantities'!$A:$Z,MATCH("High kWh",'Data Billing Quantities'!4:4,0),FALSE),"error")))) -> 750
A5: Peak (kW) | B5: =IF(COUNTIF(A1,"*Low*")>0,VLOOKUP(B3,'Data Billing Quantities'!$A:$Z,MATCH("Low kW",'Data Billing Quantities'!4:4,0),FALSE),IF(COUNTIF(A1,"*Typical*")>0,VLOOKUP(B3,'Data Billing Quantities'!$A:$Z,MATCH("Typical kW",'Data Billing Quantities'!4:4,0),FALSE),IF(COUNTIF(A1,"*Average*")>0,VLOOKUP(B3,'Data Billing Quantities'!$A:$Z,MATCH("Average kW",'Data Billing Quantities'!4:4,0),FALSE),IF(COUNTIF(A1,"*High*")>0,VLOOKUP(B3,'Data Billing Quantities'!$A:$Z,MATCH("High kW",'Data Billing Quantities'!4:4,0),FALSE),"error")))) -> 0
A6: Loss factor | B6: =VLOOKUP(B3,'Data Billing Quantities'!A:D,MATCH(A6,'Data Billing Quantities'!4:4,0),FALSE) -> 1.076
A7: Charge determinant | B7: =VLOOKUP(B3,'Data Billing Quantities'!A:D,MATCH(A7,'Data Billing Quantities'!4:4,0),FALSE) -> kWh
B9: Current OEB-Approved | E9: Proposed | H9: Impact
B10: Rate ($) | C10: Volume | D10: Charge ($) | E10: Rate ($) | F10: Volume | G10: Charge ($) | H10: $ Change | I10: % Change
A11: Service Charge | B11: =VLOOKUP($B$3,'Data Current Rates'!$A:$AO,MATCH('BI Template_Energy'!$A11,CurrentHeader,0),FALSE) -> 71.05 | C11: 1 | D11: =B11*C11 -> 71.05 | E11: =VLOOKUP($B$3,'Data Proposed Rates'!$A:$AT,MATCH('BI Template_Energy'!$A11,ProposedHeader,0),FALSE) -> 74.62 | F11: 1 | G11: =E11*F11 -> 74.62 | H11: =G11-D11 -> 3.57 | I11: =IF(ISERROR(H11/ABS(D11)),"N/A",(H11/ABS(D11))) -> 0.05024630542
A12: Distribution Volumetric Charge | B12: =VLOOKUP($B$3,'Data Current Rates'!$A:$AO,MATCH('BI Template_Energy'!$A12,CurrentHeader,0),FALSE) -> 0 | C12: =IF($B$7="kWh",$B$4,$B$5) -> 750 | D12: =B12*C12 -> 0 | E12: =VLOOKUP($B$3,'Data Proposed Rates'!$A:$AT,MATCH('BI Template_Energy'!$A12,ProposedHeader,0),FALSE) -> 0 | F12: =IF($B$7="kWh",$B$4,$B$5) -> 750 | G12: 0 | H12: 0 | I12: N/A
A13: RRRP Adjustment | B13: =IF($B$3="R2",VLOOKUP(A13,'Data Pass Through'!$A4:$C19,3,0),0)*-1 -> 0 | C13: 1 | D13: =B13*C13 -> 0 | E13: =IF($B$3="R2",VLOOKUP(A13,'Data Pass Through'!$A4:$C19,3,0),0)*-1 -> 0 | F13: 1 | G13: 0 | H13: 0 | I13: N/A
A14: DRP Adjustment | D14: =IF(OR($B$3="R1",$B$3="R2",$B$3="R1-CPUC"),IF(SUM(D11:D13)>'Data Pass Through'!$B$16,-(SUM(D11:D13)-'Data Pass Through'!$B$16),0),0) -> -28.17 | G14: =IF(OR($B$3="R1",$B$3="R2",$B$3="R1-CPUC"),IF(SUM(G11:G13)>'Data Pass Through'!$B$16,-(SUM(G11:G13)-'Data Pass Through'!$B$16),0),0) -> -31.74 | H14: -3.57 | I14: -0.1267305644
A15: Group 2 Fixed Rate Rider | B15: =VLOOKUP($B$3,'Data Current Rates'!$A:$AO,MATCH('BI Template_Energy'!$A15,CurrentHeader,0),FALSE) -> -0.21 | C15: 1 | D15: =B15*C15 -> -0.21 | E15: =VLOOKUP($B$3,'Data Proposed Rates'!$A:$AT,MATCH('BI Template_Energy'!$A15,ProposedHeader,0),FALSE) -> -2.56 | F15: 1 | G15: =E15*F15 -> -2.56 | H15: -2.35 | I15: -11.19047619
A16: Group 2 Volumetric Rate Rider | B16: =VLOOKUP($B$3,'Data Current Rates'!$A:$AO,MATCH('BI Template_Energy'!$A16,CurrentHeader,0),FALSE) -> 0 | C16: =IF($B$7="kWh",$B$4,$B$5) -> 750 | D16: =B16*C16 -> 0 | E16: =VLOOKUP($B$3,'Data Proposed Rates'!$A:$AT,MATCH('BI Template_Energy'!$A16,ProposedHeader,0),FALSE) -> 0 | F16: =IF($B$7="kWh",$B$4,$B$5) -> 750 | G16: 0 | H16: =G16-D16 -> 0 | I16: =IF(ISERROR(H16/ABS(D16)),"N/A",(H16/ABS(D16))) -> N/A
A17: Sub-Total A (excluding pass through) | D17: =SUM(D11:D16) -> 42.67 | G17: =SUM(G11:G16) -> 40.32 | H17: -2.35 | I17: -0.05507382236
A18: Line Losses on Cost of Power | B18: =VLOOKUP($B$3,'Data Billing Quantities'!$A:$O,MATCH('BI Template_Energy'!$A32,'Data Billing Quantities'!$4:$4,0),FALSE)*$B32+VLOOKUP($B$3,'Data Billing Quantities'!$A:$O,MATCH('BI Template_Energy'!$A33,'Data Billing Quantities'!$4:$4,0),FALSE)*$B33+VLOOKUP($B$3,'Data Billing Quantities'!$A:$O,MATCH('BI Template_Energy'!$A34,'Data Billing Quantities'!$4:$4,0),FALSE)*$B34 -> 0.12752 | C18: =($B$6*$B$4)-$B$4 -> 57 | D18: =B18*C18 -> 7.26864 | E18: =VLOOKUP($B$3,'Data Billing Quantities'!$A:$O,MATCH('BI Template_Energy'!$A32,'Data Billing Quantities'!$4:$4,0),FALSE)*$B32+VLOOKUP($B$3,'Data Billing Quantities'!$A:$O,MATCH('BI Template_Energy'!$A33,'Data Billing Quantities'!$4:$4,0),FALSE)*$B33+VLOOKUP($B$3,'Data Billing Quantities'!$A:$O,MATCH('BI Template_Energy'!$A34,'Data Billing Quantities'!$4:$4,0),FALSE)*$B34 -> 0.12752 | F18: =($B$6*$B$4)-$B$4 -> 57 | G18: 7.26864 | H18: 0 | I18: 0
A19: Total Deferral/Variance Account Rate Rider | B19: =VLOOKUP($B$3,'Data Current Rates'!$A:$AO,MATCH('BI Template_Energy'!$A19,CurrentHeader,0),FALSE) -> -0.0037 | C19: =IF($B$7="kWh",$B$4,$B$5) -> 750 | D19: -2.775 | E19: =VLOOKUP($B$3,'Data Proposed Rates'!$A:$AT,MATCH('BI Template_Energy'!$A19,ProposedHeader,0),FALSE) -> -0.0017 | F19: =IF($B$7="kWh",$B$4,$B$5) -> 750 | G19: -1.275 | H19: 1.5 | I19: 0.5405405405
A20: CBR Class B Rate Rider | B20: =VLOOKUP($B$3,'Data Current Rates'!$A:$AJ,MATCH('BI Template_Energy'!$A20,CurrentHeader,0),FALSE) -> 0.0001 | C20: =IF($B$7="kWh",$B$4,$B$5) -> 750 | D20: 0.075 | E20: =VLOOKUP($B$3,'Data Proposed Rates'!$A:$AT,MATCH('BI Template_Energy'!$A20,ProposedHeader,0),FALSE) -> -0.0006 | F20: =IF($B$7="kWh",$B$4,$B$5) -> 750 | G20: -0.45 | H20: -0.525 | I20: -7
A21: GA Rate Rider | B21: =VLOOKUP($B$3,'Data Current Rates'!$A:$AJ,MATCH('BI Template_Energy'!$A21,CurrentHeader,0),FALSE) -> 0 | C21: 750 | D21: 0 | E21: =VLOOKUP($B$3,'Data Proposed Rates'!$A:$AT,MATCH('BI Template_Energy'!$A21,ProposedHeader,0),FALSE) -> 0 | F21: 750 | G21: 0 | H21: 0 | I21: N/A
A22: Smart Meter Entity Charge (if applicable) | B22: =VLOOKUP($A22,'Data Pass Through'!$A:$D,2,FALSE) -> 0.42 | C22: 1 | D22: 0.42 | E22: =VLOOKUP($A22,'Data Pass Through'!$A:$D,2,FALSE) -> 0.42 | F22: 1 | G22: 0.42 | H22: 0 | I22: 0
A23: Rate Rider for Account 1588 | E23: =VLOOKUP($B$3,'Data Proposed Rates'!$A:$AT,MATCH('BI Template_Energy'!$A23,ProposedHeader,0),FALSE) -> -0.0032 | F23: =IF($B$7="kWh",$B$4,$B$5) -> 750 | G23: -2.4 | H23: -2.4 | I23: N/A
A24: Sub-Total B - Distribution (includes Sub-Total A) | D24: =SUM(INDIRECT("D17:D"&ROW()-1)) -> 47.65864 | G24: =SUM(INDIRECT("G17:G"&ROW()-1)) -> 43.88364 | H24: -3.775 | I24: -0.07920914235
A25: Retail Transmission Rate – Network Service Rate | B25: =VLOOKUP($B$3,'Data Current Rates'!$A:$AJ,MATCH('BI Template_Energy'!$A25,CurrentHeader,0),FALSE) -> 0.0128 | C25: =IF($B$7="kWh",$B$4*$B$6,$B$5) -> 807 | D25: =B25*C25 -> 10.3296 | E25: =VLOOKUP($B$3,'Data Proposed Rates'!$A:$AT,MATCH('BI Template_Energy'!$A25,ProposedHeader,0),FALSE) -> 0.0131 | F25: =IF($B$7="kWh",$B$4*$B$6,$B$5) -> 807 | G25: 10.5717 | H25: 0.2421 | I25: 0.0234375
A26: Retail Transmission Rate – Line and Transformation Connection Service Rate | B26: =VLOOKUP($B$3,'Data Current Rates'!$A:$AJ,MATCH('BI Template_Energy'!$A26,CurrentHeader,0),FALSE) -> 0.0092 | C26: =IF($B$7="kWh",$B$4*$B$6,$B$5) -> 807 | D26: 7.4244 | E26: =VLOOKUP($B$3,'Data Proposed Rates'!$A:$AT,MATCH('BI Template_Energy'!$A26,ProposedHeader,0),FALSE) -> 0.0094 | F26: =IF($B$7="kWh",$B$4*$B$6,$B$5) -> 807 | G26: 7.5858 | H26: 0.1614 | I26: 0.02173913043
A27: Sub-Total C - Delivery (including Sub-Total B) | D27: =SUM(D24:D26) -> 65.41264 | G27: =SUM(G24:G26) -> 62.04114 | H27: -3.3715 | I27: -0.05154202613
A28: Wholesale Market Service Rate (WMS) – not including CBR | B28: =VLOOKUP($A28,'Data Pass Through'!$A:$D,2,FALSE) -> 0.0041 | C28: =$B$4*$B$6 -> 807 | D28: =B28*C28 -> 3.3087 | E28: =VLOOKUP($A28,'Data Pass Through'!$A:$D,3,FALSE) -> 0.0041 | F28: =$B$4*$B$6 -> 807 | G28: 3.3087 | H28: 0 | I28: 0
A29: Capacity Based Recovery (CBR) – Applicable for Class B Customers | B29: =VLOOKUP($A29,'Data Pass Through'!$A:$D,2,FALSE) -> 0.0006 | C29: =$B$4*$B$6 -> 807 | D29: 0.4842 | E29: =VLOOKUP($A29,'Data Pass Through'!$A:$D,3,FALSE) -> 0.0006 | F29: =$B$4*$B$6 -> 807 | G29: 0.4842 | H29: 0 | I29: 0
A30: Rural Rate Protection Charge | B30: =VLOOKUP($A30,'Data Pass Through'!$A:$D,2,FALSE) -> 0.0006 | C30: =$B$4*$B$6 -> 807 | D30: 0.4842 | E30: =VLOOKUP($A30,'Data Pass Through'!$A:$D,3,FALSE) -> 0.0006 | F30: =$B$4*$B$6 -> 807 | G30: 0.4842 | H30: 0 | I30: 0
A31: Standard Supply Service – Administration Charge (if applicable) | B31: =VLOOKUP($A31,'Data Pass Through'!$A:$D,2,FALSE) -> 0.25 | C31: 1 | D31: 0.25 | E31: =VLOOKUP($A31,'Data Pass Through'!$A:$D,3,FALSE) -> 0.25 | F31: 1 | G31: 0.25 | H31: 0 | I31: 0
A32: TOU-Off Peak | B32: =VLOOKUP($A32,'Data Pass Through'!$A:$D,2,FALSE) -> 0.098 | C32: =B$4*VLOOKUP($B$3,'Data Billing Quantities'!$A:$O,MATCH($A32,'Data Billing Quantities'!$4:$4,0),FALSE) -> 480 | D32: 47.04 | E32: =VLOOKUP($A32,'Data Pass Through'!$A:$D,3,FALSE) -> 0.098 | F32: =B$4*VLOOKUP($B$3,'Data Billing Quantities'!$A:$O,MATCH($A32,'Data Billing Quantities'!$4:$4,0),FALSE) -> 480 | G32: =E32*F32 -> 47.04 | H32: 0 | I32: 0
A33: TOU-Mid Peak | B33: =VLOOKUP($A33,'Data Pass Through'!$A:$D,2,FALSE) -> 0.157 | C33: =B$4*VLOOKUP($B$3,'Data Billing Quantities'!$A:$O,MATCH($A33,'Data Billing Quantities'!$4:$4,0),FALSE) -> 135 | D33: 21.195 | E33: =VLOOKUP($A33,'Data Pass Through'!$A:$D,3,FALSE) -> 0.157 | F33: =B$4*VLOOKUP($B$3,'Data Billing Quantities'!$A:$O,MATCH($A33,'Data Billing Quantities'!$4:$4,0),FALSE) -> 135 | G33: =E33*F33 -> 21.195 | H33: 0 | I33: 0
A34: TOU-On Peak | B34: =VLOOKUP($A34,'Data Pass Through'!$A:$D,2,FALSE) -> 0.203 | C34: =B$4*VLOOKUP($B$3,'Data Billing Quantities'!$A:$O,MATCH($A34,'Data Billing Quantities'!$4:$4,0),FALSE) -> 135 | D34: 27.405 | E34: =VLOOKUP($A34,'Data Pass Through'!$A:$D,3,FALSE) -> 0.203 | F34: =B$4*VLOOKUP($B$3,'Data Billing Quantities'!$A:$O,MATCH($A34,'Data Billing Quantities'!$4:$4,0),FALSE) -> 135 | G34: =E34*F34 -> 27.405 | H34: 0 | I34: 0
A35: Total Bill on TOU (before Taxes) | D35: =SUM(D27:D34) -> 165.57974 | G35: =SUM(G27:G34) -> 162.20824 | H35: -3.3715 | I35: -0.02036179064
A36: HST | B36: 0.13 | D36: =D35*B36 -> 21.5253662 | E36: =B36 -> 0.13 | G36: =G35*E36 -> 21.0870712 | H36: -0.438295 | I36: -0.02036179064
A37: Ontario Electricity Rebate (OER) | B37: =IF(($B$4*12)<250000,VLOOKUP($A37,'Data Pass Through'!$A$4:$C$19,2,0),0) -> -0.235 | D37: =D35*B37 -> -38.9112389 | E37: =IF(($B$4*12)<250000,VLOOKUP($A37,'Data Pass Through'!$A$4:$C$19,3,0),0) -> -0.235 | G37: =G35*E37 -> -38.1189364 | H37: 0.7923025 | I37: 0.02036179064
A38: Total Bill on TOU | D38: =SUM(D35:D37) -> 148.1938673 | G38: =SUM(G35:G37) -> 145.1763748 | H38: -3.0174925 | I38: -0.02036179064
A39: * Distribution rate protection applies to R1 and R2 customers

Sheet BI Template_Demand (hidden)
A1: Bill Impacts (Average Consumption Level) - ST
A3: Rate Class | B3: =RIGHT(A1,LEN(A1)-FIND("- ",A1,1)-1) -> ST
A4: Monthly Consumption (kWh) | B4: =IF(COUNTIF(A1,"*Low*")>0,VLOOKUP(B3,'Data Billing Quantities'!$A:$Z,MATCH("Low kWh",'Data Billing Quantities'!4:4,0),FALSE),IF(COUNTIF(A1,"*Typical*")>0,VLOOKUP(B3,'Data Billing Quantities'!$A:$Z,MATCH("Typical kWh",'Data Billing Quantities'!4:4,0),FALSE),IF(COUNTIF(A1,"*Average*")>0,VLOOKUP(B3,'Data Billing Quantities'!$A:$Z,MATCH("Average kWh",'Data Billing Quantities'!4:4,0),FALSE),IF(COUNTIF(A1,"*High*")>0,VLOOKUP(B3,'Data Billing Quantities'!$A:$Z,MATCH("High kWh",'Data Billing Quantities'!4:4,0),FALSE),"error")))) -> 1373443
A5: Peak (kW) | B5: =IF(COUNTIF(A1,"*Low*")>0,VLOOKUP(B3,'Data Billing Quantities'!$A:$Z,MATCH("Low kW",'Data Billing Quantities'!4:4,0),FALSE),IF(COUNTIF(A1,"*Typical*")>0,VLOOKUP(B3,'Data Billing Quantities'!$A:$Z,MATCH("Typical kW",'Data Billing Quantities'!4:4,0),FALSE),IF(COUNTIF(A1,"*Average*")>0,VLOOKUP(B3,'Data Billing Quantities'!$A:$Z,MATCH("Average kW",'Data Billing Quantities'!4:4,0),FALSE),IF(COUNTIF(A1,"*High*")>0,VLOOKUP(B3,'Data Billing Quantities'!$A:$Z,MATCH("High kW",'Data Billing Quantities'!4:4,0),FALSE),"error")))) -> 2808
A6: Loss factor | B6: =VLOOKUP(B3,'Data Billing Quantities'!A:D,MATCH(A6,'Data Billing Quantities'!4:4,0),FALSE) -> 1.034
A7: Charge determinant | B7: =VLOOKUP(B3,'Data Billing Quantities'!A:D,MATCH(A7,'Data Billing Quantities'!4:4,0),FALSE) -> kW
B9: Current OEB-Approved | E9: Proposed | H9: Impact
B10: Rate | C10: Volume | D10: Charge | E10: Rate | F10: Volume | G10: Charge | H10: $ Change | I10: % Change
B11: ($) | D11: ($) | E11: ($) | G11: ($)
A12: Service Charge | B12: =VLOOKUP($B$3,'Data Current Rates'!$A:$AO,MATCH('BI Template_Demand'!$A12,CurrentHeader,0),FALSE) -> 1241.87 | C12: 1 | D12: =C12*B12 -> 1241.87 | E12: =VLOOKUP($B$3,'Data Proposed Rates'!$A:$AT,MATCH('BI Template_Demand'!$A12,ProposedHeader,0),FALSE) -> 1241.87 | F12: 1 | G12: =F12*E12 -> 1241.87 | H12: =G12-D12 -> 0 | I12: =IF(ISERROR(H12/ABS(D12)),"N/A",(H12/ABS(D12))) -> 0
A13: Distribution Volumetric Charge | B13: =VLOOKUP($B$3,'Data Current Rates'!$A:$AO,MATCH('BI Template_Demand'!$A13,CurrentHeader,0),FALSE) -> 1.7096 | C13: =IF($B$7="kWh",$B$4,$B$5) -> 2808 | D13: =C13*B13 -> 4800.5568 | E13: =VLOOKUP($B$3,'Data Proposed Rates'!$A:$AT,MATCH('BI Template_Demand'!$A13,ProposedHeader,0),FALSE) -> 1.8196 | F13: =IF($B$7="kWh",$B$4,$B$5) -> 2808 | G13: =F13*E13 -> 5109.4368 | H13: 308.88 | I13: 0.06434253627
A14: Group 2 Fixed Rate Rider | B14: =VLOOKUP($B$3,'Data Current Rates'!$A:$AO,MATCH('BI Template_Demand'!$A14,CurrentHeader,0),FALSE) -> 0 | C14: 1 | D14: =C14*B14 -> 0 | E14: =VLOOKUP($B$3,'Data Proposed Rates'!$A:$AT,MATCH('BI Template_Demand'!$A14,ProposedHeader,0),FALSE) -> -37.83 | F14: 1 | G14: =F14*E14 -> -37.83 | H14: -37.83 | I14: N/A
A15: Group 2 Volumetric Rate Rider | B15: =VLOOKUP($B$3,'Data Current Rates'!$A:$AO,MATCH('BI Template_Demand'!$A15,CurrentHeader,0),FALSE) -> -0.0072 | C15: =IF($B$7="kWh",$B$4,$B$5) -> 2808 | D15: -20.2176 | E15: =VLOOKUP($B$3,'Data Proposed Rates'!$A:$AT,MATCH('BI Template_Demand'!$A15,ProposedHeader,0),FALSE) -> -0.0686 | F15: =IF($B$7="kWh",$B$4,$B$5) -> 2808 | G15: -192.6288 | H15: -172.4112 | I15: -8.527777778
A16: Sub-Total A (excluding pass through) | D16: =SUM(D12:D15) -> 6022.2092 | G16: =SUM(G12:G15) -> 6120.848 | H16: 98.6388 | I16: 0.01637917195
A17: Line Losses on Cost of Power | B17: 0 | C17: =IF(B$17=0,0,B$4*B$6-B$4) -> 0 | D17: =C17*B17 -> 0 | E17: 0 | F17: =IF(E$17=0,0,E$4*E$6-E$4) -> 0 | G17: 0 | H17: =G17-D17 -> 0 | I17: N/A
A18: Total Deferral/Variance Account Rate Rider | B18: =VLOOKUP($B$3,'Data Current Rates'!$A:$AO,MATCH('BI Template_Demand'!$A18,CurrentHeader,0),FALSE) -> -1.7218 | C18: =IF($B$7="kWh",$B$4,$B$5) -> 2808 | D18: -4834.8144 | E18: =VLOOKUP($B$3,'Data Proposed Rates'!$A:$AT,MATCH('BI Template_Demand'!$A18,ProposedHeader,0),FALSE) -> -0.6833 | F18: =IF($B$7="kWh",$B$4,$B$5) -> 2808 | G18: -1918.7064 | H18: 2916.108 | I18: 0.6031478685
A19: CBR Class B Rate Rider | B19: =VLOOKUP($B$3,'Data Current Rates'!$A:$AO,MATCH('BI Template_Demand'!$A19,CurrentHeader,0),FALSE) -> 0.0122 | C19: =IF($B$7="kWh",$B$4,$B$5) -> 2808 | D19: =C19*B19 -> 34.2576 | E19: =VLOOKUP($B$3,'Data Proposed Rates'!$A:$AT,MATCH('BI Template_Demand'!$A19,ProposedHeader,0),FALSE) -> -0.2148 | F19: =IF($B$7="kWh",$B$4,$B$5) -> 2808 | G19: =F19*E19 -> -603.1584 | H19: -637.416 | I19: -18.60655738
A20: GA Rate Rider | B20: =VLOOKUP($B$3,'Data Current Rates'!$A:$AO,MATCH('BI Template_Demand'!$A20,CurrentHeader,0),FALSE) -> -0.0009 | C20: =$B$4 -> 1373443 | D20: =C20*B20 -> -1236.0987 | E20: =VLOOKUP($B$3,'Data Proposed Rates'!$A:$AT,MATCH('BI Template_Demand'!$A20,ProposedHeader,0),FALSE) -> 0.0121 | F20: =$B$4 -> 1373443 | G20: 16618.6603 | H20: 17854.759 | I20: 14.44444444
A21: Rate Rider for Account 1588 | E21: =VLOOKUP($B$3,'Data Proposed Rates'!$A:$AT,MATCH('BI Template_Demand'!$A21,ProposedHeader,0),FALSE) -> -1.3452 | F21: =IF($B$7="kWh",$B$4,$B$5) -> 2808 | G21: =F21*E21 -> -3777.3216 | H21: -3777.3216 | I21: N/A
A22: Sub-Total B - Distribution (includes Sub-Total A) | D22: =SUM(INDIRECT("D16:D"&ROW()-1)) -> -14.4463 | G22: =SUM(INDIRECT("G16:G"&ROW()-1)) -> 16440.3219 | H22: 16454.7682 | I22: 1139.029938
A23: Retail Transmission Rate – Network Service Rate | B23: =VLOOKUP($B$3,'Data Current Rates'!$A:$AO,MATCH('BI Template_Demand'!$A23,CurrentHeader,0),FALSE) -> 5.5092 | C23: =IF($B$7="kWh",$B$4*$B$6,$B$5) -> 2808 | D23: =C23*B23 -> 15469.8336 | E23: =VLOOKUP($B$3,'Data Proposed Rates'!$A:$AT,MATCH('BI Template_Demand'!$A23,ProposedHeader,0),FALSE) -> 5.6568 | F23: =IF($B$7="kWh",$B$4*$B$6,$B$5) -> 2808 | G23: =F23*E23 -> 15884.2944 | H23: 414.4608 | I23: 0.02679154868
A24: Retail Transmission Rate – Line and Transformation Connection Service Rate | B24: =VLOOKUP($B$3,'Data Current Rates'!$A:$AO,MATCH('BI Template_Demand'!$A24,CurrentHeader,0),FALSE) -> 4.3196 | C24: =IF($B$7="kWh",$B$4*$B$6,$B$5) -> 2808 | D24: =C24*B24 -> 12129.4368 | E24: =VLOOKUP($B$3,'Data Proposed Rates'!$A:$AT,MATCH('BI Template_Demand'!$A24,ProposedHeader,0),FALSE) -> 4.4274 | F24: =IF($B$7="kWh",$B$4*$B$6,$B$5) -> 2808 | G24: =F24*E24 -> 12432.1392 | H24: 302.7024 | I24: 0.02495601445
A25: Sub-Total C - Delivery (including Sub-Total B) | D25: =SUM(D22:D24) -> 27584.8241 | G25: =SUM(G22:G24) -> 44756.7555 | H25: 17171.9314 | I25: 0.6225137176
A26: Wholesale Market Service Rate (WMS) – not including CBR | B26: =VLOOKUP($A26,'Data Pass Through'!$A:$D,2,FALSE) -> 0.0041 | C26: =$B$4*$B$6 -> 1420140.062 | D26: =C26*B26 -> 5822.574254 | E26: =VLOOKUP($A26,'Data Pass Through'!$A:$D,3,FALSE) -> 0.0041 | F26: =$B$4*$B$6 -> 1420140.062 | G26: =F26*E26 -> 5822.574254 | H26: 0 | I26: 0
A27: Capacity Based Recovery (CBR) – Applicable for Class B Customers | B27: =VLOOKUP($A27,'Data Pass Through'!$A:$D,2,FALSE) -> 0.0006 | C27: =$B$4*$B$6 -> 1420140.062 | D27: 852.0840372 | E27: =VLOOKUP($A27,'Data Pass Through'!$A:$D,3,FALSE) -> 0.0006 | F27: 1420140.062 | G27: 852.0840372 | H27: 0 | I27: 0
A28: Rural Rate Protection Charge | B28: =VLOOKUP($A28,'Data Pass Through'!$A:$D,2,FALSE) -> 0.0006 | C28: 1420140.062 | D28: 852.0840372 | E28: =VLOOKUP($A28,'Data Pass Through'!$A:$D,3,FALSE) -> 0.0006 | F28: 1420140.062 | G28: 852.0840372 | H28: 0 | I28: 0
A29: Standard Supply Service – Administration Charge (if applicable) | B29: =VLOOKUP($A29,'Data Pass Through'!$A:$D,2,FALSE) -> 0.25 | C29: 1 | D29: 0.25 | E29: =VLOOKUP($A29,'Data Pass Through'!$A:$D,3,FALSE) -> 0.25 | F29: 1 | G29: 0.25 | H29: 0 | I29: 0
A30: Average IESO Wholesale Market Price | B30: =VLOOKUP(A30,'Data Pass Through'!A4:C19,2,0) -> 0.1596 | C30: =$B$4*$B$6 -> 1420140.062 | D30: =C30*B30 -> 226654.3539 | E30: =VLOOKUP($A30,'Data Pass Through'!$A:$D,3,FALSE) -> 0.1596 | F30: =$B$4*$B$6 -> 1420140.062 | G30: 226654.3539 | H30: =G30-D30 -> 0 | I30: 0
A31: Total Bill on Average IESO Wholesale Market Price (before Taxes) | D31: =SUM(D25:D30) -> 261766.1703 | G31: =SUM(G25:G30) -> 278938.1017 | H31: =G31-D31 -> 17171.9314 | I31: 0.06560026981
A32: HST | B32: 0.13 | D32: =D31*B32 -> 34029.60214 | E32: 0.13 | G32: =G31*E32 -> 36261.95322 | H32: =G32-D32 -> 2232.351082 | I32: 0.06560026981
A33: Ontario Electricity Rebate (OER) | B33: =IF(($B$4*12)<250000,VLOOKUP(A33,'Data Pass Through'!$A$4:$C$19,2,0),0) -> 0 | D33: =D31*B33 -> 0 | E33: =IF(($B$4*12)<250000,VLOOKUP(A33,'Data Pass Through'!$A$4:$C$19,3,0),0) -> 0 | G33: =G31*E33 -> 0 | H33: =G33-D33 -> 0 | I33: N/A
A34: Total Bill on Average IESO Wholesale Market Price | D34: =SUM(D31:D33) -> 295795.7725 | G34: =SUM(G31:G33) -> 315200.0549 | H34: =G34-D34 -> 19404.28248 | I34: 0.06560026981

Sheet BI Template_Unmtr (hidden)
A1: Bill Impacts (Average Consumption Level) - St Lgt
A3: Rate Class | B3: =RIGHT(A1,LEN(A1)-FIND("- ",A1,1)-1) -> St Lgt
A4: Monthly Consumption (kWh) | B4: =IF(COUNTIF(A1,"*Low*")>0,VLOOKUP(B3,'Data Billing Quantities'!$A:$Z,MATCH("Low kWh",'Data Billing Quantities'!4:4,0),FALSE),IF(COUNTIF(A1,"*Typical*")>0,VLOOKUP(B3,'Data Billing Quantities'!$A:$Z,MATCH("Typical kWh",'Data Billing Quantities'!4:4,0),FALSE),IF(COUNTIF(A1,"*Average*")>0,VLOOKUP(B3,'Data Billing Quantities'!$A:$Z,MATCH("Average kWh",'Data Billing Quantities'!4:4,0),FALSE),IF(COUNTIF(A1,"*High*")>0,VLOOKUP(B3,'Data Billing Quantities'!$A:$Z,MATCH("High kWh",'Data Billing Quantities'!4:4,0),FALSE),"error")))) -> 1274
A5: Peak (kW) | B5: =IF(COUNTIF(A1,"*Low*")>0,VLOOKUP(B3,'Data Billing Quantities'!$A:$Z,MATCH("Low kW",'Data Billing Quantities'!4:4,0),FALSE),IF(COUNTIF(A1,"*Typical*")>0,VLOOKUP(B3,'Data Billing Quantities'!$A:$Z,MATCH("Typical kW",'Data Billing Quantities'!4:4,0),FALSE),IF(COUNTIF(A1,"*Average*")>0,VLOOKUP(B3,'Data Billing Quantities'!$A:$Z,MATCH("Average kW",'Data Billing Quantities'!4:4,0),FALSE),IF(COUNTIF(A1,"*High*")>0,VLOOKUP(B3,'Data Billing Quantities'!$A:$Z,MATCH("High kW",'Data Billing Quantities'!4:4,0),FALSE),"error")))) -> 0
A6: Loss factor | B6: =VLOOKUP(B3,'Data Billing Quantities'!A:D,MATCH(A6,'Data Billing Quantities'!4:4,0),FALSE) -> 1.092
A7: Charge determinant | B7: =VLOOKUP(B3,'Data Billing Quantities'!A:D,MATCH(A7,'Data Billing Quantities'!4:4,0),FALSE) -> kWh
B9: Current OEB-Approved | E9: Proposed | H9: Impact
B10: Rate ($) | C10: Volume | D10: Charge ($) | E10: Rate ($) | F10: Volume | G10: Charge ($) | H10: $ Change | I10: % Change
A11: Service Charge | B11: =VLOOKUP($B$3,'Data Current Rates'!$A:$AO,MATCH('BI Template_Unmtr'!$A11,CurrentHeader,0),FALSE) -> 3.31 | C11: 1 | D11: =B11*C11 -> 3.31 | E11: =VLOOKUP($B$3,'Data Proposed Rates'!$A:$AT,MATCH('BI Template_Unmtr'!$A11,ProposedHeader,0),FALSE) -> 3.42 | F11: 1 | G11: =E11*F11 -> 3.42 | H11: =G11-D11 -> 0.11 | I11: =IF(ISERROR(H11/ABS(D11)),"N/A",(H11/ABS(D11))) -> 0.0332326284
A12: Distribution Volumetric Charge | B12: =VLOOKUP($B$3,'Data Current Rates'!$A:$AO,MATCH('BI Template_Unmtr'!$A12,CurrentHeader,0),FALSE) -> 0.1235 | C12: =IF($B$7="kWh",$B$4,$B$5) -> 1274 | D12: =B12*C12 -> 157.339 | E12: =VLOOKUP($B$3,'Data Proposed Rates'!$A:$AT,MATCH('BI Template_Unmtr'!$A12,ProposedHeader,0),FALSE) -> 0.1297 | F12: =IF($B$7="kWh",$B$4,$B$5) -> 1274 | G12: 165.2378 | H12: 7.8988 | I12: 0.05020242915
A13: Group 2 Fixed Rate Rider | B13: =VLOOKUP($B$3,'Data Current Rates'!$A:$AO,MATCH('BI Template_Unmtr'!$A13,CurrentHeader,0),FALSE) -> 0 | C13: 1 | D13: =B13*C13 -> 0 | E13: =VLOOKUP($B$3,'Data Proposed Rates'!$A:$AT,MATCH('BI Template_Unmtr'!$A13,ProposedHeader,0),FALSE) -> -0.12 | F13: 1 | G13: =E13*F13 -> -0.12 | H13: -0.12 | I13: N/A
A14: Group 2 Volumetric Rate Rider | B14: =VLOOKUP($B$3,'Data Current Rates'!$A:$AO,MATCH('BI Template_Unmtr'!$A14,CurrentHeader,0),FALSE) -> -0.0004 | C14: =IF($B$7="kWh",$B$4,$B$5) -> 1274 | D14: =B14*C14 -> -0.5096 | E14: =VLOOKUP($B$3,'Data Proposed Rates'!$A:$AT,MATCH('BI Template_Unmtr'!$A14,ProposedHeader,0),FALSE) -> -0.0044 | F14: =IF($B$7="kWh",$B$4,$B$5) -> 1274 | G14: -5.6056 | H14: -5.096 | I14: -10
A15: Sub-Total A (excluding pass through) | D15: =SUM(D11:D14) -> 160.1394 | G15: =SUM(G11:G14) -> 162.9322 | H15: 2.7928 | I15: 0.01743980557
A16: Line Losses on Cost of Power | B16: =IF($B$4*12>=150000,0,IF($B$4>=750,$B30,$B29)) -> 0.142 | C16: =IF($B16=0,0,$B4*$B6-$B4) -> 117.208 | D16: =B16*C16 -> 16.643536 | E16: =IF($B$4*12>=150000,0,IF($B$4>=750,$E30,$E29)) -> 0.142 | F16: =IF($B16=0,0,$B4*$B6-$B4) -> 117.208 | G16: 16.643536 | H16: 0 | I16: 0
A17: Total Deferral/Variance Account Rate Rider | B17: =VLOOKUP($B$3,'Data Current Rates'!$A:$AO,MATCH('BI Template_Unmtr'!$A17,CurrentHeader,0),FALSE) -> -0.0036 | C17: =IF($B$7="kWh",$B$4,$B$5) -> 1274 | D17: -4.5864 | E17: =VLOOKUP($B$3,'Data Proposed Rates'!$A:$AT,MATCH('BI Template_Unmtr'!$A17,ProposedHeader,0),FALSE) -> -0.0018 | F17: =IF($B$7="kWh",$B$4,$B$5) -> 1274 | G17: -2.2932 | H17: 2.2932 | I17: 0.5
A18: CBR Class B Rate Rider | B18: =VLOOKUP($B$3,'Data Current Rates'!$A:$AO,MATCH('BI Template_Unmtr'!$A18,CurrentHeader,0),FALSE) -> 0.0001 | C18: =IF($B$7="kWh",$B$4,$B$5) -> 1274 | D18: 0.1274 | E18: =VLOOKUP($B$3,'Data Proposed Rates'!$A:$AT,MATCH('BI Template_Unmtr'!$A18,ProposedHeader,0),FALSE) -> -0.0006 | F18: =IF($B$7="kWh",$B$4,$B$5) -> 1274 | G18: -0.7644 | H18: -0.8918 | I18: -7
A19: GA Rate Rider | B19: =VLOOKUP($B$3,'Data Current Rates'!$A:$AO,MATCH('BI Template_Unmtr'!$A19,CurrentHeader,0),FALSE) -> 0 | C19: =IF($B$7="kWh",$B$4,$B$5) -> 1274 | D19: 0 | E19: =VLOOKUP($B$3,'Data Proposed Rates'!$A:$AT,MATCH('BI Template_Unmtr'!$A19,ProposedHeader,0),FALSE) -> 0 | F19: =IF($B$7="kWh",$B$4,$B$5) -> 1274 | G19: 0 | H19: 0 | I19: N/A
A20: Rate Rider for Account 1588 | E20: =VLOOKUP($B$3,'Data Proposed Rates'!$A:$AT,MATCH('BI Template_Unmtr'!$A20,ProposedHeader,0),FALSE) -> -0.0032 | F20: =IF($B$7="kWh",$B$4,$B$5) -> 1274 | G20: -4.0768 | H20: -4.0768 | I20: N/A
A21: Sub-Total B - Distribution (includes Sub-Total A) | D21: =SUM(INDIRECT("D15:D"&ROW()-1)) -> 172.323936 | G21: =SUM(INDIRECT("G15:G"&ROW()-1)) -> 172.441336 | H21: 0.1174 | I21: 0.0006812750609
A22: Retail Transmission Rate – Network Service Rate | B22: =VLOOKUP($B$3,'Data Current Rates'!$A:$AO,MATCH('BI Template_Unmtr'!$A22,CurrentHeader,0),FALSE) -> 0.0074 | C22: =IF($B$7="kWh",$B$4*$B$6,$B$5) -> 1391.208 | D22: =B22*C22 -> 10.2949392 | E22: =VLOOKUP($B$3,'Data Proposed Rates'!$A:$AT,MATCH('BI Template_Unmtr'!$A22,ProposedHeader,0),FALSE) -> 0.0076 | F22: =IF($B$7="kWh",$B$4*$B$6,$B$5) -> 1391.208 | G22: 10.5731808 | H22: 0.2782416 | I22: 0.02702702703
A23: Retail Transmission Rate – Line and Transformation Connection Service Rate | B23: =VLOOKUP($B$3,'Data Current Rates'!$A:$AO,MATCH('BI Template_Unmtr'!$A23,CurrentHeader,0),FALSE) -> 0.0057 | C23: =IF($B$7="kWh",$B$4*$B$6,$B$5) -> 1391.208 | D23: 7.9298856 | E23: =VLOOKUP($B$3,'Data Proposed Rates'!$A:$AT,MATCH('BI Template_Unmtr'!$A23,ProposedHeader,0),FALSE) -> 0.0058 | F23: =IF($B$7="kWh",$B$4*$B$6,$B$5) -> 1391.208 | G23: 8.0690064 | H23: 0.1391208 | I23: 0.01754385965
A24: Sub-Total C - Delivery (including Sub-Total B) | D24: =SUM(D21:D23) -> 190.5487608 | G24: =SUM(G21:G23) -> 191.0835232 | H24: 0.5347624 | I24: 0.002806433365
A25: Wholesale Market Service Rate (WMS) – not including CBR | B25: =VLOOKUP($A25,'Data Pass Through'!$A:$D,2,FALSE) -> 0.0041 | C25: =$B$4*$B$6 -> 1391.208 | D25: =B25*C25 -> 5.7039528 | E25: =VLOOKUP($A25,'Data Pass Through'!$A:$D,3,FALSE) -> 0.0041 | F25: =$B$4*$B$6 -> 1391.208 | G25: 5.7039528 | H25: 0 | I25: 0
A26: Capacity Based Recovery (CBR) – Applicable for Class B Customers | B26: =VLOOKUP($A26,'Data Pass Through'!$A:$D,2,FALSE) -> 0.0006 | C26: =$B$4*$B$6 -> 1391.208 | D26: 0.8347248 | E26: =VLOOKUP($A26,'Data Pass Through'!$A:$D,3,FALSE) -> 0.0006 | F26: =$B$4*$B$6 -> 1391.208 | G26: 0.8347248 | H26: 0 | I26: 0
A27: Rural Rate Protection Charge | B27: =VLOOKUP($A27,'Data Pass Through'!$A:$D,2,FALSE) -> 0.0006 | C27: =$B$4*$B$6 -> 1391.208 | D27: 0.8347248 | E27: =VLOOKUP($A27,'Data Pass Through'!$A:$D,3,FALSE) -> 0.0006 | F27: =$B$4*$B$6 -> 1391.208 | G27: 0.8347248 | H27: 0 | I27: 0
A28: Standard Supply Service – Administration Charge (if applicable) | B28: =VLOOKUP($A28,'Data Pass Through'!$A:$D,2,FALSE) -> 0.25 | C28: 1 | D28: 0.25 | E28: =VLOOKUP($A28,'Data Pass Through'!$A:$D,3,FALSE) -> 0.25 | F28: 1 | G28: 0.25 | H28: 0 | I28: 0
A29: RPP Tier 1 | B29: =VLOOKUP($A29,'Data Pass Through'!$A:$D,2,FALSE) -> 0.12 | C29: =IF(($B4*12>=150000),750,IF($B4>=750,750,$B4)) -> 750 | D29: 90 | E29: =VLOOKUP($A29,'Data Pass Through'!$A:$D,3,FALSE) -> 0.12 | F29: =IF(($B4*12>=150000),750,IF($B4>=750,750,$B4)) -> 750 | G29: 90 | H29: 0 | I29: 0
A30: RPP Tier 2 | B30: =VLOOKUP($A30,'Data Pass Through'!$A:$D,2,FALSE) -> 0.142 | C30: =IF(($B4*12>=150000),($B4*$B6)-750,IF($B4>=750,($B4-750),0)) -> 524 | D30: 74.408 | E30: =VLOOKUP($A30,'Data Pass Through'!$A:$D,3,FALSE) -> 0.142 | F30: =IF(($B4*12>=150000),($B4*$B6)-750,IF($B4>=750,($B4-750),0)) -> 524 | G30: 74.408 | H30: =G30-D30 -> 0 | I30: =IF(ISERROR(H30/ABS(D30)),"N/A",(H30/ABS(D30))) -> 0
A31: Total Bill on Two-Tier RPP (before Taxes) | D31: =SUM(D24:D30) -> 362.5801632 | G31: =SUM(G24:G30) -> 363.1149256 | H31: 0.5347624 | I31: 0.001474880466
A32: HST | B32: 0.13 | D32: =D31*B32 -> 47.13542122 | E32: =B32 -> 0.13 | G32: =G31*E32 -> 47.20494033 | H32: 0.069519112 | I32: 0.001474880466
A33: Ontario Electricity Rebate (OER) | B33: =IF(($B$4*12)<250000,VLOOKUP(A33,'Data Pass Through'!$A$4:$C$19,2,0),0) -> -0.235 | D33: =D31*B33 -> -85.20633835 | E33: =IF(($B$4*12)<250000,VLOOKUP($A33,'Data Pass Through'!$A$4:$C$19,3,0),0) -> -0.235 | G33: =G31*E33 -> -85.33200752 | H33: -0.125669164 | I33: -0.001474880466
A34: Total Bill on Two-Tier RPP | D34: =SUM(D31:D33) -> 324.5092461 | G34: =SUM(G31:G33) -> 324.9878584 | H34: 0.478612348 | I34: 0.001474880466
A35: * Distribution rate protection applies to R1 and R2 customers

Sheet Bill Impact Summary
A1: Rate Class | B1: Consumption Level | C1: Monthly Consumption (kWh) | D1: Monthly Peak (kW) | E1: BI Worksheet | F1: Template | G1: Sub-Total | M1: Total
G2: A | I2: B | K2: C | M2: Total Bill
G3: $ | H3: % | I3: $ | J3: % | K3: $ | L3: % | M3: $ | N3: %
A4: UR | B4: Typical | C4: =VLOOKUP(A4,'Data Billing Quantities'!A:P,MATCH(B4&" kWh",'Data Billing Quantities'!$4:$4,0),FALSE) -> 750 | E4: BI_UR_Typical | F4: BI Template_Energy | G4: =VLOOKUP(VLOOKUP($F4,'Data BI Summary'!$A:$P,MATCH($G$2,'Data BI Summary'!$2:$2,0),FALSE),INDIRECT("'"&$E4&"'!"&"$A:$K"),8,FALSE) -> 0.7 | H4: =VLOOKUP(VLOOKUP($F4,'Data BI Summary'!$A:$P,MATCH($G$2,'Data BI Summary'!$2:$2,0),FALSE),INDIRECT("'"&$E4&"'!"&"$A:$K"),9,FALSE) -> 0.01686746988 | I4: =VLOOKUP(VLOOKUP($F4,'Data BI Summary'!$A:$P,MATCH($I$2,'Data BI Summary'!$2:$2,0),FALSE),INDIRECT("'"&$E4&"'!"&"$A:$K"),8,FALSE) -> -0.65 | J4: =VLOOKUP(VLOOKUP($F4,'Data BI Summary'!$A:$P,MATCH($I$2,'Data BI Summary'!$2:$2,0),FALSE),INDIRECT("'"&$E4&"'!"&"$A:$K"),9,FALSE) -> -0.01457514136 | K4: =VLOOKUP(VLOOKUP($F4,'Data BI Summary'!$A:$P,MATCH($K$2,'Data BI Summary'!$2:$2,0),FALSE),INDIRECT("'"&$E4&"'!"&"$A:$K"),8,FALSE) -> -0.17435 | L4: =VLOOKUP(VLOOKUP($F4,'Data BI Summary'!$A:$P,MATCH($K$2,'Data BI Summary'!$2:$2,0),FALSE),INDIRECT("'"&$E4&"'!"&"$A:$K"),9,FALSE) -> -0.00275756351 | M4: =VLOOKUP(VLOOKUP($F4,'Data BI Summary'!$A:$P,MATCH($M$2,'Data BI Summary'!$2:$2,0),FALSE),INDIRECT("'"&$E4&"'!"&"$A:$K"),8,FALSE) -> -0.15604325 | N4: =VLOOKUP(VLOOKUP($F4,'Data BI Summary'!$A:$P,MATCH($M$2,'Data BI Summary'!$2:$2,0),FALSE),INDIRECT("'"&$E4&"'!"&"$A:$K"),9,FALSE) -> -0.00106755129
A5: R1 (with DRP) | B5: Typical | C5: =VLOOKUP("R1",'Data Billing Quantities'!A:P,MATCH(B5&" kWh",'Data Billing Quantities'!$4:$4,0),FALSE) -> 750 | E5: BI_R1_Typical (with DRP) | F5: BI Template_Energy | G5: =VLOOKUP(VLOOKUP($F5,'Data BI Summary'!$A:$P,MATCH($G$2,'Data BI Summary'!$2:$2,0),FALSE),INDIRECT("'"&$E5&"'!"&"$A:$K"),8,FALSE) -> -2.35 | H5: =VLOOKUP(VLOOKUP($F5,'Data BI Summary'!$A:$P,MATCH($G$2,'Data BI Summary'!$2:$2,0),FALSE),INDIRECT("'"&$E5&"'!"&"$A:$K"),9,FALSE) -> -0.05507382236 | I5: =VLOOKUP(VLOOKUP($F5,'Data BI Summary'!$A:$P,MATCH($I$2,'Data BI Summary'!$2:$2,0),FALSE),INDIRECT("'"&$E5&"'!"&"$A:$K"),8,FALSE) -> -3.775 | J5: =VLOOKUP(VLOOKUP($F5,'Data BI Summary'!$A:$P,MATCH($I$2,'Data BI Summary'!$2:$2,0),FALSE),INDIRECT("'"&$E5&"'!"&"$A:$K"),9,FALSE) -> -0.07920914235 | K5: =VLOOKUP(VLOOKUP($F5,'Data BI Summary'!$A:$P,MATCH($K$2,'Data BI Summary'!$2:$2,0),FALSE),INDIRECT("'"&$E5&"'!"&"$A:$K"),8,FALSE) -> -3.3715 | L5: =VLOOKUP(VLOOKUP($F5,'Data BI Summary'!$A:$P,MATCH($K$2,'Data BI Summary'!$2:$2,0),FALSE),INDIRECT("'"&$E5&"'!"&"$A:$K"),9,FALSE) -> -0.05154202613 | M5: =VLOOKUP(VLOOKUP($F5,'Data BI Summary'!$A:$P,MATCH($M$2,'Data BI Summary'!$2:$2,0),FALSE),INDIRECT("'"&$E5&"'!"&"$A:$K"),8,FALSE) -> -3.0174925 | N5: =VLOOKUP(VLOOKUP($F5,'Data BI Summary'!$A:$P,MATCH($M$2,'Data BI Summary'!$2:$2,0),FALSE),INDIRECT("'"&$E5&"'!"&"$A:$K"),9,FALSE) -> -0.02036179064
A6: R1 (without DRP) | B6: Typical | C6: =VLOOKUP("R1",'Data Billing Quantities'!A:P,MATCH(B6&" kWh",'Data Billing Quantities'!$4:$4,0),FALSE) -> 750 | E6: BI_R1_Typical (without DRP) | F6: BI Template_Energy | G6: =VLOOKUP(VLOOKUP($F6,'Data BI Summary'!$A:$P,MATCH($G$2,'Data BI Summary'!$2:$2,0),FALSE),INDIRECT("'"&$E6&"'!"&"$A:$K"),8,FALSE) -> 1.22 | H6: =VLOOKUP(VLOOKUP($F6,'Data BI Summary'!$A:$P,MATCH($G$2,'Data BI Summary'!$2:$2,0),FALSE),INDIRECT("'"&$E6&"'!"&"$A:$K"),9,FALSE) -> 0.01722190853 | I6: =VLOOKUP(VLOOKUP($F6,'Data BI Summary'!$A:$P,MATCH($I$2,'Data BI Summary'!$2:$2,0),FALSE),INDIRECT("'"&$E6&"'!"&"$A:$K"),8,FALSE) -> -0.205 | J6: =VLOOKUP(VLOOKUP($F6,'Data BI Summary'!$A:$P,MATCH($I$2,'Data BI Summary'!$2:$2,0),FALSE),INDIRECT("'"&$E6&"'!"&"$A:$K"),9,FALSE) -> -0.002703464021 | K6: =VLOOKUP(VLOOKUP($F6,'Data BI Summary'!$A:$P,MATCH($K$2,'Data BI Summary'!$2:$2,0),FALSE),INDIRECT("'"&$E6&"'!"&"$A:$K"),8,FALSE) -> 0.1985 | L6: =VLOOKUP(VLOOKUP($F6,'Data BI Summary'!$A:$P,MATCH($K$2,'Data BI Summary'!$2:$2,0),FALSE),INDIRECT("'"&$E6&"'!"&"$A:$K"),9,FALSE) -> 0.0021211199 | M6: =VLOOKUP(VLOOKUP($F6,'Data BI Summary'!$A:$P,MATCH($M$2,'Data BI Summary'!$2:$2,0),FALSE),INDIRECT("'"&$E6&"'!"&"$A:$K"),8,FALSE) -> 0.1776575 | N6: =VLOOKUP(VLOOKUP($F6,'Data BI Summary'!$A:$P,MATCH($M$2,'Data BI Summary'!$2:$2,0),FALSE),INDIRECT("'"&$E6&"'!"&"$A:$K"),9,FALSE) -> 0.001024517504
A7: R2 (with DRP) | B7: Typical | C7: =VLOOKUP("R2",'Data Billing Quantities'!A:P,MATCH(B7&" kWh",'Data Billing Quantities'!$4:$4,0),FALSE) -> 750 | E7: BI_R2_Typical (with DRP) | F7: BI Template_Energy | G7: =VLOOKUP(VLOOKUP($F7,'Data BI Summary'!$A:$P,MATCH($G$2,'Data BI Summary'!$2:$2,0),FALSE),INDIRECT("'"&$E7&"'!"&"$A:$K"),8,FALSE) -> -4.74 | H7: =VLOOKUP(VLOOKUP($F7,'Data BI Summary'!$A:$P,MATCH($G$2,'Data BI Summary'!$2:$2,0),FALSE),INDIRECT("'"&$E7&"'!"&"$A:$K"),9,FALSE) -> -0.1116870877 | I7: =VLOOKUP(VLOOKUP($F7,'Data BI Summary'!$A:$P,MATCH($I$2,'Data BI Summary'!$2:$2,0),FALSE),INDIRECT("'"&$E7&"'!"&"$A:$K"),8,FALSE) -> -6.165 | J7: =VLOOKUP(VLOOKUP($F7,'Data BI Summary'!$A:$P,MATCH($I$2,'Data BI Summary'!$2:$2,0),FALSE),INDIRECT("'"&$E7&"'!"&"$A:$K"),9,FALSE) -> -0.1228033831 | K7: =VLOOKUP(VLOOKUP($F7,'Data BI Summary'!$A:$P,MATCH($K$2,'Data BI Summary'!$2:$2,0),FALSE),INDIRECT("'"&$E7&"'!"&"$A:$K"),8,FALSE) -> -5.750625 | L7: =VLOOKUP(VLOOKUP($F7,'Data BI Summary'!$A:$P,MATCH($K$2,'Data BI Summary'!$2:$2,0),FALSE),INDIRECT("'"&$E7&"'!"&"$A:$K"),9,FALSE) -> -0.0856911995 | M7: =VLOOKUP(VLOOKUP($F7,'Data BI Summary'!$A:$P,MATCH($M$2,'Data BI Summary'!$2:$2,0),FALSE),INDIRECT("'"&$E7&"'!"&"$A:$K"),8,FALSE) -> -5.146809375 | N7: =VLOOKUP(VLOOKUP($F7,'Data BI Summary'!$A:$P,MATCH($M$2,'Data BI Summary'!$2:$2,0),FALSE),INDIRECT("'"&$E7&"'!"&"$A:$K"),9,FALSE) -> -0.03435443019
A8: R2 (without DRP) | B8: Typical | C8: =VLOOKUP("R2",'Data Billing Quantities'!A:P,MATCH(B8&" kWh",'Data Billing Quantities'!$4:$4,0),FALSE) -> 750 | E8: BI_R2_Typical (without DRP) | F8: BI Template_Energy | G8: =VLOOKUP(VLOOKUP($F8,'Data BI Summary'!$A:$P,MATCH($G$2,'Data BI Summary'!$2:$2,0),FALSE),INDIRECT("'"&$E8&"'!"&"$A:$K"),8,FALSE) -> 2.14 | H8: =VLOOKUP(VLOOKUP($F8,'Data BI Summary'!$A:$P,MATCH($G$2,'Data BI Summary'!$2:$2,0),FALSE),INDIRECT("'"&$E8&"'!"&"$A:$K"),9,FALSE) -> 0.02323687497 | I8: =VLOOKUP(VLOOKUP($F8,'Data BI Summary'!$A:$P,MATCH($I$2,'Data BI Summary'!$2:$2,0),FALSE),INDIRECT("'"&$E8&"'!"&"$A:$K"),8,FALSE) -> 0.715 | J8: =VLOOKUP(VLOOKUP($F8,'Data BI Summary'!$A:$P,MATCH($I$2,'Data BI Summary'!$2:$2,0),FALSE),INDIRECT("'"&$E8&"'!"&"$A:$K"),9,FALSE) -> 0.007160224801 | K8: =VLOOKUP(VLOOKUP($F8,'Data BI Summary'!$A:$P,MATCH($K$2,'Data BI Summary'!$2:$2,0),FALSE),INDIRECT("'"&$E8&"'!"&"$A:$K"),8,FALSE) -> 1.129375 | L8: =VLOOKUP(VLOOKUP($F8,'Data BI Summary'!$A:$P,MATCH($K$2,'Data BI Summary'!$2:$2,0),FALSE),INDIRECT("'"&$E8&"'!"&"$A:$K"),9,FALSE) -> 0.009672312542 | M8: =VLOOKUP(VLOOKUP($F8,'Data BI Summary'!$A:$P,MATCH($M$2,'Data BI Summary'!$2:$2,0),FALSE),INDIRECT("'"&$E8&"'!"&"$A:$K"),8,FALSE) -> 1.010790625 | N8: =VLOOKUP(VLOOKUP($F8,'Data BI Summary'!$A:$P,MATCH($M$2,'Data BI Summary'!$2:$2,0),FALSE),INDIRECT("'"&$E8&"'!"&"$A:$K"),9,FALSE) -> 0.005203388267
A9: Seasonal-UR | B9: Average | C9: =VLOOKUP("Seasonal",'Data Billing Quantities'!A:P,MATCH(B9&" kWh",'Data Billing Quantities'!$4:$4,0),FALSE) -> 369 | E9: BI_Seas_UR_Avg | F9: BI Template_Energy | G9: =VLOOKUP(VLOOKUP($F9,'Data BI Summary'!$A:$P,MATCH($G$2,'Data BI Summary'!$2:$2,0),FALSE),INDIRECT("'"&$E9&"'!"&"$A:$K"),8,FALSE) -> 0.7 | H9: =VLOOKUP(VLOOKUP($F9,'Data BI Summary'!$A:$P,MATCH($G$2,'Data BI Summary'!$2:$2,0),FALSE),INDIRECT("'"&$E9&"'!"&"$A:$K"),9,FALSE) -> 0.01686746988 | I9: =VLOOKUP(VLOOKUP($F9,'Data BI Summary'!$A:$P,MATCH($I$2,'Data BI Summary'!$2:$2,0),FALSE),INDIRECT("'"&$E9&"'!"&"$A:$K"),8,FALSE) -> 0.0358 | J9: =VLOOKUP(VLOOKUP($F9,'Data BI Summary'!$A:$P,MATCH($I$2,'Data BI Summary'!$2:$2,0),FALSE),INDIRECT("'"&$E9&"'!"&"$A:$K"),9,FALSE) -> 0.0008279978325 | K9: =VLOOKUP(VLOOKUP($F9,'Data BI Summary'!$A:$P,MATCH($K$2,'Data BI Summary'!$2:$2,0),FALSE),INDIRECT("'"&$E9&"'!"&"$A:$K"),8,FALSE) -> 0.2698198 | L9: =VLOOKUP(VLOOKUP($F9,'Data BI Summary'!$A:$P,MATCH($K$2,'Data BI Summary'!$2:$2,0),FALSE),INDIRECT("'"&$E9&"'!"&"$A:$K"),9,FALSE) -> 0.005148976981 | M9: =VLOOKUP(VLOOKUP($F9,'Data BI Summary'!$A:$P,MATCH($M$2,'Data BI Summary'!$2:$2,0),FALSE),INDIRECT("'"&$E9&"'!"&"$A:$K"),8,FALSE) -> 0.241488721 | N9: =VLOOKUP(VLOOKUP($F9,'Data BI Summary'!$A:$P,MATCH($M$2,'Data BI Summary'!$2:$2,0),FALSE),INDIRECT("'"&$E9&"'!"&"$A:$K"),9,FALSE) -> 0.002651149155
A10: Seasonal-R1 | B10: Average | C10: =VLOOKUP("Seasonal",'Data Billing Quantities'!A:P,MATCH(B10&" kWh",'Data Billing Quantities'!$4:$4,0),FALSE) -> 369 | E10: BI_Seas_R1_Avg | F10: BI Template_Energy | G10: =VLOOKUP(VLOOKUP($F10,'Data BI Summary'!$A:$P,MATCH($G$2,'Data BI Summary'!$2:$2,0),FALSE),INDIRECT("'"&$E10&"'!"&"$A:$K"),8,FALSE) -> 1.22 | H10: =VLOOKUP(VLOOKUP($F10,'Data BI Summary'!$A:$P,MATCH($G$2,'Data BI Summary'!$2:$2,0),FALSE),INDIRECT("'"&$E10&"'!"&"$A:$K"),9,FALSE) -> 0.01722190853 | I10: =VLOOKUP(VLOOKUP($F10,'Data BI Summary'!$A:$P,MATCH($I$2,'Data BI Summary'!$2:$2,0),FALSE),INDIRECT("'"&$E10&"'!"&"$A:$K"),8,FALSE) -> 0.5189 | J10: =VLOOKUP(VLOOKUP($F10,'Data BI Summary'!$A:$P,MATCH($I$2,'Data BI Summary'!$2:$2,0),FALSE),INDIRECT("'"&$E10&"'!"&"$A:$K"),9,FALSE) -> 0.007059117611 | K10: =VLOOKUP(VLOOKUP($F10,'Data BI Summary'!$A:$P,MATCH($K$2,'Data BI Summary'!$2:$2,0),FALSE),INDIRECT("'"&$E10&"'!"&"$A:$K"),8,FALSE) -> 0.717422 | L10: =VLOOKUP(VLOOKUP($F10,'Data BI Summary'!$A:$P,MATCH($K$2,'Data BI Summary'!$2:$2,0),FALSE),INDIRECT("'"&$E10&"'!"&"$A:$K"),9,FALSE) -> 0.008723226023 | M10: =VLOOKUP(VLOOKUP($F10,'Data BI Summary'!$A:$P,MATCH($M$2,'Data BI Summary'!$2:$2,0),FALSE),INDIRECT("'"&$E10&"'!"&"$A:$K"),8,FALSE) -> 0.64209269 | N10: =VLOOKUP(VLOOKUP($F10,'Data BI Summary'!$A:$P,MATCH($M$2,'Data BI Summary'!$2:$2,0),FALSE),INDIRECT("'"&$E10&"'!"&"$A:$K"),9,FALSE) -> 0.005449383687
A11: Seasonal-R2 | B11: Average | C11: =VLOOKUP("Seasonal",'Data Billing Quantities'!A:P,MATCH(B11&" kWh",'Data Billing Quantities'!$4:$4,0),FALSE) -> 369 | E11: BI_Seas_R2_Avg | F11: BI Template_Energy | G11: =VLOOKUP(VLOOKUP($F11,'Data BI Summary'!$A:$P,MATCH($G$2,'Data BI Summary'!$2:$2,0),FALSE),INDIRECT("'"&$E11&"'!"&"$A:$K"),8,FALSE) -> 4.9024 | H11: =VLOOKUP(VLOOKUP($F11,'Data BI Summary'!$A:$P,MATCH($G$2,'Data BI Summary'!$2:$2,0),FALSE),INDIRECT("'"&$E11&"'!"&"$A:$K"),9,FALSE) -> 0.05656730695 | I11: =VLOOKUP(VLOOKUP($F11,'Data BI Summary'!$A:$P,MATCH($I$2,'Data BI Summary'!$2:$2,0),FALSE),INDIRECT("'"&$E11&"'!"&"$A:$K"),8,FALSE) -> 4.2013 | J11: =VLOOKUP(VLOOKUP($F11,'Data BI Summary'!$A:$P,MATCH($I$2,'Data BI Summary'!$2:$2,0),FALSE),INDIRECT("'"&$E11&"'!"&"$A:$K"),9,FALSE) -> 0.04632223607 | K11: =VLOOKUP(VLOOKUP($F11,'Data BI Summary'!$A:$P,MATCH($K$2,'Data BI Summary'!$2:$2,0),FALSE),INDIRECT("'"&$E11&"'!"&"$A:$K"),8,FALSE) -> 4.4051725 | L11: =VLOOKUP(VLOOKUP($F11,'Data BI Summary'!$A:$P,MATCH($K$2,'Data BI Summary'!$2:$2,0),FALSE),INDIRECT("'"&$E11&"'!"&"$A:$K"),9,FALSE) -> 0.04448983401 | M11: =VLOOKUP(VLOOKUP($F11,'Data BI Summary'!$A:$P,MATCH($M$2,'Data BI Summary'!$2:$2,0),FALSE),INDIRECT("'"&$E11&"'!"&"$A:$K"),8,FALSE) -> 3.942629388 | N11: =VLOOKUP(VLOOKUP($F11,'Data BI Summary'!$A:$P,MATCH($M$2,'Data BI Summary'!$2:$2,0),FALSE),INDIRECT("'"&$E11&"'!"&"$A:$K"),9,FALSE) -> 0.02966821947
A12: GSe | B12: Typical | C12: =VLOOKUP(A12,'Data Billing Quantities'!A:P,MATCH(B12&" kWh",'Data Billing Quantities'!$4:$4,0),FALSE) -> 2000 | E12: BI_GSe_Typical | F12: BI Template_Energy | G12: =VLOOKUP(VLOOKUP($F12,'Data BI Summary'!$A:$P,MATCH($G$2,'Data BI Summary'!$2:$2,0),FALSE),INDIRECT("'"&$E12&"'!"&"$A:$K"),8,FALSE) -> 3.48 | H12: =VLOOKUP(VLOOKUP($F12,'Data BI Summary'!$A:$P,MATCH($G$2,'Data BI Summary'!$2:$2,0),FALSE),INDIRECT("'"&$E12&"'!"&"$A:$K"),9,FALSE) -> 0.01873183335 | I12: =VLOOKUP(VLOOKUP($F12,'Data BI Summary'!$A:$P,MATCH($I$2,'Data BI Summary'!$2:$2,0),FALSE),INDIRECT("'"&$E12&"'!"&"$A:$K"),8,FALSE) -> -0.52 | J12: =VLOOKUP(VLOOKUP($F12,'Data BI Summary'!$A:$P,MATCH($I$2,'Data BI Summary'!$2:$2,0),FALSE),INDIRECT("'"&$E12&"'!"&"$A:$K"),9,FALSE) -> -0.00255297622 | K12: =VLOOKUP(VLOOKUP($F12,'Data BI Summary'!$A:$P,MATCH($K$2,'Data BI Summary'!$2:$2,0),FALSE),INDIRECT("'"&$E12&"'!"&"$A:$K"),8,FALSE) -> 0.576 | L12: =VLOOKUP(VLOOKUP($F12,'Data BI Summary'!$A:$P,MATCH($K$2,'Data BI Summary'!$2:$2,0),FALSE),INDIRECT("'"&$E12&"'!"&"$A:$K"),9,FALSE) -> 0.002371144749 | M12: =VLOOKUP(VLOOKUP($F12,'Data BI Summary'!$A:$P,MATCH($M$2,'Data BI Summary'!$2:$2,0),FALSE),INDIRECT("'"&$E12&"'!"&"$A:$K"),8,FALSE) -> 0.51552 | N12: =VLOOKUP(VLOOKUP($F12,'Data BI Summary'!$A:$P,MATCH($M$2,'Data BI Summary'!$2:$2,0),FALSE),INDIRECT("'"&$E12&"'!"&"$A:$K"),9,FALSE) -> 0.001129792261
A13: UGe | B13: Typical | C13: =VLOOKUP(A13,'Data Billing Quantities'!A:P,MATCH(B13&" kWh",'Data Billing Quantities'!$4:$4,0),FALSE) -> 2000 | E13: BI_UGe_Typical | F13: BI Template_Energy | G13: =VLOOKUP(VLOOKUP($F13,'Data BI Summary'!$A:$P,MATCH($G$2,'Data BI Summary'!$2:$2,0),FALSE),INDIRECT("'"&$E13&"'!"&"$A:$K"),8,FALSE) -> 1.33 | H13: =VLOOKUP(VLOOKUP($F13,'Data BI Summary'!$A:$P,MATCH($G$2,'Data BI Summary'!$2:$2,0),FALSE),INDIRECT("'"&$E13&"'!"&"$A:$K"),9,FALSE) -> 0.01339240761 | I13: =VLOOKUP(VLOOKUP($F13,'Data BI Summary'!$A:$P,MATCH($I$2,'Data BI Summary'!$2:$2,0),FALSE),INDIRECT("'"&$E13&"'!"&"$A:$K"),8,FALSE) -> -2.47 | J13: =VLOOKUP(VLOOKUP($F13,'Data BI Summary'!$A:$P,MATCH($I$2,'Data BI Summary'!$2:$2,0),FALSE),INDIRECT("'"&$E13&"'!"&"$A:$K"),9,FALSE) -> -0.02249182463 | K13: =VLOOKUP(VLOOKUP($F13,'Data BI Summary'!$A:$P,MATCH($K$2,'Data BI Summary'!$2:$2,0),FALSE),INDIRECT("'"&$E13&"'!"&"$A:$K"),8,FALSE) -> -1.403 | L13: =VLOOKUP(VLOOKUP($F13,'Data BI Summary'!$A:$P,MATCH($K$2,'Data BI Summary'!$2:$2,0),FALSE),INDIRECT("'"&$E13&"'!"&"$A:$K"),9,FALSE) -> -0.009317487097 | M13: =VLOOKUP(VLOOKUP($F13,'Data BI Summary'!$A:$P,MATCH($M$2,'Data BI Summary'!$2:$2,0),FALSE),INDIRECT("'"&$E13&"'!"&"$A:$K"),8,FALSE) -> -1.255685 | N13: =VLOOKUP(VLOOKUP($F13,'Data BI Summary'!$A:$P,MATCH($M$2,'Data BI Summary'!$2:$2,0),FALSE),INDIRECT("'"&$E13&"'!"&"$A:$K"),9,FALSE) -> -0.003363078641
A14: GSd | B14: Average | C14: =VLOOKUP(A14,'Data Billing Quantities'!A:P,MATCH(B14&" kWh",'Data Billing Quantities'!$4:$4,0),FALSE) -> 34334 | D14: =VLOOKUP(A14,'Data Billing Quantities'!A:P,MATCH(B14&" kW",'Data Billing Quantities'!$4:$4,0),FALSE) -> 110 | E14: BI_GSd_Avg | F14: BI Template_Demand | G14: =VLOOKUP(VLOOKUP($F14,'Data BI Summary'!$A:$P,MATCH($G$2,'Data BI Summary'!$2:$2,0),FALSE),INDIRECT("'"&$E14&"'!"&"$A:$K"),8,FALSE) -> 43.031 | H14: =VLOOKUP(VLOOKUP($F14,'Data BI Summary'!$A:$P,MATCH($G$2,'Data BI Summary'!$2:$2,0),FALSE),INDIRECT("'"&$E14&"'!"&"$A:$K"),9,FALSE) -> 0.01755223228 | I14: =VLOOKUP(VLOOKUP($F14,'Data BI Summary'!$A:$P,MATCH($I$2,'Data BI Summary'!$2:$2,0),FALSE),INDIRECT("'"&$E14&"'!"&"$A:$K"),8,FALSE) -> 417.829 | J14: =VLOOKUP(VLOOKUP($F14,'Data BI Summary'!$A:$P,MATCH($I$2,'Data BI Summary'!$2:$2,0),FALSE),INDIRECT("'"&$E14&"'!"&"$A:$K"),9,FALSE) -> 0.1814986403 | K14: =VLOOKUP(VLOOKUP($F14,'Data BI Summary'!$A:$P,MATCH($K$2,'Data BI Summary'!$2:$2,0),FALSE),INDIRECT("'"&$E14&"'!"&"$A:$K"),8,FALSE) -> 434.296 | L14: =VLOOKUP(VLOOKUP($F14,'Data BI Summary'!$A:$P,MATCH($K$2,'Data BI Summary'!$2:$2,0),FALSE),INDIRECT("'"&$E14&"'!"&"$A:$K"),9,FALSE) -> 0.1479153182 | M14: =VLOOKUP(VLOOKUP($F14,'Data BI Summary'!$A:$P,MATCH($M$2,'Data BI Summary'!$2:$2,0),FALSE),INDIRECT("'"&$E14&"'!"&"$A:$K"),8,FALSE) -> 490.75448 | N14: =VLOOKUP(VLOOKUP($F14,'Data BI Summary'!$A:$P,MATCH($M$2,'Data BI Summary'!$2:$2,0),FALSE),INDIRECT("'"&$E14&"'!"&"$A:$K"),9,FALSE) -> 0.04856049581
A15: UGd | B15: Average | C15: =VLOOKUP(A15,'Data Billing Quantities'!A:P,MATCH(B15&" kWh",'Data Billing Quantities'!$4:$4,0),FALSE) -> 42592 | D15: =VLOOKUP(A15,'Data Billing Quantities'!A:P,MATCH(B15&" kW",'Data Billing Quantities'!$4:$4,0),FALSE) -> 111 | E15: BI_UGd_Avg | F15: BI Template_Demand | G15: =VLOOKUP(VLOOKUP($F15,'Data BI Summary'!$A:$P,MATCH($G$2,'Data BI Summary'!$2:$2,0),FALSE),INDIRECT("'"&$E15&"'!"&"$A:$K"),8,FALSE) -> 25.7165 | H15: =VLOOKUP(VLOOKUP($F15,'Data BI Summary'!$A:$P,MATCH($G$2,'Data BI Summary'!$2:$2,0),FALSE),INDIRECT("'"&$E15&"'!"&"$A:$K"),9,FALSE) -> 0.01746078681 | I15: =VLOOKUP(VLOOKUP($F15,'Data BI Summary'!$A:$P,MATCH($I$2,'Data BI Summary'!$2:$2,0),FALSE),INDIRECT("'"&$E15&"'!"&"$A:$K"),8,FALSE) -> 491.5782 | J15: =VLOOKUP(VLOOKUP($F15,'Data BI Summary'!$A:$P,MATCH($I$2,'Data BI Summary'!$2:$2,0),FALSE),INDIRECT("'"&$E15&"'!"&"$A:$K"),9,FALSE) -> 0.3820369097 | K15: =VLOOKUP(VLOOKUP($F15,'Data BI Summary'!$A:$P,MATCH($K$2,'Data BI Summary'!$2:$2,0),FALSE),INDIRECT("'"&$E15&"'!"&"$A:$K"),8,FALSE) -> 512.6904 | L15: =VLOOKUP(VLOOKUP($F15,'Data BI Summary'!$A:$P,MATCH($K$2,'Data BI Summary'!$2:$2,0),FALSE),INDIRECT("'"&$E15&"'!"&"$A:$K"),9,FALSE) -> 0.2443224467 | M15: =VLOOKUP(VLOOKUP($F15,'Data BI Summary'!$A:$P,MATCH($M$2,'Data BI Summary'!$2:$2,0),FALSE),INDIRECT("'"&$E15&"'!"&"$A:$K"),8,FALSE) -> 579.340152 | N15: =VLOOKUP(VLOOKUP($F15,'Data BI Summary'!$A:$P,MATCH($M$2,'Data BI Summary'!$2:$2,0),FALSE),INDIRECT("'"&$E15&"'!"&"$A:$K"),9,FALSE) -> 0.05411974942
A16: St Lgt | B16: Average | C16: =VLOOKUP(A16,'Data Billing Quantities'!A:P,MATCH(B16&" kWh",'Data Billing Quantities'!$4:$4,0),FALSE) -> 1274 | E16: BI_StLgt_Avg | F16: BI Template_Unmtr | G16: =VLOOKUP(VLOOKUP($F16,'Data BI Summary'!$A:$P,MATCH($G$2,'Data BI Summary'!$2:$2,0),FALSE),INDIRECT("'"&$E16&"'!"&"$A:$K"),8,FALSE) -> 2.7928 | H16: =VLOOKUP(VLOOKUP($F16,'Data BI Summary'!$A:$P,MATCH($G$2,'Data BI Summary'!$2:$2,0),FALSE),INDIRECT("'"&$E16&"'!"&"$A:$K"),9,FALSE) -> 0.01743980557 | I16: =VLOOKUP(VLOOKUP($F16,'Data BI Summary'!$A:$P,MATCH($I$2,'Data BI Summary'!$2:$2,0),FALSE),INDIRECT("'"&$E16&"'!"&"$A:$K"),8,FALSE) -> 0.1174 | J16: =VLOOKUP(VLOOKUP($F16,'Data BI Summary'!$A:$P,MATCH($I$2,'Data BI Summary'!$2:$2,0),FALSE),INDIRECT("'"&$E16&"'!"&"$A:$K"),9,FALSE) -> 0.0006812750609 | K16: =VLOOKUP(VLOOKUP($F16,'Data BI Summary'!$A:$P,MATCH($K$2,'Data BI Summary'!$2:$2,0),FALSE),INDIRECT("'"&$E16&"'!"&"$A:$K"),8,FALSE) -> 0.5347624 | L16: =VLOOKUP(VLOOKUP($F16,'Data BI Summary'!$A:$P,MATCH($K$2,'Data BI Summary'!$2:$2,0),FALSE),INDIRECT("'"&$E16&"'!"&"$A:$K"),9,FALSE) -> 0.002806433365 | M16: =VLOOKUP(VLOOKUP($F16,'Data BI Summary'!$A:$P,MATCH($M$2,'Data BI Summary'!$2:$2,0),FALSE),INDIRECT("'"&$E16&"'!"&"$A:$K"),8,FALSE) -> 0.478612348 | N16: =VLOOKUP(VLOOKUP($F16,'Data BI Summary'!$A:$P,MATCH($M$2,'Data BI Summary'!$2:$2,0),FALSE),INDIRECT("'"&$E16&"'!"&"$A:$K"),9,FALSE) -> 0.001474880466
A17: Sen Lgt | B17: Average | C17: =VLOOKUP(A17,'Data Billing Quantities'!A:P,MATCH(B17&" kWh",'Data Billing Quantities'!$4:$4,0),FALSE) -> 49 | E17: BI_SenLgt_Avg | F17: BI Template_Unmtr | G17: =VLOOKUP(VLOOKUP($F17,'Data BI Summary'!$A:$P,MATCH($G$2,'Data BI Summary'!$2:$2,0),FALSE),INDIRECT("'"&$E17&"'!"&"$A:$K"),8,FALSE) -> 0.2013 | H17: =VLOOKUP(VLOOKUP($F17,'Data BI Summary'!$A:$P,MATCH($G$2,'Data BI Summary'!$2:$2,0),FALSE),INDIRECT("'"&$E17&"'!"&"$A:$K"),9,FALSE) -> 0.01589997156 | I17: =VLOOKUP(VLOOKUP($F17,'Data BI Summary'!$A:$P,MATCH($I$2,'Data BI Summary'!$2:$2,0),FALSE),INDIRECT("'"&$E17&"'!"&"$A:$K"),8,FALSE) -> 0.0984 | J17: =VLOOKUP(VLOOKUP($F17,'Data BI Summary'!$A:$P,MATCH($I$2,'Data BI Summary'!$2:$2,0),FALSE),INDIRECT("'"&$E17&"'!"&"$A:$K"),9,FALSE) -> 0.007551884671 | K17: =VLOOKUP(VLOOKUP($F17,'Data BI Summary'!$A:$P,MATCH($K$2,'Data BI Summary'!$2:$2,0),FALSE),INDIRECT("'"&$E17&"'!"&"$A:$K"),8,FALSE) -> 0.1144524 | L17: =VLOOKUP(VLOOKUP($F17,'Data BI Summary'!$A:$P,MATCH($K$2,'Data BI Summary'!$2:$2,0),FALSE),INDIRECT("'"&$E17&"'!"&"$A:$K"),9,FALSE) -> 0.008335441244 | M17: =VLOOKUP(VLOOKUP($F17,'Data BI Summary'!$A:$P,MATCH($M$2,'Data BI Summary'!$2:$2,0),FALSE),INDIRECT("'"&$E17&"'!"&"$A:$K"),8,FALSE) -> 0.102434898 | N17: =VLOOKUP(VLOOKUP($F17,'Data BI Summary'!$A:$P,MATCH($M$2,'Data BI Summary'!$2:$2,0),FALSE),INDIRECT("'"&$E17&"'!"&"$A:$K"),9,FALSE) -> 0.005681596826
A18: USL | B18: Average | C18: =VLOOKUP(A18,'Data Billing Quantities'!A:P,MATCH(B18&" kWh",'Data Billing Quantities'!$4:$4,0),FALSE) -> 477 | E18: BI_USL_Avg | F18: BI Template_Unmtr | G18: =VLOOKUP(VLOOKUP($F18,'Data BI Summary'!$A:$P,MATCH($G$2,'Data BI Summary'!$2:$2,0),FALSE),INDIRECT("'"&$E18&"'!"&"$A:$K"),8,FALSE) -> 0.9319 | H18: =VLOOKUP(VLOOKUP($F18,'Data BI Summary'!$A:$P,MATCH($G$2,'Data BI Summary'!$2:$2,0),FALSE),INDIRECT("'"&$E18&"'!"&"$A:$K"),9,FALSE) -> 0.01718681416 | I18: =VLOOKUP(VLOOKUP($F18,'Data BI Summary'!$A:$P,MATCH($I$2,'Data BI Summary'!$2:$2,0),FALSE),INDIRECT("'"&$E18&"'!"&"$A:$K"),8,FALSE) -> 0.0733 | J18: =VLOOKUP(VLOOKUP($F18,'Data BI Summary'!$A:$P,MATCH($I$2,'Data BI Summary'!$2:$2,0),FALSE),INDIRECT("'"&$E18&"'!"&"$A:$K"),9,FALSE) -> 0.00126776295 | K18: =VLOOKUP(VLOOKUP($F18,'Data BI Summary'!$A:$P,MATCH($K$2,'Data BI Summary'!$2:$2,0),FALSE),INDIRECT("'"&$E18&"'!"&"$A:$K"),8,FALSE) -> 0.2816536 | L18: =VLOOKUP(VLOOKUP($F18,'Data BI Summary'!$A:$P,MATCH($K$2,'Data BI Summary'!$2:$2,0),FALSE),INDIRECT("'"&$E18&"'!"&"$A:$K"),9,FALSE) -> 0.004301672207 | M18: =VLOOKUP(VLOOKUP($F18,'Data BI Summary'!$A:$P,MATCH($M$2,'Data BI Summary'!$2:$2,0),FALSE),INDIRECT("'"&$E18&"'!"&"$A:$K"),8,FALSE) -> 0.252079972 | N18: =VLOOKUP(VLOOKUP($F18,'Data BI Summary'!$A:$P,MATCH($M$2,'Data BI Summary'!$2:$2,0),FALSE),INDIRECT("'"&$E18&"'!"&"$A:$K"),9,FALSE) -> 0.002240216547
A19: DGen | B19: Average | C19: =VLOOKUP(A19,'Data Billing Quantities'!A:P,MATCH(B19&" kWh",'Data Billing Quantities'!$4:$4,0),FALSE) -> 1709 | D19: =VLOOKUP(A19,'Data Billing Quantities'!A:P,MATCH(B19&" kW",'Data Billing Quantities'!$4:$4,0),FALSE) -> 12 | E19: BI_Dgen_Avg | F19: BI Template_Demand | G19: =VLOOKUP(VLOOKUP($F19,'Data BI Summary'!$A:$P,MATCH($G$2,'Data BI Summary'!$2:$2,0),FALSE),INDIRECT("'"&$E19&"'!"&"$A:$K"),8,FALSE) -> 7.426 | H19: =VLOOKUP(VLOOKUP($F19,'Data BI Summary'!$A:$P,MATCH($G$2,'Data BI Summary'!$2:$2,0),FALSE),INDIRECT("'"&$E19&"'!"&"$A:$K"),9,FALSE) -> 0.02020627488 | I19: =VLOOKUP(VLOOKUP($F19,'Data BI Summary'!$A:$P,MATCH($I$2,'Data BI Summary'!$2:$2,0),FALSE),INDIRECT("'"&$E19&"'!"&"$A:$K"),8,FALSE) -> 25.851 | J19: =VLOOKUP(VLOOKUP($F19,'Data BI Summary'!$A:$P,MATCH($I$2,'Data BI Summary'!$2:$2,0),FALSE),INDIRECT("'"&$E19&"'!"&"$A:$K"),9,FALSE) -> 0.07182766695 | K19: =VLOOKUP(VLOOKUP($F19,'Data BI Summary'!$A:$P,MATCH($K$2,'Data BI Summary'!$2:$2,0),FALSE),INDIRECT("'"&$E19&"'!"&"$A:$K"),8,FALSE) -> 26.7474 | L19: =VLOOKUP(VLOOKUP($F19,'Data BI Summary'!$A:$P,MATCH($K$2,'Data BI Summary'!$2:$2,0),FALSE),INDIRECT("'"&$E19&"'!"&"$A:$K"),9,FALSE) -> 0.06783847142 | M19: =VLOOKUP(VLOOKUP($F19,'Data BI Summary'!$A:$P,MATCH($M$2,'Data BI Summary'!$2:$2,0),FALSE),INDIRECT("'"&$E19&"'!"&"$A:$K"),8,FALSE) -> 23.938923 | N19: =VLOOKUP(VLOOKUP($F19,'Data BI Summary'!$A:$P,MATCH($M$2,'Data BI Summary'!$2:$2,0),FALSE),INDIRECT("'"&$E19&"'!"&"$A:$K"),9,FALSE) -> 0.03856673745
A20: ST | B20: Average | C20: =VLOOKUP(A20,'Data Billing Quantities'!A:P,MATCH(B20&" kWh",'Data Billing Quantities'!$4:$4,0),FALSE) -> 1373443 | D20: =VLOOKUP(A20,'Data Billing Quantities'!A:P,MATCH(B20&" kW",'Data Billing Quantities'!$4:$4,0),FALSE) -> 2808 | E20: BI_ST_Avg | F20: BI Template_Demand | G20: =VLOOKUP(VLOOKUP($F20,'Data BI Summary'!$A:$P,MATCH($G$2,'Data BI Summary'!$2:$2,0),FALSE),INDIRECT("'"&$E20&"'!"&"$A:$K"),8,FALSE) -> 98.6388 | H20: =VLOOKUP(VLOOKUP($F20,'Data BI Summary'!$A:$P,MATCH($G$2,'Data BI Summary'!$2:$2,0),FALSE),INDIRECT("'"&$E20&"'!"&"$A:$K"),9,FALSE) -> 0.01637917195 | I20: =VLOOKUP(VLOOKUP($F20,'Data BI Summary'!$A:$P,MATCH($I$2,'Data BI Summary'!$2:$2,0),FALSE),INDIRECT("'"&$E20&"'!"&"$A:$K"),8,FALSE) -> 16454.7682 | J20: =VLOOKUP(VLOOKUP($F20,'Data BI Summary'!$A:$P,MATCH($I$2,'Data BI Summary'!$2:$2,0),FALSE),INDIRECT("'"&$E20&"'!"&"$A:$K"),9,FALSE) -> 1139.029938 | K20: =VLOOKUP(VLOOKUP($F20,'Data BI Summary'!$A:$P,MATCH($K$2,'Data BI Summary'!$2:$2,0),FALSE),INDIRECT("'"&$E20&"'!"&"$A:$K"),8,FALSE) -> 17171.9314 | L20: =VLOOKUP(VLOOKUP($F20,'Data BI Summary'!$A:$P,MATCH($K$2,'Data BI Summary'!$2:$2,0),FALSE),INDIRECT("'"&$E20&"'!"&"$A:$K"),9,FALSE) -> 0.6225137176 | M20: =VLOOKUP(VLOOKUP($F20,'Data BI Summary'!$A:$P,MATCH($M$2,'Data BI Summary'!$2:$2,0),FALSE),INDIRECT("'"&$E20&"'!"&"$A:$K"),8,FALSE) -> 19404.28248 | N20: =VLOOKUP(VLOOKUP($F20,'Data BI Summary'!$A:$P,MATCH($M$2,'Data BI Summary'!$2:$2,0),FALSE),INDIRECT("'"&$E20&"'!"&"$A:$K"),9,FALSE) -> 0.06560026981

Sheet Bill Impact Summary_Acq
A1: Rate Class | B1: Consumption Level | C1: Monthly Consumption (kWh) | D1: Monthly Peak (kW) | E1: BI Worksheet | F1: Template | G1: Sub-Total | M1: Total
G2: A | I2: B | K2: C | M2: Total Bill
G3: $ | H3: % | I3: $ | J3: % | K3: $ | L3: % | M3: $ | N3: %
A4: WHSI to HONI
A5: AUR-WHSI | B5: Typical | C5: =VLOOKUP(A$5,'Data Billing Quantities'!A:P,MATCH($B5&" kWh",'Data Billing Quantities'!$4:$4,0),FALSE) -> 750 | E5: BI_WHSI_AUR_Typical | F5: BI Template_Energy | G5: =VLOOKUP(VLOOKUP($F5,'Data BI Summary'!$A:$P,MATCH($G$2,'Data BI Summary'!$2:$2,0),FALSE),INDIRECT("'"&$E5&"'!"&"$A:$K"),8,FALSE) -> 0.89 | H5: =VLOOKUP(VLOOKUP($F5,'Data BI Summary'!$A:$P,MATCH($G$2,'Data BI Summary'!$2:$2,0),FALSE),INDIRECT("'"&$E5&"'!"&"$A:$K"),9,FALSE) -> 0.02620730271 | I5: =VLOOKUP(VLOOKUP($F5,'Data BI Summary'!$A:$P,MATCH($I$2,'Data BI Summary'!$2:$2,0),FALSE),INDIRECT("'"&$E5&"'!"&"$A:$K"),8,FALSE) -> -0.385 | J5: =VLOOKUP(VLOOKUP($F5,'Data BI Summary'!$A:$P,MATCH($I$2,'Data BI Summary'!$2:$2,0),FALSE),INDIRECT("'"&$E5&"'!"&"$A:$K"),9,FALSE) -> -0.01082448256 | K5: =VLOOKUP(VLOOKUP($F5,'Data BI Summary'!$A:$P,MATCH($K$2,'Data BI Summary'!$2:$2,0),FALSE),INDIRECT("'"&$E5&"'!"&"$A:$K"),8,FALSE) -> 0.162575 | L5: =VLOOKUP(VLOOKUP($F5,'Data BI Summary'!$A:$P,MATCH($K$2,'Data BI Summary'!$2:$2,0),FALSE),INDIRECT("'"&$E5&"'!"&"$A:$K"),9,FALSE) -> 0.002983138638 | M5: =VLOOKUP(VLOOKUP($F5,'Data BI Summary'!$A:$P,MATCH($M$2,'Data BI Summary'!$2:$2,0),FALSE),INDIRECT("'"&$E5&"'!"&"$A:$K"),8,FALSE) -> 0.145504625 | N5: =VLOOKUP(VLOOKUP($F5,'Data BI Summary'!$A:$P,MATCH($M$2,'Data BI Summary'!$2:$2,0),FALSE),INDIRECT("'"&$E5&"'!"&"$A:$K"),9,FALSE) -> 0.001052034571
A6: AUGe-WHSI | B6: Typical | C6: =VLOOKUP(A$6,'Data Billing Quantities'!A:P,MATCH($B6&" kWh",'Data Billing Quantities'!$4:$4,0),FALSE) -> 2000 | E6: BI_WHSI_AUGe_Typical | F6: BI Template_Energy | G6: =VLOOKUP(VLOOKUP($F6,'Data BI Summary'!$A:$P,MATCH($G$2,'Data BI Summary'!$2:$2,0),FALSE),INDIRECT("'"&$E6&"'!"&"$A:$K"),8,FALSE) -> 1.1 | H6: =VLOOKUP(VLOOKUP($F6,'Data BI Summary'!$A:$P,MATCH($G$2,'Data BI Summary'!$2:$2,0),FALSE),INDIRECT("'"&$E6&"'!"&"$A:$K"),9,FALSE) -> 0.01804461942 | I6: =VLOOKUP(VLOOKUP($F6,'Data BI Summary'!$A:$P,MATCH($I$2,'Data BI Summary'!$2:$2,0),FALSE),INDIRECT("'"&$E6&"'!"&"$A:$K"),8,FALSE) -> -2.7 | J6: =VLOOKUP(VLOOKUP($F6,'Data BI Summary'!$A:$P,MATCH($I$2,'Data BI Summary'!$2:$2,0),FALSE),INDIRECT("'"&$E6&"'!"&"$A:$K"),9,FALSE) -> -0.04157253823 | K6: =VLOOKUP(VLOOKUP($F6,'Data BI Summary'!$A:$P,MATCH($K$2,'Data BI Summary'!$2:$2,0),FALSE),INDIRECT("'"&$E6&"'!"&"$A:$K"),8,FALSE) -> -1.657 | L6: =VLOOKUP(VLOOKUP($F6,'Data BI Summary'!$A:$P,MATCH($K$2,'Data BI Summary'!$2:$2,0),FALSE),INDIRECT("'"&$E6&"'!"&"$A:$K"),9,FALSE) -> -0.01581268015 | M6: =VLOOKUP(VLOOKUP($F6,'Data BI Summary'!$A:$P,MATCH($M$2,'Data BI Summary'!$2:$2,0),FALSE),INDIRECT("'"&$E6&"'!"&"$A:$K"),8,FALSE) -> -1.483015 | N6: =VLOOKUP(VLOOKUP($F6,'Data BI Summary'!$A:$P,MATCH($M$2,'Data BI Summary'!$2:$2,0),FALSE),INDIRECT("'"&$E6&"'!"&"$A:$K"),9,FALSE) -> -0.004464681219
A7: AUGd-WHSI | B7: Average | C7: =VLOOKUP(A7,'Data Billing Quantities'!A:P,MATCH($B7&" kWh",'Data Billing Quantities'!$4:$4,0),FALSE) -> 47636 | D7: =VLOOKUP(A7,'Data Billing Quantities'!A:P,MATCH(B7&" kW",'Data Billing Quantities'!$4:$4,0),FALSE) -> 134 | E7: BI_WHSI_AUGd_Avg | F7: BI Template_Demand | G7: =VLOOKUP(VLOOKUP($F7,'Data BI Summary'!$A:$P,MATCH($G$2,'Data BI Summary'!$2:$2,0),FALSE),INDIRECT("'"&$E7&"'!"&"$A:$K"),8,FALSE) -> 12.802 | H7: =VLOOKUP(VLOOKUP($F7,'Data BI Summary'!$A:$P,MATCH($G$2,'Data BI Summary'!$2:$2,0),FALSE),INDIRECT("'"&$E7&"'!"&"$A:$K"),9,FALSE) -> 0.0225560068 | I7: =VLOOKUP(VLOOKUP($F7,'Data BI Summary'!$A:$P,MATCH($I$2,'Data BI Summary'!$2:$2,0),FALSE),INDIRECT("'"&$E7&"'!"&"$A:$K"),8,FALSE) -> 508.6426 | J7: =VLOOKUP(VLOOKUP($F7,'Data BI Summary'!$A:$P,MATCH($I$2,'Data BI Summary'!$2:$2,0),FALSE),INDIRECT("'"&$E7&"'!"&"$A:$K"),9,FALSE) -> 1.391632736 | K7: =VLOOKUP(VLOOKUP($F7,'Data BI Summary'!$A:$P,MATCH($K$2,'Data BI Summary'!$2:$2,0),FALSE),INDIRECT("'"&$E7&"'!"&"$A:$K"),8,FALSE) -> 531.6906 | L7: =VLOOKUP(VLOOKUP($F7,'Data BI Summary'!$A:$P,MATCH($K$2,'Data BI Summary'!$2:$2,0),FALSE),INDIRECT("'"&$E7&"'!"&"$A:$K"),9,FALSE) -> 0.4245034053 | M7: =VLOOKUP(VLOOKUP($F7,'Data BI Summary'!$A:$P,MATCH($M$2,'Data BI Summary'!$2:$2,0),FALSE),INDIRECT("'"&$E7&"'!"&"$A:$K"),8,FALSE) -> 600.810378 | N7: =VLOOKUP(VLOOKUP($F7,'Data BI Summary'!$A:$P,MATCH($M$2,'Data BI Summary'!$2:$2,0),FALSE),INDIRECT("'"&$E7&"'!"&"$A:$K"),9,FALSE) -> 0.05676120766
A8: St Lgt-WHSI | B8: Average | C8: =VLOOKUP(A8,'Data Billing Quantities'!A:P,MATCH($B8&" kWh",'Data Billing Quantities'!$4:$4,0),FALSE) -> 37079 | D8: =VLOOKUP(A$8,'Data Billing Quantities'!A:P,MATCH(B8&" kW",'Data Billing Quantities'!$4:$4,0),FALSE) -> 104 | E8: BI_WHSI_StLgt_Avg | F8: BI Template_Unmtr | G8: =VLOOKUP(VLOOKUP($F8,'Data BI Summary'!$A:$P,MATCH($G$2,'Data BI Summary'!$2:$2,0),FALSE),INDIRECT("'"&$E8&"'!"&"$A:$K"),8,FALSE) -> 114.9349 | H8: =VLOOKUP(VLOOKUP($F8,'Data BI Summary'!$A:$P,MATCH($G$2,'Data BI Summary'!$2:$2,0),FALSE),INDIRECT("'"&$E8&"'!"&"$A:$K"),9,FALSE) -> 0.02534752505 | I8: =VLOOKUP(VLOOKUP($F8,'Data BI Summary'!$A:$P,MATCH($I$2,'Data BI Summary'!$2:$2,0),FALSE),INDIRECT("'"&$E8&"'!"&"$A:$K"),8,FALSE) -> 33.3611 | J8: =VLOOKUP(VLOOKUP($F8,'Data BI Summary'!$A:$P,MATCH($I$2,'Data BI Summary'!$2:$2,0),FALSE),INDIRECT("'"&$E8&"'!"&"$A:$K"),9,FALSE) -> 0.007567800813 | K8: =VLOOKUP(VLOOKUP($F8,'Data BI Summary'!$A:$P,MATCH($K$2,'Data BI Summary'!$2:$2,0),FALSE),INDIRECT("'"&$E8&"'!"&"$A:$K"),8,FALSE) -> 45.5081804 | L8: =VLOOKUP(VLOOKUP($F8,'Data BI Summary'!$A:$P,MATCH($K$2,'Data BI Summary'!$2:$2,0),FALSE),INDIRECT("'"&$E8&"'!"&"$A:$K"),9,FALSE) -> 0.009214574119 | M8: =VLOOKUP(VLOOKUP($F8,'Data BI Summary'!$A:$P,MATCH($M$2,'Data BI Summary'!$2:$2,0),FALSE),INDIRECT("'"&$E8&"'!"&"$A:$K"),8,FALSE) -> 51.42424385 | N8: =VLOOKUP(VLOOKUP($F8,'Data BI Summary'!$A:$P,MATCH($M$2,'Data BI Summary'!$2:$2,0),FALSE),INDIRECT("'"&$E8&"'!"&"$A:$K"),9,FALSE) -> 0.00418016906
A9: USL-WHSI | B9: Average | C9: =VLOOKUP(A9,'Data Billing Quantities'!A:P,MATCH($B9&" kWh",'Data Billing Quantities'!$4:$4,0),FALSE) -> 1349 | E9: BI_WHSI_USL_Avg | F9: BI Template_Unmtr | G9: =VLOOKUP(VLOOKUP($F9,'Data BI Summary'!$A:$P,MATCH($G$2,'Data BI Summary'!$2:$2,0),FALSE),INDIRECT("'"&$E9&"'!"&"$A:$K"),8,FALSE) -> 5.0303 | H9: =VLOOKUP(VLOOKUP($F9,'Data BI Summary'!$A:$P,MATCH($G$2,'Data BI Summary'!$2:$2,0),FALSE),INDIRECT("'"&$E9&"'!"&"$A:$K"),9,FALSE) -> 0.06035399164 | I9: =VLOOKUP(VLOOKUP($F9,'Data BI Summary'!$A:$P,MATCH($I$2,'Data BI Summary'!$2:$2,0),FALSE),INDIRECT("'"&$E9&"'!"&"$A:$K"),8,FALSE) -> 2.8719 | J9: =VLOOKUP(VLOOKUP($F9,'Data BI Summary'!$A:$P,MATCH($I$2,'Data BI Summary'!$2:$2,0),FALSE),INDIRECT("'"&$E9&"'!"&"$A:$K"),9,FALSE) -> 0.02992228395 | K9: =VLOOKUP(VLOOKUP($F9,'Data BI Summary'!$A:$P,MATCH($K$2,'Data BI Summary'!$2:$2,0),FALSE),INDIRECT("'"&$E9&"'!"&"$A:$K"),8,FALSE) -> 3.4611432 | L9: =VLOOKUP(VLOOKUP($F9,'Data BI Summary'!$A:$P,MATCH($K$2,'Data BI Summary'!$2:$2,0),FALSE),INDIRECT("'"&$E9&"'!"&"$A:$K"),9,FALSE) -> 0.02942315234 | M9: =VLOOKUP(VLOOKUP($F9,'Data BI Summary'!$A:$P,MATCH($M$2,'Data BI Summary'!$2:$2,0),FALSE),INDIRECT("'"&$E9&"'!"&"$A:$K"),8,FALSE) -> 3.097723164 | N9: =VLOOKUP(VLOOKUP($F9,'Data BI Summary'!$A:$P,MATCH($M$2,'Data BI Summary'!$2:$2,0),FALSE),INDIRECT("'"&$E9&"'!"&"$A:$K"),9,FALSE) -> 0.01150841914
A10: ST-WHSI | B10: Average | C10: =VLOOKUP(A10,'Data Billing Quantities'!A:P,MATCH($B10&" kWh",'Data Billing Quantities'!$4:$4,0),FALSE) -> 895853 | D10: =VLOOKUP(A$10,'Data Billing Quantities'!A:P,MATCH(B10&" kW",'Data Billing Quantities'!$4:$4,0),FALSE) -> 3301 | E10: BI_WHSI_ST_Avg | F10: BI Template_Demand | G10: =VLOOKUP(VLOOKUP($F10,'Data BI Summary'!$A:$P,MATCH($G$2,'Data BI Summary'!$2:$2,0),FALSE),INDIRECT("'"&$E10&"'!"&"$A:$K"),8,FALSE) -> 243.4152 | H10: =VLOOKUP(VLOOKUP($F10,'Data BI Summary'!$A:$P,MATCH($G$2,'Data BI Summary'!$2:$2,0),FALSE),INDIRECT("'"&$E10&"'!"&"$A:$K"),9,FALSE) -> 0.03611139405 | I10: =VLOOKUP(VLOOKUP($F10,'Data BI Summary'!$A:$P,MATCH($I$2,'Data BI Summary'!$2:$2,0),FALSE),INDIRECT("'"&$E10&"'!"&"$A:$K"),8,FALSE) -> 10036.3228 | J10: =VLOOKUP(VLOOKUP($F10,'Data BI Summary'!$A:$P,MATCH($I$2,'Data BI Summary'!$2:$2,0),FALSE),INDIRECT("'"&$E10&"'!"&"$A:$K"),9,FALSE) -> 26.24175736 | K10: =VLOOKUP(VLOOKUP($F10,'Data BI Summary'!$A:$P,MATCH($K$2,'Data BI Summary'!$2:$2,0),FALSE),INDIRECT("'"&$E10&"'!"&"$A:$K"),8,FALSE) -> 10879.3982 | L10: =VLOOKUP(VLOOKUP($F10,'Data BI Summary'!$A:$P,MATCH($K$2,'Data BI Summary'!$2:$2,0),FALSE),INDIRECT("'"&$E10&"'!"&"$A:$K"),9,FALSE) -> 0.3314128763 | M10: =VLOOKUP(VLOOKUP($F10,'Data BI Summary'!$A:$P,MATCH($M$2,'Data BI Summary'!$2:$2,0),FALSE),INDIRECT("'"&$E10&"'!"&"$A:$K"),8,FALSE) -> 12293.71997 | N10: =VLOOKUP(VLOOKUP($F10,'Data BI Summary'!$A:$P,MATCH($M$2,'Data BI Summary'!$2:$2,0),FALSE),INDIRECT("'"&$E10&"'!"&"$A:$K"),9,FALSE) -> 0.05862489403
A11: NPDI to HONI
A12: AR-NPDI | B12: Typical | C12: =VLOOKUP(A12,'Data Billing Quantities'!A:P,MATCH($B12&" kWh",'Data Billing Quantities'!$4:$4,0),FALSE) -> 750 | E12: BI_NPDI_AR_Typical | F12: BI Template_Energy | G12: =VLOOKUP(VLOOKUP($F12,'Data BI Summary'!$A:$P,MATCH($G$2,'Data BI Summary'!$2:$2,0),FALSE),INDIRECT("'"&$E12&"'!"&"$A:$K"),8,FALSE) -> 1.03 | H12: =VLOOKUP(VLOOKUP($F12,'Data BI Summary'!$A:$P,MATCH($G$2,'Data BI Summary'!$2:$2,0),FALSE),INDIRECT("'"&$E12&"'!"&"$A:$K"),9,FALSE) -> 0.02495155039 | I12: =VLOOKUP(VLOOKUP($F12,'Data BI Summary'!$A:$P,MATCH($I$2,'Data BI Summary'!$2:$2,0),FALSE),INDIRECT("'"&$E12&"'!"&"$A:$K"),8,FALSE) -> -0.245 | J12: =VLOOKUP(VLOOKUP($F12,'Data BI Summary'!$A:$P,MATCH($I$2,'Data BI Summary'!$2:$2,0),FALSE),INDIRECT("'"&$E12&"'!"&"$A:$K"),9,FALSE) -> -0.005447960195 | K12: =VLOOKUP(VLOOKUP($F12,'Data BI Summary'!$A:$P,MATCH($K$2,'Data BI Summary'!$2:$2,0),FALSE),INDIRECT("'"&$E12&"'!"&"$A:$K"),8,FALSE) -> 0.2338 | L12: =VLOOKUP(VLOOKUP($F12,'Data BI Summary'!$A:$P,MATCH($K$2,'Data BI Summary'!$2:$2,0),FALSE),INDIRECT("'"&$E12&"'!"&"$A:$K"),9,FALSE) -> 0.003678161788 | M12: =VLOOKUP(VLOOKUP($F12,'Data BI Summary'!$A:$P,MATCH($M$2,'Data BI Summary'!$2:$2,0),FALSE),INDIRECT("'"&$E12&"'!"&"$A:$K"),8,FALSE) -> 0.209251 | N12: =VLOOKUP(VLOOKUP($F12,'Data BI Summary'!$A:$P,MATCH($M$2,'Data BI Summary'!$2:$2,0),FALSE),INDIRECT("'"&$E12&"'!"&"$A:$K"),9,FALSE) -> 0.00142836406
A13: AGSe-NPDI | B13: Typical | C13: =VLOOKUP(A13,'Data Billing Quantities'!A:P,MATCH($B13&" kWh",'Data Billing Quantities'!$4:$4,0),FALSE) -> 2000 | E13: BI_NPDI_AGSe_Typical | F13: BI Template_Energy | G13: =VLOOKUP(VLOOKUP($F13,'Data BI Summary'!$A:$P,MATCH($G$2,'Data BI Summary'!$2:$2,0),FALSE),INDIRECT("'"&$E13&"'!"&"$A:$K"),8,FALSE) -> 1.83 | H13: =VLOOKUP(VLOOKUP($F13,'Data BI Summary'!$A:$P,MATCH($G$2,'Data BI Summary'!$2:$2,0),FALSE),INDIRECT("'"&$E13&"'!"&"$A:$K"),9,FALSE) -> 0.02221952404 | I13: =VLOOKUP(VLOOKUP($F13,'Data BI Summary'!$A:$P,MATCH($I$2,'Data BI Summary'!$2:$2,0),FALSE),INDIRECT("'"&$E13&"'!"&"$A:$K"),8,FALSE) -> -1.97 | J13: =VLOOKUP(VLOOKUP($F13,'Data BI Summary'!$A:$P,MATCH($I$2,'Data BI Summary'!$2:$2,0),FALSE),INDIRECT("'"&$E13&"'!"&"$A:$K"),9,FALSE) -> -0.02143574673 | K13: =VLOOKUP(VLOOKUP($F13,'Data BI Summary'!$A:$P,MATCH($K$2,'Data BI Summary'!$2:$2,0),FALSE),INDIRECT("'"&$E13&"'!"&"$A:$K"),8,FALSE) -> -0.906 | L13: =VLOOKUP(VLOOKUP($F13,'Data BI Summary'!$A:$P,MATCH($K$2,'Data BI Summary'!$2:$2,0),FALSE),INDIRECT("'"&$E13&"'!"&"$A:$K"),9,FALSE) -> -0.00686837346 | M13: =VLOOKUP(VLOOKUP($F13,'Data BI Summary'!$A:$P,MATCH($M$2,'Data BI Summary'!$2:$2,0),FALSE),INDIRECT("'"&$E13&"'!"&"$A:$K"),8,FALSE) -> -0.81087 | N13: =VLOOKUP(VLOOKUP($F13,'Data BI Summary'!$A:$P,MATCH($M$2,'Data BI Summary'!$2:$2,0),FALSE),INDIRECT("'"&$E13&"'!"&"$A:$K"),9,FALSE) -> -0.002273654895
A14: AGSd-NPDI | B14: Average | C14: =VLOOKUP(A14,'Data Billing Quantities'!A:P,MATCH($B14&" kWh",'Data Billing Quantities'!$4:$4,0),FALSE) -> 70294 | D14: =VLOOKUP(A14,'Data Billing Quantities'!A:P,MATCH(B14&" kW",'Data Billing Quantities'!$4:$4,0),FALSE) -> 181 | E14: BI_NPDI_AGSd_Avg | F14: BI Template_Demand | G14: =VLOOKUP(VLOOKUP($F14,'Data BI Summary'!$A:$P,MATCH($G$2,'Data BI Summary'!$2:$2,0),FALSE),INDIRECT("'"&$E14&"'!"&"$A:$K"),8,FALSE) -> 26.7943 | H14: =VLOOKUP(VLOOKUP($F14,'Data BI Summary'!$A:$P,MATCH($G$2,'Data BI Summary'!$2:$2,0),FALSE),INDIRECT("'"&$E14&"'!"&"$A:$K"),9,FALSE) -> 0.02461559351 | I14: =VLOOKUP(VLOOKUP($F14,'Data BI Summary'!$A:$P,MATCH($I$2,'Data BI Summary'!$2:$2,0),FALSE),INDIRECT("'"&$E14&"'!"&"$A:$K"),8,FALSE) -> 795.6172 | J14: =VLOOKUP(VLOOKUP($F14,'Data BI Summary'!$A:$P,MATCH($I$2,'Data BI Summary'!$2:$2,0),FALSE),INDIRECT("'"&$E14&"'!"&"$A:$K"),9,FALSE) -> 0.9841133937 | K14: =VLOOKUP(VLOOKUP($F14,'Data BI Summary'!$A:$P,MATCH($K$2,'Data BI Summary'!$2:$2,0),FALSE),INDIRECT("'"&$E14&"'!"&"$A:$K"),8,FALSE) -> 823.2559 | L14: =VLOOKUP(VLOOKUP($F14,'Data BI Summary'!$A:$P,MATCH($K$2,'Data BI Summary'!$2:$2,0),FALSE),INDIRECT("'"&$E14&"'!"&"$A:$K"),9,FALSE) -> 0.4398758066 | M14: =VLOOKUP(VLOOKUP($F14,'Data BI Summary'!$A:$P,MATCH($M$2,'Data BI Summary'!$2:$2,0),FALSE),INDIRECT("'"&$E14&"'!"&"$A:$K"),8,FALSE) -> 930.279167 | N14: =VLOOKUP(VLOOKUP($F14,'Data BI Summary'!$A:$P,MATCH($M$2,'Data BI Summary'!$2:$2,0),FALSE),INDIRECT("'"&$E14&"'!"&"$A:$K"),9,FALSE) -> 0.05847966683
A15: St Lgt-NPDI | B15: Average | C15: =VLOOKUP(A$15,'Data Billing Quantities'!A:P,MATCH($B15&" kWh",'Data Billing Quantities'!$4:$4,0),FALSE) -> 11389 | D15: =VLOOKUP(A$15,'Data Billing Quantities'!A:P,MATCH(B15&" kW",'Data Billing Quantities'!$4:$4,0),FALSE) -> 39 | E15: BI_NPDI_StLgt_Avg | F15: BI Template_Unmtr | G15: =VLOOKUP(VLOOKUP($F15,'Data BI Summary'!$A:$P,MATCH($G$2,'Data BI Summary'!$2:$2,0),FALSE),INDIRECT("'"&$E15&"'!"&"$A:$K"),8,FALSE) -> 33.0181 | H15: =VLOOKUP(VLOOKUP($F15,'Data BI Summary'!$A:$P,MATCH($G$2,'Data BI Summary'!$2:$2,0),FALSE),INDIRECT("'"&$E15&"'!"&"$A:$K"),9,FALSE) -> 0.02362953005 | I15: =VLOOKUP(VLOOKUP($F15,'Data BI Summary'!$A:$P,MATCH($I$2,'Data BI Summary'!$2:$2,0),FALSE),INDIRECT("'"&$E15&"'!"&"$A:$K"),8,FALSE) -> 13.6568 | J15: =VLOOKUP(VLOOKUP($F15,'Data BI Summary'!$A:$P,MATCH($I$2,'Data BI Summary'!$2:$2,0),FALSE),INDIRECT("'"&$E15&"'!"&"$A:$K"),9,FALSE) -> 0.009094272593 | K15: =VLOOKUP(VLOOKUP($F15,'Data BI Summary'!$A:$P,MATCH($K$2,'Data BI Summary'!$2:$2,0),FALSE),INDIRECT("'"&$E15&"'!"&"$A:$K"),8,FALSE) -> 17.3878364 | L15: =VLOOKUP(VLOOKUP($F15,'Data BI Summary'!$A:$P,MATCH($K$2,'Data BI Summary'!$2:$2,0),FALSE),INDIRECT("'"&$E15&"'!"&"$A:$K"),9,FALSE) -> 0.0104455646 | M15: =VLOOKUP(VLOOKUP($F15,'Data BI Summary'!$A:$P,MATCH($M$2,'Data BI Summary'!$2:$2,0),FALSE),INDIRECT("'"&$E15&"'!"&"$A:$K"),8,FALSE) -> 15.56211358 | N15: =VLOOKUP(VLOOKUP($F15,'Data BI Summary'!$A:$P,MATCH($M$2,'Data BI Summary'!$2:$2,0),FALSE),INDIRECT("'"&$E15&"'!"&"$A:$K"),9,FALSE) -> 0.005219194397
A16: Sen Lgt-NPDI | B16: Average | C16: =VLOOKUP(A$16,'Data Billing Quantities'!A:P,MATCH($B16&" kWh",'Data Billing Quantities'!$4:$4,0),FALSE) -> 108 | D16: =VLOOKUP(A$16,'Data Billing Quantities'!A:P,MATCH(B16&" kW",'Data Billing Quantities'!$4:$4,0),FALSE) -> 0.3368027211 | E16: BI_NPDI_SenLgt_Avg | F16: BI Template_Unmtr | G16: =VLOOKUP(VLOOKUP($F16,'Data BI Summary'!$A:$P,MATCH($G$2,'Data BI Summary'!$2:$2,0),FALSE),INDIRECT("'"&$E16&"'!"&"$A:$K"),8,FALSE) -> 0.56 | H16: =VLOOKUP(VLOOKUP($F16,'Data BI Summary'!$A:$P,MATCH($G$2,'Data BI Summary'!$2:$2,0),FALSE),INDIRECT("'"&$E16&"'!"&"$A:$K"),9,FALSE) -> 0.02362231296 | I16: =VLOOKUP(VLOOKUP($F16,'Data BI Summary'!$A:$P,MATCH($I$2,'Data BI Summary'!$2:$2,0),FALSE),INDIRECT("'"&$E16&"'!"&"$A:$K"),8,FALSE) -> 0.3872 | J16: =VLOOKUP(VLOOKUP($F16,'Data BI Summary'!$A:$P,MATCH($I$2,'Data BI Summary'!$2:$2,0),FALSE),INDIRECT("'"&$E16&"'!"&"$A:$K"),9,FALSE) -> 0.01582557858 | K16: =VLOOKUP(VLOOKUP($F16,'Data BI Summary'!$A:$P,MATCH($K$2,'Data BI Summary'!$2:$2,0),FALSE),INDIRECT("'"&$E16&"'!"&"$A:$K"),8,FALSE) -> 0.4225808 | L16: =VLOOKUP(VLOOKUP($F16,'Data BI Summary'!$A:$P,MATCH($K$2,'Data BI Summary'!$2:$2,0),FALSE),INDIRECT("'"&$E16&"'!"&"$A:$K"),9,FALSE) -> 0.01624580858 | M16: =VLOOKUP(VLOOKUP($F16,'Data BI Summary'!$A:$P,MATCH($M$2,'Data BI Summary'!$2:$2,0),FALSE),INDIRECT("'"&$E16&"'!"&"$A:$K"),8,FALSE) -> 0.378209816 | N16: =VLOOKUP(VLOOKUP($F16,'Data BI Summary'!$A:$P,MATCH($M$2,'Data BI Summary'!$2:$2,0),FALSE),INDIRECT("'"&$E16&"'!"&"$A:$K"),9,FALSE) -> 0.01060515301
A17: USL-NPDI | B17: Average | C17: =VLOOKUP(A$17,'Data Billing Quantities'!A:P,MATCH($B17&" kWh",'Data Billing Quantities'!$4:$4,0),FALSE) -> 904 | E17: BI_NPDI_USL_Avg | F17: BI Template_Unmtr | G17: =VLOOKUP(VLOOKUP($F17,'Data BI Summary'!$A:$P,MATCH($G$2,'Data BI Summary'!$2:$2,0),FALSE),INDIRECT("'"&$E17&"'!"&"$A:$K"),8,FALSE) -> 3.3908 | H17: =VLOOKUP(VLOOKUP($F17,'Data BI Summary'!$A:$P,MATCH($G$2,'Data BI Summary'!$2:$2,0),FALSE),INDIRECT("'"&$E17&"'!"&"$A:$K"),9,FALSE) -> 0.04984154422 | I17: =VLOOKUP(VLOOKUP($F17,'Data BI Summary'!$A:$P,MATCH($I$2,'Data BI Summary'!$2:$2,0),FALSE),INDIRECT("'"&$E17&"'!"&"$A:$K"),8,FALSE) -> 2.3964 | J17: =VLOOKUP(VLOOKUP($F17,'Data BI Summary'!$A:$P,MATCH($I$2,'Data BI Summary'!$2:$2,0),FALSE),INDIRECT("'"&$E17&"'!"&"$A:$K"),9,FALSE) -> 0.03151306254 | K17: =VLOOKUP(VLOOKUP($F17,'Data BI Summary'!$A:$P,MATCH($K$2,'Data BI Summary'!$2:$2,0),FALSE),INDIRECT("'"&$E17&"'!"&"$A:$K"),8,FALSE) -> 2.7912672 | L17: =VLOOKUP(VLOOKUP($F17,'Data BI Summary'!$A:$P,MATCH($K$2,'Data BI Summary'!$2:$2,0),FALSE),INDIRECT("'"&$E17&"'!"&"$A:$K"),9,FALSE) -> 0.03082364958 | M17: =VLOOKUP(VLOOKUP($F17,'Data BI Summary'!$A:$P,MATCH($M$2,'Data BI Summary'!$2:$2,0),FALSE),INDIRECT("'"&$E17&"'!"&"$A:$K"),8,FALSE) -> 2.498184144 | N17: =VLOOKUP(VLOOKUP($F17,'Data BI Summary'!$A:$P,MATCH($M$2,'Data BI Summary'!$2:$2,0),FALSE),INDIRECT("'"&$E17&"'!"&"$A:$K"),9,FALSE) -> 0.01342562016
A18: HCHI to HONI
A19: AR-HCHI | B19: Typical | C19: =VLOOKUP(A19,'Data Billing Quantities'!A:P,MATCH($B19&" kWh",'Data Billing Quantities'!$4:$4,0),FALSE) -> 750 | E19: BI_HCHI_AR_Typical | F19: BI Template_Energy | G19: =VLOOKUP(VLOOKUP($F19,'Data BI Summary'!$A:$P,MATCH($G$2,'Data BI Summary'!$2:$2,0),FALSE),INDIRECT("'"&$E19&"'!"&"$A:$K"),8,FALSE) -> 1.06 | H19: =VLOOKUP(VLOOKUP($F19,'Data BI Summary'!$A:$P,MATCH($G$2,'Data BI Summary'!$2:$2,0),FALSE),INDIRECT("'"&$E19&"'!"&"$A:$K"),9,FALSE) -> 0.0256969697 | I19: =VLOOKUP(VLOOKUP($F19,'Data BI Summary'!$A:$P,MATCH($I$2,'Data BI Summary'!$2:$2,0),FALSE),INDIRECT("'"&$E19&"'!"&"$A:$K"),8,FALSE) -> -0.29 | J19: =VLOOKUP(VLOOKUP($F19,'Data BI Summary'!$A:$P,MATCH($I$2,'Data BI Summary'!$2:$2,0),FALSE),INDIRECT("'"&$E19&"'!"&"$A:$K"),9,FALSE) -> -0.006442159625 | K19: =VLOOKUP(VLOOKUP($F19,'Data BI Summary'!$A:$P,MATCH($K$2,'Data BI Summary'!$2:$2,0),FALSE),INDIRECT("'"&$E19&"'!"&"$A:$K"),8,FALSE) -> 0.1888 | L19: =VLOOKUP(VLOOKUP($F19,'Data BI Summary'!$A:$P,MATCH($K$2,'Data BI Summary'!$2:$2,0),FALSE),INDIRECT("'"&$E19&"'!"&"$A:$K"),9,FALSE) -> 0.002968116642 | M19: =VLOOKUP(VLOOKUP($F19,'Data BI Summary'!$A:$P,MATCH($M$2,'Data BI Summary'!$2:$2,0),FALSE),INDIRECT("'"&$E19&"'!"&"$A:$K"),8,FALSE) -> 0.168976 | N19: =VLOOKUP(VLOOKUP($F19,'Data BI Summary'!$A:$P,MATCH($M$2,'Data BI Summary'!$2:$2,0),FALSE),INDIRECT("'"&$E19&"'!"&"$A:$K"),9,FALSE) -> 0.001153126671
A20: AGSe-HCHI | B20: Typical | C20: =VLOOKUP(A20,'Data Billing Quantities'!A:P,MATCH($B20&" kWh",'Data Billing Quantities'!$4:$4,0),FALSE) -> 2000 | E20: BI_HCHI_AGSe_Typical | F20: BI Template_Energy | G20: =VLOOKUP(VLOOKUP($F20,'Data BI Summary'!$A:$P,MATCH($G$2,'Data BI Summary'!$2:$2,0),FALSE),INDIRECT("'"&$E20&"'!"&"$A:$K"),8,FALSE) -> 1.83 | H20: =VLOOKUP(VLOOKUP($F20,'Data BI Summary'!$A:$P,MATCH($G$2,'Data BI Summary'!$2:$2,0),FALSE),INDIRECT("'"&$E20&"'!"&"$A:$K"),9,FALSE) -> 0.02221952404 | I20: =VLOOKUP(VLOOKUP($F20,'Data BI Summary'!$A:$P,MATCH($I$2,'Data BI Summary'!$2:$2,0),FALSE),INDIRECT("'"&$E20&"'!"&"$A:$K"),8,FALSE) -> -2.17 | J20: =VLOOKUP(VLOOKUP($F20,'Data BI Summary'!$A:$P,MATCH($I$2,'Data BI Summary'!$2:$2,0),FALSE),INDIRECT("'"&$E20&"'!"&"$A:$K"),9,FALSE) -> -0.02356069147 | K20: =VLOOKUP(VLOOKUP($F20,'Data BI Summary'!$A:$P,MATCH($K$2,'Data BI Summary'!$2:$2,0),FALSE),INDIRECT("'"&$E20&"'!"&"$A:$K"),8,FALSE) -> -1.106 | L20: =VLOOKUP(VLOOKUP($F20,'Data BI Summary'!$A:$P,MATCH($K$2,'Data BI Summary'!$2:$2,0),FALSE),INDIRECT("'"&$E20&"'!"&"$A:$K"),9,FALSE) -> -0.008371877275 | M20: =VLOOKUP(VLOOKUP($F20,'Data BI Summary'!$A:$P,MATCH($M$2,'Data BI Summary'!$2:$2,0),FALSE),INDIRECT("'"&$E20&"'!"&"$A:$K"),8,FALSE) -> -0.98987 | N20: =VLOOKUP(VLOOKUP($F20,'Data BI Summary'!$A:$P,MATCH($M$2,'Data BI Summary'!$2:$2,0),FALSE),INDIRECT("'"&$E20&"'!"&"$A:$K"),9,FALSE) -> -0.002774173081
A21: AGSd-HCHI | B21: Average | C21: =VLOOKUP(A21,'Data Billing Quantities'!A:P,MATCH($B21&" kWh",'Data Billing Quantities'!$4:$4,0),FALSE) -> 57529 | D21: =VLOOKUP(A21,'Data Billing Quantities'!A:P,MATCH(B21&" kW",'Data Billing Quantities'!$4:$4,0),FALSE) -> 175 | E21: BI_HCHI_AGSd_Avg | F21: BI Template_Demand | G21: =VLOOKUP(VLOOKUP($F21,'Data BI Summary'!$A:$P,MATCH($G$2,'Data BI Summary'!$2:$2,0),FALSE),INDIRECT("'"&$E21&"'!"&"$A:$K"),8,FALSE) -> 25.45 | H21: =VLOOKUP(VLOOKUP($F21,'Data BI Summary'!$A:$P,MATCH($G$2,'Data BI Summary'!$2:$2,0),FALSE),INDIRECT("'"&$E21&"'!"&"$A:$K"),9,FALSE) -> 0.02404726303 | I21: =VLOOKUP(VLOOKUP($F21,'Data BI Summary'!$A:$P,MATCH($I$2,'Data BI Summary'!$2:$2,0),FALSE),INDIRECT("'"&$E21&"'!"&"$A:$K"),8,FALSE) -> 638.857 | J21: =VLOOKUP(VLOOKUP($F21,'Data BI Summary'!$A:$P,MATCH($I$2,'Data BI Summary'!$2:$2,0),FALSE),INDIRECT("'"&$E21&"'!"&"$A:$K"),9,FALSE) -> 0.8074160896 | K21: =VLOOKUP(VLOOKUP($F21,'Data BI Summary'!$A:$P,MATCH($K$2,'Data BI Summary'!$2:$2,0),FALSE),INDIRECT("'"&$E21&"'!"&"$A:$K"),8,FALSE) -> 665.5795 | L21: =VLOOKUP(VLOOKUP($F21,'Data BI Summary'!$A:$P,MATCH($K$2,'Data BI Summary'!$2:$2,0),FALSE),INDIRECT("'"&$E21&"'!"&"$A:$K"),9,FALSE) -> 0.3658841749 | M21: =VLOOKUP(VLOOKUP($F21,'Data BI Summary'!$A:$P,MATCH($M$2,'Data BI Summary'!$2:$2,0),FALSE),INDIRECT("'"&$E21&"'!"&"$A:$K"),8,FALSE) -> 752.104835 | N21: =VLOOKUP(VLOOKUP($F21,'Data BI Summary'!$A:$P,MATCH($M$2,'Data BI Summary'!$2:$2,0),FALSE),INDIRECT("'"&$E21&"'!"&"$A:$K"),9,FALSE) -> 0.05636364279
A22: St Lgt-HCHI | B22: Average | C22: =VLOOKUP(A$22,'Data Billing Quantities'!A:P,MATCH($B22&" kWh",'Data Billing Quantities'!$4:$4,0),FALSE) -> 31001 | D22: =VLOOKUP(A$22,'Data Billing Quantities'!A:P,MATCH(B22&" kW",'Data Billing Quantities'!$4:$4,0),FALSE) -> 85 | E22: BI_HCHI_StLgt_Avg | F22: BI Template_Unmtr | G22: =VLOOKUP(VLOOKUP($F22,'Data BI Summary'!$A:$P,MATCH($G$2,'Data BI Summary'!$2:$2,0),FALSE),INDIRECT("'"&$E22&"'!"&"$A:$K"),8,FALSE) -> 142.5946 | H22: =VLOOKUP(VLOOKUP($F22,'Data BI Summary'!$A:$P,MATCH($G$2,'Data BI Summary'!$2:$2,0),FALSE),INDIRECT("'"&$E22&"'!"&"$A:$K"),9,FALSE) -> 0.03807466586 | I22: =VLOOKUP(VLOOKUP($F22,'Data BI Summary'!$A:$P,MATCH($I$2,'Data BI Summary'!$2:$2,0),FALSE),INDIRECT("'"&$E22&"'!"&"$A:$K"),8,FALSE) -> 77.4925 | J22: =VLOOKUP(VLOOKUP($F22,'Data BI Summary'!$A:$P,MATCH($I$2,'Data BI Summary'!$2:$2,0),FALSE),INDIRECT("'"&$E22&"'!"&"$A:$K"),9,FALSE) -> 0.02130889303 | K22: =VLOOKUP(VLOOKUP($F22,'Data BI Summary'!$A:$P,MATCH($K$2,'Data BI Summary'!$2:$2,0),FALSE),INDIRECT("'"&$E22&"'!"&"$A:$K"),8,FALSE) -> 87.6484276 | L22: =VLOOKUP(VLOOKUP($F22,'Data BI Summary'!$A:$P,MATCH($K$2,'Data BI Summary'!$2:$2,0),FALSE),INDIRECT("'"&$E22&"'!"&"$A:$K"),9,FALSE) -> 0.02148191698 | M22: =VLOOKUP(VLOOKUP($F22,'Data BI Summary'!$A:$P,MATCH($M$2,'Data BI Summary'!$2:$2,0),FALSE),INDIRECT("'"&$E22&"'!"&"$A:$K"),8,FALSE) -> 99.04272319 | N22: =VLOOKUP(VLOOKUP($F22,'Data BI Summary'!$A:$P,MATCH($M$2,'Data BI Summary'!$2:$2,0),FALSE),INDIRECT("'"&$E22&"'!"&"$A:$K"),9,FALSE) -> 0.009684467005
A23: Sen Lgt-HCHI | B23: Average | C23: =VLOOKUP(A$23,'Data Billing Quantities'!A:P,MATCH($B23&" kWh",'Data Billing Quantities'!$4:$4,0),FALSE) -> 61 | D23: =VLOOKUP(A$23,'Data Billing Quantities'!A:P,MATCH(B23&" kW",'Data Billing Quantities'!$4:$4,0),FALSE) -> 0.1956473214 | E23: BI_HCHI_SenLgt_Avg | F23: BI Template_Unmtr | G23: =VLOOKUP(VLOOKUP($F23,'Data BI Summary'!$A:$P,MATCH($G$2,'Data BI Summary'!$2:$2,0),FALSE),INDIRECT("'"&$E23&"'!"&"$A:$K"),8,FALSE) -> 0.5507 | H23: =VLOOKUP(VLOOKUP($F23,'Data BI Summary'!$A:$P,MATCH($G$2,'Data BI Summary'!$2:$2,0),FALSE),INDIRECT("'"&$E23&"'!"&"$A:$K"),9,FALSE) -> 0.03764028816 | I23: =VLOOKUP(VLOOKUP($F23,'Data BI Summary'!$A:$P,MATCH($I$2,'Data BI Summary'!$2:$2,0),FALSE),INDIRECT("'"&$E23&"'!"&"$A:$K"),8,FALSE) -> 0.4226 | J23: =VLOOKUP(VLOOKUP($F23,'Data BI Summary'!$A:$P,MATCH($I$2,'Data BI Summary'!$2:$2,0),FALSE),INDIRECT("'"&$E23&"'!"&"$A:$K"),9,FALSE) -> 0.02800429938 | K23: =VLOOKUP(VLOOKUP($F23,'Data BI Summary'!$A:$P,MATCH($K$2,'Data BI Summary'!$2:$2,0),FALSE),INDIRECT("'"&$E23&"'!"&"$A:$K"),8,FALSE) -> 0.4425836 | L23: =VLOOKUP(VLOOKUP($F23,'Data BI Summary'!$A:$P,MATCH($K$2,'Data BI Summary'!$2:$2,0),FALSE),INDIRECT("'"&$E23&"'!"&"$A:$K"),9,FALSE) -> 0.0277253174 | M23: =VLOOKUP(VLOOKUP($F23,'Data BI Summary'!$A:$P,MATCH($M$2,'Data BI Summary'!$2:$2,0),FALSE),INDIRECT("'"&$E23&"'!"&"$A:$K"),8,FALSE) -> 0.396112322 | N23: =VLOOKUP(VLOOKUP($F23,'Data BI Summary'!$A:$P,MATCH($M$2,'Data BI Summary'!$2:$2,0),FALSE),INDIRECT("'"&$E23&"'!"&"$A:$K"),9,FALSE) -> 0.0185288403
A24: USL-HCHI | B24: Average | C24: =VLOOKUP(A$24,'Data Billing Quantities'!A:P,MATCH($B24&" kWh",'Data Billing Quantities'!$4:$4,0),FALSE) -> 471 | E24: BI_HCHI_USL_Avg | F24: BI Template_Unmtr | G24: =VLOOKUP(VLOOKUP($F24,'Data BI Summary'!$A:$P,MATCH($G$2,'Data BI Summary'!$2:$2,0),FALSE),INDIRECT("'"&$E24&"'!"&"$A:$K"),8,FALSE) -> 1.0921 | H24: =VLOOKUP(VLOOKUP($F24,'Data BI Summary'!$A:$P,MATCH($G$2,'Data BI Summary'!$2:$2,0),FALSE),INDIRECT("'"&$E24&"'!"&"$A:$K"),9,FALSE) -> 0.02028681292 | I24: =VLOOKUP(VLOOKUP($F24,'Data BI Summary'!$A:$P,MATCH($I$2,'Data BI Summary'!$2:$2,0),FALSE),INDIRECT("'"&$E24&"'!"&"$A:$K"),8,FALSE) -> 0.2443 | J24: =VLOOKUP(VLOOKUP($F24,'Data BI Summary'!$A:$P,MATCH($I$2,'Data BI Summary'!$2:$2,0),FALSE),INDIRECT("'"&$E24&"'!"&"$A:$K"),9,FALSE) -> 0.004257259036 | K24: =VLOOKUP(VLOOKUP($F24,'Data BI Summary'!$A:$P,MATCH($K$2,'Data BI Summary'!$2:$2,0),FALSE),INDIRECT("'"&$E24&"'!"&"$A:$K"),8,FALSE) -> 0.4500328 | L24: =VLOOKUP(VLOOKUP($F24,'Data BI Summary'!$A:$P,MATCH($K$2,'Data BI Summary'!$2:$2,0),FALSE),INDIRECT("'"&$E24&"'!"&"$A:$K"),9,FALSE) -> 0.006929442738 | M24: =VLOOKUP(VLOOKUP($F24,'Data BI Summary'!$A:$P,MATCH($M$2,'Data BI Summary'!$2:$2,0),FALSE),INDIRECT("'"&$E24&"'!"&"$A:$K"),8,FALSE) -> 0.402779356 | N24: =VLOOKUP(VLOOKUP($F24,'Data BI Summary'!$A:$P,MATCH($M$2,'Data BI Summary'!$2:$2,0),FALSE),INDIRECT("'"&$E24&"'!"&"$A:$K"),9,FALSE) -> 0.003616435679
A25: CPUC to HONI
A26: R1-CPUC | B26: Typical | C26: =VLOOKUP(A26,'Data Billing Quantities'!A:P,MATCH($B26&" kWh",'Data Billing Quantities'!$4:$4,0),FALSE) -> 750 | E26: BI_CPUC_R1_Typical | F26: BI Template_Energy | G26: =VLOOKUP(VLOOKUP($F26,'Data BI Summary'!$A:$P,MATCH($G$2,'Data BI Summary'!$2:$2,0),FALSE),INDIRECT("'"&$E26&"'!"&"$A:$K"),8,FALSE) -> 0 | H26: =VLOOKUP(VLOOKUP($F26,'Data BI Summary'!$A:$P,MATCH($G$2,'Data BI Summary'!$2:$2,0),FALSE),INDIRECT("'"&$E26&"'!"&"$A:$K"),9,FALSE) -> 0 | I26: =VLOOKUP(VLOOKUP($F26,'Data BI Summary'!$A:$P,MATCH($I$2,'Data BI Summary'!$2:$2,0),FALSE),INDIRECT("'"&$E26&"'!"&"$A:$K"),8,FALSE) -> 0.15 | J26: =VLOOKUP(VLOOKUP($F26,'Data BI Summary'!$A:$P,MATCH($I$2,'Data BI Summary'!$2:$2,0),FALSE),INDIRECT("'"&$E26&"'!"&"$A:$K"),9,FALSE) -> 0.002966265258 | K26: =VLOOKUP(VLOOKUP($F26,'Data BI Summary'!$A:$P,MATCH($K$2,'Data BI Summary'!$2:$2,0),FALSE),INDIRECT("'"&$E26&"'!"&"$A:$K"),8,FALSE) -> 0.5535 | L26: =VLOOKUP(VLOOKUP($F26,'Data BI Summary'!$A:$P,MATCH($K$2,'Data BI Summary'!$2:$2,0),FALSE),INDIRECT("'"&$E26&"'!"&"$A:$K"),9,FALSE) -> 0.00810126775 | M26: =VLOOKUP(VLOOKUP($F26,'Data BI Summary'!$A:$P,MATCH($M$2,'Data BI Summary'!$2:$2,0),FALSE),INDIRECT("'"&$E26&"'!"&"$A:$K"),8,FALSE) -> 0.4953825 | N26: =VLOOKUP(VLOOKUP($F26,'Data BI Summary'!$A:$P,MATCH($M$2,'Data BI Summary'!$2:$2,0),FALSE),INDIRECT("'"&$E26&"'!"&"$A:$K"),9,FALSE) -> 0.003285066497
A27: GSe-CPUC | B27: Typical | C27: =VLOOKUP(A27,'Data Billing Quantities'!A:P,MATCH($B27&" kWh",'Data Billing Quantities'!$4:$4,0),FALSE) -> 2000 | E27: BI_CPUC_GSe_Typical | F27: BI Template_Energy | G27: =VLOOKUP(VLOOKUP($F27,'Data BI Summary'!$A:$P,MATCH($G$2,'Data BI Summary'!$2:$2,0),FALSE),INDIRECT("'"&$E27&"'!"&"$A:$K"),8,FALSE) -> 9.6 | H27: =VLOOKUP(VLOOKUP($F27,'Data BI Summary'!$A:$P,MATCH($G$2,'Data BI Summary'!$2:$2,0),FALSE),INDIRECT("'"&$E27&"'!"&"$A:$K"),9,FALSE) -> 0.0515076725 | I27: =VLOOKUP(VLOOKUP($F27,'Data BI Summary'!$A:$P,MATCH($I$2,'Data BI Summary'!$2:$2,0),FALSE),INDIRECT("'"&$E27&"'!"&"$A:$K"),8,FALSE) -> 10.6 | J27: =VLOOKUP(VLOOKUP($F27,'Data BI Summary'!$A:$P,MATCH($I$2,'Data BI Summary'!$2:$2,0),FALSE),INDIRECT("'"&$E27&"'!"&"$A:$K"),9,FALSE) -> 0.05016947818 | K27: =VLOOKUP(VLOOKUP($F27,'Data BI Summary'!$A:$P,MATCH($K$2,'Data BI Summary'!$2:$2,0),FALSE),INDIRECT("'"&$E27&"'!"&"$A:$K"),8,FALSE) -> 11.696 | L27: =VLOOKUP(VLOOKUP($F27,'Data BI Summary'!$A:$P,MATCH($K$2,'Data BI Summary'!$2:$2,0),FALSE),INDIRECT("'"&$E27&"'!"&"$A:$K"),9,FALSE) -> 0.046686772 | M27: =VLOOKUP(VLOOKUP($F27,'Data BI Summary'!$A:$P,MATCH($M$2,'Data BI Summary'!$2:$2,0),FALSE),INDIRECT("'"&$E27&"'!"&"$A:$K"),8,FALSE) -> 10.46792 | N27: =VLOOKUP(VLOOKUP($F27,'Data BI Summary'!$A:$P,MATCH($M$2,'Data BI Summary'!$2:$2,0),FALSE),INDIRECT("'"&$E27&"'!"&"$A:$K"),9,FALSE) -> 0.02260410062
A28: GSd-CPUC | B28: Average | C28: =VLOOKUP(A28,'Data Billing Quantities'!A:P,MATCH($B28&" kWh",'Data Billing Quantities'!$4:$4,0),FALSE) -> 29000 | D28: =VLOOKUP(A28,'Data Billing Quantities'!A:P,MATCH(B28&" kW",'Data Billing Quantities'!$4:$4,0),FALSE) -> 90 | E28: BI_CPUC_GSd_Avg | F28: BI Template_Demand | G28: =VLOOKUP(VLOOKUP($F28,'Data BI Summary'!$A:$P,MATCH($G$2,'Data BI Summary'!$2:$2,0),FALSE),INDIRECT("'"&$E28&"'!"&"$A:$K"),8,FALSE) -> 100.926 | H28: =VLOOKUP(VLOOKUP($F28,'Data BI Summary'!$A:$P,MATCH($G$2,'Data BI Summary'!$2:$2,0),FALSE),INDIRECT("'"&$E28&"'!"&"$A:$K"),9,FALSE) -> 0.04968217017 | I28: =VLOOKUP(VLOOKUP($F28,'Data BI Summary'!$A:$P,MATCH($I$2,'Data BI Summary'!$2:$2,0),FALSE),INDIRECT("'"&$E28&"'!"&"$A:$K"),8,FALSE) -> 474.497 | J28: =VLOOKUP(VLOOKUP($F28,'Data BI Summary'!$A:$P,MATCH($I$2,'Data BI Summary'!$2:$2,0),FALSE),INDIRECT("'"&$E28&"'!"&"$A:$K"),9,FALSE) -> 0.2335774795 | K28: =VLOOKUP(VLOOKUP($F28,'Data BI Summary'!$A:$P,MATCH($K$2,'Data BI Summary'!$2:$2,0),FALSE),INDIRECT("'"&$E28&"'!"&"$A:$K"),8,FALSE) -> 487.97 | L28: =VLOOKUP(VLOOKUP($F28,'Data BI Summary'!$A:$P,MATCH($K$2,'Data BI Summary'!$2:$2,0),FALSE),INDIRECT("'"&$E28&"'!"&"$A:$K"),9,FALSE) -> 0.1913483279 | M28: =VLOOKUP(VLOOKUP($F28,'Data BI Summary'!$A:$P,MATCH($M$2,'Data BI Summary'!$2:$2,0),FALSE),INDIRECT("'"&$E28&"'!"&"$A:$K"),8,FALSE) -> 551.4061 | N28: =VLOOKUP(VLOOKUP($F28,'Data BI Summary'!$A:$P,MATCH($M$2,'Data BI Summary'!$2:$2,0),FALSE),INDIRECT("'"&$E28&"'!"&"$A:$K"),9,FALSE) -> 0.06400257831
A29: St Lgt-CPUC | B29: Average | C29: =VLOOKUP(A$30,'Data Billing Quantities'!A:P,MATCH($B29&" kWh",'Data Billing Quantities'!$4:$4,0),FALSE) -> 220 | D29: =VLOOKUP(A$29,'Data Billing Quantities'!A:P,MATCH(B29&" kW",'Data Billing Quantities'!$4:$4,0),FALSE) -> 21 | E29: BI_CPUC_StLgt_Avg | F29: BI Template_Unmtr | G29: =VLOOKUP(VLOOKUP($F29,'Data BI Summary'!$A:$P,MATCH($G$2,'Data BI Summary'!$2:$2,0),FALSE),INDIRECT("'"&$E29&"'!"&"$A:$K"),8,FALSE) -> 51.57 | H29: =VLOOKUP(VLOOKUP($F29,'Data BI Summary'!$A:$P,MATCH($G$2,'Data BI Summary'!$2:$2,0),FALSE),INDIRECT("'"&$E29&"'!"&"$A:$K"),9,FALSE) -> 0.05014780816 | I29: =VLOOKUP(VLOOKUP($F29,'Data BI Summary'!$A:$P,MATCH($I$2,'Data BI Summary'!$2:$2,0),FALSE),INDIRECT("'"&$E29&"'!"&"$A:$K"),8,FALSE) -> 58.21 | J29: =VLOOKUP(VLOOKUP($F29,'Data BI Summary'!$A:$P,MATCH($I$2,'Data BI Summary'!$2:$2,0),FALSE),INDIRECT("'"&$E29&"'!"&"$A:$K"),9,FALSE) -> 0.05120553361 | K29: =VLOOKUP(VLOOKUP($F29,'Data BI Summary'!$A:$P,MATCH($K$2,'Data BI Summary'!$2:$2,0),FALSE),INDIRECT("'"&$E29&"'!"&"$A:$K"),8,FALSE) -> 60.92908 | L29: =VLOOKUP(VLOOKUP($F29,'Data BI Summary'!$A:$P,MATCH($K$2,'Data BI Summary'!$2:$2,0),FALSE),INDIRECT("'"&$E29&"'!"&"$A:$K"),9,FALSE) -> 0.04852879159 | M29: =VLOOKUP(VLOOKUP($F29,'Data BI Summary'!$A:$P,MATCH($M$2,'Data BI Summary'!$2:$2,0),FALSE),INDIRECT("'"&$E29&"'!"&"$A:$K"),8,FALSE) -> 54.5315266 | N29: =VLOOKUP(VLOOKUP($F29,'Data BI Summary'!$A:$P,MATCH($M$2,'Data BI Summary'!$2:$2,0),FALSE),INDIRECT("'"&$E29&"'!"&"$A:$K"),9,FALSE) -> 0.02470854347
A30: Sen Lgt-CPUC | B30: Average | C30: =VLOOKUP(A$29,'Data Billing Quantities'!A:P,MATCH($B30&" kWh",'Data Billing Quantities'!$4:$4,0),FALSE) -> 8300 | D30: =VLOOKUP(A$30,'Data Billing Quantities'!A:P,MATCH(B30&" kW",'Data Billing Quantities'!$4:$4,0),FALSE) -> 0.6 | E30: BI_CPUC_SenLgt_Avg | F30: BI Template_Unmtr | G30: =VLOOKUP(VLOOKUP($F30,'Data BI Summary'!$A:$P,MATCH($G$2,'Data BI Summary'!$2:$2,0),FALSE),INDIRECT("'"&$E30&"'!"&"$A:$K"),8,FALSE) -> 2.362 | H30: =VLOOKUP(VLOOKUP($F30,'Data BI Summary'!$A:$P,MATCH($G$2,'Data BI Summary'!$2:$2,0),FALSE),INDIRECT("'"&$E30&"'!"&"$A:$K"),9,FALSE) -> 0.05226588777 | I30: =VLOOKUP(VLOOKUP($F30,'Data BI Summary'!$A:$P,MATCH($I$2,'Data BI Summary'!$2:$2,0),FALSE),INDIRECT("'"&$E30&"'!"&"$A:$K"),8,FALSE) -> 2.45 | J30: =VLOOKUP(VLOOKUP($F30,'Data BI Summary'!$A:$P,MATCH($I$2,'Data BI Summary'!$2:$2,0),FALSE),INDIRECT("'"&$E30&"'!"&"$A:$K"),9,FALSE) -> 0.05144810671 | K30: =VLOOKUP(VLOOKUP($F30,'Data BI Summary'!$A:$P,MATCH($K$2,'Data BI Summary'!$2:$2,0),FALSE),INDIRECT("'"&$E30&"'!"&"$A:$K"),8,FALSE) -> 2.522072 | L30: =VLOOKUP(VLOOKUP($F30,'Data BI Summary'!$A:$P,MATCH($K$2,'Data BI Summary'!$2:$2,0),FALSE),INDIRECT("'"&$E30&"'!"&"$A:$K"),9,FALSE) -> 0.04967843488 | M30: =VLOOKUP(VLOOKUP($F30,'Data BI Summary'!$A:$P,MATCH($M$2,'Data BI Summary'!$2:$2,0),FALSE),INDIRECT("'"&$E30&"'!"&"$A:$K"),8,FALSE) -> 2.25725444 | N30: =VLOOKUP(VLOOKUP($F30,'Data BI Summary'!$A:$P,MATCH($M$2,'Data BI Summary'!$2:$2,0),FALSE),INDIRECT("'"&$E30&"'!"&"$A:$K"),9,FALSE) -> 0.03205023544
A31: USL-CPUC | B31: Average | C31: =VLOOKUP(A$31,'Data Billing Quantities'!A:P,MATCH($B31&" kWh",'Data Billing Quantities'!$4:$4,0),FALSE) -> 60 | E31: BI_CPUC_USL_Avg | F31: BI Template_Unmtr | G31: =VLOOKUP(VLOOKUP($F31,'Data BI Summary'!$A:$P,MATCH($G$2,'Data BI Summary'!$2:$2,0),FALSE),INDIRECT("'"&$E31&"'!"&"$A:$K"),8,FALSE) -> 0.348 | H31: =VLOOKUP(VLOOKUP($F31,'Data BI Summary'!$A:$P,MATCH($G$2,'Data BI Summary'!$2:$2,0),FALSE),INDIRECT("'"&$E31&"'!"&"$A:$K"),9,FALSE) -> 0.008632665211 | I31: =VLOOKUP(VLOOKUP($F31,'Data BI Summary'!$A:$P,MATCH($I$2,'Data BI Summary'!$2:$2,0),FALSE),INDIRECT("'"&$E31&"'!"&"$A:$K"),8,FALSE) -> 0.372 | J31: =VLOOKUP(VLOOKUP($F31,'Data BI Summary'!$A:$P,MATCH($I$2,'Data BI Summary'!$2:$2,0),FALSE),INDIRECT("'"&$E31&"'!"&"$A:$K"),9,FALSE) -> 0.00907883947 | K31: =VLOOKUP(VLOOKUP($F31,'Data BI Summary'!$A:$P,MATCH($K$2,'Data BI Summary'!$2:$2,0),FALSE),INDIRECT("'"&$E31&"'!"&"$A:$K"),8,FALSE) -> 0.398208 | L31: =VLOOKUP(VLOOKUP($F31,'Data BI Summary'!$A:$P,MATCH($K$2,'Data BI Summary'!$2:$2,0),FALSE),INDIRECT("'"&$E31&"'!"&"$A:$K"),9,FALSE) -> 0.009495262765 | M31: =VLOOKUP(VLOOKUP($F31,'Data BI Summary'!$A:$P,MATCH($M$2,'Data BI Summary'!$2:$2,0),FALSE),INDIRECT("'"&$E31&"'!"&"$A:$K"),8,FALSE) -> 0.35639616 | N31: =VLOOKUP(VLOOKUP($F31,'Data BI Summary'!$A:$P,MATCH($M$2,'Data BI Summary'!$2:$2,0),FALSE),INDIRECT("'"&$E31&"'!"&"$A:$K"),9,FALSE) -> 0.00800662715

Sheet BI_UR_Typical
A1: Bill Impacts (Typical Consumption Level) - UR
A3: Rate Class | B3: =RIGHT(A1,LEN(A1)-FIND("- ",A1,1)-1) -> UR
A4: Monthly Consumption (kWh) | B4: =IF(COUNTIF(A1,"*Low*")>0,VLOOKUP(B3,'Data Billing Quantities'!$A:$Z,MATCH("Low kWh",'Data Billing Quantities'!4:4,0),FALSE),IF(COUNTIF(A1,"*Typical*")>0,VLOOKUP(B3,'Data Billing Quantities'!$A:$Z,MATCH("Typical kWh",'Data Billing Quantities'!4:4,0),FALSE),IF(COUNTIF(A1,"*Average*")>0,VLOOKUP(B3,'Data Billing Quantities'!$A:$Z,MATCH("Average kWh",'Data Billing Quantities'!4:4,0),FALSE),IF(COUNTIF(A1,"*High*")>0,VLOOKUP(B3,'Data Billing Quantities'!$A:$Z,MATCH("High kWh",'Data Billing Quantities'!4:4,0),FALSE),"error")))) -> 750
A5: Peak (kW) | B5: =IF(COUNTIF(A1,"*Low*")>0,VLOOKUP(B3,'Data Billing Quantities'!$A:$Z,MATCH("Low kW",'Data Billing Quantities'!4:4,0),FALSE),IF(COUNTIF(A1,"*Typical*")>0,VLOOKUP(B3,'Data Billing Quantities'!$A:$Z,MATCH("Typical kW",'Data Billing Quantities'!4:4,0),FALSE),IF(COUNTIF(A1,"*Average*")>0,VLOOKUP(B3,'Data Billing Quantities'!$A:$Z,MATCH("Average kW",'Data Billing Quantities'!4:4,0),FALSE),IF(COUNTIF(A1,"*High*")>0,VLOOKUP(B3,'Data Billing Quantities'!$A:$Z,MATCH("High kW",'Data Billing Quantities'!4:4,0),FALSE),"error")))) -> 0
A6: Loss factor | B6: =VLOOKUP(B3,'Data Billing Quantities'!A:D,MATCH(A6,'Data Billing Quantities'!4:4,0),FALSE) -> 1.057
A7: Charge determinant | B7: =VLOOKUP(B3,'Data Billing Quantities'!A:D,MATCH(A7,'Data Billing Quantities'!4:4,0),FALSE) -> kWh
B9: Current OEB-Approved | E9: Proposed | H9: Impact
B10: Rate ($) | C10: Volume | D10: Charge ($) | E10: Rate ($) | F10: Volume | G10: Charge ($) | H10: $ Change | I10: % Change
A11: Service Charge | B11: =VLOOKUP($B$3,'Data Current Rates'!$A:$AO,MATCH(BI_UR_Typical!$A11,CurrentHeader,0),FALSE) -> 41.61 | C11: 1 | D11: =B11*C11 -> 41.61 | E11: =VLOOKUP($B$3,'Data Proposed Rates'!$A:$AT,MATCH(BI_UR_Typical!$A11,ProposedHeader,0),FALSE) -> 43.7 | F11: 1 | G11: =E11*F11 -> 43.7 | H11: =G11-D11 -> 2.09 | I11: =IF(ISERROR(H11/ABS(D11)),"N/A",(H11/ABS(D11))) -> 0.0502283105
A12: Distribution Volumetric Charge | B12: =VLOOKUP($B$3,'Data Current Rates'!$A:$AO,MATCH(BI_UR_Typical!$A12,CurrentHeader,0),FALSE) -> 0 | C12: =IF($B$7="kWh",$B$4,$B$5) -> 750 | D12: =B12*C12 -> 0 | E12: =VLOOKUP($B$3,'Data Proposed Rates'!$A:$AT,MATCH(BI_UR_Typical!$A12,ProposedHeader,0),FALSE) -> 0 | F12: =IF($B$7="kWh",$B$4,$B$5) -> 750 | G12: 0 | H12: 0 | I12: N/A
A13: RRRP Adjustment | B13: =IF($B$3="R2",VLOOKUP(A13,'Data Pass Through'!$A4:$C19,3,0),0)*-1 -> 0 | C13: 1 | D13: =B13*C13 -> 0 | E13: =IF($B$3="R2",VLOOKUP(A13,'Data Pass Through'!$A4:$C19,3,0),0)*-1 -> 0 | F13: 1 | G13: 0 | H13: 0 | I13: N/A
A14: DRP Adjustment | D14: =IF(OR($B$3="R1",$B$3="R2",$B$3="R1-CPUC"),IF(SUM(D11:D13)>'Data Pass Through'!$B$16,-(SUM(D11:D13)-'Data Pass Through'!$B$16),0),0) -> 0 | G14: =IF(OR($B$3="R1",$B$3="R2",$B$3="R1-CPUC"),IF(SUM(G11:G13)>'Data Pass Through'!$B$16,-(SUM(G11:G13)-'Data Pass Through'!$B$16),0),0) -> 0 | H14: 0 | I14: N/A
A15: Group 2 Fixed Rate Rider | B15: =VLOOKUP($B$3,'Data Current Rates'!$A:$AO,MATCH(BI_UR_Typical!$A15,CurrentHeader,0),FALSE) -> -0.11 | C15: 1 | D15: =B15*C15 -> -0.11 | E15: =VLOOKUP($B$3,'Data Proposed Rates'!$A:$AT,MATCH(BI_UR_Typical!$A15,ProposedHeader,0),FALSE) -> -1.5 | F15: 1 | G15: =E15*F15 -> -1.5 | H15: -1.39 | I15: -12.63636364
A16: Group 2 Volumetric Rate Rider | B16: =VLOOKUP($B$3,'Data Current Rates'!$A:$AO,MATCH(BI_UR_Typical!$A16,CurrentHeader,0),FALSE) -> 0 | C16: =IF($B$7="kWh",$B$4,$B$5) -> 750 | D16: =B16*C16 -> 0 | E16: =VLOOKUP($B$3,'Data Proposed Rates'!$A:$AT,MATCH(BI_UR_Typical!$A16,ProposedHeader,0),FALSE) -> 0 | F16: =IF($B$7="kWh",$B$4,$B$5) -> 750 | G16: 0 | H16: =G16-D16 -> 0 | I16: =IF(ISERROR(H16/ABS(D16)),"N/A",(H16/ABS(D16))) -> N/A
A17: Sub-Total A (excluding pass through) | D17: =SUM(D11:D16) -> 41.5 | G17: =SUM(G11:G16) -> 42.2 | H17: 0.7 | I17: 0.01686746988
A18: Line Losses on Cost of Power | B18: =VLOOKUP($B$3,'Data Billing Quantities'!$A:$O,MATCH(BI_UR_Typical!$A32,'Data Billing Quantities'!$4:$4,0),FALSE)*$B32+VLOOKUP($B$3,'Data Billing Quantities'!$A:$O,MATCH(BI_UR_Typical!$A33,'Data Billing Quantities'!$4:$4,0),FALSE)*$B33+VLOOKUP($B$3,'Data Billing Quantities'!$A:$O,MATCH(BI_UR_Typical!$A34,'Data Billing Quantities'!$4:$4,0),FALSE)*$B34 -> 0.12752 | C18: =($B$6*$B$4)-$B$4 -> 42.75 | D18: =B18*C18 -> 5.45148 | E18: =VLOOKUP($B$3,'Data Billing Quantities'!$A:$O,MATCH(BI_UR_Typical!$A32,'Data Billing Quantities'!$4:$4,0),FALSE)*$B32+VLOOKUP($B$3,'Data Billing Quantities'!$A:$O,MATCH(BI_UR_Typical!$A33,'Data Billing Quantities'!$4:$4,0),FALSE)*$B33+VLOOKUP($B$3,'Data Billing Quantities'!$A:$O,MATCH(BI_UR_Typical!$A34,'Data Billing Quantities'!$4:$4,0),FALSE)*$B34 -> 0.12752 | F18: =($B$6*$B$4)-$B$4 -> 42.75 | G18: 5.45148 | H18: 0 | I18: 0
A19: Total Deferral/Variance Account Rate Rider | B19: =VLOOKUP($B$3,'Data Current Rates'!$A:$AO,MATCH(BI_UR_Typical!$A19,CurrentHeader,0),FALSE) -> -0.0038 | C19: =IF($B$7="kWh",$B$4,$B$5) -> 750 | D19: -2.85 | E19: =VLOOKUP($B$3,'Data Proposed Rates'!$A:$AT,MATCH(BI_UR_Typical!$A19,ProposedHeader,0),FALSE) -> -0.0017 | F19: =IF($B$7="kWh",$B$4,$B$5) -> 750 | G19: -1.275 | H19: 1.575 | I19: 0.5526315789
A20: CBR Class B Rate Rider | B20: =VLOOKUP($B$3,'Data Current Rates'!$A:$AJ,MATCH(BI_UR_Typical!$A20,CurrentHeader,0),FALSE) -> 0.0001 | C20: =IF($B$7="kWh",$B$4,$B$5) -> 750 | D20: 0.075 | E20: =VLOOKUP($B$3,'Data Proposed Rates'!$A:$AT,MATCH(BI_UR_Typical!$A20,ProposedHeader,0),FALSE) -> -0.0006 | F20: =IF($B$7="kWh",$B$4,$B$5) -> 750 | G20: -0.45 | H20: -0.525 | I20: -7
A21: GA Rate Rider | B21: =VLOOKUP($B$3,'Data Current Rates'!$A:$AJ,MATCH(BI_UR_Typical!$A21,CurrentHeader,0),FALSE) -> 0 | C21: 750 | D21: 0 | E21: =VLOOKUP($B$3,'Data Proposed Rates'!$A:$AT,MATCH(BI_UR_Typical!$A21,ProposedHeader,0),FALSE) -> 0 | F21: 750 | G21: 0 | H21: 0 | I21: N/A
A22: Smart Meter Entity Charge (if applicable) | B22: =VLOOKUP($A22,'Data Pass Through'!$A:$D,2,FALSE) -> 0.42 | C22: 1 | D22: 0.42 | E22: =VLOOKUP($A22,'Data Pass Through'!$A:$D,2,FALSE) -> 0.42 | F22: 1 | G22: 0.42 | H22: 0 | I22: 0
A23: Rate Rider for Account 1588 | E23: =VLOOKUP($B$3,'Data Proposed Rates'!$A:$AT,MATCH(BI_UR_Typical!$A23,ProposedHeader,0),FALSE) -> -0.0032 | F23: =IF($B$7="kWh",$B$4,$B$5) -> 750 | G23: -2.4 | H23: -2.4 | I23: N/A
A24: Sub-Total B - Distribution (includes Sub-Total A) | D24: =SUM(INDIRECT("D17:D"&ROW()-1)) -> 44.59648 | G24: =SUM(INDIRECT("G17:G"&ROW()-1)) -> 43.94648 | H24: -0.65 | I24: -0.01457514136
A25: Retail Transmission Rate – Network Service Rate | B25: =VLOOKUP($B$3,'Data Current Rates'!$A:$AJ,MATCH(BI_UR_Typical!$A25,CurrentHeader,0),FALSE) -> 0.0137 | C25: =IF($B$7="kWh",$B$4*$B$6,$B$5) -> 792.75 | D25: =B25*C25 -> 10.860675 | E25: =VLOOKUP($B$3,'Data Proposed Rates'!$A:$AT,MATCH(BI_UR_Typical!$A25,ProposedHeader,0),FALSE) -> 0.0141 | F25: =IF($B$7="kWh",$B$4*$B$6,$B$5) -> 792.75 | G25: 11.177775 | H25: 0.3171 | I25: 0.02919708029
A26: Retail Transmission Rate – Line and Transformation Connection Service Rate | B26: =VLOOKUP($B$3,'Data Current Rates'!$A:$AJ,MATCH(BI_UR_Typical!$A26,CurrentHeader,0),FALSE) -> 0.0098 | C26: =IF($B$7="kWh",$B$4*$B$6,$B$5) -> 792.75 | D26: 7.76895 | E26: =VLOOKUP($B$3,'Data Proposed Rates'!$A:$AT,MATCH(BI_UR_Typical!$A26,ProposedHeader,0),FALSE) -> 0.01 | F26: =IF($B$7="kWh",$B$4*$B$6,$B$5) -> 792.75 | G26: 7.9275 | H26: 0.15855 | I26: 0.02040816327
A27: Sub-Total C - Delivery (including Sub-Total B) | D27: =SUM(D24:D26) -> 63.226105 | G27: =SUM(G24:G26) -> 63.051755 | H27: -0.17435 | I27: -0.00275756351
A28: Wholesale Market Service Rate (WMS) – not including CBR | B28: =VLOOKUP($A28,'Data Pass Through'!$A:$D,2,FALSE) -> 0.0041 | C28: =$B$4*$B$6 -> 792.75 | D28: =B28*C28 -> 3.250275 | E28: =VLOOKUP($A28,'Data Pass Through'!$A:$D,3,FALSE) -> 0.0041 | F28: =$B$4*$B$6 -> 792.75 | G28: 3.250275 | H28: 0 | I28: 0
A29: Capacity Based Recovery (CBR) – Applicable for Class B Customers | B29: =VLOOKUP($A29,'Data Pass Through'!$A:$D,2,FALSE) -> 0.0006 | C29: =$B$4*$B$6 -> 792.75 | D29: 0.47565 | E29: =VLOOKUP($A29,'Data Pass Through'!$A:$D,3,FALSE) -> 0.0006 | F29: =$B$4*$B$6 -> 792.75 | G29: 0.47565 | H29: 0 | I29: 0
A30: Rural Rate Protection Charge | B30: =VLOOKUP($A30,'Data Pass Through'!$A:$D,2,FALSE) -> 0.0006 | C30: =$B$4*$B$6 -> 792.75 | D30: 0.47565 | E30: =VLOOKUP($A30,'Data Pass Through'!$A:$D,3,FALSE) -> 0.0006 | F30: =$B$4*$B$6 -> 792.75 | G30: 0.47565 | H30: 0 | I30: 0
A31: Standard Supply Service – Administration Charge (if applicable) | B31: =VLOOKUP($A31,'Data Pass Through'!$A:$D,2,FALSE) -> 0.25 | C31: 1 | D31: 0.25 | E31: =VLOOKUP($A31,'Data Pass Through'!$A:$D,3,FALSE) -> 0.25 | F31: 1 | G31: 0.25 | H31: 0 | I31: 0
A32: TOU-Off Peak | B32: =VLOOKUP($A32,'Data Pass Through'!$A:$D,2,FALSE) -> 0.098 | C32: =B$4*VLOOKUP($B$3,'Data Billing Quantities'!$A:$O,MATCH($A32,'Data Billing Quantities'!$4:$4,0),FALSE) -> 480 | D32: 47.04 | E32: =VLOOKUP($A32,'Data Pass Through'!$A:$D,3,FALSE) -> 0.098 | F32: =B$4*VLOOKUP($B$3,'Data Billing Quantities'!$A:$O,MATCH($A32,'Data Billing Quantities'!$4:$4,0),FALSE) -> 480 | G32: =E32*F32 -> 47.04 | H32: 0 | I32: 0
A33: TOU-Mid Peak | B33: =VLOOKUP($A33,'Data Pass Through'!$A:$D,2,FALSE) -> 0.157 | C33: =B$4*VLOOKUP($B$3,'Data Billing Quantities'!$A:$O,MATCH($A33,'Data Billing Quantities'!$4:$4,0),FALSE) -> 135 | D33: 21.195 | E33: =VLOOKUP($A33,'Data Pass Through'!$A:$D,3,FALSE) -> 0.157 | F33: =B$4*VLOOKUP($B$3,'Data Billing Quantities'!$A:$O,MATCH($A33,'Data Billing Quantities'!$4:$4,0),FALSE) -> 135 | G33: =E33*F33 -> 21.195 | H33: 0 | I33: 0
A34: TOU-On Peak | B34: =VLOOKUP($A34,'Data Pass Through'!$A:$D,2,FALSE) -> 0.203 | C34: =B$4*VLOOKUP($B$3,'Data Billing Quantities'!$A:$O,MATCH($A34,'Data Billing Quantities'!$4:$4,0),FALSE) -> 135 | D34: 27.405 | E34: =VLOOKUP($A34,'Data Pass Through'!$A:$D,3,FALSE) -> 0.203 | F34: =B$4*VLOOKUP($B$3,'Data Billing Quantities'!$A:$O,MATCH($A34,'Data Billing Quantities'!$4:$4,0),FALSE) -> 135 | G34: =E34*F34 -> 27.405 | H34: 0 | I34: 0
A35: Total Bill on TOU (before Taxes) | D35: =SUM(D27:D34) -> 163.31768 | G35: =SUM(G27:G34) -> 163.14333 | H35: -0.17435 | I35: -0.00106755129
A36: HST | B36: 0.13 | D36: =D35*B36 -> 21.2312984 | E36: =B36 -> 0.13 | G36: =G35*E36 -> 21.2086329 | H36: -0.0226655 | I36: -0.00106755129
A37: Ontario Electricity Rebate (OER) | B37: =IF(($B$4*12)<250000,VLOOKUP($A37,'Data Pass Through'!$A$4:$C$19,2,0),0) -> -0.235 | D37: =D35*B37 -> -38.3796548 | E37: =IF(($B$4*12)<250000,VLOOKUP($A37,'Data Pass Through'!$A$4:$C$19,3,0),0) -> -0.235 | G37: =G35*E37 -> -38.33868255 | H37: 0.04097225 | I37: 0.00106755129
A38: Total Bill on TOU | D38: =SUM(D35:D37) -> 146.1693236 | G38: =SUM(G35:G37) -> 146.0132804 | H38: -0.15604325 | I38: -0.00106755129
A39: * Distribution rate protection applies to R1 and R2 customers

Sheet BI_R1_Typical (with DRP)
A1: Bill Impacts (Typical Consumption Level) - R1
A3: Rate Class | B3: =RIGHT(A1,LEN(A1)-FIND("- ",A1,1)-1) -> R1
A4: Monthly Consumption (kWh) | B4: =IF(COUNTIF(A1,"*Low*")>0,VLOOKUP(B3,'Data Billing Quantities'!$A:$Z,MATCH("Low kWh",'Data Billing Quantities'!4:4,0),FALSE),IF(COUNTIF(A1,"*Typical*")>0,VLOOKUP(B3,'Data Billing Quantities'!$A:$Z,MATCH("Typical kWh",'Data Billing Quantities'!4:4,0),FALSE),IF(COUNTIF(A1,"*Average*")>0,VLOOKUP(B3,'Data Billing Quantities'!$A:$Z,MATCH("Average kWh",'Data Billing Quantities'!4:4,0),FALSE),IF(COUNTIF(A1,"*High*")>0,VLOOKUP(B3,'Data Billing Quantities'!$A:$Z,MATCH("High kWh",'Data Billing Quantities'!4:4,0),FALSE),"error")))) -> 750
A5: Peak (kW) | B5: =IF(COUNTIF(A1,"*Low*")>0,VLOOKUP(B3,'Data Billing Quantities'!$A:$Z,MATCH("Low kW",'Data Billing Quantities'!4:4,0),FALSE),IF(COUNTIF(A1,"*Typical*")>0,VLOOKUP(B3,'Data Billing Quantities'!$A:$Z,MATCH("Typical kW",'Data Billing Quantities'!4:4,0),FALSE),IF(COUNTIF(A1,"*Average*")>0,VLOOKUP(B3,'Data Billing Quantities'!$A:$Z,MATCH("Average kW",'Data Billing Quantities'!4:4,0),FALSE),IF(COUNTIF(A1,"*High*")>0,VLOOKUP(B3,'Data Billing Quantities'!$A:$Z,MATCH("High kW",'Data Billing Quantities'!4:4,0),FALSE),"error")))) -> 0
A6: Loss factor | B6: =VLOOKUP(B3,'Data Billing Quantities'!A:D,MATCH(A6,'Data Billing Quantities'!4:4,0),FALSE) -> 1.076
A7: Charge determinant | B7: =VLOOKUP(B3,'Data Billing Quantities'!A:D,MATCH(A7,'Data Billing Quantities'!4:4,0),FALSE) -> kWh
B9: Current OEB-Approved | E9: Proposed | H9: Impact
B10: Rate ($) | C10: Volume | D10: Charge ($) | E10: Rate ($) | F10: Volume | G10: Charge ($) | H10: $ Change | I10: % Change
A11: Service Charge | B11: =VLOOKUP($B$3,'Data Current Rates'!$A:$AO,MATCH('BI_R1_Typical (with DRP)'!$A11,CurrentHeader,0),FALSE) -> 71.05 | C11: 1 | D11: =B11*C11 -> 71.05 | E11: =VLOOKUP($B$3,'Data Proposed Rates'!$A:$AT,MATCH('BI_R1_Typical (with DRP)'!$A11,ProposedHeader,0),FALSE) -> 74.62 | F11: 1 | G11: =E11*F11 -> 74.62 | H11: =G11-D11 -> 3.57 | I11: =IF(ISERROR(H11/ABS(D11)),"N/A",(H11/ABS(D11))) -> 0.05024630542
A12: Distribution Volumetric Charge | B12: =VLOOKUP($B$3,'Data Current Rates'!$A:$AO,MATCH('BI_R1_Typical (with DRP)'!$A12,CurrentHeader,0),FALSE) -> 0 | C12: =IF($B$7="kWh",$B$4,$B$5) -> 750 | D12: =B12*C12 -> 0 | E12: =VLOOKUP($B$3,'Data Proposed Rates'!$A:$AT,MATCH('BI_R1_Typical (with DRP)'!$A12,ProposedHeader,0),FALSE) -> 0 | F12: =IF($B$7="kWh",$B$4,$B$5) -> 750 | G12: 0 | H12: 0 | I12: N/A
A13: RRRP Adjustment | B13: =IF($B$3="R2",VLOOKUP(A13,'Data Pass Through'!$A4:$C19,3,0),0)*-1 -> 0 | C13: 1 | D13: =B13*C13 -> 0 | E13: =IF($B$3="R2",VLOOKUP(A13,'Data Pass Through'!$A4:$C19,3,0),0)*-1 -> 0 | F13: 1 | G13: 0 | H13: 0 | I13: N/A
A14: DRP Adjustment | D14: =IF(OR($B$3="R1",$B$3="R2",$B$3="R1-CPUC"),IF(SUM(D11:D13)>'Data Pass Through'!$B$16,-(SUM(D11:D13)-'Data Pass Through'!$B$16),0),0) -> -28.17 | G14: =IF(OR($B$3="R1",$B$3="R2",$B$3="R1-CPUC"),IF(SUM(G11:G13)>'Data Pass Through'!$B$16,-(SUM(G11:G13)-'Data Pass Through'!$B$16),0),0) -> -31.74 | H14: -3.57 | I14: -0.1267305644
A15: Group 2 Fixed Rate Rider | B15: =VLOOKUP($B$3,'Data Current Rates'!$A:$AO,MATCH('BI_R1_Typical (with DRP)'!$A15,CurrentHeader,0),FALSE) -> -0.21 | C15: 1 | D15: =B15*C15 -> -0.21 | E15: =VLOOKUP($B$3,'Data Proposed Rates'!$A:$AT,MATCH('BI_R1_Typical (with DRP)'!$A15,ProposedHeader,0),FALSE) -> -2.56 | F15: 1 | G15: =E15*F15 -> -2.56 | H15: -2.35 | I15: -11.19047619
A16: Group 2 Volumetric Rate Rider | B16: =VLOOKUP($B$3,'Data Current Rates'!$A:$AO,MATCH('BI_R1_Typical (with DRP)'!$A16,CurrentHeader,0),FALSE) -> 0 | C16: =IF($B$7="kWh",$B$4,$B$5) -> 750 | D16: =B16*C16 -> 0 | E16: =VLOOKUP($B$3,'Data Proposed Rates'!$A:$AT,MATCH('BI_R1_Typical (with DRP)'!$A16,ProposedHeader,0),FALSE) -> 0 | F16: =IF($B$7="kWh",$B$4,$B$5) -> 750 | G16: 0 | H16: =G16-D16 -> 0 | I16: =IF(ISERROR(H16/ABS(D16)),"N/A",(H16/ABS(D16))) -> N/A
A17: Sub-Total A (excluding pass through) | D17: =SUM(D11:D16) -> 42.67 | G17: =SUM(G11:G16) -> 40.32 | H17: -2.35 | I17: -0.05507382236
A18: Line Losses on Cost of Power | B18: =VLOOKUP($B$3,'Data Billing Quantities'!$A:$O,MATCH('BI_R1_Typical (with DRP)'!$A32,'Data Billing Quantities'!$4:$4,0),FALSE)*$B32+VLOOKUP($B$3,'Data Billing Quantities'!$A:$O,MATCH('BI_R1_Typical (with DRP)'!$A33,'Data Billing Quantities'!$4:$4,0),FALSE)*$B33+VLOOKUP($B$3,'Data Billing Quantities'!$A:$O,MATCH('BI_R1_Typical (with DRP)'!$A34,'Data Billing Quantities'!$4:$4,0),FALSE)*$B34 -> 0.12752 | C18: =($B$6*$B$4)-$B$4 -> 57 | D18: =B18*C18 -> 7.26864 | E18: =VLOOKUP($B$3,'Data Billing Quantities'!$A:$O,MATCH('BI_R1_Typical (with DRP)'!$A32,'Data Billing Quantities'!$4:$4,0),FALSE)*$B32+VLOOKUP($B$3,'Data Billing Quantities'!$A:$O,MATCH('BI_R1_Typical (with DRP)'!$A33,'Data Billing Quantities'!$4:$4,0),FALSE)*$B33+VLOOKUP($B$3,'Data Billing Quantities'!$A:$O,MATCH('BI_R1_Typical (with DRP)'!$A34,'Data Billing Quantities'!$4:$4,0),FALSE)*$B34 -> 0.12752 | F18: =($B$6*$B$4)-$B$4 -> 57 | G18: 7.26864 | H18: 0 | I18: 0
A19: Total Deferral/Variance Account Rate Rider | B19: =VLOOKUP($B$3,'Data Current Rates'!$A:$AO,MATCH('BI_R1_Typical (with DRP)'!$A19,CurrentHeader,0),FALSE) -> -0.0037 | C19: =IF($B$7="kWh",$B$4,$B$5) -> 750 | D19: -2.775 | E19: =VLOOKUP($B$3,'Data Proposed Rates'!$A:$AT,MATCH('BI_R1_Typical (with DRP)'!$A19,ProposedHeader,0),FALSE) -> -0.0017 | F19: =IF($B$7="kWh",$B$4,$B$5) -> 750 | G19: -1.275 | H19: 1.5 | I19: 0.5405405405
A20: CBR Class B Rate Rider | B20: =VLOOKUP($B$3,'Data Current Rates'!$A:$AJ,MATCH('BI_R1_Typical (with DRP)'!$A20,CurrentHeader,0),FALSE) -> 0.0001 | C20: =IF($B$7="kWh",$B$4,$B$5) -> 750 | D20: 0.075 | E20: =VLOOKUP($B$3,'Data Proposed Rates'!$A:$AT,MATCH('BI_R1_Typical (with DRP)'!$A20,ProposedHeader,0),FALSE) -> -0.0006 | F20: =IF($B$7="kWh",$B$4,$B$5) -> 750 | G20: -0.45 | H20: -0.525 | I20: -7
A21: GA Rate Rider | B21: =VLOOKUP($B$3,'Data Current Rates'!$A:$AJ,MATCH('BI_R1_Typical (with DRP)'!$A21,CurrentHeader,0),FALSE) -> 0 | C21: 750 | D21: 0 | E21: =VLOOKUP($B$3,'Data Proposed Rates'!$A:$AT,MATCH('BI_R1_Typical (with DRP)'!$A21,ProposedHeader,0),FALSE) -> 0 | F21: 750 | G21: 0 | H21: 0 | I21: N/A
A22: Smart Meter Entity Charge (if applicable) | B22: =VLOOKUP($A22,'Data Pass Through'!$A:$D,2,FALSE) -> 0.42 | C22: 1 | D22: 0.42 | E22: =VLOOKUP($A22,'Data Pass Through'!$A:$D,2,FALSE) -> 0.42 | F22: 1 | G22: 0.42 | H22: 0 | I22: 0
A23: Rate Rider for Account 1588 | E23: =VLOOKUP($B$3,'Data Proposed Rates'!$A:$AT,MATCH('BI_R1_Typical (with DRP)'!$A23,ProposedHeader,0),FALSE) -> -0.0032 | F23: =IF($B$7="kWh",$B$4,$B$5) -> 750 | G23: -2.4 | H23: -2.4 | I23: N/A
A24: Sub-Total B - Distribution (includes Sub-Total A) | D24: =SUM(INDIRECT("D17:D"&ROW()-1)) -> 47.65864 | G24: =SUM(INDIRECT("G17:G"&ROW()-1)) -> 43.88364 | H24: -3.775 | I24: -0.07920914235
A25: Retail Transmission Rate – Network Service Rate | B25: =VLOOKUP($B$3,'Data Current Rates'!$A:$AJ,MATCH('BI_R1_Typical (with DRP)'!$A25,CurrentHeader,0),FALSE) -> 0.0128 | C25: =IF($B$7="kWh",$B$4*$B$6,$B$5) -> 807 | D25: =B25*C25 -> 10.3296 | E25: =VLOOKUP($B$3,'Data Proposed Rates'!$A:$AT,MATCH('BI_R1_Typical (with DRP)'!$A25,ProposedHeader,0),FALSE) -> 0.0131 | F25: =IF($B$7="kWh",$B$4*$B$6,$B$5) -> 807 | G25: 10.5717 | H25: 0.2421 | I25: 0.0234375
A26: Retail Transmission Rate – Line and Transformation Connection Service Rate | B26: =VLOOKUP($B$3,'Data Current Rates'!$A:$AJ,MATCH('BI_R1_Typical (with DRP)'!$A26,CurrentHeader,0),FALSE) -> 0.0092 | C26: =IF($B$7="kWh",$B$4*$B$6,$B$5) -> 807 | D26: 7.4244 | E26: =VLOOKUP($B$3,'Data Proposed Rates'!$A:$AT,MATCH('BI_R1_Typical (with DRP)'!$A26,ProposedHeader,0),FALSE) -> 0.0094 | F26: =IF($B$7="kWh",$B$4*$B$6,$B$5) -> 807 | G26: 7.5858 | H26: 0.1614 | I26: 0.02173913043
A27: Sub-Total C - Delivery (including Sub-Total B) | D27: =SUM(D24:D26) -> 65.41264 | G27: =SUM(G24:G26) -> 62.04114 | H27: -3.3715 | I27: -0.05154202613
A28: Wholesale Market Service Rate (WMS) – not including CBR | B28: =VLOOKUP($A28,'Data Pass Through'!$A:$D,2,FALSE) -> 0.0041 | C28: =$B$4*$B$6 -> 807 | D28: =B28*C28 -> 3.3087 | E28: =VLOOKUP($A28,'Data Pass Through'!$A:$D,3,FALSE) -> 0.0041 | F28: =$B$4*$B$6 -> 807 | G28: 3.3087 | H28: 0 | I28: 0
A29: Capacity Based Recovery (CBR) – Applicable for Class B Customers | B29: =VLOOKUP($A29,'Data Pass Through'!$A:$D,2,FALSE) -> 0.0006 | C29: =$B$4*$B$6 -> 807 | D29: 0.4842 | E29: =VLOOKUP($A29,'Data Pass Through'!$A:$D,3,FALSE) -> 0.0006 | F29: =$B$4*$B$6 -> 807 | G29: 0.4842 | H29: 0 | I29: 0
A30: Rural Rate Protection Charge | B30: =VLOOKUP($A30,'Data Pass Through'!$A:$D,2,FALSE) -> 0.0006 | C30: =$B$4*$B$6 -> 807 | D30: 0.4842 | E30: =VLOOKUP($A30,'Data Pass Through'!$A:$D,3,FALSE) -> 0.0006 | F30: =$B$4*$B$6 -> 807 | G30: 0.4842 | H30: 0 | I30: 0
A31: Standard Supply Service – Administration Charge (if applicable) | B31: =VLOOKUP($A31,'Data Pass Through'!$A:$D,2,FALSE) -> 0.25 | C31: 1 | D31: 0.25 | E31: =VLOOKUP($A31,'Data Pass Through'!$A:$D,3,FALSE) -> 0.25 | F31: 1 | G31: 0.25 | H31: 0 | I31: 0
A32: TOU-Off Peak | B32: =VLOOKUP($A32,'Data Pass Through'!$A:$D,2,FALSE) -> 0.098 | C32: =B$4*VLOOKUP($B$3,'Data Billing Quantities'!$A:$O,MATCH($A32,'Data Billing Quantities'!$4:$4,0),FALSE) -> 480 | D32: 47.04 | E32: =VLOOKUP($A32,'Data Pass Through'!$A:$D,3,FALSE) -> 0.098 | F32: =B$4*VLOOKUP($B$3,'Data Billing Quantities'!$A:$O,MATCH($A32,'Data Billing Quantities'!$4:$4,0),FALSE) -> 480 | G32: =E32*F32 -> 47.04 | H32: 0 | I32: 0
A33: TOU-Mid Peak | B33: =VLOOKUP($A33,'Data Pass Through'!$A:$D,2,FALSE) -> 0.157 | C33: =B$4*VLOOKUP($B$3,'Data Billing Quantities'!$A:$O,MATCH($A33,'Data Billing Quantities'!$4:$4,0),FALSE) -> 135 | D33: 21.195 | E33: =VLOOKUP($A33,'Data Pass Through'!$A:$D,3,FALSE) -> 0.157 | F33: =B$4*VLOOKUP($B$3,'Data Billing Quantities'!$A:$O,MATCH($A33,'Data Billing Quantities'!$4:$4,0),FALSE) -> 135 | G33: =E33*F33 -> 21.195 | H33: 0 | I33: 0
A34: TOU-On Peak | B34: =VLOOKUP($A34,'Data Pass Through'!$A:$D,2,FALSE) -> 0.203 | C34: =B$4*VLOOKUP($B$3,'Data Billing Quantities'!$A:$O,MATCH($A34,'Data Billing Quantities'!$4:$4,0),FALSE) -> 135 | D34: 27.405 | E34: =VLOOKUP($A34,'Data Pass Through'!$A:$D,3,FALSE) -> 0.203 | F34: =B$4*VLOOKUP($B$3,'Data Billing Quantities'!$A:$O,MATCH($A34,'Data Billing Quantities'!$4:$4,0),FALSE) -> 135 | G34: =E34*F34 -> 27.405 | H34: 0 | I34: 0
A35: Total Bill on TOU (before Taxes) | D35: =SUM(D27:D34) -> 165.57974 | G35: =SUM(G27:G34) -> 162.20824 | H35: -3.3715 | I35: -0.02036179064
A36: HST | B36: 0.13 | D36: =D35*B36 -> 21.5253662 | E36: =B36 -> 0.13 | G36: =G35*E36 -> 21.0870712 | H36: -0.438295 | I36: -0.02036179064
A37: Ontario Electricity Rebate (OER) | B37: =IF(($B$4*12)<250000,VLOOKUP($A37,'Data Pass Through'!$A$4:$C$19,2,0),0) -> -0.235 | D37: =D35*B37 -> -38.9112389 | E37: =IF(($B$4*12)<250000,VLOOKUP($A37,'Data Pass Through'!$A$4:$C$19,3,0),0) -> -0.235 | G37: =G35*E37 -> -38.1189364 | H37: 0.7923025 | I37: 0.02036179064
A38: Total Bill on TOU | D38: =SUM(D35:D37) -> 148.1938673 | G38: =SUM(G35:G37) -> 145.1763748 | H38: -3.0174925 | I38: -0.02036179064
A39: * Distribution rate protection applies to R1 and R2 customers

Sheet BI_R1_Typical (without DRP)
A1: Bill Impacts (Typical Consumption Level) - R1
A3: Rate Class | B3: =RIGHT(A1,LEN(A1)-FIND("- ",A1,1)-1) -> R1
A4: Monthly Consumption (kWh) | B4: =IF(COUNTIF(A1,"*Low*")>0,VLOOKUP(B3,'Data Billing Quantities'!$A:$Z,MATCH("Low kWh",'Data Billing Quantities'!4:4,0),FALSE),IF(COUNTIF(A1,"*Typical*")>0,VLOOKUP(B3,'Data Billing Quantities'!$A:$Z,MATCH("Typical kWh",'Data Billing Quantities'!4:4,0),FALSE),IF(COUNTIF(A1,"*Average*")>0,VLOOKUP(B3,'Data Billing Quantities'!$A:$Z,MATCH("Average kWh",'Data Billing Quantities'!4:4,0),FALSE),IF(COUNTIF(A1,"*High*")>0,VLOOKUP(B3,'Data Billing Quantities'!$A:$Z,MATCH("High kWh",'Data Billing Quantities'!4:4,0),FALSE),"error")))) -> 750
A5: Peak (kW) | B5: =IF(COUNTIF(A1,"*Low*")>0,VLOOKUP(B3,'Data Billing Quantities'!$A:$Z,MATCH("Low kW",'Data Billing Quantities'!4:4,0),FALSE),IF(COUNTIF(A1,"*Typical*")>0,VLOOKUP(B3,'Data Billing Quantities'!$A:$Z,MATCH("Typical kW",'Data Billing Quantities'!4:4,0),FALSE),IF(COUNTIF(A1,"*Average*")>0,VLOOKUP(B3,'Data Billing Quantities'!$A:$Z,MATCH("Average kW",'Data Billing Quantities'!4:4,0),FALSE),IF(COUNTIF(A1,"*High*")>0,VLOOKUP(B3,'Data Billing Quantities'!$A:$Z,MATCH("High kW",'Data Billing Quantities'!4:4,0),FALSE),"error")))) -> 0
A6: Loss factor | B6: =VLOOKUP(B3,'Data Billing Quantities'!A:D,MATCH(A6,'Data Billing Quantities'!4:4,0),FALSE) -> 1.076
A7: Charge determinant | B7: =VLOOKUP(B3,'Data Billing Quantities'!A:D,MATCH(A7,'Data Billing Quantities'!4:4,0),FALSE) -> kWh
B9: Current OEB-Approved | E9: Proposed | H9: Impact
B10: Rate ($) | C10: Volume | D10: Charge ($) | E10: Rate ($) | F10: Volume | G10: Charge ($) | H10: $ Change | I10: % Change
A11: Service Charge | B11: =VLOOKUP($B$3,'Data Current Rates'!$A:$AO,MATCH('BI_R1_Typical (without DRP)'!$A11,CurrentHeader,0),FALSE) -> 71.05 | C11: 1 | D11: =B11*C11 -> 71.05 | E11: =VLOOKUP($B$3,'Data Proposed Rates'!$A:$AT,MATCH('BI_R1_Typical (without DRP)'!$A11,ProposedHeader,0),FALSE) -> 74.62 | F11: 1 | G11: =E11*F11 -> 74.62 | H11: =G11-D11 -> 3.57 | I11: =IF(ISERROR(H11/ABS(D11)),"N/A",(H11/ABS(D11))) -> 0.05024630542
A12: Distribution Volumetric Charge | B12: =VLOOKUP($B$3,'Data Current Rates'!$A:$AO,MATCH('BI_R1_Typical (without DRP)'!$A12,CurrentHeader,0),FALSE) -> 0 | C12: =IF($B$7="kWh",$B$4,$B$5) -> 750 | D12: =B12*C12 -> 0 | E12: =VLOOKUP($B$3,'Data Proposed Rates'!$A:$AT,MATCH('BI_R1_Typical (without DRP)'!$A12,ProposedHeader,0),FALSE) -> 0 | F12: =IF($B$7="kWh",$B$4,$B$5) -> 750 | G12: 0 | H12: 0 | I12: N/A
A13: RRRP Adjustment | B13: =IF($B$3="R2",VLOOKUP(A13,'Data Pass Through'!$A4:$C19,3,0),0)*-1 -> 0 | C13: 1 | D13: =B13*C13 -> 0 | E13: =IF($B$3="R2",VLOOKUP(A13,'Data Pass Through'!$A4:$C19,3,0),0)*-1 -> 0 | F13: 1 | G13: 0 | H13: 0 | I13: N/A
A14: DRP Adjustment | H14: 0 | I14: N/A
A15: Group 2 Fixed Rate Rider | B15: =VLOOKUP($B$3,'Data Current Rates'!$A:$AO,MATCH('BI_R1_Typical (without DRP)'!$A15,CurrentHeader,0),FALSE) -> -0.21 | C15: 1 | D15: =B15*C15 -> -0.21 | E15: =VLOOKUP($B$3,'Data Proposed Rates'!$A:$AT,MATCH('BI_R1_Typical (without DRP)'!$A15,ProposedHeader,0),FALSE) -> -2.56 | F15: 1 | G15: =E15*F15 -> -2.56 | H15: -2.35 | I15: -11.19047619
A16: Group 2 Volumetric Rate Rider | B16: =VLOOKUP($B$3,'Data Current Rates'!$A:$AO,MATCH('BI_R1_Typical (without DRP)'!$A16,CurrentHeader,0),FALSE) -> 0 | C16: =IF($B$7="kWh",$B$4,$B$5) -> 750 | D16: =B16*C16 -> 0 | E16: =VLOOKUP($B$3,'Data Proposed Rates'!$A:$AT,MATCH('BI_R1_Typical (without DRP)'!$A16,ProposedHeader,0),FALSE) -> 0 | F16: =IF($B$7="kWh",$B$4,$B$5) -> 750 | G16: 0 | H16: =G16-D16 -> 0 | I16: =IF(ISERROR(H16/ABS(D16)),"N/A",(H16/ABS(D16))) -> N/A
A17: Sub-Total A (excluding pass through) | D17: =SUM(D11:D16) -> 70.84 | G17: =SUM(G11:G16) -> 72.06 | H17: 1.22 | I17: 0.01722190853
A18: Line Losses on Cost of Power | B18: =VLOOKUP($B$3,'Data Billing Quantities'!$A:$O,MATCH('BI_R1_Typical (without DRP)'!$A32,'Data Billing Quantities'!$4:$4,0),FALSE)*$B32+VLOOKUP($B$3,'Data Billing Quantities'!$A:$O,MATCH('BI_R1_Typical (without DRP)'!$A33,'Data Billing Quantities'!$4:$4,0),FALSE)*$B33+VLOOKUP($B$3,'Data Billing Quantities'!$A:$O,MATCH('BI_R1_Typical (without DRP)'!$A34,'Data Billing Quantities'!$4:$4,0),FALSE)*$B34 -> 0.12752 | C18: =($B$6*$B$4)-$B$4 -> 57 | D18: =B18*C18 -> 7.26864 | E18: =VLOOKUP($B$3,'Data Billing Quantities'!$A:$O,MATCH('BI_R1_Typical (without DRP)'!$A32,'Data Billing Quantities'!$4:$4,0),FALSE)*$B32+VLOOKUP($B$3,'Data Billing Quantities'!$A:$O,MATCH('BI_R1_Typical (without DRP)'!$A33,'Data Billing Quantities'!$4:$4,0),FALSE)*$B33+VLOOKUP($B$3,'Data Billing Quantities'!$A:$O,MATCH('BI_R1_Typical (without DRP)'!$A34,'Data Billing Quantities'!$4:$4,0),FALSE)*$B34 -> 0.12752 | F18: =($B$6*$B$4)-$B$4 -> 57 | G18: 7.26864 | H18: 0 | I18: 0
A19: Total Deferral/Variance Account Rate Rider | B19: =VLOOKUP($B$3,'Data Current Rates'!$A:$AO,MATCH('BI_R1_Typical (without DRP)'!$A19,CurrentHeader,0),FALSE) -> -0.0037 | C19: =IF($B$7="kWh",$B$4,$B$5) -> 750 | D19: -2.775 | E19: =VLOOKUP($B$3,'Data Proposed Rates'!$A:$AT,MATCH('BI_R1_Typical (without DRP)'!$A19,ProposedHeader,0),FALSE) -> -0.0017 | F19: =IF($B$7="kWh",$B$4,$B$5) -> 750 | G19: -1.275 | H19: 1.5 | I19: 0.5405405405
A20: CBR Class B Rate Rider | B20: =VLOOKUP($B$3,'Data Current Rates'!$A:$AJ,MATCH('BI_R1_Typical (without DRP)'!$A20,CurrentHeader,0),FALSE) -> 0.0001 | C20: =IF($B$7="kWh",$B$4,$B$5) -> 750 | D20: 0.075 | E20: =VLOOKUP($B$3,'Data Proposed Rates'!$A:$AT,MATCH('BI_R1_Typical (without DRP)'!$A20,ProposedHeader,0),FALSE) -> -0.0006 | F20: =IF($B$7="kWh",$B$4,$B$5) -> 750 | G20: -0.45 | H20: -0.525 | I20: -7
A21: GA Rate Rider | B21: =VLOOKUP($B$3,'Data Current Rates'!$A:$AJ,MATCH('BI_R1_Typical (without DRP)'!$A21,CurrentHeader,0),FALSE) -> 0 | C21: 750 | D21: 0 | E21: =VLOOKUP($B$3,'Data Proposed Rates'!$A:$AT,MATCH('BI_R1_Typical (without DRP)'!$A21,ProposedHeader,0),FALSE) -> 0 | F21: 750 | G21: 0 | H21: 0 | I21: N/A
A22: Smart Meter Entity Charge (if applicable) | B22: =VLOOKUP($A22,'Data Pass Through'!$A:$D,2,FALSE) -> 0.42 | C22: 1 | D22: 0.42 | E22: =VLOOKUP($A22,'Data Pass Through'!$A:$D,2,FALSE) -> 0.42 | F22: 1 | G22: 0.42 | H22: 0 | I22: 0
A23: Rate Rider for Account 1588 | E23: =VLOOKUP($B$3,'Data Proposed Rates'!$A:$AT,MATCH('BI_R1_Typical (without DRP)'!$A23,ProposedHeader,0),FALSE) -> -0.0032 | F23: =IF($B$7="kWh",$B$4,$B$5) -> 750 | G23: -2.4 | H23: -2.4 | I23: N/A
A24: Sub-Total B - Distribution (includes Sub-Total A) | D24: =SUM(INDIRECT("D17:D"&ROW()-1)) -> 75.82864 | G24: =SUM(INDIRECT("G17:G"&ROW()-1)) -> 75.62364 | H24: -0.205 | I24: -0.002703464021
A25: Retail Transmission Rate – Network Service Rate | B25: =VLOOKUP($B$3,'Data Current Rates'!$A:$AJ,MATCH('BI_R1_Typical (without DRP)'!$A25,CurrentHeader,0),FALSE) -> 0.0128 | C25: =IF($B$7="kWh",$B$4*$B$6,$B$5) -> 807 | D25: =B25*C25 -> 10.3296 | E25: =VLOOKUP($B$3,'Data Proposed Rates'!$A:$AT,MATCH('BI_R1_Typical (without DRP)'!$A25,ProposedHeader,0),FALSE) -> 0.0131 | F25: =IF($B$7="kWh",$B$4*$B$6,$B$5) -> 807 | G25: 10.5717 | H25: 0.2421 | I25: 0.0234375
A26: Retail Transmission Rate – Line and Transformation Connection Service Rate | B26: =VLOOKUP($B$3,'Data Current Rates'!$A:$AJ,MATCH('BI_R1_Typical (without DRP)'!$A26,CurrentHeader,0),FALSE) -> 0.0092 | C26: =IF($B$7="kWh",$B$4*$B$6,$B$5) -> 807 | D26: 7.4244 | E26: =VLOOKUP($B$3,'Data Proposed Rates'!$A:$AT,MATCH('BI_R1_Typical (without DRP)'!$A26,ProposedHeader,0),FALSE) -> 0.0094 | F26: =IF($B$7="kWh",$B$4*$B$6,$B$5) -> 807 | G26: 7.5858 | H26: 0.1614 | I26: 0.02173913043
A27: Sub-Total C - Delivery (including Sub-Total B) | D27: =SUM(D24:D26) -> 93.58264 | G27: =SUM(G24:G26) -> 93.78114 | H27: 0.1985 | I27: 0.0021211199
A28: Wholesale Market Service Rate (WMS) – not including CBR | B28: =VLOOKUP($A28,'Data Pass Through'!$A:$D,2,FALSE) -> 0.0041 | C28: =$B$4*$B$6 -> 807 | D28: =B28*C28 -> 3.3087 | E28: =VLOOKUP($A28,'Data Pass Through'!$A:$D,3,FALSE) -> 0.0041 | F28: =$B$4*$B$6 -> 807 | G28: 3.3087 | H28: 0 | I28: 0
A29: Capacity Based Recovery (CBR) – Applicable for Class B Customers | B29: =VLOOKUP($A29,'Data Pass Through'!$A:$D,2,FALSE) -> 0.0006 | C29: =$B$4*$B$6 -> 807 | D29: 0.4842 | E29: =VLOOKUP($A29,'Data Pass Through'!$A:$D,3,FALSE) -> 0.0006 | F29: =$B$4*$B$6 -> 807 | G29: 0.4842 | H29: 0 | I29: 0
A30: Rural Rate Protection Charge | B30: =VLOOKUP($A30,'Data Pass Through'!$A:$D,2,FALSE) -> 0.0006 | C30: =$B$4*$B$6 -> 807 | D30: 0.4842 | E30: =VLOOKUP($A30,'Data Pass Through'!$A:$D,3,FALSE) -> 0.0006 | F30: =$B$4*$B$6 -> 807 | G30: 0.4842 | H30: 0 | I30: 0
A31: Standard Supply Service – Administration Charge (if applicable) | B31: =VLOOKUP($A31,'Data Pass Through'!$A:$D,2,FALSE) -> 0.25 | C31: 1 | D31: 0.25 | E31: =VLOOKUP($A31,'Data Pass Through'!$A:$D,3,FALSE) -> 0.25 | F31: 1 | G31: 0.25 | H31: 0 | I31: 0
A32: TOU-Off Peak | B32: =VLOOKUP($A32,'Data Pass Through'!$A:$D,2,FALSE) -> 0.098 | C32: =B$4*VLOOKUP($B$3,'Data Billing Quantities'!$A:$O,MATCH($A32,'Data Billing Quantities'!$4:$4,0),FALSE) -> 480 | D32: 47.04 | E32: =VLOOKUP($A32,'Data Pass Through'!$A:$D,3,FALSE) -> 0.098 | F32: =B$4*VLOOKUP($B$3,'Data Billing Quantities'!$A:$O,MATCH($A32,'Data Billing Quantities'!$4:$4,0),FALSE) -> 480 | G32: =E32*F32 -> 47.04 | H32: 0 | I32: 0
A33: TOU-Mid Peak | B33: =VLOOKUP($A33,'Data Pass Through'!$A:$D,2,FALSE) -> 0.157 | C33: =B$4*VLOOKUP($B$3,'Data Billing Quantities'!$A:$O,MATCH($A33,'Data Billing Quantities'!$4:$4,0),FALSE) -> 135 | D33: 21.195 | E33: =VLOOKUP($A33,'Data Pass Through'!$A:$D,3,FALSE) -> 0.157 | F33: =B$4*VLOOKUP($B$3,'Data Billing Quantities'!$A:$O,MATCH($A33,'Data Billing Quantities'!$4:$4,0),FALSE) -> 135 | G33: =E33*F33 -> 21.195 | H33: 0 | I33: 0
A34: TOU-On Peak | B34: =VLOOKUP($A34,'Data Pass Through'!$A:$D,2,FALSE) -> 0.203 | C34: =B$4*VLOOKUP($B$3,'Data Billing Quantities'!$A:$O,MATCH($A34,'Data Billing Quantities'!$4:$4,0),FALSE) -> 135 | D34: 27.405 | E34: =VLOOKUP($A34,'Data Pass Through'!$A:$D,3,FALSE) -> 0.203 | F34: =B$4*VLOOKUP($B$3,'Data Billing Quantities'!$A:$O,MATCH($A34,'Data Billing Quantities'!$4:$4,0),FALSE) -> 135 | G34: =E34*F34 -> 27.405 | H34: 0 | I34: 0
A35: Total Bill on TOU (before Taxes) | D35: =SUM(D27:D34) -> 193.74974 | G35: =SUM(G27:G34) -> 193.94824 | H35: 0.1985 | I35: 0.001024517504
A36: HST | B36: 0.13 | D36: =D35*B36 -> 25.1874662 | E36: =B36 -> 0.13 | G36: =G35*E36 -> 25.2132712 | H36: 0.025805 | I36: 0.001024517504
A37: Ontario Electricity Rebate (OER) | B37: =IF(($B$4*12)<250000,VLOOKUP($A37,'Data Pass Through'!$A$4:$C$19,2,0),0) -> -0.235 | D37: =D35*B37 -> -45.5311889 | E37: =IF(($B$4*12)<250000,VLOOKUP($A37,'Data Pass Through'!$A$4:$C$19,3,0),0) -> -0.235 | G37: =G35*E37 -> -45.5778364 | H37: -0.0466475 | I37: -0.001024517504
A38: Total Bill on TOU | D38: =SUM(D35:D37) -> 173.4060173 | G38: =SUM(G35:G37) -> 173.5836748 | H38: 0.1776575 | I38: 0.001024517504
A39: * Distribution rate protection applies to R1 and R2 customers

Sheet BI_R2_Typical (with DRP)
A1: Bill Impacts (Typical Consumption Level) - R2
A3: Rate Class | B3: =RIGHT(A1,LEN(A1)-FIND("- ",A1,1)-1) -> R2
A4: Monthly Consumption (kWh) | B4: =IF(COUNTIF(A1,"*Low*")>0,VLOOKUP(B3,'Data Billing Quantities'!$A:$Z,MATCH("Low kWh",'Data Billing Quantities'!4:4,0),FALSE),IF(COUNTIF(A1,"*Typical*")>0,VLOOKUP(B3,'Data Billing Quantities'!$A:$Z,MATCH("Typical kWh",'Data Billing Quantities'!4:4,0),FALSE),IF(COUNTIF(A1,"*Average*")>0,VLOOKUP(B3,'Data Billing Quantities'!$A:$Z,MATCH("Average kWh",'Data Billing Quantities'!4:4,0),FALSE),IF(COUNTIF(A1,"*High*")>0,VLOOKUP(B3,'Data Billing Quantities'!$A:$Z,MATCH("High kWh",'Data Billing Quantities'!4:4,0),FALSE),"error")))) -> 750
A5: Peak (kW) | B5: =IF(COUNTIF(A1,"*Low*")>0,VLOOKUP(B3,'Data Billing Quantities'!$A:$Z,MATCH("Low kW",'Data Billing Quantities'!4:4,0),FALSE),IF(COUNTIF(A1,"*Typical*")>0,VLOOKUP(B3,'Data Billing Quantities'!$A:$Z,MATCH("Typical kW",'Data Billing Quantities'!4:4,0),FALSE),IF(COUNTIF(A1,"*Average*")>0,VLOOKUP(B3,'Data Billing Quantities'!$A:$Z,MATCH("Average kW",'Data Billing Quantities'!4:4,0),FALSE),IF(COUNTIF(A1,"*High*")>0,VLOOKUP(B3,'Data Billing Quantities'!$A:$Z,MATCH("High kW",'Data Billing Quantities'!4:4,0),FALSE),"error")))) -> 0
A6: Loss factor | B6: =VLOOKUP(B3,'Data Billing Quantities'!A:D,MATCH(A6,'Data Billing Quantities'!4:4,0),FALSE) -> 1.105
A7: Charge determinant | B7: =VLOOKUP(B3,'Data Billing Quantities'!A:D,MATCH(A7,'Data Billing Quantities'!4:4,0),FALSE) -> kWh
B9: Current OEB-Approved | E9: Proposed | H9: Impact
B10: Rate ($) | C10: Volume | D10: Charge ($) | E10: Rate ($) | F10: Volume | G10: Charge ($) | H10: $ Change | I10: % Change
A11: Service Charge | B11: =VLOOKUP($B$3,'Data Current Rates'!$A:$AO,MATCH('BI_R2_Typical (with DRP)'!$A11,CurrentHeader,0),FALSE) -> 143.96 | C11: 1 | D11: =B11*C11 -> 143.96 | E11: =VLOOKUP($B$3,'Data Proposed Rates'!$A:$AT,MATCH('BI_R2_Typical (with DRP)'!$A11,ProposedHeader,0),FALSE) -> 151.14 | F11: 1 | G11: =E11*F11 -> 151.14 | H11: =G11-D11 -> 7.18 | I11: =IF(ISERROR(H11/ABS(D11)),"N/A",(H11/ABS(D11))) -> 0.04987496527
A12: Distribution Volumetric Charge | B12: =VLOOKUP($B$3,'Data Current Rates'!$A:$AO,MATCH('BI_R2_Typical (with DRP)'!$A12,CurrentHeader,0),FALSE) -> 0.0121 | C12: =IF($B$7="kWh",$B$4,$B$5) -> 750 | D12: =B12*C12 -> 9.075 | E12: =VLOOKUP($B$3,'Data Proposed Rates'!$A:$AT,MATCH('BI_R2_Typical (with DRP)'!$A12,ProposedHeader,0),FALSE) -> 0.0117 | F12: =IF($B$7="kWh",$B$4,$B$5) -> 750 | G12: 8.775 | H12: -0.3 | I12: -0.03305785124
A13: RRRP Adjustment | B13: =IF($B$3="R2",VLOOKUP(A13,'Data Pass Through'!$A4:$C19,3,0),0)*-1 -> -60.5 | C13: 1 | D13: =B13*C13 -> -60.5 | E13: =IF($B$3="R2",VLOOKUP(A13,'Data Pass Through'!$A4:$C19,3,0),0)*-1 -> -60.5 | F13: 1 | G13: -60.5 | H13: 0 | I13: 0
A14: DRP Adjustment | D14: =IF(OR($B$3="R1",$B$3="R2",$B$3="R1-CPUC"),IF(SUM(D11:D13)>'Data Pass Through'!$B$16,-(SUM(D11:D13)-'Data Pass Through'!$B$16),0),0) -> -49.655 | G14: =IF(OR($B$3="R1",$B$3="R2",$B$3="R1-CPUC"),IF(SUM(G11:G13)>'Data Pass Through'!$B$16,-(SUM(G11:G13)-'Data Pass Through'!$B$16),0),0) -> -56.535 | H14: -6.88 | I14: -0.1385560367
A15: Group 2 Fixed Rate Rider | B15: =VLOOKUP($B$3,'Data Current Rates'!$A:$AO,MATCH('BI_R2_Typical (with DRP)'!$A15,CurrentHeader,0),FALSE) -> -0.44 | C15: 1 | D15: =B15*C15 -> -0.44 | E15: =VLOOKUP($B$3,'Data Proposed Rates'!$A:$AT,MATCH('BI_R2_Typical (with DRP)'!$A15,ProposedHeader,0),FALSE) -> -5.18 | F15: 1 | G15: =E15*F15 -> -5.18 | H15: -4.74 | I15: -10.77272727
A16: Group 2 Volumetric Rate Rider | B16: =VLOOKUP($B$3,'Data Current Rates'!$A:$AO,MATCH('BI_R2_Typical (with DRP)'!$A16,CurrentHeader,0),FALSE) -> 0 | C16: =IF($B$7="kWh",$B$4,$B$5) -> 750 | D16: =B16*C16 -> 0 | E16: =VLOOKUP($B$3,'Data Proposed Rates'!$A:$AT,MATCH('BI_R2_Typical (with DRP)'!$A16,ProposedHeader,0),FALSE) -> 0 | F16: =IF($B$7="kWh",$B$4,$B$5) -> 750 | G16: 0 | H16: =G16-D16 -> 0 | I16: =IF(ISERROR(H16/ABS(D16)),"N/A",(H16/ABS(D16))) -> N/A
A17: Sub-Total A (excluding pass through) | D17: =SUM(D11:D16) -> 42.44 | G17: =SUM(G11:G16) -> 37.7 | H17: -4.74 | I17: -0.1116870877
A18: Line Losses on Cost of Power | B18: =VLOOKUP($B$3,'Data Billing Quantities'!$A:$O,MATCH('BI_R2_Typical (with DRP)'!$A32,'Data Billing Quantities'!$4:$4,0),FALSE)*$B32+VLOOKUP($B$3,'Data Billing Quantities'!$A:$O,MATCH('BI_R2_Typical (with DRP)'!$A33,'Data Billing Quantities'!$4:$4,0),FALSE)*$B33+VLOOKUP($B$3,'Data Billing Quantities'!$A:$O,MATCH('BI_R2_Typical (with DRP)'!$A34,'Data Billing Quantities'!$4:$4,0),FALSE)*$B34 -> 0.12752 | C18: =($B$6*$B$4)-$B$4 -> 78.75 | D18: =B18*C18 -> 10.0422 | E18: =VLOOKUP($B$3,'Data Billing Quantities'!$A:$O,MATCH('BI_R2_Typical (with DRP)'!$A32,'Data Billing Quantities'!$4:$4,0),FALSE)*$B32+VLOOKUP($B$3,'Data Billing Quantities'!$A:$O,MATCH('BI_R2_Typical (with DRP)'!$A33,'Data Billing Quantities'!$4:$4,0),FALSE)*$B33+VLOOKUP($B$3,'Data Billing Quantities'!$A:$O,MATCH('BI_R2_Typical (with DRP)'!$A34,'Data Billing Quantities'!$4:$4,0),FALSE)*$B34 -> 0.12752 | F18: =($B$6*$B$4)-$B$4 -> 78.75 | G18: 10.0422 | H18: 0 | I18: 0
A19: Total Deferral/Variance Account Rate Rider | B19: =VLOOKUP($B$3,'Data Current Rates'!$A:$AO,MATCH('BI_R2_Typical (with DRP)'!$A19,CurrentHeader,0),FALSE) -> -0.0037 | C19: =IF($B$7="kWh",$B$4,$B$5) -> 750 | D19: -2.775 | E19: =VLOOKUP($B$3,'Data Proposed Rates'!$A:$AT,MATCH('BI_R2_Typical (with DRP)'!$A19,ProposedHeader,0),FALSE) -> -0.0017 | F19: =IF($B$7="kWh",$B$4,$B$5) -> 750 | G19: -1.275 | H19: 1.5 | I19: 0.5405405405
A20: CBR Class B Rate Rider | B20: =VLOOKUP($B$3,'Data Current Rates'!$A:$AJ,MATCH('BI_R2_Typical (with DRP)'!$A20,CurrentHeader,0),FALSE) -> 0.0001 | C20: =IF($B$7="kWh",$B$4,$B$5) -> 750 | D20: 0.075 | E20: =VLOOKUP($B$3,'Data Proposed Rates'!$A:$AT,MATCH('BI_R2_Typical (with DRP)'!$A20,ProposedHeader,0),FALSE) -> -0.0006 | F20: =IF($B$7="kWh",$B$4,$B$5) -> 750 | G20: -0.45 | H20: -0.525 | I20: -7
A21: GA Rate Rider | B21: =VLOOKUP($B$3,'Data Current Rates'!$A:$AJ,MATCH('BI_R2_Typical (with DRP)'!$A21,CurrentHeader,0),FALSE) -> 0 | C21: 750 | D21: 0 | E21: =VLOOKUP($B$3,'Data Proposed Rates'!$A:$AT,MATCH('BI_R2_Typical (with DRP)'!$A21,ProposedHeader,0),FALSE) -> 0 | F21: 750 | G21: 0 | H21: 0 | I21: N/A
A22: Smart Meter Entity Charge (if applicable) | B22: =VLOOKUP($A22,'Data Pass Through'!$A:$D,2,FALSE) -> 0.42 | C22: 1 | D22: 0.42 | E22: =VLOOKUP($A22,'Data Pass Through'!$A:$D,2,FALSE) -> 0.42 | F22: 1 | G22: 0.42 | H22: 0 | I22: 0
A23: Rate Rider for Account 1588 | E23: =VLOOKUP($B$3,'Data Proposed Rates'!$A:$AT,MATCH('BI_R2_Typical (with DRP)'!$A23,ProposedHeader,0),FALSE) -> -0.0032 | F23: =IF($B$7="kWh",$B$4,$B$5) -> 750 | G23: -2.4 | H23: -2.4 | I23: N/A
A24: Sub-Total B - Distribution (includes Sub-Total A) | D24: =SUM(INDIRECT("D17:D"&ROW()-1)) -> 50.2022 | G24: =SUM(INDIRECT("G17:G"&ROW()-1)) -> 44.0372 | H24: -6.165 | I24: -0.1228033831
A25: Retail Transmission Rate – Network Service Rate | B25: =VLOOKUP($B$3,'Data Current Rates'!$A:$AJ,MATCH('BI_R2_Typical (with DRP)'!$A25,CurrentHeader,0),FALSE) -> 0.0118 | C25: =IF($B$7="kWh",$B$4*$B$6,$B$5) -> 828.75 | D25: =B25*C25 -> 9.77925 | E25: =VLOOKUP($B$3,'Data Proposed Rates'!$A:$AT,MATCH('BI_R2_Typical (with DRP)'!$A25,ProposedHeader,0),FALSE) -> 0.0121 | F25: =IF($B$7="kWh",$B$4*$B$6,$B$5) -> 828.75 | G25: 10.027875 | H25: 0.248625 | I25: 0.02542372881
A26: Retail Transmission Rate – Line and Transformation Connection Service Rate | B26: =VLOOKUP($B$3,'Data Current Rates'!$A:$AJ,MATCH('BI_R2_Typical (with DRP)'!$A26,CurrentHeader,0),FALSE) -> 0.0086 | C26: =IF($B$7="kWh",$B$4*$B$6,$B$5) -> 828.75 | D26: 7.12725 | E26: =VLOOKUP($B$3,'Data Proposed Rates'!$A:$AT,MATCH('BI_R2_Typical (with DRP)'!$A26,ProposedHeader,0),FALSE) -> 0.0088 | F26: =IF($B$7="kWh",$B$4*$B$6,$B$5) -> 828.75 | G26: 7.293 | H26: 0.16575 | I26: 0.02325581395
A27: Sub-Total C - Delivery (including Sub-Total B) | D27: =SUM(D24:D26) -> 67.1087 | G27: =SUM(G24:G26) -> 61.358075 | H27: -5.750625 | I27: -0.0856911995
A28: Wholesale Market Service Rate (WMS) – not including CBR | B28: =VLOOKUP($A28,'Data Pass Through'!$A:$D,2,FALSE) -> 0.0041 | C28: =$B$4*$B$6 -> 828.75 | D28: =B28*C28 -> 3.397875 | E28: =VLOOKUP($A28,'Data Pass Through'!$A:$D,3,FALSE) -> 0.0041 | F28: =$B$4*$B$6 -> 828.75 | G28: 3.397875 | H28: 0 | I28: 0
A29: Capacity Based Recovery (CBR) – Applicable for Class B Customers | B29: =VLOOKUP($A29,'Data Pass Through'!$A:$D,2,FALSE) -> 0.0006 | C29: =$B$4*$B$6 -> 828.75 | D29: 0.49725 | E29: =VLOOKUP($A29,'Data Pass Through'!$A:$D,3,FALSE) -> 0.0006 | F29: =$B$4*$B$6 -> 828.75 | G29: 0.49725 | H29: 0 | I29: 0
A30: Rural Rate Protection Charge | B30: =VLOOKUP($A30,'Data Pass Through'!$A:$D,2,FALSE) -> 0.0006 | C30: =$B$4*$B$6 -> 828.75 | D30: 0.49725 | E30: =VLOOKUP($A30,'Data Pass Through'!$A:$D,3,FALSE) -> 0.0006 | F30: =$B$4*$B$6 -> 828.75 | G30: 0.49725 | H30: 0 | I30: 0
A31: Standard Supply Service – Administration Charge (if applicable) | B31: =VLOOKUP($A31,'Data Pass Through'!$A:$D,2,FALSE) -> 0.25 | C31: 1 | D31: 0.25 | E31: =VLOOKUP($A31,'Data Pass Through'!$A:$D,3,FALSE) -> 0.25 | F31: 1 | G31: 0.25 | H31: 0 | I31: 0
A32: TOU-Off Peak | B32: =VLOOKUP($A32,'Data Pass Through'!$A:$D,2,FALSE) -> 0.098 | C32: =B$4*VLOOKUP($B$3,'Data Billing Quantities'!$A:$O,MATCH($A32,'Data Billing Quantities'!$4:$4,0),FALSE) -> 480 | D32: 47.04 | E32: =VLOOKUP($A32,'Data Pass Through'!$A:$D,3,FALSE) -> 0.098 | F32: =B$4*VLOOKUP($B$3,'Data Billing Quantities'!$A:$O,MATCH($A32,'Data Billing Quantities'!$4:$4,0),FALSE) -> 480 | G32: =E32*F32 -> 47.04 | H32: 0 | I32: 0
A33: TOU-Mid Peak | B33: =VLOOKUP($A33,'Data Pass Through'!$A:$D,2,FALSE) -> 0.157 | C33: =B$4*VLOOKUP($B$3,'Data Billing Quantities'!$A:$O,MATCH($A33,'Data Billing Quantities'!$4:$4,0),FALSE) -> 135 | D33: 21.195 | E33: =VLOOKUP($A33,'Data Pass Through'!$A:$D,3,FALSE) -> 0.157 | F33: =B$4*VLOOKUP($B$3,'Data Billing Quantities'!$A:$O,MATCH($A33,'Data Billing Quantities'!$4:$4,0),FALSE) -> 135 | G33: =E33*F33 -> 21.195 | H33: 0 | I33: 0
A34: TOU-On Peak | B34: =VLOOKUP($A34,'Data Pass Through'!$A:$D,2,FALSE) -> 0.203 | C34: =B$4*VLOOKUP($B$3,'Data Billing Quantities'!$A:$O,MATCH($A34,'Data Billing Quantities'!$4:$4,0),FALSE) -> 135 | D34: 27.405 | E34: =VLOOKUP($A34,'Data Pass Through'!$A:$D,3,FALSE) -> 0.203 | F34: =B$4*VLOOKUP($B$3,'Data Billing Quantities'!$A:$O,MATCH($A34,'Data Billing Quantities'!$4:$4,0),FALSE) -> 135 | G34: =E34*F34 -> 27.405 | H34: 0 | I34: 0
A35: Total Bill on TOU (before Taxes) | D35: =SUM(D27:D34) -> 167.391075 | G35: =SUM(G27:G34) -> 161.64045 | H35: -5.750625 | I35: -0.03435443019
A36: HST | B36: 0.13 | D36: =D35*B36 -> 21.76083975 | E36: =B36 -> 0.13 | G36: =G35*E36 -> 21.0132585 | H36: -0.74758125 | I36: -0.03435443019
A37: Ontario Electricity Rebate (OER) | B37: =IF(($B$4*12)<250000,VLOOKUP($A37,'Data Pass Through'!$A$4:$C$19,2,0),0) -> -0.235 | D37: =D35*B37 -> -39.33690263 | E37: =IF(($B$4*12)<250000,VLOOKUP($A37,'Data Pass Through'!$A$4:$C$19,3,0),0) -> -0.235 | G37: =G35*E37 -> -37.98550575 | H37: 1.351396875 | I37: 0.03435443019
A38: Total Bill on TOU | D38: =SUM(D35:D37) -> 149.8150121 | G38: =SUM(G35:G37) -> 144.6682028 | H38: -5.146809375 | I38: -0.03435443019
A39: * Distribution rate protection applies to R1 and R2 customers

Sheet BI_R2_Typical (without DRP)
A1: Bill Impacts (Typical Consumption Level) - R2
A3: Rate Class | B3: =RIGHT(A1,LEN(A1)-FIND("- ",A1,1)-1) -> R2
A4: Monthly Consumption (kWh) | B4: =IF(COUNTIF(A1,"*Low*")>0,VLOOKUP(B3,'Data Billing Quantities'!$A:$Z,MATCH("Low kWh",'Data Billing Quantities'!4:4,0),FALSE),IF(COUNTIF(A1,"*Typical*")>0,VLOOKUP(B3,'Data Billing Quantities'!$A:$Z,MATCH("Typical kWh",'Data Billing Quantities'!4:4,0),FALSE),IF(COUNTIF(A1,"*Average*")>0,VLOOKUP(B3,'Data Billing Quantities'!$A:$Z,MATCH("Average kWh",'Data Billing Quantities'!4:4,0),FALSE),IF(COUNTIF(A1,"*High*")>0,VLOOKUP(B3,'Data Billing Quantities'!$A:$Z,MATCH("High kWh",'Data Billing Quantities'!4:4,0),FALSE),"error")))) -> 750
A5: Peak (kW) | B5: =IF(COUNTIF(A1,"*Low*")>0,VLOOKUP(B3,'Data Billing Quantities'!$A:$Z,MATCH("Low kW",'Data Billing Quantities'!4:4,0),FALSE),IF(COUNTIF(A1,"*Typical*")>0,VLOOKUP(B3,'Data Billing Quantities'!$A:$Z,MATCH("Typical kW",'Data Billing Quantities'!4:4,0),FALSE),IF(COUNTIF(A1,"*Average*")>0,VLOOKUP(B3,'Data Billing Quantities'!$A:$Z,MATCH("Average kW",'Data Billing Quantities'!4:4,0),FALSE),IF(COUNTIF(A1,"*High*")>0,VLOOKUP(B3,'Data Billing Quantities'!$A:$Z,MATCH("High kW",'Data Billing Quantities'!4:4,0),FALSE),"error")))) -> 0
A6: Loss factor | B6: =VLOOKUP(B3,'Data Billing Quantities'!A:D,MATCH(A6,'Data Billing Quantities'!4:4,0),FALSE) -> 1.105
A7: Charge determinant | B7: =VLOOKUP(B3,'Data Billing Quantities'!A:D,MATCH(A7,'Data Billing Quantities'!4:4,0),FALSE) -> kWh
B9: Current OEB-Approved | E9: Proposed | H9: Impact
B10: Rate ($) | C10: Volume | D10: Charge ($) | E10: Rate ($) | F10: Volume | G10: Charge ($) | H10: $ Change | I10: % Change
A11: Service Charge | B11: =VLOOKUP($B$3,'Data Current Rates'!$A:$AO,MATCH('BI_R2_Typical (without DRP)'!$A11,CurrentHeader,0),FALSE) -> 143.96 | C11: 1 | D11: =B11*C11 -> 143.96 | E11: =VLOOKUP($B$3,'Data Proposed Rates'!$A:$AT,MATCH('BI_R2_Typical (without DRP)'!$A11,ProposedHeader,0),FALSE) -> 151.14 | F11: 1 | G11: =E11*F11 -> 151.14 | H11: =G11-D11 -> 7.18 | I11: =IF(ISERROR(H11/ABS(D11)),"N/A",(H11/ABS(D11))) -> 0.04987496527
A12: Distribution Volumetric Charge | B12: =VLOOKUP($B$3,'Data Current Rates'!$A:$AO,MATCH('BI_R2_Typical (without DRP)'!$A12,CurrentHeader,0),FALSE) -> 0.0121 | C12: =IF($B$7="kWh",$B$4,$B$5) -> 750 | D12: =B12*C12 -> 9.075 | E12: =VLOOKUP($B$3,'Data Proposed Rates'!$A:$AT,MATCH('BI_R2_Typical (without DRP)'!$A12,ProposedHeader,0),FALSE) -> 0.0117 | F12: =IF($B$7="kWh",$B$4,$B$5) -> 750 | G12: 8.775 | H12: -0.3 | I12: -0.03305785124
A13: RRRP Adjustment | B13: =IF($B$3="R2",VLOOKUP(A13,'Data Pass Through'!$A4:$C19,3,0),0)*-1 -> -60.5 | C13: 1 | D13: =B13*C13 -> -60.5 | E13: =IF($B$3="R2",VLOOKUP(A13,'Data Pass Through'!$A4:$C19,3,0),0)*-1 -> -60.5 | F13: 1 | G13: -60.5 | H13: 0 | I13: 0
A14: DRP Adjustment | H14: 0 | I14: N/A
A15: Group 2 Fixed Rate Rider | B15: =VLOOKUP($B$3,'Data Current Rates'!$A:$AO,MATCH('BI_R2_Typical (without DRP)'!$A15,CurrentHeader,0),FALSE) -> -0.44 | C15: 1 | D15: =B15*C15 -> -0.44 | E15: =VLOOKUP($B$3,'Data Proposed Rates'!$A:$AT,MATCH('BI_R2_Typical (without DRP)'!$A15,ProposedHeader,0),FALSE) -> -5.18 | F15: 1 | G15: =E15*F15 -> -5.18 | H15: -4.74 | I15: -10.77272727
A16: Group 2 Volumetric Rate Rider | B16: =VLOOKUP($B$3,'Data Current Rates'!$A:$AO,MATCH('BI_R2_Typical (without DRP)'!$A16,CurrentHeader,0),FALSE) -> 0 | C16: =IF($B$7="kWh",$B$4,$B$5) -> 750 | D16: =B16*C16 -> 0 | E16: =VLOOKUP($B$3,'Data Proposed Rates'!$A:$AT,MATCH('BI_R2_Typical (without DRP)'!$A16,ProposedHeader,0),FALSE) -> 0 | F16: =IF($B$7="kWh",$B$4,$B$5) -> 750 | G16: 0 | H16: =G16-D16 -> 0 | I16: =IF(ISERROR(H16/ABS(D16)),"N/A",(H16/ABS(D16))) -> N/A
A17: Sub-Total A (excluding pass through) | D17: =SUM(D11:D16) -> 92.095 | G17: =SUM(G11:G16) -> 94.235 | H17: 2.14 | I17: 0.02323687497
A18: Line Losses on Cost of Power | B18: =VLOOKUP($B$3,'Data Billing Quantities'!$A:$O,MATCH('BI_R2_Typical (without DRP)'!$A32,'Data Billing Quantities'!$4:$4,0),FALSE)*$B32+VLOOKUP($B$3,'Data Billing Quantities'!$A:$O,MATCH('BI_R2_Typical (without DRP)'!$A33,'Data Billing Quantities'!$4:$4,0),FALSE)*$B33+VLOOKUP($B$3,'Data Billing Quantities'!$A:$O,MATCH('BI_R2_Typical (without DRP)'!$A34,'Data Billing Quantities'!$4:$4,0),FALSE)*$B34 -> 0.12752 | C18: =($B$6*$B$4)-$B$4 -> 78.75 | D18: =B18*C18 -> 10.0422 | E18: =VLOOKUP($B$3,'Data Billing Quantities'!$A:$O,MATCH('BI_R2_Typical (without DRP)'!$A32,'Data Billing Quantities'!$4:$4,0),FALSE)*$B32+VLOOKUP($B$3,'Data Billing Quantities'!$A:$O,MATCH('BI_R2_Typical (without DRP)'!$A33,'Data Billing Quantities'!$4:$4,0),FALSE)*$B33+VLOOKUP($B$3,'Data Billing Quantities'!$A:$O,MATCH('BI_R2_Typical (without DRP)'!$A34,'Data Billing Quantities'!$4:$4,0),FALSE)*$B34 -> 0.12752 | F18: =($B$6*$B$4)-$B$4 -> 78.75 | G18: 10.0422 | H18: 0 | I18: 0
A19: Total Deferral/Variance Account Rate Rider | B19: =VLOOKUP($B$3,'Data Current Rates'!$A:$AO,MATCH('BI_R2_Typical (without DRP)'!$A19,CurrentHeader,0),FALSE) -> -0.0037 | C19: =IF($B$7="kWh",$B$4,$B$5) -> 750 | D19: -2.775 | E19: =VLOOKUP($B$3,'Data Proposed Rates'!$A:$AT,MATCH('BI_R2_Typical (without DRP)'!$A19,ProposedHeader,0),FALSE) -> -0.0017 | F19: =IF($B$7="kWh",$B$4,$B$5) -> 750 | G19: -1.275 | H19: 1.5 | I19: 0.5405405405
A20: CBR Class B Rate Rider | B20: =VLOOKUP($B$3,'Data Current Rates'!$A:$AJ,MATCH('BI_R2_Typical (without DRP)'!$A20,CurrentHeader,0),FALSE) -> 0.0001 | C20: =IF($B$7="kWh",$B$4,$B$5) -> 750 | D20: 0.075 | E20: =VLOOKUP($B$3,'Data Proposed Rates'!$A:$AT,MATCH('BI_R2_Typical (without DRP)'!$A20,ProposedHeader,0),FALSE) -> -0.0006 | F20: =IF($B$7="kWh",$B$4,$B$5) -> 750 | G20: -0.45 | H20: -0.525 | I20: -7
A21: GA Rate Rider | B21: =VLOOKUP($B$3,'Data Current Rates'!$A:$AJ,MATCH('BI_R2_Typical (without DRP)'!$A21,CurrentHeader,0),FALSE) -> 0 | C21: 750 | D21: 0 | E21: =VLOOKUP($B$3,'Data Proposed Rates'!$A:$AT,MATCH('BI_R2_Typical (without DRP)'!$A21,ProposedHeader,0),FALSE) -> 0 | F21: 750 | G21: 0 | H21: 0 | I21: N/A
A22: Smart Meter Entity Charge (if applicable) | B22: =VLOOKUP($A22,'Data Pass Through'!$A:$D,2,FALSE) -> 0.42 | C22: 1 | D22: 0.42 | E22: =VLOOKUP($A22,'Data Pass Through'!$A:$D,2,FALSE) -> 0.42 | F22: 1 | G22: 0.42 | H22: 0 | I22: 0
A23: Rate Rider for Account 1588 | E23: =VLOOKUP($B$3,'Data Proposed Rates'!$A:$AT,MATCH('BI_R2_Typical (without DRP)'!$A23,ProposedHeader,0),FALSE) -> -0.0032 | F23: =IF($B$7="kWh",$B$4,$B$5) -> 750 | G23: -2.4 | H23: -2.4 | I23: N/A
A24: Sub-Total B - Distribution (includes Sub-Total A) | D24: =SUM(INDIRECT("D17:D"&ROW()-1)) -> 99.8572 | G24: =SUM(INDIRECT("G17:G"&ROW()-1)) -> 100.5722 | H24: 0.715 | I24: 0.007160224801
A25: Retail Transmission Rate – Network Service Rate | B25: =VLOOKUP($B$3,'Data Current Rates'!$A:$AJ,MATCH('BI_R2_Typical (without DRP)'!$A25,CurrentHeader,0),FALSE) -> 0.0118 | C25: =IF($B$7="kWh",$B$4*$B$6,$B$5) -> 828.75 | D25: =B25*C25 -> 9.77925 | E25: =VLOOKUP($B$3,'Data Proposed Rates'!$A:$AT,MATCH('BI_R2_Typical (without DRP)'!$A25,ProposedHeader,0),FALSE) -> 0.0121 | F25: =IF($B$7="kWh",$B$4*$B$6,$B$5) -> 828.75 | G25: 10.027875 | H25: 0.248625 | I25: 0.02542372881
A26: Retail Transmission Rate – Line and Transformation Connection Service Rate | B26: =VLOOKUP($B$3,'Data Current Rates'!$A:$AJ,MATCH('BI_R2_Typical (without DRP)'!$A26,CurrentHeader,0),FALSE) -> 0.0086 | C26: =IF($B$7="kWh",$B$4*$B$6,$B$5) -> 828.75 | D26: 7.12725 | E26: =VLOOKUP($B$3,'Data Proposed Rates'!$A:$AT,MATCH('BI_R2_Typical (without DRP)'!$A26,ProposedHeader,0),FALSE) -> 0.0088 | F26: =IF($B$7="kWh",$B$4*$B$6,$B$5) -> 828.75 | G26: 7.293 | H26: 0.16575 | I26: 0.02325581395
A27: Sub-Total C - Delivery (including Sub-Total B) | D27: =SUM(D24:D26) -> 116.7637 | G27: =SUM(G24:G26) -> 117.893075 | H27: 1.129375 | I27: 0.009672312542
A28: Wholesale Market Service Rate (WMS) – not including CBR | B28: =VLOOKUP($A28,'Data Pass Through'!$A:$D,2,FALSE) -> 0.0041 | C28: =$B$4*$B$6 -> 828.75 | D28: =B28*C28 -> 3.397875 | E28: =VLOOKUP($A28,'Data Pass Through'!$A:$D,3,FALSE) -> 0.0041 | F28: =$B$4*$B$6 -> 828.75 | G28: 3.397875 | H28: 0 | I28: 0
A29: Capacity Based Recovery (CBR) – Applicable for Class B Customers | B29: =VLOOKUP($A29,'Data Pass Through'!$A:$D,2,FALSE) -> 0.0006 | C29: =$B$4*$B$6 -> 828.75 | D29: 0.49725 | E29: =VLOOKUP($A29,'Data Pass Through'!$A:$D,3,FALSE) -> 0.0006 | F29: =$B$4*$B$6 -> 828.75 | G29: 0.49725 | H29: 0 | I29: 0
A30: Rural Rate Protection Charge | B30: =VLOOKUP($A30,'Data Pass Through'!$A:$D,2,FALSE) -> 0.0006 | C30: =$B$4*$B$6 -> 828.75 | D30: 0.49725 | E30: =VLOOKUP($A30,'Data Pass Through'!$A:$D,3,FALSE) -> 0.0006 | F30: =$B$4*$B$6 -> 828.75 | G30: 0.49725 | H30: 0 | I30: 0
A31: Standard Supply Service – Administration Charge (if applicable) | B31: =VLOOKUP($A31,'Data Pass Through'!$A:$D,2,FALSE) -> 0.25 | C31: 1 | D31: 0.25 | E31: =VLOOKUP($A31,'Data Pass Through'!$A:$D,3,FALSE) -> 0.25 | F31: 1 | G31: 0.25 | H31: 0 | I31: 0
A32: TOU-Off Peak | B32: =VLOOKUP($A32,'Data Pass Through'!$A:$D,2,FALSE) -> 0.098 | C32: =B$4*VLOOKUP($B$3,'Data Billing Quantities'!$A:$O,MATCH($A32,'Data Billing Quantities'!$4:$4,0),FALSE) -> 480 | D32: 47.04 | E32: =VLOOKUP($A32,'Data Pass Through'!$A:$D,3,FALSE) -> 0.098 | F32: =B$4*VLOOKUP($B$3,'Data Billing Quantities'!$A:$O,MATCH($A32,'Data Billing Quantities'!$4:$4,0),FALSE) -> 480 | G32: =E32*F32 -> 47.04 | H32: 0 | I32: 0
A33: TOU-Mid Peak | B33: =VLOOKUP($A33,'Data Pass Through'!$A:$D,2,FALSE) -> 0.157 | C33: =B$4*VLOOKUP($B$3,'Data Billing Quantities'!$A:$O,MATCH($A33,'Data Billing Quantities'!$4:$4,0),FALSE) -> 135 | D33: 21.195 | E33: =VLOOKUP($A33,'Data Pass Through'!$A:$D,3,FALSE) -> 0.157 | F33: =B$4*VLOOKUP($B$3,'Data Billing Quantities'!$A:$O,MATCH($A33,'Data Billing Quantities'!$4:$4,0),FALSE) -> 135 | G33: =E33*F33 -> 21.195 | H33: 0 | I33: 0
A34: TOU-On Peak | B34: =VLOOKUP($A34,'Data Pass Through'!$A:$D,2,FALSE) -> 0.203 | C34: =B$4*VLOOKUP($B$3,'Data Billing Quantities'!$A:$O,MATCH($A34,'Data Billing Quantities'!$4:$4,0),FALSE) -> 135 | D34: 27.405 | E34: =VLOOKUP($A34,'Data Pass Through'!$A:$D,3,FALSE) -> 0.203 | F34: =B$4*VLOOKUP($B$3,'Data Billing Quantities'!$A:$O,MATCH($A34,'Data Billing Quantities'!$4:$4,0),FALSE) -> 135 | G34: =E34*F34 -> 27.405 | H34: 0 | I34: 0
A35: Total Bill on TOU (before Taxes) | D35: =SUM(D27:D34) -> 217.046075 | G35: =SUM(G27:G34) -> 218.17545 | H35: 1.129375 | I35: 0.005203388267
A36: HST | B36: 0.13 | D36: =D35*B36 -> 28.21598975 | E36: =B36 -> 0.13 | G36: =G35*E36 -> 28.3628085 | H36: 0.14681875 | I36: 0.005203388267
A37: Ontario Electricity Rebate (OER) | B37: =IF(($B$4*12)<250000,VLOOKUP($A37,'Data Pass Through'!$A$4:$C$19,2,0),0) -> -0.235 | D37: =D35*B37 -> -51.00582762 | E37: =IF(($B$4*12)<250000,VLOOKUP($A37,'Data Pass Through'!$A$4:$C$19,3,0),0) -> -0.235 | G37: =G35*E37 -> -51.27123075 | H37: -0.265403125 | I37: -0.005203388267
A38: Total Bill on TOU | D38: =SUM(D35:D37) -> 194.2562371 | G38: =SUM(G35:G37) -> 195.2670277 | H38: 1.010790625 | I38: 0.005203388267
A39: * Distribution rate protection applies to R1 and R2 customers

Sheet BI_Seas_UR_Avg
A1: Bill Impacts (Average Consumption Level) - Seas-UR
A3: Rate Class | B3: =RIGHT(A1,LEN(A1)-FIND("- ",A1,1)-1) -> Seas-UR
A4: Monthly Consumption (kWh) | B4: =IF(COUNTIF(A1,"*Low*")>0,VLOOKUP(B3,'Data Billing Quantities'!$A:$Z,MATCH("Low kWh",'Data Billing Quantities'!4:4,0),FALSE),IF(COUNTIF(A1,"*Typical*")>0,VLOOKUP(B3,'Data Billing Quantities'!$A:$Z,MATCH("Typical kWh",'Data Billing Quantities'!4:4,0),FALSE),IF(COUNTIF(A1,"*Average*")>0,VLOOKUP(B3,'Data Billing Quantities'!$A:$Z,MATCH("Average kWh",'Data Billing Quantities'!4:4,0),FALSE),IF(COUNTIF(A1,"*High*")>0,VLOOKUP(B3,'Data Billing Quantities'!$A:$Z,MATCH("High kWh",'Data Billing Quantities'!4:4,0),FALSE),"error")))) -> 369
A5: Peak (kW) | B5: =IF(COUNTIF(A1,"*Low*")>0,VLOOKUP(B3,'Data Billing Quantities'!$A:$Z,MATCH("Low kW",'Data Billing Quantities'!4:4,0),FALSE),IF(COUNTIF(A1,"*Typical*")>0,VLOOKUP(B3,'Data Billing Quantities'!$A:$Z,MATCH("Typical kW",'Data Billing Quantities'!4:4,0),FALSE),IF(COUNTIF(A1,"*Average*")>0,VLOOKUP(B3,'Data Billing Quantities'!$A:$Z,MATCH("Average kW",'Data Billing Quantities'!4:4,0),FALSE),IF(COUNTIF(A1,"*High*")>0,VLOOKUP(B3,'Data Billing Quantities'!$A:$Z,MATCH("High kW",'Data Billing Quantities'!4:4,0),FALSE),"error")))) -> 0
A6: Loss factor | B6: =VLOOKUP(B3,'Data Billing Quantities'!A:D,MATCH(A6,'Data Billing Quantities'!4:4,0),FALSE) -> 1.057
A7: Charge determinant | B7: =VLOOKUP(B3,'Data Billing Quantities'!A:D,MATCH(A7,'Data Billing Quantities'!4:4,0),FALSE) -> kWh
B9: Current OEB-Approved | E9: Proposed | H9: Impact
B10: Rate ($) | C10: Volume | D10: Charge ($) | E10: Rate ($) | F10: Volume | G10: Charge ($) | H10: $ Change | I10: % Change
A11: Service Charge | B11: =VLOOKUP($B$3,'Data Current Rates'!$A:$AO,MATCH(BI_Seas_UR_Avg!$A11,CurrentHeader,0),FALSE) -> 41.61 | C11: 1 | D11: =B11*C11 -> 41.61 | E11: =VLOOKUP($B$3,'Data Proposed Rates'!$A:$AT,MATCH(BI_Seas_UR_Avg!$A11,ProposedHeader,0),FALSE) -> 43.7 | F11: 1 | G11: =E11*F11 -> 43.7 | H11: =G11-D11 -> 2.09 | I11: =IF(ISERROR(H11/ABS(D11)),"N/A",(H11/ABS(D11))) -> 0.0502283105
A12: Distribution Volumetric Charge | B12: =VLOOKUP($B$3,'Data Current Rates'!$A:$AO,MATCH(BI_Seas_UR_Avg!$A12,CurrentHeader,0),FALSE) -> 0 | C12: =IF($B$7="kWh",$B$4,$B$5) -> 369 | D12: =B12*C12 -> 0 | E12: =VLOOKUP($B$3,'Data Proposed Rates'!$A:$AT,MATCH(BI_Seas_UR_Avg!$A12,ProposedHeader,0),FALSE) -> 0 | F12: =IF($B$7="kWh",$B$4,$B$5) -> 369 | G12: 0 | H12: 0 | I12: N/A
A13: RRRP Adjustment | B13: =IF($B$3="R2",VLOOKUP(A13,'Data Pass Through'!$A4:$C19,3,0),0)*-1 -> 0 | C13: 1 | D13: =B13*C13 -> 0 | E13: =IF($B$3="R2",VLOOKUP(A13,'Data Pass Through'!$A4:$C19,3,0),0)*-1 -> 0 | F13: 1 | G13: 0 | H13: 0 | I13: N/A
A14: DRP Adjustment | D14: =IF(OR($B$3="R1",$B$3="R2",$B$3="R1-CPUC"),IF(SUM(D11:D13)>'Data Pass Through'!$B$16,-(SUM(D11:D13)-'Data Pass Through'!$B$16),0),0) -> 0 | G14: =IF(OR($B$3="R1",$B$3="R2",$B$3="R1-CPUC"),IF(SUM(G11:G13)>'Data Pass Through'!$B$16,-(SUM(G11:G13)-'Data Pass Through'!$B$16),0),0) -> 0 | H14: 0 | I14: N/A
A15: Group 2 Fixed Rate Rider | B15: =VLOOKUP($B$3,'Data Current Rates'!$A:$AO,MATCH(BI_Seas_UR_Avg!$A15,CurrentHeader,0),FALSE) -> -0.11 | C15: 1 | D15: =B15*C15 -> -0.11 | E15: =VLOOKUP($B$3,'Data Proposed Rates'!$A:$AT,MATCH(BI_Seas_UR_Avg!$A15,ProposedHeader,0),FALSE) -> -1.5 | F15: 1 | G15: =E15*F15 -> -1.5 | H15: -1.39 | I15: -12.63636364
A16: Group 2 Volumetric Rate Rider | B16: =VLOOKUP($B$3,'Data Current Rates'!$A:$AO,MATCH(BI_Seas_UR_Avg!$A16,CurrentHeader,0),FALSE) -> 0 | C16: =IF($B$7="kWh",$B$4,$B$5) -> 369 | D16: =B16*C16 -> 0 | E16: =VLOOKUP($B$3,'Data Proposed Rates'!$A:$AT,MATCH(BI_Seas_UR_Avg!$A16,ProposedHeader,0),FALSE) -> 0 | F16: =IF($B$7="kWh",$B$4,$B$5) -> 369 | G16: 0 | H16: =G16-D16 -> 0 | I16: =IF(ISERROR(H16/ABS(D16)),"N/A",(H16/ABS(D16))) -> N/A
A17: Sub-Total A (excluding pass through) | D17: =SUM(D11:D16) -> 41.5 | G17: =SUM(G11:G16) -> 42.2 | H17: 0.7 | I17: 0.01686746988
A18: Line Losses on Cost of Power | B18: =VLOOKUP($B$3,'Data Billing Quantities'!$A:$O,MATCH(BI_Seas_UR_Avg!$A32,'Data Billing Quantities'!$4:$4,0),FALSE)*$B32+VLOOKUP($B$3,'Data Billing Quantities'!$A:$O,MATCH(BI_Seas_UR_Avg!$A33,'Data Billing Quantities'!$4:$4,0),FALSE)*$B33+VLOOKUP($B$3,'Data Billing Quantities'!$A:$O,MATCH(BI_Seas_UR_Avg!$A34,'Data Billing Quantities'!$4:$4,0),FALSE)*$B34 -> 0.12752 | C18: =($B$6*$B$4)-$B$4 -> 21.033 | D18: =B18*C18 -> 2.68212816 | E18: =VLOOKUP($B$3,'Data Billing Quantities'!$A:$O,MATCH(BI_Seas_UR_Avg!$A32,'Data Billing Quantities'!$4:$4,0),FALSE)*$B32+VLOOKUP($B$3,'Data Billing Quantities'!$A:$O,MATCH(BI_Seas_UR_Avg!$A33,'Data Billing Quantities'!$4:$4,0),FALSE)*$B33+VLOOKUP($B$3,'Data Billing Quantities'!$A:$O,MATCH(BI_Seas_UR_Avg!$A34,'Data Billing Quantities'!$4:$4,0),FALSE)*$B34 -> 0.12752 | F18: =($B$6*$B$4)-$B$4 -> 21.033 | G18: 2.68212816 | H18: 0 | I18: 0
A19: Total Deferral/Variance Account Rate Rider | B19: =VLOOKUP($B$3,'Data Current Rates'!$A:$AO,MATCH(BI_Seas_UR_Avg!$A19,CurrentHeader,0),FALSE) -> -0.0038 | C19: =IF($B$7="kWh",$B$4,$B$5) -> 369 | D19: -1.4022 | E19: =VLOOKUP($B$3,'Data Proposed Rates'!$A:$AT,MATCH(BI_Seas_UR_Avg!$A19,ProposedHeader,0),FALSE) -> -0.0017 | F19: =IF($B$7="kWh",$B$4,$B$5) -> 369 | G19: -0.6273 | H19: 0.7749 | I19: 0.5526315789
A20: CBR Class B Rate Rider | B20: =VLOOKUP($B$3,'Data Current Rates'!$A:$AJ,MATCH(BI_Seas_UR_Avg!$A20,CurrentHeader,0),FALSE) -> 0.0001 | C20: =IF($B$7="kWh",$B$4,$B$5) -> 369 | D20: 0.0369 | E20: =VLOOKUP($B$3,'Data Proposed Rates'!$A:$AT,MATCH(BI_Seas_UR_Avg!$A20,ProposedHeader,0),FALSE) -> -0.0006 | F20: =IF($B$7="kWh",$B$4,$B$5) -> 369 | G20: -0.2214 | H20: -0.2583 | I20: -7
A21: GA Rate Rider | B21: =VLOOKUP($B$3,'Data Current Rates'!$A:$AJ,MATCH(BI_Seas_UR_Avg!$A21,CurrentHeader,0),FALSE) -> 0 | C21: 369 | D21: 0 | E21: =VLOOKUP($B$3,'Data Proposed Rates'!$A:$AT,MATCH(BI_Seas_UR_Avg!$A21,ProposedHeader,0),FALSE) -> 0 | F21: 369 | G21: 0 | H21: 0 | I21: N/A
A22: Smart Meter Entity Charge (if applicable) | B22: =VLOOKUP($A22,'Data Pass Through'!$A:$D,2,FALSE) -> 0.42 | C22: 1 | D22: 0.42 | E22: =VLOOKUP($A22,'Data Pass Through'!$A:$D,2,FALSE) -> 0.42 | F22: 1 | G22: 0.42 | H22: 0 | I22: 0
A23: Rate Rider for Account 1588 | E23: =VLOOKUP($B$3,'Data Proposed Rates'!$A:$AT,MATCH(BI_Seas_UR_Avg!$A23,ProposedHeader,0),FALSE) -> -0.0032 | F23: =IF($B$7="kWh",$B$4,$B$5) -> 369 | G23: -1.1808 | H23: -1.1808 | I23: N/A
A24: Sub-Total B - Distribution (includes Sub-Total A) | D24: =SUM(INDIRECT("D17:D"&ROW()-1)) -> 43.23682816 | G24: =SUM(INDIRECT("G17:G"&ROW()-1)) -> 43.27262816 | H24: 0.0358 | I24: 0.0008279978325
A25: Retail Transmission Rate – Network Service Rate | B25: =VLOOKUP($B$3,'Data Current Rates'!$A:$AJ,MATCH(BI_Seas_UR_Avg!$A25,CurrentHeader,0),FALSE) -> 0.0137 | C25: =IF($B$7="kWh",$B$4*$B$6,$B$5) -> 390.033 | D25: =B25*C25 -> 5.3434521 | E25: =VLOOKUP($B$3,'Data Proposed Rates'!$A:$AT,MATCH(BI_Seas_UR_Avg!$A25,ProposedHeader,0),FALSE) -> 0.0141 | F25: =IF($B$7="kWh",$B$4*$B$6,$B$5) -> 390.033 | G25: 5.4994653 | H25: 0.1560132 | I25: 0.02919708029
A26: Retail Transmission Rate – Line and Transformation Connection Service Rate | B26: =VLOOKUP($B$3,'Data Current Rates'!$A:$AJ,MATCH(BI_Seas_UR_Avg!$A26,CurrentHeader,0),FALSE) -> 0.0098 | C26: =IF($B$7="kWh",$B$4*$B$6,$B$5) -> 390.033 | D26: 3.8223234 | E26: =VLOOKUP($B$3,'Data Proposed Rates'!$A:$AT,MATCH(BI_Seas_UR_Avg!$A26,ProposedHeader,0),FALSE) -> 0.01 | F26: =IF($B$7="kWh",$B$4*$B$6,$B$5) -> 390.033 | G26: 3.90033 | H26: 0.0780066 | I26: 0.02040816327
A27: Sub-Total C - Delivery (including Sub-Total B) | D27: =SUM(D24:D26) -> 52.40260366 | G27: =SUM(G24:G26) -> 52.67242346 | H27: 0.2698198 | I27: 0.005148976981
A28: Wholesale Market Service Rate (WMS) – not including CBR | B28: =VLOOKUP($A28,'Data Pass Through'!$A:$D,2,FALSE) -> 0.0041 | C28: =$B$4*$B$6 -> 390.033 | D28: =B28*C28 -> 1.5991353 | E28: =VLOOKUP($A28,'Data Pass Through'!$A:$D,3,FALSE) -> 0.0041 | F28: =$B$4*$B$6 -> 390.033 | G28: 1.5991353 | H28: 0 | I28: 0
A29: Capacity Based Recovery (CBR) – Applicable for Class B Customers | B29: =VLOOKUP($A29,'Data Pass Through'!$A:$D,2,FALSE) -> 0.0006 | C29: =$B$4*$B$6 -> 390.033 | D29: 0.2340198 | E29: =VLOOKUP($A29,'Data Pass Through'!$A:$D,3,FALSE) -> 0.0006 | F29: =$B$4*$B$6 -> 390.033 | G29: 0.2340198 | H29: 0 | I29: 0
A30: Rural Rate Protection Charge | B30: =VLOOKUP($A30,'Data Pass Through'!$A:$D,2,FALSE) -> 0.0006 | C30: =$B$4*$B$6 -> 390.033 | D30: 0.2340198 | E30: =VLOOKUP($A30,'Data Pass Through'!$A:$D,3,FALSE) -> 0.0006 | F30: =$B$4*$B$6 -> 390.033 | G30: 0.2340198 | H30: 0 | I30: 0
A31: Standard Supply Service – Administration Charge (if applicable) | B31: =VLOOKUP($A31,'Data Pass Through'!$A:$D,2,FALSE) -> 0.25 | C31: 1 | D31: 0.25 | E31: =VLOOKUP($A31,'Data Pass Through'!$A:$D,3,FALSE) -> 0.25 | F31: 1 | G31: 0.25 | H31: 0 | I31: 0
A32: TOU-Off Peak | B32: =VLOOKUP($A32,'Data Pass Through'!$A:$D,2,FALSE) -> 0.098 | C32: =B$4*VLOOKUP($B$3,'Data Billing Quantities'!$A:$O,MATCH($A32,'Data Billing Quantities'!$4:$4,0),FALSE) -> 236.16 | D32: 23.14368 | E32: =VLOOKUP($A32,'Data Pass Through'!$A:$D,3,FALSE) -> 0.098 | F32: =B$4*VLOOKUP($B$3,'Data Billing Quantities'!$A:$O,MATCH($A32,'Data Billing Quantities'!$4:$4,0),FALSE) -> 236.16 | G32: =E32*F32 -> 23.14368 | H32: 0 | I32: 0
A33: TOU-Mid Peak | B33: =VLOOKUP($A33,'Data Pass Through'!$A:$D,2,FALSE) -> 0.157 | C33: =B$4*VLOOKUP($B$3,'Data Billing Quantities'!$A:$O,MATCH($A33,'Data Billing Quantities'!$4:$4,0),FALSE) -> 66.42 | D33: 10.42794 | E33: =VLOOKUP($A33,'Data Pass Through'!$A:$D,3,FALSE) -> 0.157 | F33: =B$4*VLOOKUP($B$3,'Data Billing Quantities'!$A:$O,MATCH($A33,'Data Billing Quantities'!$4:$4,0),FALSE) -> 66.42 | G33: =E33*F33 -> 10.42794 | H33: 0 | I33: 0
A34: TOU-On Peak | B34: =VLOOKUP($A34,'Data Pass Through'!$A:$D,2,FALSE) -> 0.203 | C34: =B$4*VLOOKUP($B$3,'Data Billing Quantities'!$A:$O,MATCH($A34,'Data Billing Quantities'!$4:$4,0),FALSE) -> 66.42 | D34: 13.48326 | E34: =VLOOKUP($A34,'Data Pass Through'!$A:$D,3,FALSE) -> 0.203 | F34: =B$4*VLOOKUP($B$3,'Data Billing Quantities'!$A:$O,MATCH($A34,'Data Billing Quantities'!$4:$4,0),FALSE) -> 66.42 | G34: =E34*F34 -> 13.48326 | H34: 0 | I34: 0
A35: Total Bill on TOU (before Taxes) | D35: =SUM(D27:D34) -> 101.7746586 | G35: =SUM(G27:G34) -> 102.0444784 | H35: 0.2698198 | I35: 0.002651149155
A36: HST | B36: 0.13 | D36: =D35*B36 -> 13.23070561 | E36: =B36 -> 0.13 | G36: =G35*E36 -> 13.26578219 | H36: 0.035076574 | I36: 0.002651149155
A37: Ontario Electricity Rebate (OER) | B37: =IF(($B$4*12)<250000,VLOOKUP($A37,'Data Pass Through'!$A$4:$C$19,2,0),0) -> -0.235 | D37: =D35*B37 -> -23.91704476 | E37: =IF(($B$4*12)<250000,VLOOKUP($A37,'Data Pass Through'!$A$4:$C$19,3,0),0) -> -0.235 | G37: =G35*E37 -> -23.98045241 | H37: -0.063407653 | I37: -0.002651149155
A38: Total Bill on TOU | D38: =SUM(D35:D37) -> 91.08831941 | G38: =SUM(G35:G37) -> 91.32980813 | H38: 0.241488721 | I38: 0.002651149155
A39: * Distribution rate protection applies to R1 and R2 customers

Sheet BI_Seas_R1_Avg
A1: Bill Impacts (Average Consumption Level) - Seas-R1
A3: Rate Class | B3: =RIGHT(A1,LEN(A1)-FIND("- ",A1,1)-1) -> Seas-R1
A4: Monthly Consumption (kWh) | B4: =IF(COUNTIF(A1,"*Low*")>0,VLOOKUP(B3,'Data Billing Quantities'!$A:$Z,MATCH("Low kWh",'Data Billing Quantities'!4:4,0),FALSE),IF(COUNTIF(A1,"*Typical*")>0,VLOOKUP(B3,'Data Billing Quantities'!$A:$Z,MATCH("Typical kWh",'Data Billing Quantities'!4:4,0),FALSE),IF(COUNTIF(A1,"*Average*")>0,VLOOKUP(B3,'Data Billing Quantities'!$A:$Z,MATCH("Average kWh",'Data Billing Quantities'!4:4,0),FALSE),IF(COUNTIF(A1,"*High*")>0,VLOOKUP(B3,'Data Billing Quantities'!$A:$Z,MATCH("High kWh",'Data Billing Quantities'!4:4,0),FALSE),"error")))) -> 369
A5: Peak (kW) | B5: =IF(COUNTIF(A1,"*Low*")>0,VLOOKUP(B3,'Data Billing Quantities'!$A:$Z,MATCH("Low kW",'Data Billing Quantities'!4:4,0),FALSE),IF(COUNTIF(A1,"*Typical*")>0,VLOOKUP(B3,'Data Billing Quantities'!$A:$Z,MATCH("Typical kW",'Data Billing Quantities'!4:4,0),FALSE),IF(COUNTIF(A1,"*Average*")>0,VLOOKUP(B3,'Data Billing Quantities'!$A:$Z,MATCH("Average kW",'Data Billing Quantities'!4:4,0),FALSE),IF(COUNTIF(A1,"*High*")>0,VLOOKUP(B3,'Data Billing Quantities'!$A:$Z,MATCH("High kW",'Data Billing Quantities'!4:4,0),FALSE),"error")))) -> 0
A6: Loss factor | B6: =VLOOKUP(B3,'Data Billing Quantities'!A:D,MATCH(A6,'Data Billing Quantities'!4:4,0),FALSE) -> 1.076
A7: Charge determinant | B7: =VLOOKUP(B3,'Data Billing Quantities'!A:D,MATCH(A7,'Data Billing Quantities'!4:4,0),FALSE) -> kWh
B9: Current OEB-Approved | E9: Proposed | H9: Impact
B10: Rate ($) | C10: Volume | D10: Charge ($) | E10: Rate ($) | F10: Volume | G10: Charge ($) | H10: $ Change | I10: % Change
A11: Service Charge | B11: =VLOOKUP($B$3,'Data Current Rates'!$A:$AO,MATCH(BI_Seas_R1_Avg!$A11,CurrentHeader,0),FALSE) -> 71.05 | C11: 1 | D11: =B11*C11 -> 71.05 | E11: =VLOOKUP($B$3,'Data Proposed Rates'!$A:$AT,MATCH(BI_Seas_R1_Avg!$A11,ProposedHeader,0),FALSE) -> 74.62 | F11: 1 | G11: =E11*F11 -> 74.62 | H11: =G11-D11 -> 3.57 | I11: =IF(ISERROR(H11/ABS(D11)),"N/A",(H11/ABS(D11))) -> 0.05024630542
A12: Distribution Volumetric Charge | B12: =VLOOKUP($B$3,'Data Current Rates'!$A:$AO,MATCH(BI_Seas_R1_Avg!$A12,CurrentHeader,0),FALSE) -> 0 | C12: =IF($B$7="kWh",$B$4,$B$5) -> 369 | D12: =B12*C12 -> 0 | E12: =VLOOKUP($B$3,'Data Proposed Rates'!$A:$AT,MATCH(BI_Seas_R1_Avg!$A12,ProposedHeader,0),FALSE) -> 0 | F12: =IF($B$7="kWh",$B$4,$B$5) -> 369 | G12: 0 | H12: 0 | I12: N/A
A13: RRRP Adjustment | B13: =IF($B$3="R2",VLOOKUP(A13,'Data Pass Through'!$A4:$C19,3,0),0)*-1 -> 0 | C13: 1 | D13: =B13*C13 -> 0 | E13: =IF($B$3="R2",VLOOKUP(A13,'Data Pass Through'!$A4:$C19,3,0),0)*-1 -> 0 | F13: 1 | G13: 0 | H13: 0 | I13: N/A
A14: DRP Adjustment | D14: =IF(OR($B$3="R1",$B$3="R2",$B$3="R1-CPUC"),IF(SUM(D11:D13)>'Data Pass Through'!$B$16,-(SUM(D11:D13)-'Data Pass Through'!$B$16),0),0) -> 0 | G14: =IF(OR($B$3="R1",$B$3="R2",$B$3="R1-CPUC"),IF(SUM(G11:G13)>'Data Pass Through'!$B$16,-(SUM(G11:G13)-'Data Pass Through'!$B$16),0),0) -> 0 | H14: 0 | I14: N/A
A15: Group 2 Fixed Rate Rider | B15: =VLOOKUP($B$3,'Data Current Rates'!$A:$AO,MATCH(BI_Seas_R1_Avg!$A15,CurrentHeader,0),FALSE) -> -0.21 | C15: 1 | D15: =B15*C15 -> -0.21 | E15: =VLOOKUP($B$3,'Data Proposed Rates'!$A:$AT,MATCH(BI_Seas_R1_Avg!$A15,ProposedHeader,0),FALSE) -> -2.56 | F15: 1 | G15: =E15*F15 -> -2.56 | H15: -2.35 | I15: -11.19047619
A16: Group 2 Volumetric Rate Rider | B16: =VLOOKUP($B$3,'Data Current Rates'!$A:$AO,MATCH(BI_Seas_R1_Avg!$A16,CurrentHeader,0),FALSE) -> 0 | C16: =IF($B$7="kWh",$B$4,$B$5) -> 369 | D16: =B16*C16 -> 0 | E16: =VLOOKUP($B$3,'Data Proposed Rates'!$A:$AT,MATCH(BI_Seas_R1_Avg!$A16,ProposedHeader,0),FALSE) -> 0 | F16: =IF($B$7="kWh",$B$4,$B$5) -> 369 | G16: 0 | H16: =G16-D16 -> 0 | I16: =IF(ISERROR(H16/ABS(D16)),"N/A",(H16/ABS(D16))) -> N/A
A17: Sub-Total A (excluding pass through) | D17: =SUM(D11:D16) -> 70.84 | G17: =SUM(G11:G16) -> 72.06 | H17: 1.22 | I17: 0.01722190853
A18: Line Losses on Cost of Power | B18: =VLOOKUP($B$3,'Data Billing Quantities'!$A:$O,MATCH(BI_Seas_R1_Avg!$A32,'Data Billing Quantities'!$4:$4,0),FALSE)*$B32+VLOOKUP($B$3,'Data Billing Quantities'!$A:$O,MATCH(BI_Seas_R1_Avg!$A33,'Data Billing Quantities'!$4:$4,0),FALSE)*$B33+VLOOKUP($B$3,'Data Billing Quantities'!$A:$O,MATCH(BI_Seas_R1_Avg!$A34,'Data Billing Quantities'!$4:$4,0),FALSE)*$B34 -> 0.12752 | C18: =($B$6*$B$4)-$B$4 -> 28.044 | D18: =B18*C18 -> 3.57617088 | E18: =VLOOKUP($B$3,'Data Billing Quantities'!$A:$O,MATCH(BI_Seas_R1_Avg!$A32,'Data Billing Quantities'!$4:$4,0),FALSE)*$B32+VLOOKUP($B$3,'Data Billing Quantities'!$A:$O,MATCH(BI_Seas_R1_Avg!$A33,'Data Billing Quantities'!$4:$4,0),FALSE)*$B33+VLOOKUP($B$3,'Data Billing Quantities'!$A:$O,MATCH(BI_Seas_R1_Avg!$A34,'Data Billing Quantities'!$4:$4,0),FALSE)*$B34 -> 0.12752 | F18: =($B$6*$B$4)-$B$4 -> 28.044 | G18: 3.57617088 | H18: 0 | I18: 0
A19: Total Deferral/Variance Account Rate Rider | B19: =VLOOKUP($B$3,'Data Current Rates'!$A:$AO,MATCH(BI_Seas_R1_Avg!$A19,CurrentHeader,0),FALSE) -> -0.0037 | C19: =IF($B$7="kWh",$B$4,$B$5) -> 369 | D19: -1.3653 | E19: =VLOOKUP($B$3,'Data Proposed Rates'!$A:$AT,MATCH(BI_Seas_R1_Avg!$A19,ProposedHeader,0),FALSE) -> -0.0017 | F19: =IF($B$7="kWh",$B$4,$B$5) -> 369 | G19: -0.6273 | H19: 0.738 | I19: 0.5405405405
A20: CBR Class B Rate Rider | B20: =VLOOKUP($B$3,'Data Current Rates'!$A:$AJ,MATCH(BI_Seas_R1_Avg!$A20,CurrentHeader,0),FALSE) -> 0.0001 | C20: =IF($B$7="kWh",$B$4,$B$5) -> 369 | D20: 0.0369 | E20: =VLOOKUP($B$3,'Data Proposed Rates'!$A:$AT,MATCH(BI_Seas_R1_Avg!$A20,ProposedHeader,0),FALSE) -> -0.0006 | F20: =IF($B$7="kWh",$B$4,$B$5) -> 369 | G20: -0.2214 | H20: -0.2583 | I20: -7
A21: GA Rate Rider | B21: =VLOOKUP($B$3,'Data Current Rates'!$A:$AJ,MATCH(BI_Seas_R1_Avg!$A21,CurrentHeader,0),FALSE) -> 0 | C21: 369 | D21: 0 | E21: =VLOOKUP($B$3,'Data Proposed Rates'!$A:$AT,MATCH(BI_Seas_R1_Avg!$A21,ProposedHeader,0),FALSE) -> 0 | F21: 369 | G21: 0 | H21: 0 | I21: N/A
A22: Smart Meter Entity Charge (if applicable) | B22: =VLOOKUP($A22,'Data Pass Through'!$A:$D,2,FALSE) -> 0.42 | C22: 1 | D22: 0.42 | E22: =VLOOKUP($A22,'Data Pass Through'!$A:$D,2,FALSE) -> 0.42 | F22: 1 | G22: 0.42 | H22: 0 | I22: 0
A23: Rate Rider for Account 1588 | E23: =VLOOKUP($B$3,'Data Proposed Rates'!$A:$AT,MATCH(BI_Seas_R1_Avg!$A23,ProposedHeader,0),FALSE) -> -0.0032 | F23: =IF($B$7="kWh",$B$4,$B$5) -> 369 | G23: -1.1808 | H23: -1.1808 | I23: N/A
A24: Sub-Total B - Distribution (includes Sub-Total A) | D24: =SUM(INDIRECT("D17:D"&ROW()-1)) -> 73.50777088 | G24: =SUM(INDIRECT("G17:G"&ROW()-1)) -> 74.02667088 | H24: 0.5189 | I24: 0.007059117611
A25: Retail Transmission Rate – Network Service Rate | B25: =VLOOKUP($B$3,'Data Current Rates'!$A:$AJ,MATCH(BI_Seas_R1_Avg!$A25,CurrentHeader,0),FALSE) -> 0.0128 | C25: =IF($B$7="kWh",$B$4*$B$6,$B$5) -> 397.044 | D25: =B25*C25 -> 5.0821632 | E25: =VLOOKUP($B$3,'Data Proposed Rates'!$A:$AT,MATCH(BI_Seas_R1_Avg!$A25,ProposedHeader,0),FALSE) -> 0.0131 | F25: =IF($B$7="kWh",$B$4*$B$6,$B$5) -> 397.044 | G25: 5.2012764 | H25: 0.1191132 | I25: 0.0234375
A26: Retail Transmission Rate – Line and Transformation Connection Service Rate | B26: =VLOOKUP($B$3,'Data Current Rates'!$A:$AJ,MATCH(BI_Seas_R1_Avg!$A26,CurrentHeader,0),FALSE) -> 0.0092 | C26: =IF($B$7="kWh",$B$4*$B$6,$B$5) -> 397.044 | D26: 3.6528048 | E26: =VLOOKUP($B$3,'Data Proposed Rates'!$A:$AT,MATCH(BI_Seas_R1_Avg!$A26,ProposedHeader,0),FALSE) -> 0.0094 | F26: =IF($B$7="kWh",$B$4*$B$6,$B$5) -> 397.044 | G26: 3.7322136 | H26: 0.0794088 | I26: 0.02173913043
A27: Sub-Total C - Delivery (including Sub-Total B) | D27: =SUM(D24:D26) -> 82.24273888 | G27: =SUM(G24:G26) -> 82.96016088 | H27: 0.717422 | I27: 0.008723226023
A28: Wholesale Market Service Rate (WMS) – not including CBR | B28: =VLOOKUP($A28,'Data Pass Through'!$A:$D,2,FALSE) -> 0.0041 | C28: =$B$4*$B$6 -> 397.044 | D28: =B28*C28 -> 1.6278804 | E28: =VLOOKUP($A28,'Data Pass Through'!$A:$D,3,FALSE) -> 0.0041 | F28: =$B$4*$B$6 -> 397.044 | G28: 1.6278804 | H28: 0 | I28: 0
A29: Capacity Based Recovery (CBR) – Applicable for Class B Customers | B29: =VLOOKUP($A29,'Data Pass Through'!$A:$D,2,FALSE) -> 0.0006 | C29: =$B$4*$B$6 -> 397.044 | D29: 0.2382264 | E29: =VLOOKUP($A29,'Data Pass Through'!$A:$D,3,FALSE) -> 0.0006 | F29: =$B$4*$B$6 -> 397.044 | G29: 0.2382264 | H29: 0 | I29: 0
A30: Rural Rate Protection Charge | B30: =VLOOKUP($A30,'Data Pass Through'!$A:$D,2,FALSE) -> 0.0006 | C30: =$B$4*$B$6 -> 397.044 | D30: 0.2382264 | E30: =VLOOKUP($A30,'Data Pass Through'!$A:$D,3,FALSE) -> 0.0006 | F30: =$B$4*$B$6 -> 397.044 | G30: 0.2382264 | H30: 0 | I30: 0
A31: Standard Supply Service – Administration Charge (if applicable) | B31: =VLOOKUP($A31,'Data Pass Through'!$A:$D,2,FALSE) -> 0.25 | C31: 1 | D31: 0.25 | E31: =VLOOKUP($A31,'Data Pass Through'!$A:$D,3,FALSE) -> 0.25 | F31: 1 | G31: 0.25 | H31: 0 | I31: 0
A32: TOU-Off Peak | B32: =VLOOKUP($A32,'Data Pass Through'!$A:$D,2,FALSE) -> 0.098 | C32: =B$4*VLOOKUP($B$3,'Data Billing Quantities'!$A:$O,MATCH($A32,'Data Billing Quantities'!$4:$4,0),FALSE) -> 236.16 | D32: 23.14368 | E32: =VLOOKUP($A32,'Data Pass Through'!$A:$D,3,FALSE) -> 0.098 | F32: =B$4*VLOOKUP($B$3,'Data Billing Quantities'!$A:$O,MATCH($A32,'Data Billing Quantities'!$4:$4,0),FALSE) -> 236.16 | G32: =E32*F32 -> 23.14368 | H32: 0 | I32: 0
A33: TOU-Mid Peak | B33: =VLOOKUP($A33,'Data Pass Through'!$A:$D,2,FALSE) -> 0.157 | C33: =B$4*VLOOKUP($B$3,'Data Billing Quantities'!$A:$O,MATCH($A33,'Data Billing Quantities'!$4:$4,0),FALSE) -> 66.42 | D33: 10.42794 | E33: =VLOOKUP($A33,'Data Pass Through'!$A:$D,3,FALSE) -> 0.157 | F33: =B$4*VLOOKUP($B$3,'Data Billing Quantities'!$A:$O,MATCH($A33,'Data Billing Quantities'!$4:$4,0),FALSE) -> 66.42 | G33: =E33*F33 -> 10.42794 | H33: 0 | I33: 0
A34: TOU-On Peak | B34: =VLOOKUP($A34,'Data Pass Through'!$A:$D,2,FALSE) -> 0.203 | C34: =B$4*VLOOKUP($B$3,'Data Billing Quantities'!$A:$O,MATCH($A34,'Data Billing Quantities'!$4:$4,0),FALSE) -> 66.42 | D34: 13.48326 | E34: =VLOOKUP($A34,'Data Pass Through'!$A:$D,3,FALSE) -> 0.203 | F34: =B$4*VLOOKUP($B$3,'Data Billing Quantities'!$A:$O,MATCH($A34,'Data Billing Quantities'!$4:$4,0),FALSE) -> 66.42 | G34: =E34*F34 -> 13.48326 | H34: 0 | I34: 0
A35: Total Bill on TOU (before Taxes) | D35: =SUM(D27:D34) -> 131.6519521 | G35: =SUM(G27:G34) -> 132.3693741 | H35: 0.717422 | I35: 0.005449383687
A36: HST | B36: 0.13 | D36: =D35*B36 -> 17.11475377 | E36: =B36 -> 0.13 | G36: =G35*E36 -> 17.20801863 | H36: 0.09326486 | I36: 0.005449383687
A37: Ontario Electricity Rebate (OER) | B37: =IF(($B$4*12)<250000,VLOOKUP($A37,'Data Pass Through'!$A$4:$C$19,2,0),0) -> -0.235 | D37: =D35*B37 -> -30.93820874 | E37: =IF(($B$4*12)<250000,VLOOKUP($A37,'Data Pass Through'!$A$4:$C$19,3,0),0) -> -0.235 | G37: =G35*E37 -> -31.10680291 | H37: -0.16859417 | I37: -0.005449383687
A38: Total Bill on TOU | D38: =SUM(D35:D37) -> 117.8284971 | G38: =SUM(G35:G37) -> 118.4705898 | H38: 0.64209269 | I38: 0.005449383687
A39: * Distribution rate protection applies to R1 and R2 customers

Sheet BI_Seas_R2_Avg
A1: Bill Impacts (Average Consumption Level) - Seas-R2
A3: Rate Class | B3: =RIGHT(A1,LEN(A1)-FIND("- ",A1,1)-1) -> Seas-R2
A4: Monthly Consumption (kWh) | B4: =IF(COUNTIF(A1,"*Low*")>0,VLOOKUP(B3,'Data Billing Quantities'!$A:$Z,MATCH("Low kWh",'Data Billing Quantities'!4:4,0),FALSE),IF(COUNTIF(A1,"*Typical*")>0,VLOOKUP(B3,'Data Billing Quantities'!$A:$Z,MATCH("Typical kWh",'Data Billing Quantities'!4:4,0),FALSE),IF(COUNTIF(A1,"*Average*")>0,VLOOKUP(B3,'Data Billing Quantities'!$A:$Z,MATCH("Average kWh",'Data Billing Quantities'!4:4,0),FALSE),IF(COUNTIF(A1,"*High*")>0,VLOOKUP(B3,'Data Billing Quantities'!$A:$Z,MATCH("High kWh",'Data Billing Quantities'!4:4,0),FALSE),"error")))) -> 369
A5: Peak (kW) | B5: =IF(COUNTIF(A1,"*Low*")>0,VLOOKUP(B3,'Data Billing Quantities'!$A:$Z,MATCH("Low kW",'Data Billing Quantities'!4:4,0),FALSE),IF(COUNTIF(A1,"*Typical*")>0,VLOOKUP(B3,'Data Billing Quantities'!$A:$Z,MATCH("Typical kW",'Data Billing Quantities'!4:4,0),FALSE),IF(COUNTIF(A1,"*Average*")>0,VLOOKUP(B3,'Data Billing Quantities'!$A:$Z,MATCH("Average kW",'Data Billing Quantities'!4:4,0),FALSE),IF(COUNTIF(A1,"*High*")>0,VLOOKUP(B3,'Data Billing Quantities'!$A:$Z,MATCH("High kW",'Data Billing Quantities'!4:4,0),FALSE),"error")))) -> 0
A6: Loss factor | B6: =VLOOKUP(B3,'Data Billing Quantities'!A:D,MATCH(A6,'Data Billing Quantities'!4:4,0),FALSE) -> 1.105
A7: Charge determinant | B7: =VLOOKUP(B3,'Data Billing Quantities'!A:D,MATCH(A7,'Data Billing Quantities'!4:4,0),FALSE) -> kWh
B9: Current OEB-Approved | E9: Proposed | H9: Impact
B10: Rate ($) | C10: Volume | D10: Charge ($) | E10: Rate ($) | F10: Volume | G10: Charge ($) | H10: $ Change | I10: % Change
A11: Service Charge | B11: =VLOOKUP($B$3,'Data Current Rates'!$A:$AO,MATCH(BI_Seas_R2_Avg!$A11,CurrentHeader,0),FALSE) -> 82.64 | C11: 1 | D11: =B11*C11 -> 82.64 | E11: =VLOOKUP($B$3,'Data Proposed Rates'!$A:$AT,MATCH(BI_Seas_R2_Avg!$A11,ProposedHeader,0),FALSE) -> 92.43 | F11: 1 | G11: =E11*F11 -> 92.43 | H11: =G11-D11 -> 9.79 | I11: =IF(ISERROR(H11/ABS(D11)),"N/A",(H11/ABS(D11))) -> 0.1184656341
A12: Distribution Volumetric Charge | B12: =VLOOKUP($B$3,'Data Current Rates'!$A:$AO,MATCH(BI_Seas_R2_Avg!$A12,CurrentHeader,0),FALSE) -> 0.0121 | C12: =IF($B$7="kWh",$B$4,$B$5) -> 369 | D12: =B12*C12 -> 4.4649 | E12: =VLOOKUP($B$3,'Data Proposed Rates'!$A:$AT,MATCH(BI_Seas_R2_Avg!$A12,ProposedHeader,0),FALSE) -> 0.0117 | F12: =IF($B$7="kWh",$B$4,$B$5) -> 369 | G12: 4.3173 | H12: -0.1476 | I12: -0.03305785124
A13: RRRP Adjustment | B13: =IF($B$3="R2",VLOOKUP(A13,'Data Pass Through'!$A4:$C19,3,0),0)*-1 -> 0 | C13: 1 | D13: =B13*C13 -> 0 | E13: =IF($B$3="R2",VLOOKUP(A13,'Data Pass Through'!$A4:$C19,3,0),0)*-1 -> 0 | F13: 1 | G13: 0 | H13: 0 | I13: N/A
A14: DRP Adjustment | D14: =IF(OR($B$3="R1",$B$3="R2",$B$3="R1-CPUC"),IF(SUM(D11:D13)>'Data Pass Through'!$B$16,-(SUM(D11:D13)-'Data Pass Through'!$B$16),0),0) -> 0 | G14: =IF(OR($B$3="R1",$B$3="R2",$B$3="R1-CPUC"),IF(SUM(G11:G13)>'Data Pass Through'!$B$16,-(SUM(G11:G13)-'Data Pass Through'!$B$16),0),0) -> 0 | H14: 0 | I14: N/A
A15: Group 2 Fixed Rate Rider | B15: =VLOOKUP($B$3,'Data Current Rates'!$A:$AO,MATCH(BI_Seas_R2_Avg!$A15,CurrentHeader,0),FALSE) -> -0.44 | C15: 1 | D15: =B15*C15 -> -0.44 | E15: =VLOOKUP($B$3,'Data Proposed Rates'!$A:$AT,MATCH(BI_Seas_R2_Avg!$A15,ProposedHeader,0),FALSE) -> -5.18 | F15: 1 | G15: =E15*F15 -> -5.18 | H15: -4.74 | I15: -10.77272727
A16: Group 2 Volumetric Rate Rider | B16: =VLOOKUP($B$3,'Data Current Rates'!$A:$AO,MATCH(BI_Seas_R2_Avg!$A16,CurrentHeader,0),FALSE) -> 0 | C16: =IF($B$7="kWh",$B$4,$B$5) -> 369 | D16: =B16*C16 -> 0 | E16: =VLOOKUP($B$3,'Data Proposed Rates'!$A:$AT,MATCH(BI_Seas_R2_Avg!$A16,ProposedHeader,0),FALSE) -> 0 | F16: =IF($B$7="kWh",$B$4,$B$5) -> 369 | G16: 0 | H16: =G16-D16 -> 0 | I16: =IF(ISERROR(H16/ABS(D16)),"N/A",(H16/ABS(D16))) -> N/A
A17: Sub-Total A (excluding pass through) | D17: =SUM(D11:D16) -> 86.6649 | G17: =SUM(G11:G16) -> 91.5673 | H17: 4.9024 | I17: 0.05656730695
A18: Line Losses on Cost of Power | B18: =VLOOKUP($B$3,'Data Billing Quantities'!$A:$O,MATCH(BI_Seas_R2_Avg!$A32,'Data Billing Quantities'!$4:$4,0),FALSE)*$B32+VLOOKUP($B$3,'Data Billing Quantities'!$A:$O,MATCH(BI_Seas_R2_Avg!$A33,'Data Billing Quantities'!$4:$4,0),FALSE)*$B33+VLOOKUP($B$3,'Data Billing Quantities'!$A:$O,MATCH(BI_Seas_R2_Avg!$A34,'Data Billing Quantities'!$4:$4,0),FALSE)*$B34 -> 0.12752 | C18: =($B$6*$B$4)-$B$4 -> 38.745 | D18: =B18*C18 -> 4.9407624 | E18: =VLOOKUP($B$3,'Data Billing Quantities'!$A:$O,MATCH(BI_Seas_R2_Avg!$A32,'Data Billing Quantities'!$4:$4,0),FALSE)*$B32+VLOOKUP($B$3,'Data Billing Quantities'!$A:$O,MATCH(BI_Seas_R2_Avg!$A33,'Data Billing Quantities'!$4:$4,0),FALSE)*$B33+VLOOKUP($B$3,'Data Billing Quantities'!$A:$O,MATCH(BI_Seas_R2_Avg!$A34,'Data Billing Quantities'!$4:$4,0),FALSE)*$B34 -> 0.12752 | F18: =($B$6*$B$4)-$B$4 -> 38.745 | G18: 4.9407624 | H18: 0 | I18: 0
A19: Total Deferral/Variance Account Rate Rider | B19: =VLOOKUP($B$3,'Data Current Rates'!$A:$AO,MATCH(BI_Seas_R2_Avg!$A19,CurrentHeader,0),FALSE) -> -0.0037 | C19: =IF($B$7="kWh",$B$4,$B$5) -> 369 | D19: -1.3653 | E19: =VLOOKUP($B$3,'Data Proposed Rates'!$A:$AT,MATCH(BI_Seas_R2_Avg!$A19,ProposedHeader,0),FALSE) -> -0.0017 | F19: =IF($B$7="kWh",$B$4,$B$5) -> 369 | G19: -0.6273 | H19: 0.738 | I19: 0.5405405405
A20: CBR Class B Rate Rider | B20: =VLOOKUP($B$3,'Data Current Rates'!$A:$AJ,MATCH(BI_Seas_R2_Avg!$A20,CurrentHeader,0),FALSE) -> 0.0001 | C20: =IF($B$7="kWh",$B$4,$B$5) -> 369 | D20: 0.0369 | E20: =VLOOKUP($B$3,'Data Proposed Rates'!$A:$AT,MATCH(BI_Seas_R2_Avg!$A20,ProposedHeader,0),FALSE) -> -0.0006 | F20: =IF($B$7="kWh",$B$4,$B$5) -> 369 | G20: -0.2214 | H20: -0.2583 | I20: -7
A21: GA Rate Rider | B21: =VLOOKUP($B$3,'Data Current Rates'!$A:$AJ,MATCH(BI_Seas_R2_Avg!$A21,CurrentHeader,0),FALSE) -> 0 | C21: 369 | D21: 0 | E21: =VLOOKUP($B$3,'Data Proposed Rates'!$A:$AT,MATCH(BI_Seas_R2_Avg!$A21,ProposedHeader,0),FALSE) -> 0 | F21: 369 | G21: 0 | H21: 0 | I21: N/A
A22: Smart Meter Entity Charge (if applicable) | B22: =VLOOKUP($A22,'Data Pass Through'!$A:$D,2,FALSE) -> 0.42 | C22: 1 | D22: 0.42 | E22: =VLOOKUP($A22,'Data Pass Through'!$A:$D,2,FALSE) -> 0.42 | F22: 1 | G22: 0.42 | H22: 0 | I22: 0
A23: Rate Rider for Account 1588 | E23: =VLOOKUP($B$3,'Data Proposed Rates'!$A:$AT,MATCH(BI_Seas_R2_Avg!$A23,ProposedHeader,0),FALSE) -> -0.0032 | F23: =IF($B$7="kWh",$B$4,$B$5) -> 369 | G23: -1.1808 | H23: -1.1808 | I23: N/A
A24: Sub-Total B - Distribution (includes Sub-Total A) | D24: =SUM(INDIRECT("D17:D"&ROW()-1)) -> 90.6972624 | G24: =SUM(INDIRECT("G17:G"&ROW()-1)) -> 94.8985624 | H24: 4.2013 | I24: 0.04632223607
A25: Retail Transmission Rate – Network Service Rate | B25: =VLOOKUP($B$3,'Data Current Rates'!$A:$AJ,MATCH(BI_Seas_R2_Avg!$A25,CurrentHeader,0),FALSE) -> 0.0118 | C25: =IF($B$7="kWh",$B$4*$B$6,$B$5) -> 407.745 | D25: =B25*C25 -> 4.811391 | E25: =VLOOKUP($B$3,'Data Proposed Rates'!$A:$AT,MATCH(BI_Seas_R2_Avg!$A25,ProposedHeader,0),FALSE) -> 0.0121 | F25: =IF($B$7="kWh",$B$4*$B$6,$B$5) -> 407.745 | G25: 4.9337145 | H25: 0.1223235 | I25: 0.02542372881
A26: Retail Transmission Rate – Line and Transformation Connection Service Rate | B26: =VLOOKUP($B$3,'Data Current Rates'!$A:$AJ,MATCH(BI_Seas_R2_Avg!$A26,CurrentHeader,0),FALSE) -> 0.0086 | C26: =IF($B$7="kWh",$B$4*$B$6,$B$5) -> 407.745 | D26: 3.506607 | E26: =VLOOKUP($B$3,'Data Proposed Rates'!$A:$AT,MATCH(BI_Seas_R2_Avg!$A26,ProposedHeader,0),FALSE) -> 0.0088 | F26: =IF($B$7="kWh",$B$4*$B$6,$B$5) -> 407.745 | G26: 3.588156 | H26: 0.081549 | I26: 0.02325581395
A27: Sub-Total C - Delivery (including Sub-Total B) | D27: =SUM(D24:D26) -> 99.0152604 | G27: =SUM(G24:G26) -> 103.4204329 | H27: 4.4051725 | I27: 0.04448983401
A28: Wholesale Market Service Rate (WMS) – not including CBR | B28: =VLOOKUP($A28,'Data Pass Through'!$A:$D,2,FALSE) -> 0.0041 | C28: =$B$4*$B$6 -> 407.745 | D28: =B28*C28 -> 1.6717545 | E28: =VLOOKUP($A28,'Data Pass Through'!$A:$D,3,FALSE) -> 0.0041 | F28: =$B$4*$B$6 -> 407.745 | G28: 1.6717545 | H28: 0 | I28: 0
A29: Capacity Based Recovery (CBR) – Applicable for Class B Customers | B29: =VLOOKUP($A29,'Data Pass Through'!$A:$D,2,FALSE) -> 0.0006 | C29: =$B$4*$B$6 -> 407.745 | D29: 0.244647 | E29: =VLOOKUP($A29,'Data Pass Through'!$A:$D,3,FALSE) -> 0.0006 | F29: =$B$4*$B$6 -> 407.745 | G29: 0.244647 | H29: 0 | I29: 0
A30: Rural Rate Protection Charge | B30: =VLOOKUP($A30,'Data Pass Through'!$A:$D,2,FALSE) -> 0.0006 | C30: =$B$4*$B$6 -> 407.745 | D30: 0.244647 | E30: =VLOOKUP($A30,'Data Pass Through'!$A:$D,3,FALSE) -> 0.0006 | F30: =$B$4*$B$6 -> 407.745 | G30: 0.244647 | H30: 0 | I30: 0
A31: Standard Supply Service – Administration Charge (if applicable) | B31: =VLOOKUP($A31,'Data Pass Through'!$A:$D,2,FALSE) -> 0.25 | C31: 1 | D31: 0.25 | E31: =VLOOKUP($A31,'Data Pass Through'!$A:$D,3,FALSE) -> 0.25 | F31: 1 | G31: 0.25 | H31: 0 | I31: 0
A32: TOU-Off Peak | B32: =VLOOKUP($A32,'Data Pass Through'!$A:$D,2,FALSE) -> 0.098 | C32: =B$4*VLOOKUP($B$3,'Data Billing Quantities'!$A:$O,MATCH($A32,'Data Billing Quantities'!$4:$4,0),FALSE) -> 236.16 | D32: 23.14368 | E32: =VLOOKUP($A32,'Data Pass Through'!$A:$D,3,FALSE) -> 0.098 | F32: =B$4*VLOOKUP($B$3,'Data Billing Quantities'!$A:$O,MATCH($A32,'Data Billing Quantities'!$4:$4,0),FALSE) -> 236.16 | G32: =E32*F32 -> 23.14368 | H32: 0 | I32: 0
A33: TOU-Mid Peak | B33: =VLOOKUP($A33,'Data Pass Through'!$A:$D,2,FALSE) -> 0.157 | C33: =B$4*VLOOKUP($B$3,'Data Billing Quantities'!$A:$O,MATCH($A33,'Data Billing Quantities'!$4:$4,0),FALSE) -> 66.42 | D33: 10.42794 | E33: =VLOOKUP($A33,'Data Pass Through'!$A:$D,3,FALSE) -> 0.157 | F33: =B$4*VLOOKUP($B$3,'Data Billing Quantities'!$A:$O,MATCH($A33,'Data Billing Quantities'!$4:$4,0),FALSE) -> 66.42 | G33: =E33*F33 -> 10.42794 | H33: 0 | I33: 0
A34: TOU-On Peak | B34: =VLOOKUP($A34,'Data Pass Through'!$A:$D,2,FALSE) -> 0.203 | C34: =B$4*VLOOKUP($B$3,'Data Billing Quantities'!$A:$O,MATCH($A34,'Data Billing Quantities'!$4:$4,0),FALSE) -> 66.42 | D34: 13.48326 | E34: =VLOOKUP($A34,'Data Pass Through'!$A:$D,3,FALSE) -> 0.203 | F34: =B$4*VLOOKUP($B$3,'Data Billing Quantities'!$A:$O,MATCH($A34,'Data Billing Quantities'!$4:$4,0),FALSE) -> 66.42 | G34: =E34*F34 -> 13.48326 | H34: 0 | I34: 0
A35: Total Bill on TOU (before Taxes) | D35: =SUM(D27:D34) -> 148.4811889 | G35: =SUM(G27:G34) -> 152.8863614 | H35: 4.4051725 | I35: 0.02966821947
A36: HST | B36: 0.13 | D36: =D35*B36 -> 19.30255456 | E36: =B36 -> 0.13 | G36: =G35*E36 -> 19.87522698 | H36: 0.572672425 | I36: 0.02966821947
A37: Ontario Electricity Rebate (OER) | B37: =IF(($B$4*12)<250000,VLOOKUP($A37,'Data Pass Through'!$A$4:$C$19,2,0),0) -> -0.235 | D37: =D35*B37 -> -34.89307939 | E37: =IF(($B$4*12)<250000,VLOOKUP($A37,'Data Pass Through'!$A$4:$C$19,3,0),0) -> -0.235 | G37: =G35*E37 -> -35.92829493 | H37: -1.035215537 | I37: -0.02966821947
A38: Total Bill on TOU | D38: =SUM(D35:D37) -> 132.8906641 | G38: =SUM(G35:G37) -> 136.8332935 | H38: 3.942629388 | I38: 0.02966821947
A39: * Distribution rate protection applies to R1 and R2 customers

Sheet BI_GSe_Typical
A1: Bill Impacts (Typical Consumption Level) - GSe
A3: Rate Class | B3: =RIGHT(A1,LEN(A1)-FIND("- ",A1,1)-1) -> GSe
A4: Monthly Consumption (kWh) | B4: =IF(COUNTIF(A1,"*Low*")>0,VLOOKUP(B3,'Data Billing Quantities'!$A:$Z,MATCH("Low kWh",'Data Billing Quantities'!4:4,0),FALSE),IF(COUNTIF(A1,"*Typical*")>0,VLOOKUP(B3,'Data Billing Quantities'!$A:$Z,MATCH("Typical kWh",'Data Billing Quantities'!4:4,0),FALSE),IF(COUNTIF(A1,"*Average*")>0,VLOOKUP(B3,'Data Billing Quantities'!$A:$Z,MATCH("Average kWh",'Data Billing Quantities'!4:4,0),FALSE),IF(COUNTIF(A1,"*High*")>0,VLOOKUP(B3,'Data Billing Quantities'!$A:$Z,MATCH("High kWh",'Data Billing Quantities'!4:4,0),FALSE),"error")))) -> 2000
A5: Peak (kW) | B5: =IF(COUNTIF(A1,"*Low*")>0,VLOOKUP(B3,'Data Billing Quantities'!$A:$Z,MATCH("Low kW",'Data Billing Quantities'!4:4,0),FALSE),IF(COUNTIF(A1,"*Typical*")>0,VLOOKUP(B3,'Data Billing Quantities'!$A:$Z,MATCH("Typical kW",'Data Billing Quantities'!4:4,0),FALSE),IF(COUNTIF(A1,"*Average*")>0,VLOOKUP(B3,'Data Billing Quantities'!$A:$Z,MATCH("Average kW",'Data Billing Quantities'!4:4,0),FALSE),IF(COUNTIF(A1,"*High*")>0,VLOOKUP(B3,'Data Billing Quantities'!$A:$Z,MATCH("High kW",'Data Billing Quantities'!4:4,0),FALSE),"error")))) -> 0
A6: Loss factor | B6: =VLOOKUP(B3,'Data Billing Quantities'!A:D,MATCH(A6,'Data Billing Quantities'!4:4,0),FALSE) -> 1.096
A7: Charge determinant | B7: =VLOOKUP(B3,'Data Billing Quantities'!A:D,MATCH(A7,'Data Billing Quantities'!4:4,0),FALSE) -> kWh
B9: Current OEB-Approved | E9: Proposed | H9: Impact
B10: Rate ($) | C10: Volume | D10: Charge ($) | E10: Rate ($) | F10: Volume | G10: Charge ($) | H10: $ Change | I10: % Change
A11: Service Charge | B11: =VLOOKUP($B$3,'Data Current Rates'!$A:$AO,MATCH(BI_GSe_Typical!$A11,CurrentHeader,0),FALSE) -> 32.78 | C11: 1 | D11: =B11*C11 -> 32.78 | E11: =VLOOKUP($B$3,'Data Proposed Rates'!$A:$AT,MATCH(BI_GSe_Typical!$A11,ProposedHeader,0),FALSE) -> 32.78 | F11: 1 | G11: =E11*F11 -> 32.78 | H11: =G11-D11 -> 0 | I11: =IF(ISERROR(H11/ABS(D11)),"N/A",(H11/ABS(D11))) -> 0
A12: Distribution Volumetric Charge | B12: =VLOOKUP($B$3,'Data Current Rates'!$A:$AO,MATCH(BI_GSe_Typical!$A12,CurrentHeader,0),FALSE) -> 0.0768 | C12: =IF($B$7="kWh",$B$4,$B$5) -> 2000 | D12: =B12*C12 -> 153.6 | E12: =VLOOKUP($B$3,'Data Proposed Rates'!$A:$AT,MATCH(BI_GSe_Typical!$A12,ProposedHeader,0),FALSE) -> 0.0816 | F12: =IF($B$7="kWh",$B$4,$B$5) -> 2000 | G12: 163.2 | H12: 9.6 | I12: 0.0625
A13: RRRP Adjustment | B13: =IF($B$3="R2",VLOOKUP(A13,'Data Pass Through'!$A4:$C19,3,0),0)*-1 -> 0 | C13: 1 | D13: =B13*C13 -> 0 | E13: =IF($B$3="R2",VLOOKUP(A13,'Data Pass Through'!$A4:$C19,3,0),0)*-1 -> 0 | F13: 1 | G13: 0 | H13: 0 | I13: N/A
A14: DRP Adjustment | D14: =IF(OR($B$3="R1",$B$3="R2",$B$3="R1-CPUC"),IF(SUM(D11:D13)>'Data Pass Through'!$B$16,-(SUM(D11:D13)-'Data Pass Through'!$B$16),0),0) -> 0 | G14: =IF(OR($B$3="R1",$B$3="R2",$B$3="R1-CPUC"),IF(SUM(G11:G13)>'Data Pass Through'!$B$16,-(SUM(G11:G13)-'Data Pass Through'!$B$16),0),0) -> 0 | H14: 0 | I14: N/A
A15: Group 2 Fixed Rate Rider | B15: =VLOOKUP($B$3,'Data Current Rates'!$A:$AO,MATCH(BI_GSe_Typical!$A15,CurrentHeader,0),FALSE) -> 0 | C15: 1 | D15: =B15*C15 -> 0 | E15: =VLOOKUP($B$3,'Data Proposed Rates'!$A:$AT,MATCH(BI_GSe_Typical!$A15,ProposedHeader,0),FALSE) -> -1.12 | F15: 1 | G15: =E15*F15 -> -1.12 | H15: -1.12 | I15: N/A
A16: Group 2 Volumetric Rate Rider | B16: =VLOOKUP($B$3,'Data Current Rates'!$A:$AO,MATCH(BI_GSe_Typical!$A16,CurrentHeader,0),FALSE) -> -0.0003 | C16: =IF($B$7="kWh",$B$4,$B$5) -> 2000 | D16: =B16*C16 -> -0.6 | E16: =VLOOKUP($B$3,'Data Proposed Rates'!$A:$AT,MATCH(BI_GSe_Typical!$A16,ProposedHeader,0),FALSE) -> -0.0028 | F16: =IF($B$7="kWh",$B$4,$B$5) -> 2000 | G16: -5.6 | H16: =G16-D16 -> -5 | I16: =IF(ISERROR(H16/ABS(D16)),"N/A",(H16/ABS(D16))) -> -8.333333333
A17: Sub-Total A (excluding pass through) | D17: =SUM(D11:D16) -> 185.78 | G17: =SUM(G11:G16) -> 189.26 | H17: 3.48 | I17: 0.01873183335
A18: Line Losses on Cost of Power | B18: =VLOOKUP($B$3,'Data Billing Quantities'!$A:$O,MATCH(BI_GSe_Typical!$A32,'Data Billing Quantities'!$4:$4,0),FALSE)*$B32+VLOOKUP($B$3,'Data Billing Quantities'!$A:$O,MATCH(BI_GSe_Typical!$A33,'Data Billing Quantities'!$4:$4,0),FALSE)*$B33+VLOOKUP($B$3,'Data Billing Quantities'!$A:$O,MATCH(BI_GSe_Typical!$A34,'Data Billing Quantities'!$4:$4,0),FALSE)*$B34 -> 0.12752 | C18: =($B$6*$B$4)-$B$4 -> 192 | D18: =B18*C18 -> 24.48384 | E18: =VLOOKUP($B$3,'Data Billing Quantities'!$A:$O,MATCH(BI_GSe_Typical!$A32,'Data Billing Quantities'!$4:$4,0),FALSE)*$B32+VLOOKUP($B$3,'Data Billing Quantities'!$A:$O,MATCH(BI_GSe_Typical!$A33,'Data Billing Quantities'!$4:$4,0),FALSE)*$B33+VLOOKUP($B$3,'Data Billing Quantities'!$A:$O,MATCH(BI_GSe_Typical!$A34,'Data Billing Quantities'!$4:$4,0),FALSE)*$B34 -> 0.12752 | F18: =($B$6*$B$4)-$B$4 -> 192 | G18: 24.48384 | H18: 0 | I18: 0
A19: Total Deferral/Variance Account Rate Rider | B19: =VLOOKUP($B$3,'Data Current Rates'!$A:$AO,MATCH(BI_GSe_Typical!$A19,CurrentHeader,0),FALSE) -> -0.0036 | C19: =IF($B$7="kWh",$B$4,$B$5) -> 2000 | D19: -7.2 | E19: =VLOOKUP($B$3,'Data Proposed Rates'!$A:$AT,MATCH(BI_GSe_Typical!$A19,ProposedHeader,0),FALSE) -> -0.0017 | F19: =IF($B$7="kWh",$B$4,$B$5) -> 2000 | G19: -3.4 | H19: 3.8 | I19: 0.5277777778
A20: CBR Class B Rate Rider | B20: =VLOOKUP($B$3,'Data Current Rates'!$A:$AJ,MATCH(BI_GSe_Typical!$A20,CurrentHeader,0),FALSE) -> 0.0001 | C20: =IF($B$7="kWh",$B$4,$B$5) -> 2000 | D20: 0.2 | E20: =VLOOKUP($B$3,'Data Proposed Rates'!$A:$AT,MATCH(BI_GSe_Typical!$A20,ProposedHeader,0),FALSE) -> -0.0006 | F20: =IF($B$7="kWh",$B$4,$B$5) -> 2000 | G20: -1.2 | H20: -1.4 | I20: -7
A21: GA Rate Rider | B21: =VLOOKUP($B$3,'Data Current Rates'!$A:$AJ,MATCH(BI_GSe_Typical!$A21,CurrentHeader,0),FALSE) -> 0 | C21: 2000 | D21: 0 | E21: =VLOOKUP($B$3,'Data Proposed Rates'!$A:$AT,MATCH(BI_GSe_Typical!$A21,ProposedHeader,0),FALSE) -> 0 | F21: 2000 | G21: 0 | H21: 0 | I21: N/A
A22: Smart Meter Entity Charge (if applicable) | B22: =VLOOKUP($A22,'Data Pass Through'!$A:$D,2,FALSE) -> 0.42 | C22: 1 | D22: 0.42 | E22: =VLOOKUP($A22,'Data Pass Through'!$A:$D,2,FALSE) -> 0.42 | F22: 1 | G22: 0.42 | H22: 0 | I22: 0
A23: Rate Rider for Account 1588 | E23: =VLOOKUP($B$3,'Data Proposed Rates'!$A:$AT,MATCH(BI_GSe_Typical!$A23,ProposedHeader,0),FALSE) -> -0.0032 | F23: =IF($B$7="kWh",$B$4,$B$5) -> 2000 | G23: -6.4 | H23: -6.4 | I23: N/A
A24: Sub-Total B - Distribution (includes Sub-Total A) | D24: =SUM(INDIRECT("D17:D"&ROW()-1)) -> 203.68384 | G24: =SUM(INDIRECT("G17:G"&ROW()-1)) -> 203.16384 | H24: -0.52 | I24: -0.00255297622
A25: Retail Transmission Rate – Network Service Rate | B25: =VLOOKUP($B$3,'Data Current Rates'!$A:$AJ,MATCH(BI_GSe_Typical!$A25,CurrentHeader,0),FALSE) -> 0.0101 | C25: =IF($B$7="kWh",$B$4*$B$6,$B$5) -> 2192 | D25: =B25*C25 -> 22.1392 | E25: =VLOOKUP($B$3,'Data Proposed Rates'!$A:$AT,MATCH(BI_GSe_Typical!$A25,ProposedHeader,0),FALSE) -> 0.0104 | F25: =IF($B$7="kWh",$B$4*$B$6,$B$5) -> 2192 | G25: 22.7968 | H25: 0.6576 | I25: 0.0297029703
A26: Retail Transmission Rate – Line and Transformation Connection Service Rate | B26: =VLOOKUP($B$3,'Data Current Rates'!$A:$AJ,MATCH(BI_GSe_Typical!$A26,CurrentHeader,0),FALSE) -> 0.0078 | C26: =IF($B$7="kWh",$B$4*$B$6,$B$5) -> 2192 | D26: 17.0976 | E26: =VLOOKUP($B$3,'Data Proposed Rates'!$A:$AT,MATCH(BI_GSe_Typical!$A26,ProposedHeader,0),FALSE) -> 0.008 | F26: =IF($B$7="kWh",$B$4*$B$6,$B$5) -> 2192 | G26: 17.536 | H26: 0.4384 | I26: 0.02564102564
A27: Sub-Total C - Delivery (including Sub-Total B) | D27: =SUM(D24:D26) -> 242.92064 | G27: =SUM(G24:G26) -> 243.49664 | H27: 0.576 | I27: 0.002371144749
A28: Wholesale Market Service Rate (WMS) – not including CBR | B28: =VLOOKUP($A28,'Data Pass Through'!$A:$D,2,FALSE) -> 0.0041 | C28: =$B$4*$B$6 -> 2192 | D28: =B28*C28 -> 8.9872 | E28: =VLOOKUP($A28,'Data Pass Through'!$A:$D,3,FALSE) -> 0.0041 | F28: =$B$4*$B$6 -> 2192 | G28: 8.9872 | H28: 0 | I28: 0
A29: Capacity Based Recovery (CBR) – Applicable for Class B Customers | B29: =VLOOKUP($A29,'Data Pass Through'!$A:$D,2,FALSE) -> 0.0006 | C29: =$B$4*$B$6 -> 2192 | D29: 1.3152 | E29: =VLOOKUP($A29,'Data Pass Through'!$A:$D,3,FALSE) -> 0.0006 | F29: =$B$4*$B$6 -> 2192 | G29: 1.3152 | H29: 0 | I29: 0
A30: Rural Rate Protection Charge | B30: =VLOOKUP($A30,'Data Pass Through'!$A:$D,2,FALSE) -> 0.0006 | C30: =$B$4*$B$6 -> 2192 | D30: 1.3152 | E30: =VLOOKUP($A30,'Data Pass Through'!$A:$D,3,FALSE) -> 0.0006 | F30: =$B$4*$B$6 -> 2192 | G30: 1.3152 | H30: 0 | I30: 0
A31: Standard Supply Service – Administration Charge (if applicable) | B31: =VLOOKUP($A31,'Data Pass Through'!$A:$D,2,FALSE) -> 0.25 | C31: 1 | D31: 0.25 | E31: =VLOOKUP($A31,'Data Pass Through'!$A:$D,3,FALSE) -> 0.25 | F31: 1 | G31: 0.25 | H31: 0 | I31: 0
A32: TOU-Off Peak | B32: =VLOOKUP($A32,'Data Pass Through'!$A:$D,2,FALSE) -> 0.098 | C32: =B$4*VLOOKUP($B$3,'Data Billing Quantities'!$A:$O,MATCH($A32,'Data Billing Quantities'!$4:$4,0),FALSE) -> 1280 | D32: 125.44 | E32: =VLOOKUP($A32,'Data Pass Through'!$A:$D,3,FALSE) -> 0.098 | F32: =B$4*VLOOKUP($B$3,'Data Billing Quantities'!$A:$O,MATCH($A32,'Data Billing Quantities'!$4:$4,0),FALSE) -> 1280 | G32: =E32*F32 -> 125.44 | H32: 0 | I32: 0
A33: TOU-Mid Peak | B33: =VLOOKUP($A33,'Data Pass Through'!$A:$D,2,FALSE) -> 0.157 | C33: =B$4*VLOOKUP($B$3,'Data Billing Quantities'!$A:$O,MATCH($A33,'Data Billing Quantities'!$4:$4,0),FALSE) -> 360 | D33: 56.52 | E33: =VLOOKUP($A33,'Data Pass Through'!$A:$D,3,FALSE) -> 0.157 | F33: =B$4*VLOOKUP($B$3,'Data Billing Quantities'!$A:$O,MATCH($A33,'Data Billing Quantities'!$4:$4,0),FALSE) -> 360 | G33: =E33*F33 -> 56.52 | H33: 0 | I33: 0
A34: TOU-On Peak | B34: =VLOOKUP($A34,'Data Pass Through'!$A:$D,2,FALSE) -> 0.203 | C34: =B$4*VLOOKUP($B$3,'Data Billing Quantities'!$A:$O,MATCH($A34,'Data Billing Quantities'!$4:$4,0),FALSE) -> 360 | D34: 73.08 | E34: =VLOOKUP($A34,'Data Pass Through'!$A:$D,3,FALSE) -> 0.203 | F34: =B$4*VLOOKUP($B$3,'Data Billing Quantities'!$A:$O,MATCH($A34,'Data Billing Quantities'!$4:$4,0),FALSE) -> 360 | G34: =E34*F34 -> 73.08 | H34: 0 | I34: 0
A35: Total Bill on TOU (before Taxes) | D35: =SUM(D27:D34) -> 509.82824 | G35: =SUM(G27:G34) -> 510.40424 | H35: 0.576 | I35: 0.001129792261
A36: HST | B36: 0.13 | D36: =D35*B36 -> 66.2776712 | E36: =B36 -> 0.13 | G36: =G35*E36 -> 66.3525512 | H36: 0.07488 | I36: 0.001129792261
A37: Ontario Electricity Rebate (OER) | B37: =IF(($B$4*12)<250000,VLOOKUP($A37,'Data Pass Through'!$A$4:$C$19,2,0),0) -> -0.235 | D37: =D35*B37 -> -119.8096364 | E37: =IF(($B$4*12)<250000,VLOOKUP($A37,'Data Pass Through'!$A$4:$C$19,3,0),0) -> -0.235 | G37: =G35*E37 -> -119.9449964 | H37: -0.13536 | I37: -0.001129792261
A38: Total Bill on TOU | D38: =SUM(D35:D37) -> 456.2962748 | G38: =SUM(G35:G37) -> 456.8117948 | H38: 0.51552 | I38: 0.001129792261
A39: * Distribution rate protection applies to R1 and R2 customers

Sheet BI_UGe_Typical
A1: Bill Impacts (Typical Consumption Level) - UGe
A3: Rate Class | B3: =RIGHT(A1,LEN(A1)-FIND("- ",A1,1)-1) -> UGe
A4: Monthly Consumption (kWh) | B4: =IF(COUNTIF(A1,"*Low*")>0,VLOOKUP(B3,'Data Billing Quantities'!$A:$Z,MATCH("Low kWh",'Data Billing Quantities'!4:4,0),FALSE),IF(COUNTIF(A1,"*Typical*")>0,VLOOKUP(B3,'Data Billing Quantities'!$A:$Z,MATCH("Typical kWh",'Data Billing Quantities'!4:4,0),FALSE),IF(COUNTIF(A1,"*Average*")>0,VLOOKUP(B3,'Data Billing Quantities'!$A:$Z,MATCH("Average kWh",'Data Billing Quantities'!4:4,0),FALSE),IF(COUNTIF(A1,"*High*")>0,VLOOKUP(B3,'Data Billing Quantities'!$A:$Z,MATCH("High kWh",'Data Billing Quantities'!4:4,0),FALSE),"error")))) -> 2000
A5: Peak (kW) | B5: =IF(COUNTIF(A1,"*Low*")>0,VLOOKUP(B3,'Data Billing Quantities'!$A:$Z,MATCH("Low kW",'Data Billing Quantities'!4:4,0),FALSE),IF(COUNTIF(A1,"*Typical*")>0,VLOOKUP(B3,'Data Billing Quantities'!$A:$Z,MATCH("Typical kW",'Data Billing Quantities'!4:4,0),FALSE),IF(COUNTIF(A1,"*Average*")>0,VLOOKUP(B3,'Data Billing Quantities'!$A:$Z,MATCH("Average kW",'Data Billing Quantities'!4:4,0),FALSE),IF(COUNTIF(A1,"*High*")>0,VLOOKUP(B3,'Data Billing Quantities'!$A:$Z,MATCH("High kW",'Data Billing Quantities'!4:4,0),FALSE),"error")))) -> 0
A6: Loss factor | B6: =VLOOKUP(B3,'Data Billing Quantities'!A:D,MATCH(A6,'Data Billing Quantities'!4:4,0),FALSE) -> 1.067
A7: Charge determinant | B7: =VLOOKUP(B3,'Data Billing Quantities'!A:D,MATCH(A7,'Data Billing Quantities'!4:4,0),FALSE) -> kWh
B9: Current OEB-Approved | E9: Proposed | H9: Impact
B10: Rate ($) | C10: Volume | D10: Charge ($) | E10: Rate ($) | F10: Volume | G10: Charge ($) | H10: $ Change | I10: % Change
A11: Service Charge | B11: =VLOOKUP($B$3,'Data Current Rates'!$A:$AO,MATCH(BI_UGe_Typical!$A11,CurrentHeader,0),FALSE) -> 25.51 | C11: 1 | D11: =B11*C11 -> 25.51 | E11: =VLOOKUP($B$3,'Data Proposed Rates'!$A:$AT,MATCH(BI_UGe_Typical!$A11,ProposedHeader,0),FALSE) -> 25.51 | F11: 1 | G11: =E11*F11 -> 25.51 | H11: =G11-D11 -> 0 | I11: =IF(ISERROR(H11/ABS(D11)),"N/A",(H11/ABS(D11))) -> 0
A12: Distribution Volumetric Charge | B12: =VLOOKUP($B$3,'Data Current Rates'!$A:$AO,MATCH(BI_UGe_Typical!$A12,CurrentHeader,0),FALSE) -> 0.037 | C12: =IF($B$7="kWh",$B$4,$B$5) -> 2000 | D12: =B12*C12 -> 74 | E12: =VLOOKUP($B$3,'Data Proposed Rates'!$A:$AT,MATCH(BI_UGe_Typical!$A12,ProposedHeader,0),FALSE) -> 0.0394 | F12: =IF($B$7="kWh",$B$4,$B$5) -> 2000 | G12: 78.8 | H12: 4.8 | I12: 0.06486486486
A13: RRRP Adjustment | B13: =IF($B$3="R2",VLOOKUP(A13,'Data Pass Through'!$A4:$C19,3,0),0)*-1 -> 0 | C13: 1 | D13: =B13*C13 -> 0 | E13: =IF($B$3="R2",VLOOKUP(A13,'Data Pass Through'!$A4:$C19,3,0),0)*-1 -> 0 | F13: 1 | G13: 0 | H13: 0 | I13: N/A
A14: DRP Adjustment | D14: =IF(OR($B$3="R1",$B$3="R2",$B$3="R1-CPUC"),IF(SUM(D11:D13)>'Data Pass Through'!$B$16,-(SUM(D11:D13)-'Data Pass Through'!$B$16),0),0) -> 0 | G14: =IF(OR($B$3="R1",$B$3="R2",$B$3="R1-CPUC"),IF(SUM(G11:G13)>'Data Pass Through'!$B$16,-(SUM(G11:G13)-'Data Pass Through'!$B$16),0),0) -> 0 | H14: 0 | I14: N/A
A15: Group 2 Fixed Rate Rider | B15: =VLOOKUP($B$3,'Data Current Rates'!$A:$AO,MATCH(BI_UGe_Typical!$A15,CurrentHeader,0),FALSE) -> 0 | C15: 1 | D15: =B15*C15 -> 0 | E15: =VLOOKUP($B$3,'Data Proposed Rates'!$A:$AT,MATCH(BI_UGe_Typical!$A15,ProposedHeader,0),FALSE) -> -0.87 | F15: 1 | G15: =E15*F15 -> -0.87 | H15: -0.87 | I15: N/A
A16: Group 2 Volumetric Rate Rider | B16: =VLOOKUP($B$3,'Data Current Rates'!$A:$AO,MATCH(BI_UGe_Typical!$A16,CurrentHeader,0),FALSE) -> -0.0001 | C16: =IF($B$7="kWh",$B$4,$B$5) -> 2000 | D16: =B16*C16 -> -0.2 | E16: =VLOOKUP($B$3,'Data Proposed Rates'!$A:$AT,MATCH(BI_UGe_Typical!$A16,ProposedHeader,0),FALSE) -> -0.0014 | F16: =IF($B$7="kWh",$B$4,$B$5) -> 2000 | G16: -2.8 | H16: =G16-D16 -> -2.6 | I16: =IF(ISERROR(H16/ABS(D16)),"N/A",(H16/ABS(D16))) -> -13
A17: Sub-Total A (excluding pass through) | D17: =SUM(D11:D16) -> 99.31 | G17: =SUM(G11:G16) -> 100.64 | H17: 1.33 | I17: 0.01339240761
A18: Line Losses on Cost of Power | B18: =VLOOKUP($B$3,'Data Billing Quantities'!$A:$O,MATCH(BI_UGe_Typical!$A32,'Data Billing Quantities'!$4:$4,0),FALSE)*$B32+VLOOKUP($B$3,'Data Billing Quantities'!$A:$O,MATCH(BI_UGe_Typical!$A33,'Data Billing Quantities'!$4:$4,0),FALSE)*$B33+VLOOKUP($B$3,'Data Billing Quantities'!$A:$O,MATCH(BI_UGe_Typical!$A34,'Data Billing Quantities'!$4:$4,0),FALSE)*$B34 -> 0.12752 | C18: =($B$6*$B$4)-$B$4 -> 134 | D18: =B18*C18 -> 17.08768 | E18: =VLOOKUP($B$3,'Data Billing Quantities'!$A:$O,MATCH(BI_UGe_Typical!$A32,'Data Billing Quantities'!$4:$4,0),FALSE)*$B32+VLOOKUP($B$3,'Data Billing Quantities'!$A:$O,MATCH(BI_UGe_Typical!$A33,'Data Billing Quantities'!$4:$4,0),FALSE)*$B33+VLOOKUP($B$3,'Data Billing Quantities'!$A:$O,MATCH(BI_UGe_Typical!$A34,'Data Billing Quantities'!$4:$4,0),FALSE)*$B34 -> 0.12752 | F18: =($B$6*$B$4)-$B$4 -> 134 | G18: 17.08768 | H18: 0 | I18: 0
A19: Total Deferral/Variance Account Rate Rider | B19: =VLOOKUP($B$3,'Data Current Rates'!$A:$AO,MATCH(BI_UGe_Typical!$A19,CurrentHeader,0),FALSE) -> -0.0036 | C19: =IF($B$7="kWh",$B$4,$B$5) -> 2000 | D19: -7.2 | E19: =VLOOKUP($B$3,'Data Proposed Rates'!$A:$AT,MATCH(BI_UGe_Typical!$A19,ProposedHeader,0),FALSE) -> -0.0016 | F19: =IF($B$7="kWh",$B$4,$B$5) -> 2000 | G19: -3.2 | H19: 4 | I19: 0.5555555556
A20: CBR Class B Rate Rider | B20: =VLOOKUP($B$3,'Data Current Rates'!$A:$AJ,MATCH(BI_UGe_Typical!$A20,CurrentHeader,0),FALSE) -> 0.0001 | C20: =IF($B$7="kWh",$B$4,$B$5) -> 2000 | D20: 0.2 | E20: =VLOOKUP($B$3,'Data Proposed Rates'!$A:$AT,MATCH(BI_UGe_Typical!$A20,ProposedHeader,0),FALSE) -> -0.0006 | F20: =IF($B$7="kWh",$B$4,$B$5) -> 2000 | G20: -1.2 | H20: -1.4 | I20: -7
A21: GA Rate Rider | B21: =VLOOKUP($B$3,'Data Current Rates'!$A:$AJ,MATCH(BI_UGe_Typical!$A21,CurrentHeader,0),FALSE) -> 0 | C21: 2000 | D21: 0 | E21: =VLOOKUP($B$3,'Data Proposed Rates'!$A:$AT,MATCH(BI_UGe_Typical!$A21,ProposedHeader,0),FALSE) -> 0 | F21: 2000 | G21: 0 | H21: 0 | I21: N/A
A22: Smart Meter Entity Charge (if applicable) | B22: =VLOOKUP($A22,'Data Pass Through'!$A:$D,2,FALSE) -> 0.42 | C22: 1 | D22: 0.42 | E22: =VLOOKUP($A22,'Data Pass Through'!$A:$D,2,FALSE) -> 0.42 | F22: 1 | G22: 0.42 | H22: 0 | I22: 0
A23: Rate Rider for Account 1588 | E23: =VLOOKUP($B$3,'Data Proposed Rates'!$A:$AT,MATCH(BI_UGe_Typical!$A23,ProposedHeader,0),FALSE) -> -0.0032 | F23: =IF($B$7="kWh",$B$4,$B$5) -> 2000 | G23: -6.4 | H23: -6.4 | I23: N/A
A24: Sub-Total B - Distribution (includes Sub-Total A) | D24: =SUM(INDIRECT("D17:D"&ROW()-1)) -> 109.81768 | G24: =SUM(INDIRECT("G17:G"&ROW()-1)) -> 107.34768 | H24: -2.47 | I24: -0.02249182463
A25: Retail Transmission Rate – Network Service Rate | B25: =VLOOKUP($B$3,'Data Current Rates'!$A:$AJ,MATCH(BI_UGe_Typical!$A25,CurrentHeader,0),FALSE) -> 0.0108 | C25: =IF($B$7="kWh",$B$4*$B$6,$B$5) -> 2134 | D25: =B25*C25 -> 23.0472 | E25: =VLOOKUP($B$3,'Data Proposed Rates'!$A:$AT,MATCH(BI_UGe_Typical!$A25,ProposedHeader,0),FALSE) -> 0.0111 | F25: =IF($B$7="kWh",$B$4*$B$6,$B$5) -> 2134 | G25: 23.6874 | H25: 0.6402 | I25: 0.02777777778
A26: Retail Transmission Rate – Line and Transformation Connection Service Rate | B26: =VLOOKUP($B$3,'Data Current Rates'!$A:$AJ,MATCH(BI_UGe_Typical!$A26,CurrentHeader,0),FALSE) -> 0.0083 | C26: =IF($B$7="kWh",$B$4*$B$6,$B$5) -> 2134 | D26: 17.7122 | E26: =VLOOKUP($B$3,'Data Proposed Rates'!$A:$AT,MATCH(BI_UGe_Typical!$A26,ProposedHeader,0),FALSE) -> 0.0085 | F26: =IF($B$7="kWh",$B$4*$B$6,$B$5) -> 2134 | G26: 18.139 | H26: 0.4268 | I26: 0.02409638554
A27: Sub-Total C - Delivery (including Sub-Total B) | D27: =SUM(D24:D26) -> 150.57708 | G27: =SUM(G24:G26) -> 149.17408 | H27: -1.403 | I27: -0.009317487097
A28: Wholesale Market Service Rate (WMS) – not including CBR | B28: =VLOOKUP($A28,'Data Pass Through'!$A:$D,2,FALSE) -> 0.0041 | C28: =$B$4*$B$6 -> 2134 | D28: =B28*C28 -> 8.7494 | E28: =VLOOKUP($A28,'Data Pass Through'!$A:$D,3,FALSE) -> 0.0041 | F28: =$B$4*$B$6 -> 2134 | G28: 8.7494 | H28: 0 | I28: 0
A29: Capacity Based Recovery (CBR) – Applicable for Class B Customers | B29: =VLOOKUP($A29,'Data Pass Through'!$A:$D,2,FALSE) -> 0.0006 | C29: =$B$4*$B$6 -> 2134 | D29: 1.2804 | E29: =VLOOKUP($A29,'Data Pass Through'!$A:$D,3,FALSE) -> 0.0006 | F29: =$B$4*$B$6 -> 2134 | G29: 1.2804 | H29: 0 | I29: 0
A30: Rural Rate Protection Charge | B30: =VLOOKUP($A30,'Data Pass Through'!$A:$D,2,FALSE) -> 0.0006 | C30: =$B$4*$B$6 -> 2134 | D30: 1.2804 | E30: =VLOOKUP($A30,'Data Pass Through'!$A:$D,3,FALSE) -> 0.0006 | F30: =$B$4*$B$6 -> 2134 | G30: 1.2804 | H30: 0 | I30: 0
A31: Standard Supply Service – Administration Charge (if applicable) | B31: =VLOOKUP($A31,'Data Pass Through'!$A:$D,2,FALSE) -> 0.25 | C31: 1 | D31: 0.25 | E31: =VLOOKUP($A31,'Data Pass Through'!$A:$D,3,FALSE) -> 0.25 | F31: 1 | G31: 0.25 | H31: 0 | I31: 0
A32: TOU-Off Peak | B32: =VLOOKUP($A32,'Data Pass Through'!$A:$D,2,FALSE) -> 0.098 | C32: =B$4*VLOOKUP($B$3,'Data Billing Quantities'!$A:$O,MATCH($A32,'Data Billing Quantities'!$4:$4,0),FALSE) -> 1280 | D32: 125.44 | E32: =VLOOKUP($A32,'Data Pass Through'!$A:$D,3,FALSE) -> 0.098 | F32: =B$4*VLOOKUP($B$3,'Data Billing Quantities'!$A:$O,MATCH($A32,'Data Billing Quantities'!$4:$4,0),FALSE) -> 1280 | G32: =E32*F32 -> 125.44 | H32: 0 | I32: 0
A33: TOU-Mid Peak | B33: =VLOOKUP($A33,'Data Pass Through'!$A:$D,2,FALSE) -> 0.157 | C33: =B$4*VLOOKUP($B$3,'Data Billing Quantities'!$A:$O,MATCH($A33,'Data Billing Quantities'!$4:$4,0),FALSE) -> 360 | D33: 56.52 | E33: =VLOOKUP($A33,'Data Pass Through'!$A:$D,3,FALSE) -> 0.157 | F33: =B$4*VLOOKUP($B$3,'Data Billing Quantities'!$A:$O,MATCH($A33,'Data Billing Quantities'!$4:$4,0),FALSE) -> 360 | G33: =E33*F33 -> 56.52 | H33: 0 | I33: 0
A34: TOU-On Peak | B34: =VLOOKUP($A34,'Data Pass Through'!$A:$D,2,FALSE) -> 0.203 | C34: =B$4*VLOOKUP($B$3,'Data Billing Quantities'!$A:$O,MATCH($A34,'Data Billing Quantities'!$4:$4,0),FALSE) -> 360 | D34: 73.08 | E34: =VLOOKUP($A34,'Data Pass Through'!$A:$D,3,FALSE) -> 0.203 | F34: =B$4*VLOOKUP($B$3,'Data Billing Quantities'!$A:$O,MATCH($A34,'Data Billing Quantities'!$4:$4,0),FALSE) -> 360 | G34: =E34*F34 -> 73.08 | H34: 0 | I34: 0
A35: Total Bill on TOU (before Taxes) | D35: =SUM(D27:D34) -> 417.17728 | G35: =SUM(G27:G34) -> 415.77428 | H35: -1.403 | I35: -0.003363078641
A36: HST | B36: 0.13 | D36: =D35*B36 -> 54.2330464 | E36: =B36 -> 0.13 | G36: =G35*E36 -> 54.0506564 | H36: -0.18239 | I36: -0.003363078641
A37: Ontario Electricity Rebate (OER) | B37: =IF(($B$4*12)<250000,VLOOKUP($A37,'Data Pass Through'!$A$4:$C$19,2,0),0) -> -0.235 | D37: =D35*B37 -> -98.0366608 | E37: =IF(($B$4*12)<250000,VLOOKUP($A37,'Data Pass Through'!$A$4:$C$19,3,0),0) -> -0.235 | G37: =G35*E37 -> -97.7069558 | H37: 0.329705 | I37: 0.003363078641
A38: Total Bill on TOU | D38: =SUM(D35:D37) -> 373.3736656 | G38: =SUM(G35:G37) -> 372.1179806 | H38: -1.255685 | I38: -0.003363078641
A39: * Distribution rate protection applies to R1 and R2 customers

Sheet BI_GSd_Avg
A1: Bill Impacts (Average Consumption Level) - GSd
A3: Rate Class | B3: =RIGHT(A1,LEN(A1)-FIND("- ",A1,1)-1) -> GSd
A4: Monthly Consumption (kWh) | B4: =IF(COUNTIF(A1,"*Low*")>0,VLOOKUP(B3,'Data Billing Quantities'!$A:$Z,MATCH("Low kWh",'Data Billing Quantities'!4:4,0),FALSE),IF(COUNTIF(A1,"*Typical*")>0,VLOOKUP(B3,'Data Billing Quantities'!$A:$Z,MATCH("Typical kWh",'Data Billing Quantities'!4:4,0),FALSE),IF(COUNTIF(A1,"*Average*")>0,VLOOKUP(B3,'Data Billing Quantities'!$A:$Z,MATCH("Average kWh",'Data Billing Quantities'!4:4,0),FALSE),IF(COUNTIF(A1,"*High*")>0,VLOOKUP(B3,'Data Billing Quantities'!$A:$Z,MATCH("High kWh",'Data Billing Quantities'!4:4,0),FALSE),"error")))) -> 34334
A5: Peak (kW) | B5: =IF(COUNTIF(A1,"*Low*")>0,VLOOKUP(B3,'Data Billing Quantities'!$A:$Z,MATCH("Low kW",'Data Billing Quantities'!4:4,0),FALSE),IF(COUNTIF(A1,"*Typical*")>0,VLOOKUP(B3,'Data Billing Quantities'!$A:$Z,MATCH("Typical kW",'Data Billing Quantities'!4:4,0),FALSE),IF(COUNTIF(A1,"*Average*")>0,VLOOKUP(B3,'Data Billing Quantities'!$A:$Z,MATCH("Average kW",'Data Billing Quantities'!4:4,0),FALSE),IF(COUNTIF(A1,"*High*")>0,VLOOKUP(B3,'Data Billing Quantities'!$A:$Z,MATCH("High kW",'Data Billing Quantities'!4:4,0),FALSE),"error")))) -> 110
A6: Loss factor | B6: =VLOOKUP(B3,'Data Billing Quantities'!A:D,MATCH(A6,'Data Billing Quantities'!4:4,0),FALSE) -> 1.061
A7: Charge determinant | B7: =VLOOKUP(B3,'Data Billing Quantities'!A:D,MATCH(A7,'Data Billing Quantities'!4:4,0),FALSE) -> kW
B9: Current OEB-Approved | E9: Proposed | H9: Impact
B10: Rate | C10: Volume | D10: Charge | E10: Rate | F10: Volume | G10: Charge | H10: $ Change | I10: % Change
B11: ($) | D11: ($) | E11: ($) | G11: ($)
A12: Service Charge | B12: =VLOOKUP($B$3,'Data Current Rates'!$A:$AO,MATCH(BI_GSd_Avg!$A12,CurrentHeader,0),FALSE) -> 105.55 | C12: 1 | D12: =C12*B12 -> 105.55 | E12: =VLOOKUP($B$3,'Data Proposed Rates'!$A:$AT,MATCH(BI_GSd_Avg!$A12,ProposedHeader,0),FALSE) -> 105.55 | F12: 1 | G12: =F12*E12 -> 105.55 | H12: =G12-D12 -> 0 | I12: =IF(ISERROR(H12/ABS(D12)),"N/A",(H12/ABS(D12))) -> 0
A13: Distribution Volumetric Charge | B13: =VLOOKUP($B$3,'Data Current Rates'!$A:$AO,MATCH(BI_GSd_Avg!$A13,CurrentHeader,0),FALSE) -> 21.3987 | C13: =IF($B$7="kWh",$B$4,$B$5) -> 110 | D13: =C13*B13 -> 2353.857 | E13: =VLOOKUP($B$3,'Data Proposed Rates'!$A:$AT,MATCH(BI_GSd_Avg!$A13,ProposedHeader,0),FALSE) -> 22.5201 | F13: =IF($B$7="kWh",$B$4,$B$5) -> 110 | G13: =F13*E13 -> 2477.211 | H13: 123.354 | I13: 0.05240505264
A14: Group 2 Fixed Rate Rider | B14: =VLOOKUP($B$3,'Data Current Rates'!$A:$AO,MATCH(BI_GSd_Avg!$A14,CurrentHeader,0),FALSE) -> 0 | C14: 1 | D14: 0 | E14: =VLOOKUP($B$3,'Data Proposed Rates'!$A:$AT,MATCH(BI_GSd_Avg!$A14,ProposedHeader,0),FALSE) -> -3.62 | F14: 1 | G14: =F14*E14 -> -3.62 | H14: -3.62 | I14: N/A
A15: Group 2 Volumetric Rate Rider | B15: =VLOOKUP($B$3,'Data Current Rates'!$A:$AO,MATCH(BI_GSd_Avg!$A15,CurrentHeader,0),FALSE) -> -0.071 | C15: =IF($B$7="kWh",$B$4,$B$5) -> 110 | D15: -7.81 | E15: =VLOOKUP($B$3,'Data Proposed Rates'!$A:$AT,MATCH(BI_GSd_Avg!$A15,ProposedHeader,0),FALSE) -> -0.7683 | F15: =IF($B$7="kWh",$B$4,$B$5) -> 110 | G15: -84.513 | H15: -76.703 | I15: -9.821126761
A16: Sub-Total A (excluding pass through) | D16: =SUM(D12:D15) -> 2451.597 | G16: =SUM(G12:G15) -> 2494.628 | H16: 43.031 | I16: 0.01755223228
A17: Line Losses on Cost of Power | B17: 0 | C17: =IF(B$17=0,0,B$4*B$6-B$4) -> 0 | D17: =C17*B17 -> 0 | E17: 0 | F17: =IF(E$17=0,0,E$4*E$6-E$4) -> 0 | G17: 0 | H17: 0 | I17: N/A
A18: Total Deferral/Variance Account Rate Rider | B18: =VLOOKUP($B$3,'Data Current Rates'!$A:$AO,MATCH(BI_GSd_Avg!$A18,CurrentHeader,0),FALSE) -> -1.0953 | C18: =IF($B$7="kWh",$B$4,$B$5) -> 110 | D18: -120.483 | E18: =VLOOKUP($B$3,'Data Proposed Rates'!$A:$AT,MATCH(BI_GSd_Avg!$A18,ProposedHeader,0),FALSE) -> -0.548 | F18: =IF($B$7="kWh",$B$4,$B$5) -> 110 | G18: -60.28 | H18: 60.203 | I18: 0.4996804528
A19: CBR Class B Rate Rider | B19: =VLOOKUP($B$3,'Data Current Rates'!$A:$AO,MATCH(BI_GSd_Avg!$A19,CurrentHeader,0),FALSE) -> 0.0172 | C19: =IF($B$7="kWh",$B$4,$B$5) -> 110 | D19: =C19*B19 -> 1.892 | E19: =VLOOKUP($B$3,'Data Proposed Rates'!$A:$AT,MATCH(BI_GSd_Avg!$A19,ProposedHeader,0),FALSE) -> -0.1893 | F19: =IF($B$7="kWh",$B$4,$B$5) -> 110 | G19: =F19*E19 -> -20.823 | H19: -22.715 | I19: -12.00581395
A20: GA Rate Rider | B20: =VLOOKUP($B$3,'Data Current Rates'!$A:$AO,MATCH(BI_GSd_Avg!$A20,CurrentHeader,0),FALSE) -> -0.0009 | C20: =$B$4 -> 34334 | D20: =C20*B20 -> -30.9006 | E20: =VLOOKUP($B$3,'Data Proposed Rates'!$A:$AT,MATCH(BI_GSd_Avg!$A20,ProposedHeader,0),FALSE) -> 0.0121 | F20: =$B$4 -> 34334 | G20: 415.4414 | H20: 446.342 | I20: 14.44444444
A21: Rate Rider for Account 1588 | E21: =VLOOKUP($B$3,'Data Proposed Rates'!$A:$AT,MATCH(BI_GSd_Avg!$A21,ProposedHeader,0),FALSE) -> -0.9912 | F21: =IF($B$7="kWh",$B$4,$B$5) -> 110 | G21: =F21*E21 -> -109.032 | H21: -109.032 | I21: N/A
A22: Sub-Total B - Distribution (includes Sub-Total A) | D22: =SUM(INDIRECT("D16:D"&ROW()-1)) -> 2302.1054 | G22: =SUM(INDIRECT("G16:G"&ROW()-1)) -> 2719.9344 | H22: 417.829 | I22: 0.1814986403
A23: Retail Transmission Rate – Network Service Rate | B23: =VLOOKUP($B$3,'Data Current Rates'!$A:$AO,MATCH(BI_GSd_Avg!$A23,CurrentHeader,0),FALSE) -> 3.2717 | C23: =IF($B$7="kWh",$B$4*$B$6,$B$5) -> 110 | D23: =C23*B23 -> 359.887 | E23: =VLOOKUP($B$3,'Data Proposed Rates'!$A:$AT,MATCH(BI_GSd_Avg!$A23,ProposedHeader,0),FALSE) -> 3.3593 | F23: =IF($B$7="kWh",$B$4*$B$6,$B$5) -> 110 | G23: =F23*E23 -> 369.523 | H23: 9.636 | I23: 0.02677507106
A24: Retail Transmission Rate – Line and Transformation Connection Service Rate | B24: =VLOOKUP($B$3,'Data Current Rates'!$A:$AO,MATCH(BI_GSd_Avg!$A24,CurrentHeader,0),FALSE) -> 2.492 | C24: =IF($B$7="kWh",$B$4*$B$6,$B$5) -> 110 | D24: =C24*B24 -> 274.12 | E24: =VLOOKUP($B$3,'Data Proposed Rates'!$A:$AT,MATCH(BI_GSd_Avg!$A24,ProposedHeader,0),FALSE) -> 2.5541 | F24: =IF($B$7="kWh",$B$4*$B$6,$B$5) -> 110 | G24: =F24*E24 -> 280.951 | H24: 6.831 | I24: 0.02491974318
A25: Sub-Total C - Delivery (including Sub-Total B) | D25: =SUM(D22:D24) -> 2936.1124 | G25: =SUM(G22:G24) -> 3370.4084 | H25: 434.296 | I25: 0.1479153182
A26: Wholesale Market Service Rate (WMS) – not including CBR | B26: =VLOOKUP($A26,'Data Pass Through'!$A:$D,2,FALSE) -> 0.0041 | C26: =$B$4*$B$6 -> 36428.374 | D26: =C26*B26 -> 149.3563334 | E26: =VLOOKUP($A26,'Data Pass Through'!$A:$D,3,FALSE) -> 0.0041 | F26: =$B$4*$B$6 -> 36428.374 | G26: =F26*E26 -> 149.3563334 | H26: 0 | I26: 0
A27: Capacity Based Recovery (CBR) – Applicable for Class B Customers | B27: =VLOOKUP($A27,'Data Pass Through'!$A:$D,2,FALSE) -> 0.0006 | C27: =$B$4*$B$6 -> 36428.374 | D27: 21.8570244 | E27: =VLOOKUP($A27,'Data Pass Through'!$A:$D,3,FALSE) -> 0.0006 | F27: 36428.374 | G27: 21.8570244 | H27: 0 | I27: 0
A28: Rural Rate Protection Charge | B28: =VLOOKUP($A28,'Data Pass Through'!$A:$D,2,FALSE) -> 0.0006 | C28: 36428.374 | D28: 21.8570244 | E28: =VLOOKUP($A28,'Data Pass Through'!$A:$D,3,FALSE) -> 0.0006 | F28: 36428.374 | G28: 21.8570244 | H28: 0 | I28: 0
A29: Standard Supply Service – Administration Charge (if applicable) | B29: =VLOOKUP($A29,'Data Pass Through'!$A:$D,2,FALSE) -> 0.25 | C29: 1 | D29: 0.25 | E29: =VLOOKUP($A29,'Data Pass Through'!$A:$D,3,FALSE) -> 0.25 | F29: 1 | G29: 0.25 | H29: 0 | I29: 0
A30: Average IESO Wholesale Market Price | B30: =VLOOKUP(A30,'Data Pass Through'!A4:C19,2,0) -> 0.1596 | C30: =$B$4*$B$6 -> 36428.374 | D30: =C30*B30 -> 5813.96849 | E30: =VLOOKUP($A30,'Data Pass Through'!$A:$D,3,FALSE) -> 0.1596 | F30: =$B$4*$B$6 -> 36428.374 | G30: 5813.96849 | H30: =G30-D30 -> 0 | I30: 0
A31: Total Bill on Average IESO Wholesale Market Price (before Taxes) | D31: =SUM(D25:D30) -> 8943.401273 | G31: =SUM(G25:G30) -> 9377.697273 | H31: =G31-D31 -> 434.296 | I31: 0.04856049581
A32: HST | B32: 0.13 | D32: =D31*B32 -> 1162.642165 | E32: 0.13 | G32: =G31*E32 -> 1219.100645 | H32: =G32-D32 -> 56.45848 | I32: 0.04856049581
A33: Ontario Electricity Rebate (OER) | B33: =IF(($B$4*12)<250000,VLOOKUP(A33,'Data Pass Through'!$A$4:$C$19,2,0),0) -> 0 | D33: =D31*B33 -> 0 | E33: =IF(($B$4*12)<250000,VLOOKUP(A33,'Data Pass Through'!$A$4:$C$19,3,0),0) -> 0 | G33: =G31*E33 -> 0 | H33: =G33-D33 -> 0 | I33: N/A
A34: Total Bill on Average IESO Wholesale Market Price | D34: =SUM(D31:D33) -> 10106.04344 | G34: =SUM(G31:G33) -> 10596.79792 | H34: =G34-D34 -> 490.75448 | I34: 0.04856049581

Sheet BI_UGd_Avg
A1: Bill Impacts (Average Consumption Level) - UGd
A3: Rate Class | B3: =RIGHT(A1,LEN(A1)-FIND("- ",A1,1)-1) -> UGd
A4: Monthly Consumption (kWh) | B4: =IF(COUNTIF(A1,"*Low*")>0,VLOOKUP(B3,'Data Billing Quantities'!$A:$Z,MATCH("Low kWh",'Data Billing Quantities'!4:4,0),FALSE),IF(COUNTIF(A1,"*Typical*")>0,VLOOKUP(B3,'Data Billing Quantities'!$A:$Z,MATCH("Typical kWh",'Data Billing Quantities'!4:4,0),FALSE),IF(COUNTIF(A1,"*Average*")>0,VLOOKUP(B3,'Data Billing Quantities'!$A:$Z,MATCH("Average kWh",'Data Billing Quantities'!4:4,0),FALSE),IF(COUNTIF(A1,"*High*")>0,VLOOKUP(B3,'Data Billing Quantities'!$A:$Z,MATCH("High kWh",'Data Billing Quantities'!4:4,0),FALSE),"error")))) -> 42592
A5: Peak (kW) | B5: =IF(COUNTIF(A1,"*Low*")>0,VLOOKUP(B3,'Data Billing Quantities'!$A:$Z,MATCH("Low kW",'Data Billing Quantities'!4:4,0),FALSE),IF(COUNTIF(A1,"*Typical*")>0,VLOOKUP(B3,'Data Billing Quantities'!$A:$Z,MATCH("Typical kW",'Data Billing Quantities'!4:4,0),FALSE),IF(COUNTIF(A1,"*Average*")>0,VLOOKUP(B3,'Data Billing Quantities'!$A:$Z,MATCH("Average kW",'Data Billing Quantities'!4:4,0),FALSE),IF(COUNTIF(A1,"*High*")>0,VLOOKUP(B3,'Data Billing Quantities'!$A:$Z,MATCH("High kW",'Data Billing Quantities'!4:4,0),FALSE),"error")))) -> 111
A6: Loss factor | B6: =VLOOKUP(B3,'Data Billing Quantities'!A:D,MATCH(A6,'Data Billing Quantities'!4:4,0),FALSE) -> 1.05
A7: Charge determinant | B7: =VLOOKUP(B3,'Data Billing Quantities'!A:D,MATCH(A7,'Data Billing Quantities'!4:4,0),FALSE) -> kW
B9: Current OEB-Approved | E9: Proposed | H9: Impact
B10: Rate | C10: Volume | D10: Charge | E10: Rate | F10: Volume | G10: Charge | H10: $ Change | I10: % Change
B11: ($) | D11: ($) | E11: ($) | G11: ($)
A12: Service Charge | B12: =VLOOKUP($B$3,'Data Current Rates'!$A:$AO,MATCH(BI_UGd_Avg!$A12,CurrentHeader,0),FALSE) -> 96.47 | C12: 1 | D12: =C12*B12 -> 96.47 | E12: =VLOOKUP($B$3,'Data Proposed Rates'!$A:$AT,MATCH(BI_UGd_Avg!$A12,ProposedHeader,0),FALSE) -> 96.47 | F12: 1 | G12: =F12*E12 -> 96.47 | H12: =G12-D12 -> 0 | I12: =IF(ISERROR(H12/ABS(D12)),"N/A",(H12/ABS(D12))) -> 0
A13: Distribution Volumetric Charge | B13: =VLOOKUP($B$3,'Data Current Rates'!$A:$AO,MATCH(BI_UGd_Avg!$A13,CurrentHeader,0),FALSE) -> 12.4416 | C13: =IF($B$7="kWh",$B$4,$B$5) -> 111 | D13: =C13*B13 -> 1381.0176 | E13: =VLOOKUP($B$3,'Data Proposed Rates'!$A:$AT,MATCH(BI_UGd_Avg!$A13,ProposedHeader,0),FALSE) -> 13.1059 | F13: =IF($B$7="kWh",$B$4,$B$5) -> 111 | G13: =F13*E13 -> 1454.7549 | H13: 73.7373 | I13: 0.05339345422
A14: Group 2 Fixed Rate Rider | B14: =VLOOKUP($B$3,'Data Current Rates'!$A:$AO,MATCH(BI_UGd_Avg!$A14,CurrentHeader,0),FALSE) -> 0 | C14: 1 | D14: 0 | E14: =VLOOKUP($B$3,'Data Proposed Rates'!$A:$AT,MATCH(BI_UGd_Avg!$A14,ProposedHeader,0),FALSE) -> -3.31 | F14: 1 | G14: =F14*E14 -> -3.31 | H14: -3.31 | I14: N/A
A15: Group 2 Volumetric Rate Rider | B15: =VLOOKUP($B$3,'Data Current Rates'!$A:$AO,MATCH(BI_UGd_Avg!$A15,CurrentHeader,0),FALSE) -> -0.0421 | C15: =IF($B$7="kWh",$B$4,$B$5) -> 111 | D15: -4.6731 | E15: =VLOOKUP($B$3,'Data Proposed Rates'!$A:$AT,MATCH(BI_UGd_Avg!$A15,ProposedHeader,0),FALSE) -> -0.4449 | F15: =IF($B$7="kWh",$B$4,$B$5) -> 111 | G15: -49.3839 | H15: -44.7108 | I15: -9.567695962
A16: Sub-Total A (excluding pass through) | D16: =SUM(D12:D15) -> 1472.8145 | G16: =SUM(G12:G15) -> 1498.531 | H16: 25.7165 | I16: 0.01746078681
A17: Line Losses on Cost of Power | B17: 0 | C17: =IF(B$17=0,0,B$4*B$6-B$4) -> 0 | D17: =C17*B17 -> 0 | E17: 0 | F17: =IF(E$17=0,0,E$4*E$6-E$4) -> 0 | G17: 0 | H17: 0 | I17: N/A
A18: Total Deferral/Variance Account Rate Rider | B18: =VLOOKUP($B$3,'Data Current Rates'!$A:$AO,MATCH(BI_UGd_Avg!$A18,CurrentHeader,0),FALSE) -> -1.3523 | C18: =IF($B$7="kWh",$B$4,$B$5) -> 111 | D18: -150.1053 | E18: =VLOOKUP($B$3,'Data Proposed Rates'!$A:$AT,MATCH(BI_UGd_Avg!$A18,ProposedHeader,0),FALSE) -> -0.6603 | F18: =IF($B$7="kWh",$B$4,$B$5) -> 111 | G18: -73.2933 | H18: 76.812 | I18: 0.511720772
A19: CBR Class B Rate Rider | B19: =VLOOKUP($B$3,'Data Current Rates'!$A:$AO,MATCH(BI_UGd_Avg!$A19,CurrentHeader,0),FALSE) -> 0.0212 | C19: =IF($B$7="kWh",$B$4,$B$5) -> 111 | D19: =C19*B19 -> 2.3532 | E19: =VLOOKUP($B$3,'Data Proposed Rates'!$A:$AT,MATCH(BI_UGd_Avg!$A19,ProposedHeader,0),FALSE) -> -0.2353 | F19: =IF($B$7="kWh",$B$4,$B$5) -> 111 | G19: =F19*E19 -> -26.1183 | H19: -28.4715 | I19: -12.0990566
A20: GA Rate Rider | B20: =VLOOKUP($B$3,'Data Current Rates'!$A:$AO,MATCH(BI_UGd_Avg!$A20,CurrentHeader,0),FALSE) -> -0.0009 | C20: =$B$4 -> 42592 | D20: =C20*B20 -> -38.3328 | E20: =VLOOKUP($B$3,'Data Proposed Rates'!$A:$AT,MATCH(BI_UGd_Avg!$A20,ProposedHeader,0),FALSE) -> 0.0121 | F20: =$B$4 -> 42592 | G20: 515.3632 | H20: 553.696 | I20: 14.44444444
A21: Rate Rider for Account 1588 | E21: =VLOOKUP($B$3,'Data Proposed Rates'!$A:$AT,MATCH(BI_UGd_Avg!$A21,ProposedHeader,0),FALSE) -> -1.2268 | F21: =IF($B$7="kWh",$B$4,$B$5) -> 111 | G21: =F21*E21 -> -136.1748 | H21: -136.1748 | I21: N/A
A22: Sub-Total B - Distribution (includes Sub-Total A) | D22: =SUM(INDIRECT("D16:D"&ROW()-1)) -> 1286.7296 | G22: =SUM(INDIRECT("G16:G"&ROW()-1)) -> 1778.3078 | H22: 491.5782 | I22: 0.3820369097
A23: Retail Transmission Rate – Network Service Rate | B23: =VLOOKUP($B$3,'Data Current Rates'!$A:$AO,MATCH(BI_UGd_Avg!$A23,CurrentHeader,0),FALSE) -> 4.1819 | C23: =IF($B$7="kWh",$B$4*$B$6,$B$5) -> 111 | D23: =C23*B23 -> 464.1909 | E23: =VLOOKUP($B$3,'Data Proposed Rates'!$A:$AT,MATCH(BI_UGd_Avg!$A23,ProposedHeader,0),FALSE) -> 4.294 | F23: =IF($B$7="kWh",$B$4*$B$6,$B$5) -> 111 | G23: =F23*E23 -> 476.634 | H23: 12.4431 | I23: 0.02680599727
A24: Retail Transmission Rate – Line and Transformation Connection Service Rate | B24: =VLOOKUP($B$3,'Data Current Rates'!$A:$AO,MATCH(BI_UGd_Avg!$A24,CurrentHeader,0),FALSE) -> 3.1306 | C24: =IF($B$7="kWh",$B$4*$B$6,$B$5) -> 111 | D24: =C24*B24 -> 347.4966 | E24: =VLOOKUP($B$3,'Data Proposed Rates'!$A:$AT,MATCH(BI_UGd_Avg!$A24,ProposedHeader,0),FALSE) -> 3.2087 | F24: =IF($B$7="kWh",$B$4*$B$6,$B$5) -> 111 | G24: =F24*E24 -> 356.1657 | H24: 8.6691 | I24: 0.02494729445
A25: Sub-Total C - Delivery (including Sub-Total B) | D25: =SUM(D22:D24) -> 2098.4171 | G25: =SUM(G22:G24) -> 2611.1075 | H25: 512.6904 | I25: 0.2443224467
A26: Wholesale Market Service Rate (WMS) – not including CBR | B26: =VLOOKUP($A26,'Data Pass Through'!$A:$D,2,FALSE) -> 0.0041 | C26: =$B$4*$B$6 -> 44721.6 | D26: =C26*B26 -> 183.35856 | E26: =VLOOKUP($A26,'Data Pass Through'!$A:$D,3,FALSE) -> 0.0041 | F26: =$B$4*$B$6 -> 44721.6 | G26: =F26*E26 -> 183.35856 | H26: 0 | I26: 0
A27: Capacity Based Recovery (CBR) – Applicable for Class B Customers | B27: =VLOOKUP($A27,'Data Pass Through'!$A:$D,2,FALSE) -> 0.0006 | C27: =$B$4*$B$6 -> 44721.6 | D27: 26.83296 | E27: =VLOOKUP($A27,'Data Pass Through'!$A:$D,3,FALSE) -> 0.0006 | F27: 44721.6 | G27: 26.83296 | H27: 0 | I27: 0
A28: Rural Rate Protection Charge | B28: =VLOOKUP($A28,'Data Pass Through'!$A:$D,2,FALSE) -> 0.0006 | C28: 44721.6 | D28: 26.83296 | E28: =VLOOKUP($A28,'Data Pass Through'!$A:$D,3,FALSE) -> 0.0006 | F28: 44721.6 | G28: 26.83296 | H28: 0 | I28: 0
A29: Standard Supply Service – Administration Charge (if applicable) | B29: =VLOOKUP($A29,'Data Pass Through'!$A:$D,2,FALSE) -> 0.25 | C29: 1 | D29: 0.25 | E29: =VLOOKUP($A29,'Data Pass Through'!$A:$D,3,FALSE) -> 0.25 | F29: 1 | G29: 0.25 | H29: 0 | I29: 0
A30: Average IESO Wholesale Market Price | B30: =VLOOKUP(A30,'Data Pass Through'!A4:C19,2,0) -> 0.1596 | C30: =$B$4*$B$6 -> 44721.6 | D30: =C30*B30 -> 7137.56736 | E30: =VLOOKUP($A30,'Data Pass Through'!$A:$D,3,FALSE) -> 0.1596 | F30: =$B$4*$B$6 -> 44721.6 | G30: 7137.56736 | H30: =G30-D30 -> 0 | I30: 0
A31: Total Bill on Average IESO Wholesale Market Price (before Taxes) | D31: =SUM(D25:D30) -> 9473.25894 | G31: =SUM(G25:G30) -> 9985.94934 | H31: =G31-D31 -> 512.6904 | I31: 0.05411974942
A32: HST | B32: 0.13 | D32: =D31*B32 -> 1231.523662 | E32: 0.13 | G32: =G31*E32 -> 1298.173414 | H32: =G32-D32 -> 66.649752 | I32: 0.05411974942
A33: Ontario Electricity Rebate (OER) | B33: =IF(($B$4*12)<250000,VLOOKUP(A33,'Data Pass Through'!$A$4:$C$19,2,0),0) -> 0 | D33: =D31*B33 -> 0 | E33: =IF(($B$4*12)<250000,VLOOKUP(A33,'Data Pass Through'!$A$4:$C$19,3,0),0) -> 0 | G33: =G31*E33 -> 0 | H33: =G33-D33 -> 0 | I33: N/A
A34: Total Bill on Average IESO Wholesale Market Price | D34: =SUM(D31:D33) -> 10704.7826 | G34: =SUM(G31:G33) -> 11284.12275 | H34: =G34-D34 -> 579.340152 | I34: 0.05411974942

Sheet BI_StLgt_Avg
A1: Bill Impacts (Average Consumption Level) - St Lgt
A3: Rate Class | B3: =RIGHT(A1,LEN(A1)-FIND("- ",A1,1)-1) -> St Lgt
A4: Monthly Consumption (kWh) | B4: =IF(COUNTIF(A1,"*Low*")>0,VLOOKUP(B3,'Data Billing Quantities'!$A:$Z,MATCH("Low kWh",'Data Billing Quantities'!4:4,0),FALSE),IF(COUNTIF(A1,"*Typical*")>0,VLOOKUP(B3,'Data Billing Quantities'!$A:$Z,MATCH("Typical kWh",'Data Billing Quantities'!4:4,0),FALSE),IF(COUNTIF(A1,"*Average*")>0,VLOOKUP(B3,'Data Billing Quantities'!$A:$Z,MATCH("Average kWh",'Data Billing Quantities'!4:4,0),FALSE),IF(COUNTIF(A1,"*High*")>0,VLOOKUP(B3,'Data Billing Quantities'!$A:$Z,MATCH("High kWh",'Data Billing Quantities'!4:4,0),FALSE),"error")))) -> 1274
A5: Peak (kW) | B5: =IF(COUNTIF(A1,"*Low*")>0,VLOOKUP(B3,'Data Billing Quantities'!$A:$Z,MATCH("Low kW",'Data Billing Quantities'!4:4,0),FALSE),IF(COUNTIF(A1,"*Typical*")>0,VLOOKUP(B3,'Data Billing Quantities'!$A:$Z,MATCH("Typical kW",'Data Billing Quantities'!4:4,0),FALSE),IF(COUNTIF(A1,"*Average*")>0,VLOOKUP(B3,'Data Billing Quantities'!$A:$Z,MATCH("Average kW",'Data Billing Quantities'!4:4,0),FALSE),IF(COUNTIF(A1,"*High*")>0,VLOOKUP(B3,'Data Billing Quantities'!$A:$Z,MATCH("High kW",'Data Billing Quantities'!4:4,0),FALSE),"error")))) -> 0
A6: Loss factor | B6: =VLOOKUP(B3,'Data Billing Quantities'!A:D,MATCH(A6,'Data Billing Quantities'!4:4,0),FALSE) -> 1.092
A7: Charge determinant | B7: =VLOOKUP(B3,'Data Billing Quantities'!A:D,MATCH(A7,'Data Billing Quantities'!4:4,0),FALSE) -> kWh
B9: Current OEB-Approved | E9: Proposed | H9: Impact
B10: Rate ($) | C10: Volume | D10: Charge ($) | E10: Rate ($) | F10: Volume | G10: Charge ($) | H10: $ Change | I10: % Change
A11: Service Charge | B11: =VLOOKUP($B$3,'Data Current Rates'!$A:$AO,MATCH(BI_StLgt_Avg!$A11,CurrentHeader,0),FALSE) -> 3.31 | C11: 1 | D11: =B11*C11 -> 3.31 | E11: =VLOOKUP($B$3,'Data Proposed Rates'!$A:$AT,MATCH(BI_StLgt_Avg!$A11,ProposedHeader,0),FALSE) -> 3.42 | F11: 1 | G11: =E11*F11 -> 3.42 | H11: =G11-D11 -> 0.11 | I11: =IF(ISERROR(H11/ABS(D11)),"N/A",(H11/ABS(D11))) -> 0.0332326284
A12: Distribution Volumetric Charge | B12: =VLOOKUP($B$3,'Data Current Rates'!$A:$AO,MATCH(BI_StLgt_Avg!$A12,CurrentHeader,0),FALSE) -> 0.1235 | C12: =IF($B$7="kWh",$B$4,$B$5) -> 1274 | D12: =B12*C12 -> 157.339 | E12: =VLOOKUP($B$3,'Data Proposed Rates'!$A:$AT,MATCH(BI_StLgt_Avg!$A12,ProposedHeader,0),FALSE) -> 0.1297 | F12: =IF($B$7="kWh",$B$4,$B$5) -> 1274 | G12: 165.2378 | H12: 7.8988 | I12: 0.05020242915
A13: Group 2 Fixed Rate Rider | B13: =VLOOKUP($B$3,'Data Current Rates'!$A:$AO,MATCH(BI_StLgt_Avg!$A13,CurrentHeader,0),FALSE) -> 0 | C13: 1 | D13: =B13*C13 -> 0 | E13: =VLOOKUP($B$3,'Data Proposed Rates'!$A:$AT,MATCH(BI_StLgt_Avg!$A13,ProposedHeader,0),FALSE) -> -0.12 | F13: 1 | G13: -0.12 | H13: -0.12 | I13: N/A
A14: Group 2 Volumetric Rate Rider | B14: =VLOOKUP($B$3,'Data Current Rates'!$A:$AO,MATCH(BI_StLgt_Avg!$A14,CurrentHeader,0),FALSE) -> -0.0004 | C14: =IF($B$7="kWh",$B$4,$B$5) -> 1274 | D14: =B14*C14 -> -0.5096 | E14: =VLOOKUP($B$3,'Data Proposed Rates'!$A:$AT,MATCH(BI_StLgt_Avg!$A14,ProposedHeader,0),FALSE) -> -0.0044 | F14: =IF($B$7="kWh",$B$4,$B$5) -> 1274 | G14: -5.6056 | H14: -5.096 | I14: -10
A15: Sub-Total A (excluding pass through) | D15: =SUM(D11:D14) -> 160.1394 | G15: =SUM(G11:G14) -> 162.9322 | H15: 2.7928 | I15: 0.01743980557
A16: Line Losses on Cost of Power | B16: =IF($B$4*12>=150000,0,IF($B$4>=750,$B30,$B29)) -> 0.142 | C16: =IF($B16=0,0,$B4*$B6-$B4) -> 117.208 | D16: =B16*C16 -> 16.643536 | E16: =IF($B$4*12>=150000,0,IF($B$4>=750,$E30,$E29)) -> 0.142 | F16: =IF($B16=0,0,$B4*$B6-$B4) -> 117.208 | G16: 16.643536 | H16: 0 | I16: 0
A17: Total Deferral/Variance Account Rate Rider | B17: =VLOOKUP($B$3,'Data Current Rates'!$A:$AO,MATCH(BI_StLgt_Avg!$A17,CurrentHeader,0),FALSE) -> -0.0036 | C17: =IF($B$7="kWh",$B$4,$B$5) -> 1274 | D17: -4.5864 | E17: =VLOOKUP($B$3,'Data Proposed Rates'!$A:$AT,MATCH(BI_StLgt_Avg!$A17,ProposedHeader,0),FALSE) -> -0.0018 | F17: =IF($B$7="kWh",$B$4,$B$5) -> 1274 | G17: -2.2932 | H17: 2.2932 | I17: 0.5
A18: CBR Class B Rate Rider | B18: =VLOOKUP($B$3,'Data Current Rates'!$A:$AO,MATCH(BI_StLgt_Avg!$A18,CurrentHeader,0),FALSE) -> 0.0001 | C18: =IF($B$7="kWh",$B$4,$B$5) -> 1274 | D18: 0.1274 | E18: =VLOOKUP($B$3,'Data Proposed Rates'!$A:$AT,MATCH(BI_StLgt_Avg!$A18,ProposedHeader,0),FALSE) -> -0.0006 | F18: =IF($B$7="kWh",$B$4,$B$5) -> 1274 | G18: -0.7644 | H18: -0.8918 | I18: -7
A19: GA Rate Rider | B19: =VLOOKUP($B$3,'Data Current Rates'!$A:$AO,MATCH(BI_StLgt_Avg!$A19,CurrentHeader,0),FALSE) -> 0 | C19: =IF($B$7="kWh",$B$4,$B$5) -> 1274 | D19: 0 | E19: =VLOOKUP($B$3,'Data Proposed Rates'!$A:$AT,MATCH(BI_StLgt_Avg!$A19,ProposedHeader,0),FALSE) -> 0 | F19: =IF($B$7="kWh",$B$4,$B$5) -> 1274 | G19: 0 | H19: 0 | I19: N/A
A20: Rate Rider for Account 1588 | E20: =VLOOKUP($B$3,'Data Proposed Rates'!$A:$AT,MATCH(BI_StLgt_Avg!$A20,ProposedHeader,0),FALSE) -> -0.0032 | F20: =IF($B$7="kWh",$B$4,$B$5) -> 1274 | G20: -4.0768 | H20: -4.0768 | I20: N/A
A21: Sub-Total B - Distribution (includes Sub-Total A) | D21: =SUM(INDIRECT("D15:D"&ROW()-1)) -> 172.323936 | G21: =SUM(INDIRECT("G15:G"&ROW()-1)) -> 172.441336 | H21: 0.1174 | I21: 0.0006812750609
A22: Retail Transmission Rate – Network Service Rate | B22: =VLOOKUP($B$3,'Data Current Rates'!$A:$AO,MATCH(BI_StLgt_Avg!$A22,CurrentHeader,0),FALSE) -> 0.0074 | C22: =IF($B$7="kWh",$B$4*$B$6,$B$5) -> 1391.208 | D22: =B22*C22 -> 10.2949392 | E22: =VLOOKUP($B$3,'Data Proposed Rates'!$A:$AT,MATCH(BI_StLgt_Avg!$A22,ProposedHeader,0),FALSE) -> 0.0076 | F22: =IF($B$7="kWh",$B$4*$B$6,$B$5) -> 1391.208 | G22: 10.5731808 | H22: 0.2782416 | I22: 0.02702702703
A23: Retail Transmission Rate – Line and Transformation Connection Service Rate | B23: =VLOOKUP($B$3,'Data Current Rates'!$A:$AO,MATCH(BI_StLgt_Avg!$A23,CurrentHeader,0),FALSE) -> 0.0057 | C23: =IF($B$7="kWh",$B$4*$B$6,$B$5) -> 1391.208 | D23: 7.9298856 | E23: =VLOOKUP($B$3,'Data Proposed Rates'!$A:$AT,MATCH(BI_StLgt_Avg!$A23,ProposedHeader,0),FALSE) -> 0.0058 | F23: =IF($B$7="kWh",$B$4*$B$6,$B$5) -> 1391.208 | G23: 8.0690064 | H23: 0.1391208 | I23: 0.01754385965
A24: Sub-Total C - Delivery (including Sub-Total B) | D24: =SUM(D21:D23) -> 190.5487608 | G24: =SUM(G21:G23) -> 191.0835232 | H24: 0.5347624 | I24: 0.002806433365
A25: Wholesale Market Service Rate (WMS) – not including CBR | B25: =VLOOKUP($A25,'Data Pass Through'!$A:$D,2,FALSE) -> 0.0041 | C25: =$B$4*$B$6 -> 1391.208 | D25: =B25*C25 -> 5.7039528 | E25: =VLOOKUP($A25,'Data Pass Through'!$A:$D,3,FALSE) -> 0.0041 | F25: =$B$4*$B$6 -> 1391.208 | G25: 5.7039528 | H25: 0 | I25: 0
A26: Capacity Based Recovery (CBR) – Applicable for Class B Customers | B26: =VLOOKUP($A26,'Data Pass Through'!$A:$D,2,FALSE) -> 0.0006 | C26: =$B$4*$B$6 -> 1391.208 | D26: 0.8347248 | E26: =VLOOKUP($A26,'Data Pass Through'!$A:$D,3,FALSE) -> 0.0006 | F26: =$B$4*$B$6 -> 1391.208 | G26: 0.8347248 | H26: 0 | I26: 0
A27: Rural Rate Protection Charge | B27: =VLOOKUP($A27,'Data Pass Through'!$A:$D,2,FALSE) -> 0.0006 | C27: =$B$4*$B$6 -> 1391.208 | D27: 0.8347248 | E27: =VLOOKUP($A27,'Data Pass Through'!$A:$D,3,FALSE) -> 0.0006 | F27: =$B$4*$B$6 -> 1391.208 | G27: 0.8347248 | H27: 0 | I27: 0
A28: Standard Supply Service – Administration Charge (if applicable) | B28: =VLOOKUP($A28,'Data Pass Through'!$A:$D,2,FALSE) -> 0.25 | C28: 1 | D28: 0.25 | E28: =VLOOKUP($A28,'Data Pass Through'!$A:$D,3,FALSE) -> 0.25 | F28: 1 | G28: 0.25 | H28: 0 | I28: 0
A29: RPP Tier 1 | B29: =VLOOKUP($A29,'Data Pass Through'!$A:$D,2,FALSE) -> 0.12 | C29: =IF(($B4*12>=150000),750,IF($B4>=750,750,$B4)) -> 750 | D29: 90 | E29: =VLOOKUP($A29,'Data Pass Through'!$A:$D,3,FALSE) -> 0.12 | F29: =IF(($B4*12>=150000),750,IF($B4>=750,750,$B4)) -> 750 | G29: 90 | H29: 0 | I29: 0
A30: RPP Tier 2 | B30: =VLOOKUP($A30,'Data Pass Through'!$A:$D,2,FALSE) -> 0.142 | C30: =IF(($B4*12>=150000),($B4*$B6)-750,IF($B4>=750,($B4-750),0)) -> 524 | D30: 74.408 | E30: =VLOOKUP($A30,'Data Pass Through'!$A:$D,3,FALSE) -> 0.142 | F30: =IF(($B4*12>=150000),($B4*$B6)-750,IF($B4>=750,($B4-750),0)) -> 524 | G30: 74.408 | H30: 0 | I30: 0
A31: Total Bill on Two-Tier RPP (before Taxes) | D31: =SUM(D24:D30) -> 362.5801632 | G31: =SUM(G24:G30) -> 363.1149256 | H31: 0.5347624 | I31: 0.001474880466
A32: HST | B32: 0.13 | D32: =D31*B32 -> 47.13542122 | E32: =B32 -> 0.13 | G32: =G31*E32 -> 47.20494033 | H32: 0.069519112 | I32: 0.001474880466
A33: Ontario Electricity Rebate (OER) | B33: =IF(($B$4*12)<250000,VLOOKUP(A33,'Data Pass Through'!$A$4:$C$19,2,0),0) -> -0.235 | D33: =D31*B33 -> -85.20633835 | E33: =IF(($B$4*12)<250000,VLOOKUP($A33,'Data Pass Through'!$A$4:$C$19,3,0),0) -> -0.235 | G33: =G31*E33 -> -85.33200752 | H33: -0.125669164 | I33: -0.001474880466
A34: Total Bill on Two-Tier RPP | D34: =SUM(D31:D33) -> 324.5092461 | G34: =SUM(G31:G33) -> 324.9878584 | H34: 0.478612348 | I34: 0.001474880466
A35: * Distribution rate protection applies to R1 and R2 customers

Sheet BI_SenLgt_Avg
A1: Bill Impacts (Average Consumption Level) - Sen Lgt
A3: Rate Class | B3: =RIGHT(A1,LEN(A1)-FIND("- ",A1,1)-1) -> Sen Lgt
A4: Monthly Consumption (kWh) | B4: =IF(COUNTIF(A1,"*Low*")>0,VLOOKUP(B3,'Data Billing Quantities'!$A:$Z,MATCH("Low kWh",'Data Billing Quantities'!4:4,0),FALSE),IF(COUNTIF(A1,"*Typical*")>0,VLOOKUP(B3,'Data Billing Quantities'!$A:$Z,MATCH("Typical kWh",'Data Billing Quantities'!4:4,0),FALSE),IF(COUNTIF(A1,"*Average*")>0,VLOOKUP(B3,'Data Billing Quantities'!$A:$Z,MATCH("Average kWh",'Data Billing Quantities'!4:4,0),FALSE),IF(COUNTIF(A1,"*High*")>0,VLOOKUP(B3,'Data Billing Quantities'!$A:$Z,MATCH("High kWh",'Data Billing Quantities'!4:4,0),FALSE),"error")))) -> 49
A5: Peak (kW) | B5: =IF(COUNTIF(A1,"*Low*")>0,VLOOKUP(B3,'Data Billing Quantities'!$A:$Z,MATCH("Low kW",'Data Billing Quantities'!4:4,0),FALSE),IF(COUNTIF(A1,"*Typical*")>0,VLOOKUP(B3,'Data Billing Quantities'!$A:$Z,MATCH("Typical kW",'Data Billing Quantities'!4:4,0),FALSE),IF(COUNTIF(A1,"*Average*")>0,VLOOKUP(B3,'Data Billing Quantities'!$A:$Z,MATCH("Average kW",'Data Billing Quantities'!4:4,0),FALSE),IF(COUNTIF(A1,"*High*")>0,VLOOKUP(B3,'Data Billing Quantities'!$A:$Z,MATCH("High kW",'Data Billing Quantities'!4:4,0),FALSE),"error")))) -> 0
A6: Loss factor | B6: =VLOOKUP(B3,'Data Billing Quantities'!A:D,MATCH(A6,'Data Billing Quantities'!4:4,0),FALSE) -> 1.092
A7: Charge determinant | B7: =VLOOKUP(B3,'Data Billing Quantities'!A:D,MATCH(A7,'Data Billing Quantities'!4:4,0),FALSE) -> kWh
B9: Current OEB-Approved | E9: Proposed | H9: Impact
B10: Rate ($) | C10: Volume | D10: Charge ($) | E10: Rate ($) | F10: Volume | G10: Charge ($) | H10: $ Change | I10: % Change
A11: Service Charge | B11: =VLOOKUP($B$3,'Data Current Rates'!$A:$AO,MATCH(BI_SenLgt_Avg!$A11,CurrentHeader,0),FALSE) -> 3.37 | C11: 1 | D11: =B11*C11 -> 3.37 | E11: =VLOOKUP($B$3,'Data Proposed Rates'!$A:$AT,MATCH(BI_SenLgt_Avg!$A11,ProposedHeader,0),FALSE) -> 3.51 | F11: 1 | G11: =E11*F11 -> 3.51 | H11: =G11-D11 -> 0.14 | I11: =IF(ISERROR(H11/ABS(D11)),"N/A",(H11/ABS(D11))) -> 0.04154302671
A12: Distribution Volumetric Charge | B12: =VLOOKUP($B$3,'Data Current Rates'!$A:$AO,MATCH(BI_SenLgt_Avg!$A12,CurrentHeader,0),FALSE) -> 0.1901 | C12: =IF($B$7="kWh",$B$4,$B$5) -> 49 | D12: =B12*C12 -> 9.3149 | E12: =VLOOKUP($B$3,'Data Proposed Rates'!$A:$AT,MATCH(BI_SenLgt_Avg!$A12,ProposedHeader,0),FALSE) -> 0.2002 | F12: =IF($B$7="kWh",$B$4,$B$5) -> 49 | G12: 9.8098 | H12: 0.4949 | I12: 0.05312993161
A13: Group 2 Fixed Rate Rider | B13: =VLOOKUP($B$3,'Data Current Rates'!$A:$AO,MATCH(BI_SenLgt_Avg!$A13,CurrentHeader,0),FALSE) -> 0 | C13: 1 | D13: =B13*C13 -> 0 | E13: =VLOOKUP($B$3,'Data Proposed Rates'!$A:$AT,MATCH(BI_SenLgt_Avg!$A13,ProposedHeader,0),FALSE) -> -0.12 | F13: 1 | G13: -0.12 | H13: -0.12 | I13: N/A
A14: Group 2 Volumetric Rate Rider | B14: =VLOOKUP($B$3,'Data Current Rates'!$A:$AO,MATCH(BI_SenLgt_Avg!$A14,CurrentHeader,0),FALSE) -> -0.0005 | C14: =IF($B$7="kWh",$B$4,$B$5) -> 49 | D14: =B14*C14 -> -0.0245 | E14: =VLOOKUP($B$3,'Data Proposed Rates'!$A:$AT,MATCH(BI_SenLgt_Avg!$A14,ProposedHeader,0),FALSE) -> -0.0069 | F14: =IF($B$7="kWh",$B$4,$B$5) -> 49 | G14: -0.3381 | H14: -0.3136 | I14: -12.8
A15: Sub-Total A (excluding pass through) | D15: =SUM(D11:D14) -> 12.6604 | G15: =SUM(G11:G14) -> 12.8617 | H15: 0.2013 | I15: 0.01589997156
A16: Line Losses on Cost of Power | B16: =IF($B$4*12>=150000,0,IF($B$4>=750,$B30,$B29)) -> 0.12 | C16: =IF($B16=0,0,$B4*$B6-$B4) -> 4.508 | D16: =B16*C16 -> 0.54096 | E16: =IF($B$4*12>=150000,0,IF($B$4>=750,$E30,$E29)) -> 0.12 | F16: =IF($B16=0,0,$B4*$B6-$B4) -> 4.508 | G16: 0.54096 | H16: 0 | I16: 0
A17: Total Deferral/Variance Account Rate Rider | B17: =VLOOKUP($B$3,'Data Current Rates'!$A:$AO,MATCH(BI_SenLgt_Avg!$A17,CurrentHeader,0),FALSE) -> -0.0036 | C17: =IF($B$7="kWh",$B$4,$B$5) -> 49 | D17: -0.1764 | E17: =VLOOKUP($B$3,'Data Proposed Rates'!$A:$AT,MATCH(BI_SenLgt_Avg!$A17,ProposedHeader,0),FALSE) -> -0.0018 | F17: =IF($B$7="kWh",$B$4,$B$5) -> 49 | G17: -0.0882 | H17: 0.0882 | I17: 0.5
A18: CBR Class B Rate Rider | B18: =VLOOKUP($B$3,'Data Current Rates'!$A:$AO,MATCH(BI_SenLgt_Avg!$A18,CurrentHeader,0),FALSE) -> 0.0001 | C18: =IF($B$7="kWh",$B$4,$B$5) -> 49 | D18: 0.0049 | E18: =VLOOKUP($B$3,'Data Proposed Rates'!$A:$AT,MATCH(BI_SenLgt_Avg!$A18,ProposedHeader,0),FALSE) -> -0.0006 | F18: =IF($B$7="kWh",$B$4,$B$5) -> 49 | G18: -0.0294 | H18: -0.0343 | I18: -7
A19: GA Rate Rider | B19: =VLOOKUP($B$3,'Data Current Rates'!$A:$AO,MATCH(BI_SenLgt_Avg!$A19,CurrentHeader,0),FALSE) -> 0 | C19: =IF($B$7="kWh",$B$4,$B$5) -> 49 | D19: 0 | E19: =VLOOKUP($B$3,'Data Proposed Rates'!$A:$AT,MATCH(BI_SenLgt_Avg!$A19,ProposedHeader,0),FALSE) -> 0 | F19: =IF($B$7="kWh",$B$4,$B$5) -> 49 | G19: 0 | H19: 0 | I19: N/A
A20: Rate Rider for Account 1588 | E20: =VLOOKUP($B$3,'Data Proposed Rates'!$A:$AT,MATCH(BI_SenLgt_Avg!$A20,ProposedHeader,0),FALSE) -> -0.0032 | F20: =IF($B$7="kWh",$B$4,$B$5) -> 49 | G20: -0.1568 | H20: -0.1568 | I20: N/A
A21: Sub-Total B - Distribution (includes Sub-Total A) | D21: =SUM(INDIRECT("D15:D"&ROW()-1)) -> 13.02986 | G21: =SUM(INDIRECT("G15:G"&ROW()-1)) -> 13.12826 | H21: 0.0984 | I21: 0.007551884671
A22: Retail Transmission Rate – Network Service Rate | B22: =VLOOKUP($B$3,'Data Current Rates'!$A:$AO,MATCH(BI_SenLgt_Avg!$A22,CurrentHeader,0),FALSE) -> 0.0074 | C22: =IF($B$7="kWh",$B$4*$B$6,$B$5) -> 53.508 | D22: =B22*C22 -> 0.3959592 | E22: =VLOOKUP($B$3,'Data Proposed Rates'!$A:$AT,MATCH(BI_SenLgt_Avg!$A22,ProposedHeader,0),FALSE) -> 0.0076 | F22: =IF($B$7="kWh",$B$4*$B$6,$B$5) -> 53.508 | G22: 0.4066608 | H22: 0.0107016 | I22: 0.02702702703
A23: Retail Transmission Rate – Line and Transformation Connection Service Rate | B23: =VLOOKUP($B$3,'Data Current Rates'!$A:$AO,MATCH(BI_SenLgt_Avg!$A23,CurrentHeader,0),FALSE) -> 0.0057 | C23: =IF($B$7="kWh",$B$4*$B$6,$B$5) -> 53.508 | D23: 0.3049956 | E23: =VLOOKUP($B$3,'Data Proposed Rates'!$A:$AT,MATCH(BI_SenLgt_Avg!$A23,ProposedHeader,0),FALSE) -> 0.0058 | F23: =IF($B$7="kWh",$B$4*$B$6,$B$5) -> 53.508 | G23: 0.3103464 | H23: 0.0053508 | I23: 0.01754385965
A24: Sub-Total C - Delivery (including Sub-Total B) | D24: =SUM(D21:D23) -> 13.7308148 | G24: =SUM(G21:G23) -> 13.8452672 | H24: 0.1144524 | I24: 0.008335441244
A25: Wholesale Market Service Rate (WMS) – not including CBR | B25: =VLOOKUP($A25,'Data Pass Through'!$A:$D,2,FALSE) -> 0.0041 | C25: =$B$4*$B$6 -> 53.508 | D25: =B25*C25 -> 0.2193828 | E25: =VLOOKUP($A25,'Data Pass Through'!$A:$D,3,FALSE) -> 0.0041 | F25: =$B$4*$B$6 -> 53.508 | G25: 0.2193828 | H25: 0 | I25: 0
A26: Capacity Based Recovery (CBR) – Applicable for Class B Customers | B26: =VLOOKUP($A26,'Data Pass Through'!$A:$D,2,FALSE) -> 0.0006 | C26: =$B$4*$B$6 -> 53.508 | D26: 0.0321048 | E26: =VLOOKUP($A26,'Data Pass Through'!$A:$D,3,FALSE) -> 0.0006 | F26: =$B$4*$B$6 -> 53.508 | G26: 0.0321048 | H26: 0 | I26: 0
A27: Rural Rate Protection Charge | B27: =VLOOKUP($A27,'Data Pass Through'!$A:$D,2,FALSE) -> 0.0006 | C27: =$B$4*$B$6 -> 53.508 | D27: 0.0321048 | E27: =VLOOKUP($A27,'Data Pass Through'!$A:$D,3,FALSE) -> 0.0006 | F27: =$B$4*$B$6 -> 53.508 | G27: 0.0321048 | H27: 0 | I27: 0
A28: Standard Supply Service – Administration Charge (if applicable) | B28: =VLOOKUP($A28,'Data Pass Through'!$A:$D,2,FALSE) -> 0.25 | C28: 1 | D28: 0.25 | E28: =VLOOKUP($A28,'Data Pass Through'!$A:$D,3,FALSE) -> 0.25 | F28: 1 | G28: 0.25 | H28: 0 | I28: 0
A29: RPP Tier 1 | B29: =VLOOKUP($A29,'Data Pass Through'!$A:$D,2,FALSE) -> 0.12 | C29: =IF(($B4*12>=150000),750,IF($B4>=750,750,$B4)) -> 49 | D29: 5.88 | E29: =VLOOKUP($A29,'Data Pass Through'!$A:$D,3,FALSE) -> 0.12 | F29: =IF(($B4*12>=150000),750,IF($B4>=750,750,$B4)) -> 49 | G29: 5.88 | H29: 0 | I29: 0
A30: RPP Tier 2 | B30: =VLOOKUP($A30,'Data Pass Through'!$A:$D,2,FALSE) -> 0.142 | C30: =IF(($B4*12>=150000),($B4*$B6)-750,IF($B4>=750,($B4-750),0)) -> 0 | D30: 0 | E30: =VLOOKUP($A30,'Data Pass Through'!$A:$D,3,FALSE) -> 0.142 | F30: =IF(($B4*12>=150000),($B4*$B6)-750,IF($B4>=750,($B4-750),0)) -> 0 | G30: 0 | H30: 0 | I30: N/A
A31: Total Bill on Two-Tier RPP (before Taxes) | D31: =SUM(D24:D30) -> 20.1444072 | G31: =SUM(G24:G30) -> 20.2588596 | H31: 0.1144524 | I31: 0.005681596826
A32: HST | B32: 0.13 | D32: =D31*B32 -> 2.618772936 | E32: =B32 -> 0.13 | G32: =G31*E32 -> 2.633651748 | H32: 0.014878812 | I32: 0.005681596826
A33: Ontario Electricity Rebate (OER) | B33: =IF(($B$4*12)<250000,VLOOKUP(A33,'Data Pass Through'!$A$4:$C$19,2,0),0) -> -0.235 | D33: =D31*B33 -> -4.733935692 | E33: =IF(($B$4*12)<250000,VLOOKUP($A33,'Data Pass Through'!$A$4:$C$19,3,0),0) -> -0.235 | G33: =G31*E33 -> -4.760832006 | H33: -0.026896314 | I33: -0.005681596826
A34: Total Bill on Two-Tier RPP | D34: =SUM(D31:D33) -> 18.02924444 | G34: =SUM(G31:G33) -> 18.13167934 | H34: 0.102434898 | I34: 0.005681596826
A35: * Distribution rate protection applies to R1 and R2 customers

Sheet BI_USL_Avg
A1: Bill Impacts (Average Consumption Level) - USL
A3: Rate Class | B3: =RIGHT(A1,LEN(A1)-FIND("- ",A1,1)-1) -> USL
A4: Monthly Consumption (kWh) | B4: =IF(COUNTIF(A1,"*Low*")>0,VLOOKUP(B3,'Data Billing Quantities'!$A:$Z,MATCH("Low kWh",'Data Billing Quantities'!4:4,0),FALSE),IF(COUNTIF(A1,"*Typical*")>0,VLOOKUP(B3,'Data Billing Quantities'!$A:$Z,MATCH("Typical kWh",'Data Billing Quantities'!4:4,0),FALSE),IF(COUNTIF(A1,"*Average*")>0,VLOOKUP(B3,'Data Billing Quantities'!$A:$Z,MATCH("Average kWh",'Data Billing Quantities'!4:4,0),FALSE),IF(COUNTIF(A1,"*High*")>0,VLOOKUP(B3,'Data Billing Quantities'!$A:$Z,MATCH("High kWh",'Data Billing Quantities'!4:4,0),FALSE),"error")))) -> 477
A5: Peak (kW) | B5: =IF(COUNTIF(A1,"*Low*")>0,VLOOKUP(B3,'Data Billing Quantities'!$A:$Z,MATCH("Low kW",'Data Billing Quantities'!4:4,0),FALSE),IF(COUNTIF(A1,"*Typical*")>0,VLOOKUP(B3,'Data Billing Quantities'!$A:$Z,MATCH("Typical kW",'Data Billing Quantities'!4:4,0),FALSE),IF(COUNTIF(A1,"*Average*")>0,VLOOKUP(B3,'Data Billing Quantities'!$A:$Z,MATCH("Average kW",'Data Billing Quantities'!4:4,0),FALSE),IF(COUNTIF(A1,"*High*")>0,VLOOKUP(B3,'Data Billing Quantities'!$A:$Z,MATCH("High kW",'Data Billing Quantities'!4:4,0),FALSE),"error")))) -> 0
A6: Loss factor | B6: =VLOOKUP(B3,'Data Billing Quantities'!A:D,MATCH(A6,'Data Billing Quantities'!4:4,0),FALSE) -> 1.092
A7: Charge determinant | B7: =VLOOKUP(B3,'Data Billing Quantities'!A:D,MATCH(A7,'Data Billing Quantities'!4:4,0),FALSE) -> kWh
B9: Current OEB-Approved | E9: Proposed | H9: Impact
B10: Rate ($) | C10: Volume | D10: Charge ($) | E10: Rate ($) | F10: Volume | G10: Charge ($) | H10: $ Change | I10: % Change
A11: Service Charge | B11: =VLOOKUP($B$3,'Data Current Rates'!$A:$AO,MATCH(BI_USL_Avg!$A11,CurrentHeader,0),FALSE) -> 38.29 | C11: 1 | D11: =B11*C11 -> 38.29 | E11: =VLOOKUP($B$3,'Data Proposed Rates'!$A:$AT,MATCH(BI_USL_Avg!$A11,ProposedHeader,0),FALSE) -> 38.29 | F11: 1 | G11: =E11*F11 -> 38.29 | H11: =G11-D11 -> 0 | I11: =IF(ISERROR(H11/ABS(D11)),"N/A",(H11/ABS(D11))) -> 0
A12: Distribution Volumetric Charge | B12: =VLOOKUP($B$3,'Data Current Rates'!$A:$AO,MATCH(BI_USL_Avg!$A12,CurrentHeader,0),FALSE) -> 0.0337 | C12: =IF($B$7="kWh",$B$4,$B$5) -> 477 | D12: =B12*C12 -> 16.0749 | E12: =VLOOKUP($B$3,'Data Proposed Rates'!$A:$AT,MATCH(BI_USL_Avg!$A12,ProposedHeader,0),FALSE) -> 0.0395 | F12: =IF($B$7="kWh",$B$4,$B$5) -> 477 | G12: 18.8415 | H12: 2.7666 | I12: 0.1721068249
A13: Group 2 Fixed Rate Rider | B13: =VLOOKUP($B$3,'Data Current Rates'!$A:$AO,MATCH(BI_USL_Avg!$A13,CurrentHeader,0),FALSE) -> 0 | C13: 1 | D13: =B13*C13 -> 0 | E13: =VLOOKUP($B$3,'Data Proposed Rates'!$A:$AT,MATCH(BI_USL_Avg!$A13,ProposedHeader,0),FALSE) -> -1.31 | F13: 1 | G13: -1.31 | H13: -1.31 | I13: N/A
A14: Group 2 Volumetric Rate Rider | B14: =VLOOKUP($B$3,'Data Current Rates'!$A:$AO,MATCH(BI_USL_Avg!$A14,CurrentHeader,0),FALSE) -> -0.0003 | C14: =IF($B$7="kWh",$B$4,$B$5) -> 477 | D14: =B14*C14 -> -0.1431 | E14: =VLOOKUP($B$3,'Data Proposed Rates'!$A:$AT,MATCH(BI_USL_Avg!$A14,ProposedHeader,0),FALSE) -> -0.0014 | F14: =IF($B$7="kWh",$B$4,$B$5) -> 477 | G14: -0.6678 | H14: -0.5247 | I14: -3.666666667
A15: Sub-Total A (excluding pass through) | D15: =SUM(D11:D14) -> 54.2218 | G15: =SUM(G11:G14) -> 55.1537 | H15: 0.9319 | I15: 0.01718681416
A16: Line Losses on Cost of Power | B16: =IF($B$4*12>=150000,0,IF($B$4>=750,$B30,$B29)) -> 0.12 | C16: =IF($B16=0,0,$B4*$B6-$B4) -> 43.884 | D16: =B16*C16 -> 5.26608 | E16: =IF($B$4*12>=150000,0,IF($B$4>=750,$E30,$E29)) -> 0.12 | F16: =IF($B16=0,0,$B4*$B6-$B4) -> 43.884 | G16: 5.26608 | H16: 0 | I16: 0
A17: Total Deferral/Variance Account Rate Rider | B17: =VLOOKUP($B$3,'Data Current Rates'!$A:$AO,MATCH(BI_USL_Avg!$A17,CurrentHeader,0),FALSE) -> -0.0036 | C17: =IF($B$7="kWh",$B$4,$B$5) -> 477 | D17: -1.7172 | E17: =VLOOKUP($B$3,'Data Proposed Rates'!$A:$AT,MATCH(BI_USL_Avg!$A17,ProposedHeader,0),FALSE) -> -0.0015 | F17: =IF($B$7="kWh",$B$4,$B$5) -> 477 | G17: -0.7155 | H17: 1.0017 | I17: 0.5833333333
A18: CBR Class B Rate Rider | B18: =VLOOKUP($B$3,'Data Current Rates'!$A:$AO,MATCH(BI_USL_Avg!$A18,CurrentHeader,0),FALSE) -> 0.0001 | C18: =IF($B$7="kWh",$B$4,$B$5) -> 477 | D18: 0.0477 | E18: =VLOOKUP($B$3,'Data Proposed Rates'!$A:$AT,MATCH(BI_USL_Avg!$A18,ProposedHeader,0),FALSE) -> -0.0006 | F18: =IF($B$7="kWh",$B$4,$B$5) -> 477 | G18: -0.2862 | H18: -0.3339 | I18: -7
A19: GA Rate Rider | B19: =VLOOKUP($B$3,'Data Current Rates'!$A:$AO,MATCH(BI_USL_Avg!$A19,CurrentHeader,0),FALSE) -> 0 | C19: =IF($B$7="kWh",$B$4,$B$5) -> 477 | D19: 0 | E19: =VLOOKUP($B$3,'Data Proposed Rates'!$A:$AT,MATCH(BI_USL_Avg!$A19,ProposedHeader,0),FALSE) -> 0 | F19: =IF($B$7="kWh",$B$4,$B$5) -> 477 | G19: 0 | H19: 0 | I19: N/A
A20: Rate Rider for Account 1588 | E20: =VLOOKUP($B$3,'Data Proposed Rates'!$A:$AT,MATCH(BI_USL_Avg!$A20,ProposedHeader,0),FALSE) -> -0.0032 | F20: =IF($B$7="kWh",$B$4,$B$5) -> 477 | G20: -1.5264 | H20: -1.5264 | I20: N/A
A21: Sub-Total B - Distribution (includes Sub-Total A) | D21: =SUM(INDIRECT("D15:D"&ROW()-1)) -> 57.81838 | G21: =SUM(INDIRECT("G15:G"&ROW()-1)) -> 57.89168 | H21: 0.0733 | I21: 0.00126776295
A22: Retail Transmission Rate – Network Service Rate | B22: =VLOOKUP($B$3,'Data Current Rates'!$A:$AO,MATCH(BI_USL_Avg!$A22,CurrentHeader,0),FALSE) -> 0.0085 | C22: =IF($B$7="kWh",$B$4*$B$6,$B$5) -> 520.884 | D22: =B22*C22 -> 4.427514 | E22: =VLOOKUP($B$3,'Data Proposed Rates'!$A:$AT,MATCH(BI_USL_Avg!$A22,ProposedHeader,0),FALSE) -> 0.0087 | F22: =IF($B$7="kWh",$B$4*$B$6,$B$5) -> 520.884 | G22: 4.5316908 | H22: 0.1041768 | I22: 0.02352941176
A23: Retail Transmission Rate – Line and Transformation Connection Service Rate | B23: =VLOOKUP($B$3,'Data Current Rates'!$A:$AO,MATCH(BI_USL_Avg!$A23,CurrentHeader,0),FALSE) -> 0.0062 | C23: =IF($B$7="kWh",$B$4*$B$6,$B$5) -> 520.884 | D23: 3.2294808 | E23: =VLOOKUP($B$3,'Data Proposed Rates'!$A:$AT,MATCH(BI_USL_Avg!$A23,ProposedHeader,0),FALSE) -> 0.0064 | F23: =IF($B$7="kWh",$B$4*$B$6,$B$5) -> 520.884 | G23: 3.3336576 | H23: 0.1041768 | I23: 0.03225806452
A24: Sub-Total C - Delivery (including Sub-Total B) | D24: =SUM(D21:D23) -> 65.4753748 | G24: =SUM(G21:G23) -> 65.7570284 | H24: 0.2816536 | I24: 0.004301672207
A25: Wholesale Market Service Rate (WMS) – not including CBR | B25: =VLOOKUP($A25,'Data Pass Through'!$A:$D,2,FALSE) -> 0.0041 | C25: =$B$4*$B$6 -> 520.884 | D25: =B25*C25 -> 2.1356244 | E25: =VLOOKUP($A25,'Data Pass Through'!$A:$D,3,FALSE) -> 0.0041 | F25: =$B$4*$B$6 -> 520.884 | G25: 2.1356244 | H25: 0 | I25: 0
A26: Capacity Based Recovery (CBR) – Applicable for Class B Customers | B26: =VLOOKUP($A26,'Data Pass Through'!$A:$D,2,FALSE) -> 0.0006 | C26: =$B$4*$B$6 -> 520.884 | D26: 0.3125304 | E26: =VLOOKUP($A26,'Data Pass Through'!$A:$D,3,FALSE) -> 0.0006 | F26: =$B$4*$B$6 -> 520.884 | G26: 0.3125304 | H26: 0 | I26: 0
A27: Rural Rate Protection Charge | B27: =VLOOKUP($A27,'Data Pass Through'!$A:$D,2,FALSE) -> 0.0006 | C27: =$B$4*$B$6 -> 520.884 | D27: 0.3125304 | E27: =VLOOKUP($A27,'Data Pass Through'!$A:$D,3,FALSE) -> 0.0006 | F27: =$B$4*$B$6 -> 520.884 | G27: 0.3125304 | H27: 0 | I27: 0
A28: Standard Supply Service – Administration Charge (if applicable) | B28: =VLOOKUP($A28,'Data Pass Through'!$A:$D,2,FALSE) -> 0.25 | C28: 1 | D28: 0.25 | E28: =VLOOKUP($A28,'Data Pass Through'!$A:$D,3,FALSE) -> 0.25 | F28: 1 | G28: 0.25 | H28: 0 | I28: 0
A29: RPP Tier 1 | B29: =VLOOKUP($A29,'Data Pass Through'!$A:$D,2,FALSE) -> 0.12 | C29: =IF(($B4*12>=150000),750,IF($B4>=750,750,$B4)) -> 477 | D29: 57.24 | E29: =VLOOKUP($A29,'Data Pass Through'!$A:$D,3,FALSE) -> 0.12 | F29: =IF(($B4*12>=150000),750,IF($B4>=750,750,$B4)) -> 477 | G29: 57.24 | H29: 0 | I29: 0
A30: RPP Tier 2 | B30: =VLOOKUP($A30,'Data Pass Through'!$A:$D,2,FALSE) -> 0.142 | C30: =IF(($B4*12>=150000),($B4*$B6)-750,IF($B4>=750,($B4-750),0)) -> 0 | D30: 0 | E30: =VLOOKUP($A30,'Data Pass Through'!$A:$D,3,FALSE) -> 0.142 | F30: =IF(($B4*12>=150000),($B4*$B6)-750,IF($B4>=750,($B4-750),0)) -> 0 | G30: 0 | H30: 0 | I30: N/A
A31: Total Bill on Two-Tier RPP (before Taxes) | D31: =SUM(D24:D30) -> 125.72606 | G31: =SUM(G24:G30) -> 126.0077136 | H31: 0.2816536 | I31: 0.002240216547
A32: HST | B32: 0.13 | D32: =D31*B32 -> 16.3443878 | E32: =B32 -> 0.13 | G32: =G31*E32 -> 16.38100277 | H32: 0.036614968 | I32: 0.002240216547
A33: Ontario Electricity Rebate (OER) | B33: =IF(($B$4*12)<250000,VLOOKUP(A33,'Data Pass Through'!$A$4:$C$19,2,0),0) -> -0.235 | D33: =D31*B33 -> -29.5456241 | E33: =IF(($B$4*12)<250000,VLOOKUP($A33,'Data Pass Through'!$A$4:$C$19,3,0),0) -> -0.235 | G33: =G31*E33 -> -29.6118127 | H33: -0.066188596 | I33: -0.002240216547
A34: Total Bill on Two-Tier RPP | D34: =SUM(D31:D33) -> 112.5248237 | G34: =SUM(G31:G33) -> 112.7769037 | H34: 0.252079972 | I34: 0.002240216547
A35: * Distribution rate protection applies to R1 and R2 customers

Sheet BI_Dgen_Avg
A1: Bill Impacts (Average Consumption Level) - Dgen
A3: Rate Class | B3: =RIGHT(A1,LEN(A1)-FIND("- ",A1,1)-1) -> Dgen
A4: Monthly Consumption (kWh) | B4: =IF(COUNTIF(A1,"*Low*")>0,VLOOKUP(B3,'Data Billing Quantities'!$A:$Z,MATCH("Low kWh",'Data Billing Quantities'!4:4,0),FALSE),IF(COUNTIF(A1,"*Typical*")>0,VLOOKUP(B3,'Data Billing Quantities'!$A:$Z,MATCH("Typical kWh",'Data Billing Quantities'!4:4,0),FALSE),IF(COUNTIF(A1,"*Average*")>0,VLOOKUP(B3,'Data Billing Quantities'!$A:$Z,MATCH("Average kWh",'Data Billing Quantities'!4:4,0),FALSE),IF(COUNTIF(A1,"*High*")>0,VLOOKUP(B3,'Data Billing Quantities'!$A:$Z,MATCH("High kWh",'Data Billing Quantities'!4:4,0),FALSE),"error")))) -> 1709
A5: Peak (kW) | B5: =IF(COUNTIF(A1,"*Low*")>0,VLOOKUP(B3,'Data Billing Quantities'!$A:$Z,MATCH("Low kW",'Data Billing Quantities'!4:4,0),FALSE),IF(COUNTIF(A1,"*Typical*")>0,VLOOKUP(B3,'Data Billing Quantities'!$A:$Z,MATCH("Typical kW",'Data Billing Quantities'!4:4,0),FALSE),IF(COUNTIF(A1,"*Average*")>0,VLOOKUP(B3,'Data Billing Quantities'!$A:$Z,MATCH("Average kW",'Data Billing Quantities'!4:4,0),FALSE),IF(COUNTIF(A1,"*High*")>0,VLOOKUP(B3,'Data Billing Quantities'!$A:$Z,MATCH("High kW",'Data Billing Quantities'!4:4,0),FALSE),"error")))) -> 12
A6: Loss factor | B6: =VLOOKUP(B3,'Data Billing Quantities'!A:D,MATCH(A6,'Data Billing Quantities'!4:4,0),FALSE) -> 1.061
A7: Charge determinant | B7: =VLOOKUP(B3,'Data Billing Quantities'!A:D,MATCH(A7,'Data Billing Quantities'!4:4,0),FALSE) -> kW
B9: Current OEB-Approved | E9: Proposed | H9: Impact
B10: Rate | C10: Volume | D10: Charge | E10: Rate | F10: Volume | G10: Charge | H10: $ Change | I10: % Change
B11: ($) | D11: ($) | E11: ($) | G11: ($)
A12: Service Charge | B12: =VLOOKUP($B$3,'Data Current Rates'!$A:$AO,MATCH(BI_Dgen_Avg!$A12,CurrentHeader,0),FALSE) -> 199.26 | C12: 1 | D12: =C12*B12 -> 199.26 | E12: =VLOOKUP($B$3,'Data Proposed Rates'!$A:$AT,MATCH(BI_Dgen_Avg!$A12,ProposedHeader,0),FALSE) -> 199.26 | F12: 1 | G12: =F12*E12 -> 199.26 | H12: =G12-D12 -> 0 | I12: =IF(ISERROR(H12/ABS(D12)),"N/A",(H12/ABS(D12))) -> 0
A13: Distribution Volumetric Charge | B13: =VLOOKUP($B$3,'Data Current Rates'!$A:$AO,MATCH(BI_Dgen_Avg!$A13,CurrentHeader,0),FALSE) -> 14.1138 | C13: =IF($B$7="kWh",$B$4,$B$5) -> 12 | D13: =C13*B13 -> 169.3656 | E13: =VLOOKUP($B$3,'Data Proposed Rates'!$A:$AT,MATCH(BI_Dgen_Avg!$A13,ProposedHeader,0),FALSE) -> 15.7314 | F13: =IF($B$7="kWh",$B$4,$B$5) -> 12 | G13: =F13*E13 -> 188.7768 | H13: 19.4112 | I13: 0.1146112316
A14: Group 2 Fixed Rate Rider | B14: =VLOOKUP($B$3,'Data Current Rates'!$A:$AO,MATCH(BI_Dgen_Avg!$A14,CurrentHeader,0),FALSE) -> 0 | C14: 1 | D14: 0 | E14: =VLOOKUP($B$3,'Data Proposed Rates'!$A:$AT,MATCH(BI_Dgen_Avg!$A14,ProposedHeader,0),FALSE) -> -6.83 | F14: 1 | G14: =F14*E14 -> -6.83 | H14: -6.83 | I14: N/A
A15: Group 2 Volumetric Rate Rider | B15: =VLOOKUP($B$3,'Data Current Rates'!$A:$AO,MATCH(BI_Dgen_Avg!$A15,CurrentHeader,0),FALSE) -> -0.093 | C15: =IF($B$7="kWh",$B$4,$B$5) -> 12 | D15: -1.116 | E15: =VLOOKUP($B$3,'Data Proposed Rates'!$A:$AT,MATCH(BI_Dgen_Avg!$A15,ProposedHeader,0),FALSE) -> -0.5226 | F15: =IF($B$7="kWh",$B$4,$B$5) -> 12 | G15: -6.2712 | H15: -5.1552 | I15: -4.619354839
A16: Sub-Total A (excluding pass through) | D16: =SUM(D12:D15) -> 367.5096 | G16: =SUM(G12:G15) -> 374.9356 | H16: 7.426 | I16: 0.02020627488
A17: Line Losses on Cost of Power | B17: 0 | C17: =IF(B$17=0,0,B$4*B$6-B$4) -> 0 | D17: =C17*B17 -> 0 | E17: 0 | F17: =IF(E$17=0,0,E$4*E$6-E$4) -> 0 | G17: 0 | H17: 0 | I17: N/A
A18: Total Deferral/Variance Account Rate Rider | B18: =VLOOKUP($B$3,'Data Current Rates'!$A:$AO,MATCH(BI_Dgen_Avg!$A18,CurrentHeader,0),FALSE) -> -0.5139 | C18: =IF($B$7="kWh",$B$4,$B$5) -> 12 | D18: -6.1668 | E18: =VLOOKUP($B$3,'Data Proposed Rates'!$A:$AT,MATCH(BI_Dgen_Avg!$A18,ProposedHeader,0),FALSE) -> -0.2647 | F18: =IF($B$7="kWh",$B$4,$B$5) -> 12 | G18: -3.1764 | H18: 2.9904 | I18: 0.484919245
A19: CBR Class B Rate Rider | B19: =VLOOKUP($B$3,'Data Current Rates'!$A:$AO,MATCH(BI_Dgen_Avg!$A19,CurrentHeader,0),FALSE) -> 0.0082 | C19: =IF($B$7="kWh",$B$4,$B$5) -> 12 | D19: =C19*B19 -> 0.0984 | E19: =VLOOKUP($B$3,'Data Proposed Rates'!$A:$AT,MATCH(BI_Dgen_Avg!$A19,ProposedHeader,0),FALSE) -> -0.0896 | F19: =IF($B$7="kWh",$B$4,$B$5) -> 12 | G19: =F19*E19 -> -1.0752 | H19: -1.1736 | I19: -11.92682927
A20: GA Rate Rider | B20: =VLOOKUP($B$3,'Data Current Rates'!$A:$AO,MATCH(BI_Dgen_Avg!$A20,CurrentHeader,0),FALSE) -> -0.0009 | C20: =$B$4 -> 1709 | D20: =C20*B20 -> -1.5381 | E20: =VLOOKUP($B$3,'Data Proposed Rates'!$A:$AT,MATCH(BI_Dgen_Avg!$A20,ProposedHeader,0),FALSE) -> 0.0121 | F20: =$B$4 -> 1709 | G20: 20.6789 | H20: 22.217 | I20: 14.44444444
A21: Rate Rider for Account 1588 | E21: =VLOOKUP($B$3,'Data Proposed Rates'!$A:$AT,MATCH(BI_Dgen_Avg!$A21,ProposedHeader,0),FALSE) -> -0.4674 | F21: =IF($B$7="kWh",$B$4,$B$5) -> 12 | G21: =F21*E21 -> -5.6088 | H21: -5.6088 | I21: N/A
A22: Sub-Total B - Distribution (includes Sub-Total A) | D22: =SUM(INDIRECT("D16:D"&ROW()-1)) -> 359.9031 | G22: =SUM(INDIRECT("G16:G"&ROW()-1)) -> 385.7541 | H22: 25.851 | I22: 0.07182766695
A23: Retail Transmission Rate – Network Service Rate | B23: =VLOOKUP($B$3,'Data Current Rates'!$A:$AO,MATCH(BI_Dgen_Avg!$A23,CurrentHeader,0),FALSE) -> 1.7955 | C23: =IF($B$7="kWh",$B$4*$B$6,$B$5) -> 12 | D23: =C23*B23 -> 21.546 | E23: =VLOOKUP($B$3,'Data Proposed Rates'!$A:$AT,MATCH(BI_Dgen_Avg!$A23,ProposedHeader,0),FALSE) -> 1.8436 | F23: =IF($B$7="kWh",$B$4*$B$6,$B$5) -> 12 | G23: =F23*E23 -> 22.1232 | H23: 0.5772 | I23: 0.02678919521
A24: Retail Transmission Rate – Line and Transformation Connection Service Rate | B24: =VLOOKUP($B$3,'Data Current Rates'!$A:$AO,MATCH(BI_Dgen_Avg!$A24,CurrentHeader,0),FALSE) -> 1.0693 | C24: =IF($B$7="kWh",$B$4*$B$6,$B$5) -> 12 | D24: =C24*B24 -> 12.8316 | E24: =VLOOKUP($B$3,'Data Proposed Rates'!$A:$AT,MATCH(BI_Dgen_Avg!$A24,ProposedHeader,0),FALSE) -> 1.0959 | F24: =IF($B$7="kWh",$B$4*$B$6,$B$5) -> 12 | G24: =F24*E24 -> 13.1508 | H24: 0.3192 | I24: 0.02487608716
A25: Sub-Total C - Delivery (including Sub-Total B) | D25: =SUM(D22:D24) -> 394.2807 | G25: =SUM(G22:G24) -> 421.0281 | H25: 26.7474 | I25: 0.06783847142
A26: Wholesale Market Service Rate (WMS) – not including CBR | B26: =VLOOKUP($A26,'Data Pass Through'!$A:$D,2,FALSE) -> 0.0041 | C26: =$B$4*$B$6 -> 1813.249 | D26: =C26*B26 -> 7.4343209 | E26: =VLOOKUP($A26,'Data Pass Through'!$A:$D,3,FALSE) -> 0.0041 | F26: =$B$4*$B$6 -> 1813.249 | G26: =F26*E26 -> 7.4343209 | H26: 0 | I26: 0
